Workbook

Sheet 使い方
B2: 水道屋さんの水理計算書2012
B3: Ver.1.13s
B4: ＜使い方＞
B6: ●概要
B7: 「水道屋さんの水理計算書2012」は、直結直圧式の戸建タイプ、
B8: あるいは集合住宅タイプの水理計算書を作成します。
B10: 使用水量の算出は、
B11: 「戸建タイプ」では、
B12: 「同時に使用する末端給水用具を設定して計算する方法」によります。
B14: 「集合住宅タイプ」では、
B15: 「戸数または居住人数から同時使用水量を予測する算定式を用いる方法」によります。
B17: 本プログラムで作成するのは水理計算書であり、図面は作成しません。
B19: ●計算方法の選択
B20: まず、「タイプ選択」シートで、戸建タイプの計算を行うのか、
B21: 集合住宅タイプの計算を行うのかを選択します。
B23: これにより、タイプに合わせたシートが構成されますので、
B24: 左から順に、必要な設定、入力を行ってください。
B26: ●水理計算書の作成
B27: １．各入力シートに必要事項を入力します。
B28: ２．各シートの上部にある「水理計算書作成」ボタンを押すと、水理計算書が作成されます。
B35: ●入力
B36: 緑色のセルが入力欄となります。
C37: この色が入力欄
B39: ●入力項目の確認
B40: 各シートの上部にある「入力項目確認」ボタンを押すと印刷プレビュー画面となり、
B41: 入力内容を一覧で確認できます。
B42: 印刷プレビュー画面を閉じると、元の画面に戻ります。
B44: 印刷プレビュー画面から印刷することもできますが、この「入力内容一覧」は、
B45: 水理計算書を作成すると、同じブックに添付されます。
B47: ●シートの並びと名前
B48: シートを切り替えるにはシートのタブをクリックするか、各シートにあるボタンを
B49: クリックしてください。
B51: シートの並び順は自由に変更できます。
B52: シートの名前は変更しないでください。プログラムが正常に動作しなくなります。
B54: 緑色のタブは入力シート、青色のタブは設定シートです。
B56: ●使用説明書
B57: 使い方の詳細はWEB上の使用説明書をご確認ください。
B60: また各シートの上部にも、そのシートに対応する使用説明書ページへのリンクボタンが
B61: あります。

Sheet タイプ選択
B2: ＜タイプ選択＞
B4: ●戸建タイプか集合住宅タイプかを選択してください。
B6: 下のボタンを押すことで、タイプに合わせたシートを構成します。
B11: 使用水量の算出は、
B12: 「同時に使用する末端給水用具を設定して計算する方法」によります。
B17: 幹栓の使用水量の算出は、
B18: 「戸数または居住人数から同時使用水量を予測する算定式を用いる方法」によります。
B21: 現在のシート構成は
B23: 戸建タイプ
B25: です。

Sheet 目次-同時使用
B2: ＜目次＞
B4: ―入力項目―
C6: 水理計算書の表紙
C7: 表紙の設定をします。
C9: 基本情報の入力
C10: 「名称」「工事場所」など、基本情報を入力します。
C12: 末端給水用具数
C13: 末端給水用具数を入力します。
C15: 同時使用給水用具
C16: 同時に使用する給水用具を設定します。
C18: 配水管の水圧
C19: 配水管の水圧を設定します。
C21: 給水用具の所要水頭
C22: 給水用具の所要水頭（必要圧力）を設定します。
C24: 安全率
C25: 安全率の設定をします。
C27: 量水器の適正使用範囲
C28: 結果の判定における、量水器の適正使用範囲の設定をします。
C30: 流速
C31: 結果の判定における、流速の設定をします。
C33: 区間計算を行います。
B35: ―設定項目―
C37: 「同時使用率を考慮した末端給水用具数」の設定。
C39: 給水用具の用途別使用水量の設定。
C41: 水頭計算に用いる計算式の設定。
C43: 入力に使用する口径に対して、実際に計算に用いる内径値の設定。
C45: 量水器適正使用範囲の設定。
C47: 直管換算長の設定。

Sheet 入力1
B2: ＜入力1＞水理計算書の表紙
B4: ●水理計算書の表紙を作成しますか？
B6: ＜作成する場合＞
B7: 下のリストから「作成する」を選択して、シート「入力2」へ進んでください。
B9: ＜作成しない場合＞
B10: 下のリストから「作成しない」を選択して、シート「入力5」へ進んでください。
B12: 水理計算書の表紙
B13: 作成する
B14: =IF($B$13<>"","","※空白は「作成する」として処理します。") -> 
B16: 表紙を作成する場合
B20: 表紙を作成しない場合

Sheet 入力2
B2: ＜入力2＞基本情報の入力
B3: =IF(入力1!$B$13="作成しない","※表紙を作成しないため、このシートに入力する必要はありません。","") -> 
B4: ●「名称」「工事場所」「用途」「給水方式」を入力してください。
B6: 入力内容は水理計算書の表紙に記載されます。
B7: 記載しない項目は、リストから「記載しない」を選択してください。
B9: ■名 称 | D9: 記載する | F9: =IF(D9<>"","","※空白は「記載する」として処理します。") -> 
D11: （仮称）ABC店舗新築工事
B13: ■工事場所 | D13: 記載する | F13: =IF(D13<>"","","※空白は「記載する」として処理します。") -> 
D15: 東京都○○区○○1-2-3
B17: ■用 途 | D17: 記載する | F17: =IF(D17<>"","","※空白は「記載する」として処理します。") -> 
D19: 物販店舗
B21: ■給水方式 | D21: 記載する | F21: =IF(D21<>"","","※空白は「記載する」として処理します。") -> 
D23: ３階直結直圧式

Sheet 入力3
B2: ＜入力3＞末端給水用具数
B3: =IF(入力1!$B$13="作成しない","※表紙を作成しないため、このシートに入力する必要はありません。","") -> 
B4: ●末端給水用具の総数を入力してください。
B6: 入力できる数値は「1～30」です。
B7: リストからも選択できます。
B8: 入力内容は水理計算書の表紙に記載されます。
B10: ■末端給水用具の総数 | C10: 10 | D10: 栓
C11: =IF(AND(入力1!$B$13<>"作成しない",$C$10=""),"※空白ですと正常に計算できません。","") -> 
B12: ■同時使用末端給水用具数 | C12: =IF(C10="","",VLOOKUP(C10,同時使用!$B$4:$C$33,2,FALSE)) -> 3 | D12: 栓

Sheet 入力4
B2: ＜入力4＞同時使用給水用具
B3: =IF(入力1!$B$13="作成しない","※表紙を作成しないため、このシートに入力する必要はありません。","") -> 
B4: ●同時に使用する給水用具をリストから選択してください。
B6: 入力内容は水理計算書の表紙に記載されます。
B7: リストに無い給水用具はあらかじめ「使用水量」シートで登録してください。
I10: ↓非表示にする
B11: No | C11: 同時使用給水用具 | D11: 使用水量（L/min） | F11: 使用水量（L/sec） | I11: 同時使用末端給水用具数
B12: 1 | C12: 台所流し | D12: =IF(C12="","",VLOOKUP(C12,使用水量!$C$4:$G$53,5,FALSE)) -> 12 | E12: L/min | F12: =IF(C12="","",VLOOKUP(C12,使用水量!$C$4:$G$53,4,FALSE)) -> 0.2 | G12: L/sec | I12: =入力3!C12 -> 3
B13: 2 | C13: 洗たく流し | D13: =IF(C13="","",VLOOKUP(C13,使用水量!$C$4:$G$53,5,FALSE)) -> 12 | E13: L/min | F13: =IF(C13="","",VLOOKUP(C13,使用水量!$C$4:$G$53,4,FALSE)) -> 0.2 | G13: L/sec
B14: 3 | C14: 洗面器 | D14: =IF(C14="","",VLOOKUP(C14,使用水量!$C$4:$G$53,5,FALSE)) -> 8 | E14: L/min | F14: =IF(C14="","",VLOOKUP(C14,使用水量!$C$4:$G$53,4,FALSE)) -> 0.13 | G14: L/sec | I14: 同時使用給水用具リスト
B15: 4 | D15: =IF(C15="","",VLOOKUP(C15,使用水量!$C$4:$G$53,5,FALSE)) ->  | E15: L/min | F15: =IF(C15="","",VLOOKUP(C15,使用水量!$C$4:$G$53,4,FALSE)) ->  | G15: L/sec | I15: =IF(使用水量!C4="","",使用水量!C4) -> 台所流し
B16: 5 | D16: =IF(C16="","",VLOOKUP(C16,使用水量!$C$4:$G$53,5,FALSE)) ->  | E16: L/min | F16: =IF(C16="","",VLOOKUP(C16,使用水量!$C$4:$G$53,4,FALSE)) ->  | G16: L/sec | I16: =IF(使用水量!C5="","",使用水量!C5) -> 洗たく流し
B17: 6 | D17: =IF(C17="","",VLOOKUP(C17,使用水量!$C$4:$G$53,5,FALSE)) ->  | E17: L/min | F17: =IF(C17="","",VLOOKUP(C17,使用水量!$C$4:$G$53,4,FALSE)) ->  | G17: L/sec | I17: =IF(使用水量!C6="","",使用水量!C6) -> 洗面器
B18: 7 | D18: =IF(C18="","",VLOOKUP(C18,使用水量!$C$4:$G$53,5,FALSE)) ->  | E18: L/min | F18: =IF(C18="","",VLOOKUP(C18,使用水量!$C$4:$G$53,4,FALSE)) ->  | G18: L/sec | I18: =IF(使用水量!C7="","",使用水量!C7) -> 浴槽（和式）
B19: 8 | D19: =IF(C19="","",VLOOKUP(C19,使用水量!$C$4:$G$53,5,FALSE)) ->  | E19: L/min | F19: =IF(C19="","",VLOOKUP(C19,使用水量!$C$4:$G$53,4,FALSE)) ->  | G19: L/sec | I19: =IF(使用水量!C8="","",使用水量!C8) -> 浴槽（洋式）
B20: 9 | D20: =IF(C20="","",VLOOKUP(C20,使用水量!$C$4:$G$53,5,FALSE)) ->  | E20: L/min | F20: =IF(C20="","",VLOOKUP(C20,使用水量!$C$4:$G$53,4,FALSE)) ->  | G20: L/sec | I20: =IF(使用水量!C9="","",使用水量!C9) -> シャワー
B21: 10 | D21: =IF(C21="","",VLOOKUP(C21,使用水量!$C$4:$G$53,5,FALSE)) ->  | E21: L/min | F21: =IF(C21="","",VLOOKUP(C21,使用水量!$C$4:$G$53,4,FALSE)) ->  | G21: L/sec | I21: =IF(使用水量!C10="","",使用水量!C10) -> 小便器（洗浄水槽）
B22: 合計 | D22: =IF(I12="","",SUM(OFFSET(D12,0,0,I12,1))) -> 32 | E22: L/min | F22: =IF(I12="","",SUM(OFFSET(F12,0,0,I12,1))) -> 0.53 | G22: L/sec | I22: =IF(使用水量!C11="","",使用水量!C11) -> 小便器（洗浄弁）
I23: =IF(使用水量!C12="","",使用水量!C12) -> 大便器（洗浄水槽）
I24: =IF(使用水量!C13="","",使用水量!C13) -> 大便器（洗浄弁）
I25: =IF(使用水量!C14="","",使用水量!C14) -> 手洗器
I26: =IF(使用水量!C15="","",使用水量!C15) -> 消火栓（小型）
I27: =IF(使用水量!C16="","",使用水量!C16) -> 散水
I28: =IF(使用水量!C17="","",使用水量!C17) -> 洗車
I29: =IF(使用水量!C18="","",使用水量!C18) -> 
I30: =IF(使用水量!C19="","",使用水量!C19) -> 
I31: =IF(使用水量!C20="","",使用水量!C20) -> 
I32: =IF(使用水量!C21="","",使用水量!C21) -> 
I33: =IF(使用水量!C22="","",使用水量!C22) -> 
I34: =IF(使用水量!C23="","",使用水量!C23) -> 
I35: =IF(使用水量!C24="","",使用水量!C24) -> 
I36: =IF(使用水量!C25="","",使用水量!C25) -> 
I37: =IF(使用水量!C26="","",使用水量!C26) -> 
I38: =IF(使用水量!C27="","",使用水量!C27) -> 
I39: =IF(使用水量!C28="","",使用水量!C28) -> 
I40: =IF(使用水量!C29="","",使用水量!C29) -> 
I41: =IF(使用水量!C30="","",使用水量!C30) -> 
I42: =IF(使用水量!C31="","",使用水量!C31) -> 
I43: =IF(使用水量!C32="","",使用水量!C32) -> 
I44: =IF(使用水量!C33="","",使用水量!C33) -> 
I45: =IF(使用水量!C34="","",使用水量!C34) -> 
I46: =IF(使用水量!C35="","",使用水量!C35) -> 
I47: =IF(使用水量!C36="","",使用水量!C36) -> 
I48: =IF(使用水量!C37="","",使用水量!C37) -> 
I49: =IF(使用水量!C38="","",使用水量!C38) -> 
I50: =IF(使用水量!C39="","",使用水量!C39) -> 
I51: =IF(使用水量!C40="","",使用水量!C40) -> 
I52: =IF(使用水量!C41="","",使用水量!C41) -> 
I53: =IF(使用水量!C42="","",使用水量!C42) -> 
I54: =IF(使用水量!C43="","",使用水量!C43) -> 
I55: =IF(使用水量!C44="","",使用水量!C44) -> 
I56: =IF(使用水量!C45="","",使用水量!C45) -> 
I57: =IF(使用水量!C46="","",使用水量!C46) -> 
I58: =IF(使用水量!C47="","",使用水量!C47) -> 
I59: =IF(使用水量!C48="","",使用水量!C48) -> 
I60: =IF(使用水量!C49="","",使用水量!C49) -> 
I61: =IF(使用水量!C50="","",使用水量!C50) -> 
I62: =IF(使用水量!C51="","",使用水量!C51) -> 
I63: =IF(使用水量!C52="","",使用水量!C52) -> 
I64: =IF(使用水量!C53="","",使用水量!C53) -> 

Sheet 入力5
B2: ＜入力5＞配水管の水圧
B4: ●配水管の最小動水圧（設計水圧）の設定を行います。
B6: 給水装置の所要水頭と比較する時の単位をリストから選択し、その数値を入力してください。
B8: 比較の単位 | C8: 数値 | D8: 単位
B9: 圧力（MPa） | C9: 0.147 | D9: =IF(B9="水頭（m）","m","MPa") -> MPa
B10: =IF($B$9<>"","","※空白は「圧力（MPa）」として処理します。") -> 
B12: ■単位の変換には、下の変換式をご利用ください。
B14: 変換前 | D14: 変換後
B15: 数値 | C15: 単位 | D15: 数値 | E15: 単位
B16: 15 | C16: 水頭（m） | D16: =IF(OR(B16="",C16=""),"",IF(C16="圧力（MPa）",ROUND(B16/0.00980665,2),ROUND(B16*0.00980665,3))) -> 0.147 | E16: =IF(C16="","",IF(C16="圧力（MPa）","m","MPa")) -> MPa

Sheet 入力6
B2: ＜入力6＞給水用具の所要水頭
B4: ●給水用具の所要水頭（必要圧力）を考慮しますか？
B6: ＜考慮しない場合＞
B7: 下表の「方法」欄のリストから「考慮しない」を選択してください。
B8: 「数値」欄には何も入力しません。（入力してあっても問題ありません。）
B10: ＜区間計算の際に考慮する場合＞
B11: この方法は、区間計算の区間データに給水用具の所要水頭（必要圧力）を含めて
B12: 累計所要水頭を算出します。
B14: 下表の「方法」欄のリストから「区間計算に含める」を選択してください。
B15: 「数値」欄には何も入力しません。（入力してあっても問題ありません。）
B17: この場合、シート「入力区間」で区間データを入力する際に、「他損失水頭等」の項目に
B18: 給水用具の所要水頭（必要圧力）を入力してください。
B20: ＜区間計算後に考慮する場合＞
B21: この方法は、区間計算で算出した所要水頭に給水用具の所要水頭（必要圧力）を足し、
B22: それを配水管の最小動水圧（設計水圧）と比較する方法です。
B24: 下表の「方法」欄のリストから「区間計算後に比較」を選択してください。
B25: 「数値」欄には、給水用具の所要水頭（必要圧力）を入力してください。
B26: ※数値の単位は、「入力5 配水管の水圧」で選択した単位となります。
B28: 方法 | C28: 数値 | D28: 単位
B29: 区間計算後に比較 | C29: 0.03 | D29: =IF(B29<>"区間計算後に比較","",入力5!D9) -> MPa
B30: =IF(B29<>"","","※空白は「考慮しない」として処理します。") -> 
B32: ■単位の変換には、下の変換式をご利用ください。
B34: 変換前 | D34: 変換後
B35: 数値 | C35: 単位 | D35: MPa | E35: m
B36: 15 | C36: m | D36: =IF(OR($B$36="",$C$36=""),"",IF($C$36="MPa",$B$36,IF($C$36="kPa",ROUND($B$36/1000,3),IF($C$36="kgf/cm2",ROUND($B$36*0.0980665,3),ROUND($B$36*0.00980665,3))))) -> 0.147 | E36: =IF(OR($B$36="",$C$36=""),"",IF($C$36="MPa",ROUND($B$36/0.00980665,2),IF($C$36="kPa",ROUND($B$36/9.80665,2),IF($C$36="kgf/cm2",ROUND($B$36*10,2),$B$36)))) -> 15

Sheet 入力7
B2: ＜入力7＞安全率
B4: ●安全率を設定しますか？
B6: ＜設定しない場合＞
B7: 下表の「安全率の設定」欄のリストから「設定しない」を選択してください。
B8: 「数値」欄には何も入力しません。（入力してあっても問題ありません。）
B10: ＜設定する場合＞
B11: 下表の「安全率の設定」欄のリストから「設定する」を選択してください。
B12: 「数値」欄には、安全率を入力してください。
B14: 安全率の設定 | C14: 数値 | D14: 単位
B15: 設定する | C15: 10 | D15: ％
B16: =IF($B$15<>"","","※空白は「設定しない」として処理します。") -> 
B17: =IF(OR($B$15<>"設定する",$C$15=""),"","損失水頭を") -> 損失水頭を | C17: =IF(OR($B$15<>"設定する",$C$15=""),"",$C$15/100+1) -> 1.1 | D17: =IF(OR($B$15<>"設定する",$C$15=""),"","倍します。") -> 倍します。

Sheet 入力8
B2: ＜入力8＞量水器の適正使用範囲
B4: ●量水器の適正使用範囲と同時使用水量との比較を記載しますか？
B6: ＜記載しない場合＞
B7: 下表の「量水器の比較」欄のリストから「記載しない」を選択してください。
B8: 「単位」欄、「量水器口径」欄には何も入力しません。（入力してあっても問題ありません。）
B10: ＜記載する場合＞
B11: 下表の「量水器の比較」欄のリストから「上限と下限を比較」または「上限のみ比較」を
B12: 選択してください。
B13: 「単位」欄のリストから、水量の単位を選択してください。
B14: 「量水器口径」欄のリストから、量水器の口径を選択してください。
B16: 「比較結果」で、量水器口径が適当かどうかを確認してください。
B18: ※「入力1 水理計算書の表紙」で、「表紙を作成しない」を選択した場合、「比較結果」の
B19: 「同時使用水量」欄に同時使用水量を入力してください。
B21: 量水器の比較 | D21: 単位 | E21: 量水器 口径 | K21: ↓非表示にする
B22: 上限と下限を比較 | D22: L/sec | E22: 25 | K22: 水理計算書の表紙
B23: =IF($B$22<>"","","※空白は「記載しない」として処理します。") ->  | K23: =IF(入力1!B13="作成しない",入力1!B13,"作成する") -> 作成する
B25: 比較結果 | K25: 量水器口径リスト
B26: 流量下限 | D26: 比較 | E26: 同時使用水量 | G26: 比較 | H26: 流量上限 | K26: =IF(量水器!B5="","",量水器!B5) -> 13
B27: =IF(OR($B$22<>"上限と下限を比較",$D$22="",$E$22=""),"",IF($D$22="L/sec",VLOOKUP($E$22,量水器!$B$5:$J$27,6,FALSE),VLOOKUP($E$22,量水器!$B$5:$J$27,8,FALSE))) -> 0.06 | C27: =IF(OR($B$22<>"上限と下限を比較",$D$22=""),"",IF($D$22="L/sec","L/sec","L/min")) -> L/sec | D27: =IF(OR($B$22<>"上限と下限を比較",$D$22="",$E$22=""),"",IF(B27<E27,"<",IF(B27>E27,">","="))) -> < | E27: =IF(OR($B$22="記載しない",$B$22="",入力4!$C$12="",$D$22="",$K$23="作成しない"),"",IF($D$22="L/sec",入力4!$F$22,入力4!$D$22)) -> 0.53 | F27: =IF(OR($B$22="記載しない",$B$22="",$D$22=""),"",IF($D$22="L/sec","L/sec","L/min")) -> L/sec | G27: =IF(OR($B$22="記載しない",$B$22="",$D$22="",$E$22=""),"",IF(E27<H27,"<",IF(E27>H27,">","="))) -> < | H27: =IF(OR($B$22="記載しない",$B$22="",$D$22="",$E$22=""),"",IF($D$22="L/sec",VLOOKUP($E$22,量水器!$B$5:$J$27,7,FALSE),VLOOKUP($E$22,量水器!$B$5:$J$27,9,FALSE))) -> 0.69 | I27: =IF(OR($B$22="記載しない",$B$22="",$D$22=""),"",IF($D$22="L/sec","L/sec","L/min")) -> L/sec | K27: =IF(量水器!B6="","",量水器!B6) -> 20
K28: =IF(量水器!B7="","",量水器!B7) -> 25
K29: =IF(量水器!B8="","",量水器!B8) -> 30
B30: ■「比較結果」の「同時使用水量」欄には、「入力4 同時使用給水用具」の合計を参照する | K30: =IF(量水器!B9="","",量水器!B9) -> 40
B31: 数式が入力されています。 | K31: =IF(量水器!B10="","",量水器!B10) -> 50
B32: 「表紙を作成しない」を選択した場合、数値を直接入力するため、数式は上書きされます。 | K32: =IF(量水器!B11="","",量水器!B11) -> 75
B33: 元の数式に戻したい場合には、下の「リセット」ボタンを押してください。 | K33: =IF(量水器!B12="","",量水器!B12) -> 100
K34: =IF(量水器!B13="","",量水器!B13) -> 150
K35: =IF(量水器!B14="","",量水器!B14) -> 200
K36: =IF(量水器!B15="","",量水器!B15) -> 250
K37: =IF(量水器!B16="","",量水器!B16) -> 300
K38: =IF(量水器!B17="","",量水器!B17) -> 350
K39: =IF(量水器!B18="","",量水器!B18) -> 10
K40: =IF(量水器!B19="","",量水器!B19) -> 16
K41: =IF(量水器!B20="","",量水器!B20) -> 
K42: =IF(量水器!B21="","",量水器!B21) -> 
K43: =IF(量水器!B22="","",量水器!B22) -> 
K44: =IF(量水器!B23="","",量水器!B23) -> 
K45: =IF(量水器!B24="","",量水器!B24) -> 
K46: =IF(量水器!B25="","",量水器!B25) -> 
K47: =IF(量水器!B26="","",量水器!B26) -> 
K48: =IF(量水器!B27="","",量水器!B27) -> 

Sheet 入力9
B2: ＜入力9＞流速
B4: ●流速の比較を記載しますか？
B6: ＜記載しない場合＞
B7: 下表の「流速の比較」欄のリストから「記載しない」を選択してください。
B8: 「数値」欄には何も入力しません。（入力してあっても問題ありません。）
B10: ＜記載する場合＞
B11: 下表の「流速の比較」欄のリストから「記載する」を選択してください。
B12: 「数値」欄には、比較の基準となる流速を入力してください。
B14: 流速の比較 | C14: 数値 | D14: 単位
B15: 記載する | C15: 2 | D15: m/sec
B16: =IF($B$15<>"","","※空白は「記載しない」として処理します。") -> 

Sheet 入力区間
H1: サンプル用データ入力ボタン
B2: ＜入力区間＞
H3: データ1
B4: ●区間データを入力してください。 | H4: 5区間分のデータです。
H5: シート「入力1」～「入力9」及び、このシートのセルAA8の設定を色々と変更し、
B6: 項目名にマウスカーソルを当てると簡易ヘルプが表示されます。 | H6: 出来上がる水理計算書の違いを確認してみてください。
B7: 詳細な解説はWEB上の使用説明書をご確認ください。 | AA7: =IF($AA$8<>"","","※空白は「この項目を水理計算書に記載しない」として処理します。") -> 
AA8: この項目を水理計算書に記載しない | AY8: ↓非表示にする | AZ8: ↓非表示にする | BA8: ↓非表示にする | BB8: ↓非表示にする | BC8: ↓非表示にする | BD8: ↓非表示にする | BE8: ↓非表示にする | BF8: ↓非表示にする | BG8: ↓非表示にする | BH8: ↓非表示にする
B9: 累計所要水頭 | D9: 区間 所要水頭 | E9: 流速 | F9: 区関数 | G9: 区間名 | H9: 流量 | I9: 口径 | J9: 管延長 | K9: 立上り | L9: =IF(直管換算!C3="","",直管換算!C3) -> 分水栓 | M9: =IF(直管換算!D3="","",直管換算!D3) -> 量水器 | N9: =IF(直管換算!E3="","",直管換算!E3) -> 水栓 | O9: =IF(直管換算!F3="","",直管換算!F3) -> ポール タップ 定水位弁 | P9: =IF(直管換算!G3="","",直管換算!G3) -> ゲート バルブ | Q9: =IF(直管換算!H3="","",直管換算!H3) -> グローブ バルブ | R9: =IF(直管換算!I3="","",直管換算!I3) -> ボール 止水栓 | S9: =IF(直管換算!J3="","",直管換算!J3) -> 逆止弁 | T9: =IF(直管換算!K3="","",直管換算!K3) -> 曲半径小 90度曲管 | U9: =IF(直管換算!L3="","",直管換算!L3) -> 曲半径小 45度曲管 | V9: =IF(直管換算!M3="","",直管換算!M3) -> 曲半径大 90度曲管 | W9: =IF(直管換算!N3="","",直管換算!N3) -> 曲半径大 45度曲管 | X9: =IF(直管換算!O3="","",直管換算!O3) -> 架橋ポリ チーズ エルボ | Y9: =IF(直管換算!P3="","",直管換算!P3) ->  | Z9: =IF(直管換算!Q3="","",直管換算!Q3) ->  | AA9: 他損失水頭等 | AC9: 計算内径 | AD9: 計算式 | AE9: 動水勾配 | AF9: 損失水頭 | AG9: 安全率 込み 損失水頭 | AH9: =IF(直管換算!C3="","",直管換算!C3) -> 分水栓 | AI9: =IF(直管換算!D3="","",直管換算!D3) -> 量水器 | AJ9: =IF(直管換算!E3="","",直管換算!E3) -> 水栓 | AK9: =IF(直管換算!F3="","",直管換算!F3) -> ポール タップ 定水位弁 | AL9: =IF(直管換算!G3="","",直管換算!G3) -> ゲート バルブ | AM9: =IF(直管換算!H3="","",直管換算!H3) -> グローブ バルブ | AN9: =IF(直管換算!I3="","",直管換算!I3) -> ボール 止水栓 | AO9: =IF(直管換算!J3="","",直管換算!J3) -> 逆止弁 | AP9: =IF(直管換算!K3="","",直管換算!K3) -> 曲半径小 90度曲管 | AQ9: =IF(直管換算!L3="","",直管換算!L3) -> 曲半径小 45度曲管 | AR9: =IF(直管換算!M3="","",直管換算!M3) -> 曲半径大 90度曲管 | AS9: =IF(直管換算!N3="","",直管換算!N3) -> 曲半径大 45度曲管 | AT9: =IF(直管換算!O3="","",直管換算!O3) -> 架橋ポリ チーズ エルボ | AU9: =IF(直管換算!P3="","",直管換算!P3) ->  | AV9: =IF(直管換算!Q3="","",直管換算!Q3) ->  | AW9: 直管 換算長計 | AY9: 区関数 確認 | AZ9: W流速 | BA9: W動水勾配 | BB9: H流速 | BC9: H動水勾配 | BD9: 口径リスト | BE9: 流速の比較 | BF9: 配水管 の水圧 | BG9: 給水用具の所要水頭 | BH9: サンプルデータ番号
B10: MPa | C10: m | D10: m | E10: m/sec | F10: =AY10 -> 5 | H10: L/sec | I10: mm | J10: m | K10: m | L10: 個 | M10: 個 | N10: 個 | O10: 個 | P10: 個 | Q10: 個 | R10: 個 | S10: 個 | T10: 個 | U10: 個 | V10: 個 | W10: 個 | X10: 個 | Y10: 個 | Z10: 個 | AA10: m | AB10: 備考 | AC10: mm | AD10: W/H | AE10: ‰ | AF10: m | AG10: =IF(入力7!$B$15="設定する",入力7!$C$17,1) -> 1.1 | AH10: m | AI10: m | AJ10: m | AK10: m | AL10: m | AM10: m | AN10: m | AO10: m | AP10: m | AQ10: m | AR10: m | AS10: m | AT10: m | AU10: m | AV10: m | AW10: m | AY10: =MATCH("空",AY11:AY61,0)-1 -> 5 | AZ10: m/sec | BA10: 0/00 | BB10: m/sec | BC10: 0/00 | BD10: =IF(内径設定!B4="","",内径設定!B4) -> 13 | BE10: =IF(OR(入力9!$B$15="",入力9!$B$15="記載しない"),"記載しない","記載する") -> 記載する | BF10: =IF(OR(入力5!$B$9="",入力5!$B$9="圧力（MPa）"),"MPa","m") -> MPa | BG10: =IF(入力6!$B$29="","考慮しない",入力6!$B$29) -> 区間計算後に比較 | BH10: 1
B11: =IF(C11="","",ROUND(C11*0.00980665,3)) -> 0.027 | C11: =IF(OR(H11="",I11=""),"",D11) -> 2.71 | D11: =IF(OR(H11="",I11=""),"",IF($AA$8="この項目を水理計算書に記載する",AG11+ROUND(K11,2)+ROUND(AA11,2),AG11+ROUND(K11,2))) -> 2.71 | E11: =IF(OR(H11="",I11=""),"",IF(AD11="W",ROUND(AZ11,2),ROUND(BB11,2))) -> 1.51 | F11: 1 | G11: A-B | H11: 0.2 | I11: 13 | J11: 1.8 | K11: 1.5 | N11: 1 | AA11: 3 | AB11: 給水栓の所要水頭 | AC11: =IF(I11="","",VLOOKUP(I11,内径設定!$B$4:$C$26,2,FALSE)) -> 13 | AD11: =IF(AC11="","",IF(OR(AND(AC11>計算公式!$B$9,計算公式!$D$9="超"),AND(AC11>=計算公式!$B$9,計算公式!$D$9="以上")),"H","W")) -> W | AE11: =IF(OR(H11="",I11=""),"",IF(AD11="W",ROUNDUP(BA11,0),ROUNDUP(BC11,0))) -> 229 | AF11: =IF(OR(H11="",I11=""),"",(J11+AW11)*AE11/1000) -> 1.0992 | AG11: =IF(OR(H11="",I11=""),"",ROUND(AF11*$AG$10,2)) -> 1.21 | AH11: =IF(OR(I11="",L11=""),"",ROUND(VLOOKUP(I11,直管換算!$B$4:$Q$26,2,FALSE)*L11,2)) ->  | AI11: =IF(OR(I11="",M11=""),"",ROUND(VLOOKUP(I11,直管換算!$B$4:$Q$26,3,FALSE)*M11,2)) ->  | AJ11: =IF(OR(I11="",N11=""),"",ROUND(VLOOKUP(I11,直管換算!$B$4:$Q$26,4,FALSE)*N11,2)) -> 3 | AK11: =IF(OR(I11="",O11=""),"",ROUND(VLOOKUP(I11,直管換算!$B$4:$Q$26,5,FALSE)*O11,2)) ->  | AL11: =IF(OR(I11="",P11=""),"",ROUND(VLOOKUP(I11,直管換算!$B$4:$Q$26,6,FALSE)*P11,2)) ->  | AM11: =IF(OR(I11="",Q11=""),"",ROUND(VLOOKUP(I11,直管換算!$B$4:$Q$26,7,FALSE)*Q11,2)) ->  | AN11: =IF(OR(I11="",R11=""),"",ROUND(VLOOKUP(I11,直管換算!$B$4:$Q$26,8,FALSE)*R11,2)) ->  | AO11: =IF(OR(I11="",S11=""),"",ROUND(VLOOKUP(I11,直管換算!$B$4:$Q$26,9,FALSE)*S11,2)) ->  | AP11: =IF(OR(I11="",T11=""),"",ROUND(VLOOKUP(I11,直管換算!$B$4:$Q$26,10,FALSE)*T11,2)) ->  | AQ11: =IF(OR(I11="",U11=""),"",ROUND(VLOOKUP(I11,直管換算!$B$4:$Q$26,11,FALSE)*U11,2)) ->  | AR11: =IF(OR(I11="",V11=""),"",ROUND(VLOOKUP(I11,直管換算!$B$4:$Q$26,12,FALSE)*V11,2)) ->  | AS11: =IF(OR(I11="",W11=""),"",ROUND(VLOOKUP(I11,直管換算!$B$4:$Q$26,13,FALSE)*W11,2)) ->  | AT11: =IF(OR(I11="",X11=""),"",ROUND(VLOOKUP(I11,直管換算!$B$4:$Q$26,14,FALSE)*X11,2)) ->  | AU11: =IF(OR(I11="",Y11=""),"",ROUND(VLOOKUP(I11,直管換算!$B$4:$Q$26,15,FALSE)*Y11,2)) ->  | AV11: =IF(OR(I11="",Z11=""),"",ROUND(VLOOKUP(I11,直管換算!$B$4:$Q$26,16,FALSE)*Z11,2)) ->  | AW11: =IF(I11="","",SUM(AH11:AV11)) -> 3 | AY11: =IF(B11="","空",F11) -> 1 | AZ11: =IF(OR(H11="",I11=""),"",(4*H11/1000)/(PI()*POWER(AC11/1000,2))) -> 1.506792361 | BA11: =IF(OR(H11="",I11=""),"",(0.0126+(0.01739-0.1087*AC11/1000)/SQRT(AZ11))/(AC11/1000)*POWER(AZ11,2)/(2*9.8)*1000) -> 228.2510327 | BB11: =IF(OR(H11="",I11=""),"",0.35464*計算公式!$B$14*POWER(AC11/1000,0.63)*POWER(BC11/1000,0.54)) -> 1.525364451 | BC11: =IF(OR(H11="",I11=""),"",10.666*POWER(計算公式!$B$14,-1.85)*POWER(AC11/1000,-4.87)*POWER(H11/1000,1.85)*1000) -> 467.7383137 | BD11: =IF(内径設定!B5="","",内径設定!B5) -> 20 | BE11: 数値 | BF11: 数値 | BG11: 数値
B12: 0.028 | C12: =IF(OR(H12="",I12="",C11=""),"",C11+D12) -> 2.84 | D12: 0.13 | E12: 0.64 | F12: 2 | G12: B-C | H12: 0.2 | I12: 20 | J12: 3.5 | K12: 0 | AC12: =IF(I12="","",VLOOKUP(I12,内径設定!$B$4:$C$26,2,FALSE)) -> 20 | AD12: =IF(AC12="","",IF(OR(AND(AC12>計算公式!$B$9,計算公式!$D$9="超"),AND(AC12>=計算公式!$B$9,計算公式!$D$9="以上")),"H","W")) -> W | AE12: 33 | AF12: 0.1155 | AG12: 0.13 | AH12: =IF(OR(I12="",L12=""),"",ROUND(VLOOKUP(I12,直管換算!$B$4:$Q$26,2,FALSE)*L12,2)) ->  | AI12: =IF(OR(I12="",M12=""),"",ROUND(VLOOKUP(I12,直管換算!$B$4:$Q$26,3,FALSE)*M12,2)) ->  | AJ12: =IF(OR(I12="",N12=""),"",ROUND(VLOOKUP(I12,直管換算!$B$4:$Q$26,4,FALSE)*N12,2)) ->  | AK12: =IF(OR(I12="",O12=""),"",ROUND(VLOOKUP(I12,直管換算!$B$4:$Q$26,5,FALSE)*O12,2)) ->  | AL12: =IF(OR(I12="",P12=""),"",ROUND(VLOOKUP(I12,直管換算!$B$4:$Q$26,6,FALSE)*P12,2)) ->  | AM12: =IF(OR(I12="",Q12=""),"",ROUND(VLOOKUP(I12,直管換算!$B$4:$Q$26,7,FALSE)*Q12,2)) ->  | AN12: =IF(OR(I12="",R12=""),"",ROUND(VLOOKUP(I12,直管換算!$B$4:$Q$26,8,FALSE)*R12,2)) ->  | AO12: =IF(OR(I12="",S12=""),"",ROUND(VLOOKUP(I12,直管換算!$B$4:$Q$26,9,FALSE)*S12,2)) ->  | AP12: =IF(OR(I12="",T12=""),"",ROUND(VLOOKUP(I12,直管換算!$B$4:$Q$26,10,FALSE)*T12,2)) ->  | AQ12: =IF(OR(I12="",U12=""),"",ROUND(VLOOKUP(I12,直管換算!$B$4:$Q$26,11,FALSE)*U12,2)) ->  | AR12: =IF(OR(I12="",V12=""),"",ROUND(VLOOKUP(I12,直管換算!$B$4:$Q$26,12,FALSE)*V12,2)) ->  | AS12: =IF(OR(I12="",W12=""),"",ROUND(VLOOKUP(I12,直管換算!$B$4:$Q$26,13,FALSE)*W12,2)) ->  | AT12: =IF(OR(I12="",X12=""),"",ROUND(VLOOKUP(I12,直管換算!$B$4:$Q$26,14,FALSE)*X12,2)) ->  | AU12: =IF(OR(I12="",Y12=""),"",ROUND(VLOOKUP(I12,直管換算!$B$4:$Q$26,15,FALSE)*Y12,2)) ->  | AV12: =IF(OR(I12="",Z12=""),"",ROUND(VLOOKUP(I12,直管換算!$B$4:$Q$26,16,FALSE)*Z12,2)) ->  | AW12: 0 | AY12: 2 | AZ12: 0.6366197724 | BA12: 32.74372697 | BB12: =IF(OR(H12="",I12=""),"",0.35464*計算公式!$B$14*POWER(AC12/1000,0.63)*POWER(BC12/1000,0.54)) -> 0.644522008 | BC12: =IF(OR(H12="",I12=""),"",10.666*POWER(計算公式!$B$14,-1.85)*POWER(AC12/1000,-4.87)*POWER(H12/1000,1.85)*1000) -> 57.39723775 | BD12: =IF(内径設定!B6="","",内径設定!B6) -> 25 | BE12: =IF(OR(入力9!$B$15="",入力9!$B$15="記載しない"),"",入力9!$C$15) -> 2 | BF12: =入力5!$C$9 -> 0.147 | BG12: =入力6!$C$29 -> 0.03
B13: 0.108 | C13: 10.97 | D13: 8.13 | E13: 1.05 | F13: 3 | G13: C-D | H13: 0.33 | I13: 20 | J13: 13 | K13: 7 | P13: 1 | AC13: =IF(I13="","",VLOOKUP(I13,内径設定!$B$4:$C$26,2,FALSE)) -> 20 | AD13: =IF(AC13="","",IF(OR(AND(AC13>計算公式!$B$9,計算公式!$D$9="超"),AND(AC13>=計算公式!$B$9,計算公式!$D$9="以上")),"H","W")) -> W | AE13: 78 | AF13: 1.0257 | AG13: 1.13 | AH13: =IF(OR(I13="",L13=""),"",ROUND(VLOOKUP(I13,直管換算!$B$4:$Q$26,2,FALSE)*L13,2)) ->  | AI13: =IF(OR(I13="",M13=""),"",ROUND(VLOOKUP(I13,直管換算!$B$4:$Q$26,3,FALSE)*M13,2)) ->  | AJ13: =IF(OR(I13="",N13=""),"",ROUND(VLOOKUP(I13,直管換算!$B$4:$Q$26,4,FALSE)*N13,2)) ->  | AK13: =IF(OR(I13="",O13=""),"",ROUND(VLOOKUP(I13,直管換算!$B$4:$Q$26,5,FALSE)*O13,2)) ->  | AL13: =IF(OR(I13="",P13=""),"",ROUND(VLOOKUP(I13,直管換算!$B$4:$Q$26,6,FALSE)*P13,2)) -> 0.15 | AM13: =IF(OR(I13="",Q13=""),"",ROUND(VLOOKUP(I13,直管換算!$B$4:$Q$26,7,FALSE)*Q13,2)) ->  | AN13: =IF(OR(I13="",R13=""),"",ROUND(VLOOKUP(I13,直管換算!$B$4:$Q$26,8,FALSE)*R13,2)) ->  | AO13: =IF(OR(I13="",S13=""),"",ROUND(VLOOKUP(I13,直管換算!$B$4:$Q$26,9,FALSE)*S13,2)) ->  | AP13: =IF(OR(I13="",T13=""),"",ROUND(VLOOKUP(I13,直管換算!$B$4:$Q$26,10,FALSE)*T13,2)) ->  | AQ13: =IF(OR(I13="",U13=""),"",ROUND(VLOOKUP(I13,直管換算!$B$4:$Q$26,11,FALSE)*U13,2)) ->  | AR13: =IF(OR(I13="",V13=""),"",ROUND(VLOOKUP(I13,直管換算!$B$4:$Q$26,12,FALSE)*V13,2)) ->  | AS13: =IF(OR(I13="",W13=""),"",ROUND(VLOOKUP(I13,直管換算!$B$4:$Q$26,13,FALSE)*W13,2)) ->  | AT13: =IF(OR(I13="",X13=""),"",ROUND(VLOOKUP(I13,直管換算!$B$4:$Q$26,14,FALSE)*X13,2)) ->  | AU13: =IF(OR(I13="",Y13=""),"",ROUND(VLOOKUP(I13,直管換算!$B$4:$Q$26,15,FALSE)*Y13,2)) ->  | AV13: =IF(OR(I13="",Z13=""),"",ROUND(VLOOKUP(I13,直管換算!$B$4:$Q$26,16,FALSE)*Z13,2)) ->  | AW13: 0.15 | AY13: 3 | AZ13: 1.050422624 | BA13: 77.25489381 | BB13: =IF(OR(H13="",I13=""),"",0.35464*計算公式!$B$14*POWER(AC13/1000,0.63)*POWER(BC13/1000,0.54)) -> 1.062928891 | BC13: =IF(OR(H13="",I13=""),"",10.666*POWER(計算公式!$B$14,-1.85)*POWER(AC13/1000,-4.87)*POWER(H13/1000,1.85)*1000) -> 144.956031 | BD13: =IF(内径設定!B7="","",内径設定!B7) -> 30
B14: 0.139 | C14: 14.19 | D14: 3.22 | E14: 1.69 | F14: 4 | G14: D-E | H14: 0.53 | I14: 20 | J14: 5.5 | M14: 1 | R14: 1 | S14: 1 | AC14: =IF(I14="","",VLOOKUP(I14,内径設定!$B$4:$C$26,2,FALSE)) -> 20 | AD14: =IF(AC14="","",IF(OR(AND(AC14>計算公式!$B$9,計算公式!$D$9="超"),AND(AC14>=計算公式!$B$9,計算公式!$D$9="以上")),"H","W")) -> W | AE14: 177 | AF14: 2.92935 | AG14: 3.22 | AH14: =IF(OR(I14="",L14=""),"",ROUND(VLOOKUP(I14,直管換算!$B$4:$Q$26,2,FALSE)*L14,2)) ->  | AI14: =IF(OR(I14="",M14=""),"",ROUND(VLOOKUP(I14,直管換算!$B$4:$Q$26,3,FALSE)*M14,2)) -> 6 | AJ14: =IF(OR(I14="",N14=""),"",ROUND(VLOOKUP(I14,直管換算!$B$4:$Q$26,4,FALSE)*N14,2)) ->  | AK14: =IF(OR(I14="",O14=""),"",ROUND(VLOOKUP(I14,直管換算!$B$4:$Q$26,5,FALSE)*O14,2)) ->  | AL14: =IF(OR(I14="",P14=""),"",ROUND(VLOOKUP(I14,直管換算!$B$4:$Q$26,6,FALSE)*P14,2)) ->  | AM14: =IF(OR(I14="",Q14=""),"",ROUND(VLOOKUP(I14,直管換算!$B$4:$Q$26,7,FALSE)*Q14,2)) ->  | AN14: =IF(OR(I14="",R14=""),"",ROUND(VLOOKUP(I14,直管換算!$B$4:$Q$26,8,FALSE)*R14,2)) -> 0.15 | AO14: =IF(OR(I14="",S14=""),"",ROUND(VLOOKUP(I14,直管換算!$B$4:$Q$26,9,FALSE)*S14,2)) -> 4.9 | AP14: =IF(OR(I14="",T14=""),"",ROUND(VLOOKUP(I14,直管換算!$B$4:$Q$26,10,FALSE)*T14,2)) ->  | AQ14: =IF(OR(I14="",U14=""),"",ROUND(VLOOKUP(I14,直管換算!$B$4:$Q$26,11,FALSE)*U14,2)) ->  | AR14: =IF(OR(I14="",V14=""),"",ROUND(VLOOKUP(I14,直管換算!$B$4:$Q$26,12,FALSE)*V14,2)) ->  | AS14: =IF(OR(I14="",W14=""),"",ROUND(VLOOKUP(I14,直管換算!$B$4:$Q$26,13,FALSE)*W14,2)) ->  | AT14: =IF(OR(I14="",X14=""),"",ROUND(VLOOKUP(I14,直管換算!$B$4:$Q$26,14,FALSE)*X14,2)) ->  | AU14: =IF(OR(I14="",Y14=""),"",ROUND(VLOOKUP(I14,直管換算!$B$4:$Q$26,15,FALSE)*Y14,2)) ->  | AV14: =IF(OR(I14="",Z14=""),"",ROUND(VLOOKUP(I14,直管換算!$B$4:$Q$26,16,FALSE)*Z14,2)) ->  | AW14: 11.05 | AY14: 4 | AZ14: 1.687042397 | BA14: 176.5378739 | BB14: =IF(OR(H14="",I14=""),"",0.35464*計算公式!$B$14*POWER(AC14/1000,0.63)*POWER(BC14/1000,0.54)) -> 1.7063196 | BC14: =IF(OR(H14="",I14=""),"",10.666*POWER(計算公式!$B$14,-1.85)*POWER(AC14/1000,-4.87)*POWER(H14/1000,1.85)*1000) -> 348.2537962 | BD14: =IF(内径設定!B8="","",内径設定!B8) -> 40
B15: 0.15 | C15: 15.34 | D15: 1.15 | E15: 1.08 | F15: 5 | G15: E-F | H15: 0.53 | I15: 25 | J15: 2.5 | K15: 0.9 | L15: 1 | AC15: =IF(I15="","",VLOOKUP(I15,内径設定!$B$4:$C$26,2,FALSE)) -> 25 | AD15: =IF(AC15="","",IF(OR(AND(AC15>計算公式!$B$9,計算公式!$D$9="超"),AND(AC15>=計算公式!$B$9,計算公式!$D$9="以上")),"H","W")) -> W | AE15: 64 | AF15: 0.224 | AG15: 0.25 | AH15: =IF(OR(I15="",L15=""),"",ROUND(VLOOKUP(I15,直管換算!$B$4:$Q$26,2,FALSE)*L15,2)) -> 1 | AI15: =IF(OR(I15="",M15=""),"",ROUND(VLOOKUP(I15,直管換算!$B$4:$Q$26,3,FALSE)*M15,2)) ->  | AJ15: =IF(OR(I15="",N15=""),"",ROUND(VLOOKUP(I15,直管換算!$B$4:$Q$26,4,FALSE)*N15,2)) ->  | AK15: =IF(OR(I15="",O15=""),"",ROUND(VLOOKUP(I15,直管換算!$B$4:$Q$26,5,FALSE)*O15,2)) ->  | AL15: =IF(OR(I15="",P15=""),"",ROUND(VLOOKUP(I15,直管換算!$B$4:$Q$26,6,FALSE)*P15,2)) ->  | AM15: =IF(OR(I15="",Q15=""),"",ROUND(VLOOKUP(I15,直管換算!$B$4:$Q$26,7,FALSE)*Q15,2)) ->  | AN15: =IF(OR(I15="",R15=""),"",ROUND(VLOOKUP(I15,直管換算!$B$4:$Q$26,8,FALSE)*R15,2)) ->  | AO15: =IF(OR(I15="",S15=""),"",ROUND(VLOOKUP(I15,直管換算!$B$4:$Q$26,9,FALSE)*S15,2)) ->  | AP15: =IF(OR(I15="",T15=""),"",ROUND(VLOOKUP(I15,直管換算!$B$4:$Q$26,10,FALSE)*T15,2)) ->  | AQ15: =IF(OR(I15="",U15=""),"",ROUND(VLOOKUP(I15,直管換算!$B$4:$Q$26,11,FALSE)*U15,2)) ->  | AR15: =IF(OR(I15="",V15=""),"",ROUND(VLOOKUP(I15,直管換算!$B$4:$Q$26,12,FALSE)*V15,2)) ->  | AS15: =IF(OR(I15="",W15=""),"",ROUND(VLOOKUP(I15,直管換算!$B$4:$Q$26,13,FALSE)*W15,2)) ->  | AT15: =IF(OR(I15="",X15=""),"",ROUND(VLOOKUP(I15,直管換算!$B$4:$Q$26,14,FALSE)*X15,2)) ->  | AU15: =IF(OR(I15="",Y15=""),"",ROUND(VLOOKUP(I15,直管換算!$B$4:$Q$26,15,FALSE)*Y15,2)) ->  | AV15: =IF(OR(I15="",Z15=""),"",ROUND(VLOOKUP(I15,直管換算!$B$4:$Q$26,16,FALSE)*Z15,2)) ->  | AW15: 1 | AY15: 5 | AZ15: 1.079707134 | BA15: 63.57128661 | BB15: =IF(OR(H15="",I15=""),"",0.35464*計算公式!$B$14*POWER(AC15/1000,0.63)*POWER(BC15/1000,0.54)) -> 1.092093282 | BC15: =IF(OR(H15="",I15=""),"",10.666*POWER(計算公式!$B$14,-1.85)*POWER(AC15/1000,-4.87)*POWER(H15/1000,1.85)*1000) -> 117.4746327 | BD15: =IF(内径設定!B9="","",内径設定!B9) -> 50
F16: 6 | AC16: =IF(I16="","",VLOOKUP(I16,内径設定!$B$4:$C$26,2,FALSE)) ->  | AD16: =IF(AC16="","",IF(OR(AND(AC16>計算公式!$B$9,計算公式!$D$9="超"),AND(AC16>=計算公式!$B$9,計算公式!$D$9="以上")),"H","W")) ->  | AH16: =IF(OR(I16="",L16=""),"",ROUND(VLOOKUP(I16,直管換算!$B$4:$Q$26,2,FALSE)*L16,2)) ->  | AI16: =IF(OR(I16="",M16=""),"",ROUND(VLOOKUP(I16,直管換算!$B$4:$Q$26,3,FALSE)*M16,2)) ->  | AJ16: =IF(OR(I16="",N16=""),"",ROUND(VLOOKUP(I16,直管換算!$B$4:$Q$26,4,FALSE)*N16,2)) ->  | AK16: =IF(OR(I16="",O16=""),"",ROUND(VLOOKUP(I16,直管換算!$B$4:$Q$26,5,FALSE)*O16,2)) ->  | AL16: =IF(OR(I16="",P16=""),"",ROUND(VLOOKUP(I16,直管換算!$B$4:$Q$26,6,FALSE)*P16,2)) ->  | AM16: =IF(OR(I16="",Q16=""),"",ROUND(VLOOKUP(I16,直管換算!$B$4:$Q$26,7,FALSE)*Q16,2)) ->  | AN16: =IF(OR(I16="",R16=""),"",ROUND(VLOOKUP(I16,直管換算!$B$4:$Q$26,8,FALSE)*R16,2)) ->  | AO16: =IF(OR(I16="",S16=""),"",ROUND(VLOOKUP(I16,直管換算!$B$4:$Q$26,9,FALSE)*S16,2)) ->  | AP16: =IF(OR(I16="",T16=""),"",ROUND(VLOOKUP(I16,直管換算!$B$4:$Q$26,10,FALSE)*T16,2)) ->  | AQ16: =IF(OR(I16="",U16=""),"",ROUND(VLOOKUP(I16,直管換算!$B$4:$Q$26,11,FALSE)*U16,2)) ->  | AR16: =IF(OR(I16="",V16=""),"",ROUND(VLOOKUP(I16,直管換算!$B$4:$Q$26,12,FALSE)*V16,2)) ->  | AS16: =IF(OR(I16="",W16=""),"",ROUND(VLOOKUP(I16,直管換算!$B$4:$Q$26,13,FALSE)*W16,2)) ->  | AT16: =IF(OR(I16="",X16=""),"",ROUND(VLOOKUP(I16,直管換算!$B$4:$Q$26,14,FALSE)*X16,2)) ->  | AU16: =IF(OR(I16="",Y16=""),"",ROUND(VLOOKUP(I16,直管換算!$B$4:$Q$26,15,FALSE)*Y16,2)) ->  | AV16: =IF(OR(I16="",Z16=""),"",ROUND(VLOOKUP(I16,直管換算!$B$4:$Q$26,16,FALSE)*Z16,2)) ->  | AY16: 空 | BB16: =IF(OR(H16="",I16=""),"",0.35464*計算公式!$B$14*POWER(AC16/1000,0.63)*POWER(BC16/1000,0.54)) ->  | BC16: =IF(OR(H16="",I16=""),"",10.666*POWER(計算公式!$B$14,-1.85)*POWER(AC16/1000,-4.87)*POWER(H16/1000,1.85)*1000) ->  | BD16: =IF(内径設定!B10="","",内径設定!B10) -> 75
F17: 7 | AC17: =IF(I17="","",VLOOKUP(I17,内径設定!$B$4:$C$26,2,FALSE)) ->  | AD17: =IF(AC17="","",IF(OR(AND(AC17>計算公式!$B$9,計算公式!$D$9="超"),AND(AC17>=計算公式!$B$9,計算公式!$D$9="以上")),"H","W")) ->  | AH17: =IF(OR(I17="",L17=""),"",ROUND(VLOOKUP(I17,直管換算!$B$4:$Q$26,2,FALSE)*L17,2)) ->  | AI17: =IF(OR(I17="",M17=""),"",ROUND(VLOOKUP(I17,直管換算!$B$4:$Q$26,3,FALSE)*M17,2)) ->  | AJ17: =IF(OR(I17="",N17=""),"",ROUND(VLOOKUP(I17,直管換算!$B$4:$Q$26,4,FALSE)*N17,2)) ->  | AK17: =IF(OR(I17="",O17=""),"",ROUND(VLOOKUP(I17,直管換算!$B$4:$Q$26,5,FALSE)*O17,2)) ->  | AL17: =IF(OR(I17="",P17=""),"",ROUND(VLOOKUP(I17,直管換算!$B$4:$Q$26,6,FALSE)*P17,2)) ->  | AM17: =IF(OR(I17="",Q17=""),"",ROUND(VLOOKUP(I17,直管換算!$B$4:$Q$26,7,FALSE)*Q17,2)) ->  | AN17: =IF(OR(I17="",R17=""),"",ROUND(VLOOKUP(I17,直管換算!$B$4:$Q$26,8,FALSE)*R17,2)) ->  | AO17: =IF(OR(I17="",S17=""),"",ROUND(VLOOKUP(I17,直管換算!$B$4:$Q$26,9,FALSE)*S17,2)) ->  | AP17: =IF(OR(I17="",T17=""),"",ROUND(VLOOKUP(I17,直管換算!$B$4:$Q$26,10,FALSE)*T17,2)) ->  | AQ17: =IF(OR(I17="",U17=""),"",ROUND(VLOOKUP(I17,直管換算!$B$4:$Q$26,11,FALSE)*U17,2)) ->  | AR17: =IF(OR(I17="",V17=""),"",ROUND(VLOOKUP(I17,直管換算!$B$4:$Q$26,12,FALSE)*V17,2)) ->  | AS17: =IF(OR(I17="",W17=""),"",ROUND(VLOOKUP(I17,直管換算!$B$4:$Q$26,13,FALSE)*W17,2)) ->  | AT17: =IF(OR(I17="",X17=""),"",ROUND(VLOOKUP(I17,直管換算!$B$4:$Q$26,14,FALSE)*X17,2)) ->  | AU17: =IF(OR(I17="",Y17=""),"",ROUND(VLOOKUP(I17,直管換算!$B$4:$Q$26,15,FALSE)*Y17,2)) ->  | AV17: =IF(OR(I17="",Z17=""),"",ROUND(VLOOKUP(I17,直管換算!$B$4:$Q$26,16,FALSE)*Z17,2)) ->  | AY17: 空 | BB17: =IF(OR(H17="",I17=""),"",0.35464*計算公式!$B$14*POWER(AC17/1000,0.63)*POWER(BC17/1000,0.54)) ->  | BC17: =IF(OR(H17="",I17=""),"",10.666*POWER(計算公式!$B$14,-1.85)*POWER(AC17/1000,-4.87)*POWER(H17/1000,1.85)*1000) ->  | BD17: =IF(内径設定!B11="","",内径設定!B11) -> 100
F18: 8 | AC18: =IF(I18="","",VLOOKUP(I18,内径設定!$B$4:$C$26,2,FALSE)) ->  | AD18: =IF(AC18="","",IF(OR(AND(AC18>計算公式!$B$9,計算公式!$D$9="超"),AND(AC18>=計算公式!$B$9,計算公式!$D$9="以上")),"H","W")) ->  | AH18: =IF(OR(I18="",L18=""),"",ROUND(VLOOKUP(I18,直管換算!$B$4:$Q$26,2,FALSE)*L18,2)) ->  | AI18: =IF(OR(I18="",M18=""),"",ROUND(VLOOKUP(I18,直管換算!$B$4:$Q$26,3,FALSE)*M18,2)) ->  | AJ18: =IF(OR(I18="",N18=""),"",ROUND(VLOOKUP(I18,直管換算!$B$4:$Q$26,4,FALSE)*N18,2)) ->  | AK18: =IF(OR(I18="",O18=""),"",ROUND(VLOOKUP(I18,直管換算!$B$4:$Q$26,5,FALSE)*O18,2)) ->  | AL18: =IF(OR(I18="",P18=""),"",ROUND(VLOOKUP(I18,直管換算!$B$4:$Q$26,6,FALSE)*P18,2)) ->  | AM18: =IF(OR(I18="",Q18=""),"",ROUND(VLOOKUP(I18,直管換算!$B$4:$Q$26,7,FALSE)*Q18,2)) ->  | AN18: =IF(OR(I18="",R18=""),"",ROUND(VLOOKUP(I18,直管換算!$B$4:$Q$26,8,FALSE)*R18,2)) ->  | AO18: =IF(OR(I18="",S18=""),"",ROUND(VLOOKUP(I18,直管換算!$B$4:$Q$26,9,FALSE)*S18,2)) ->  | AP18: =IF(OR(I18="",T18=""),"",ROUND(VLOOKUP(I18,直管換算!$B$4:$Q$26,10,FALSE)*T18,2)) ->  | AQ18: =IF(OR(I18="",U18=""),"",ROUND(VLOOKUP(I18,直管換算!$B$4:$Q$26,11,FALSE)*U18,2)) ->  | AR18: =IF(OR(I18="",V18=""),"",ROUND(VLOOKUP(I18,直管換算!$B$4:$Q$26,12,FALSE)*V18,2)) ->  | AS18: =IF(OR(I18="",W18=""),"",ROUND(VLOOKUP(I18,直管換算!$B$4:$Q$26,13,FALSE)*W18,2)) ->  | AT18: =IF(OR(I18="",X18=""),"",ROUND(VLOOKUP(I18,直管換算!$B$4:$Q$26,14,FALSE)*X18,2)) ->  | AU18: =IF(OR(I18="",Y18=""),"",ROUND(VLOOKUP(I18,直管換算!$B$4:$Q$26,15,FALSE)*Y18,2)) ->  | AV18: =IF(OR(I18="",Z18=""),"",ROUND(VLOOKUP(I18,直管換算!$B$4:$Q$26,16,FALSE)*Z18,2)) ->  | AY18: 空 | BB18: =IF(OR(H18="",I18=""),"",0.35464*計算公式!$B$14*POWER(AC18/1000,0.63)*POWER(BC18/1000,0.54)) ->  | BC18: =IF(OR(H18="",I18=""),"",10.666*POWER(計算公式!$B$14,-1.85)*POWER(AC18/1000,-4.87)*POWER(H18/1000,1.85)*1000) ->  | BD18: =IF(内径設定!B12="","",内径設定!B12) -> 150
F19: 9 | AC19: =IF(I19="","",VLOOKUP(I19,内径設定!$B$4:$C$26,2,FALSE)) ->  | AD19: =IF(AC19="","",IF(OR(AND(AC19>計算公式!$B$9,計算公式!$D$9="超"),AND(AC19>=計算公式!$B$9,計算公式!$D$9="以上")),"H","W")) ->  | AH19: =IF(OR(I19="",L19=""),"",ROUND(VLOOKUP(I19,直管換算!$B$4:$Q$26,2,FALSE)*L19,2)) ->  | AI19: =IF(OR(I19="",M19=""),"",ROUND(VLOOKUP(I19,直管換算!$B$4:$Q$26,3,FALSE)*M19,2)) ->  | AJ19: =IF(OR(I19="",N19=""),"",ROUND(VLOOKUP(I19,直管換算!$B$4:$Q$26,4,FALSE)*N19,2)) ->  | AK19: =IF(OR(I19="",O19=""),"",ROUND(VLOOKUP(I19,直管換算!$B$4:$Q$26,5,FALSE)*O19,2)) ->  | AL19: =IF(OR(I19="",P19=""),"",ROUND(VLOOKUP(I19,直管換算!$B$4:$Q$26,6,FALSE)*P19,2)) ->  | AM19: =IF(OR(I19="",Q19=""),"",ROUND(VLOOKUP(I19,直管換算!$B$4:$Q$26,7,FALSE)*Q19,2)) ->  | AN19: =IF(OR(I19="",R19=""),"",ROUND(VLOOKUP(I19,直管換算!$B$4:$Q$26,8,FALSE)*R19,2)) ->  | AO19: =IF(OR(I19="",S19=""),"",ROUND(VLOOKUP(I19,直管換算!$B$4:$Q$26,9,FALSE)*S19,2)) ->  | AP19: =IF(OR(I19="",T19=""),"",ROUND(VLOOKUP(I19,直管換算!$B$4:$Q$26,10,FALSE)*T19,2)) ->  | AQ19: =IF(OR(I19="",U19=""),"",ROUND(VLOOKUP(I19,直管換算!$B$4:$Q$26,11,FALSE)*U19,2)) ->  | AR19: =IF(OR(I19="",V19=""),"",ROUND(VLOOKUP(I19,直管換算!$B$4:$Q$26,12,FALSE)*V19,2)) ->  | AS19: =IF(OR(I19="",W19=""),"",ROUND(VLOOKUP(I19,直管換算!$B$4:$Q$26,13,FALSE)*W19,2)) ->  | AT19: =IF(OR(I19="",X19=""),"",ROUND(VLOOKUP(I19,直管換算!$B$4:$Q$26,14,FALSE)*X19,2)) ->  | AU19: =IF(OR(I19="",Y19=""),"",ROUND(VLOOKUP(I19,直管換算!$B$4:$Q$26,15,FALSE)*Y19,2)) ->  | AV19: =IF(OR(I19="",Z19=""),"",ROUND(VLOOKUP(I19,直管換算!$B$4:$Q$26,16,FALSE)*Z19,2)) ->  | AY19: 空 | BB19: =IF(OR(H19="",I19=""),"",0.35464*計算公式!$B$14*POWER(AC19/1000,0.63)*POWER(BC19/1000,0.54)) ->  | BC19: =IF(OR(H19="",I19=""),"",10.666*POWER(計算公式!$B$14,-1.85)*POWER(AC19/1000,-4.87)*POWER(H19/1000,1.85)*1000) ->  | BD19: =IF(内径設定!B13="","",内径設定!B13) -> 200
F20: 10 | AC20: =IF(I20="","",VLOOKUP(I20,内径設定!$B$4:$C$26,2,FALSE)) ->  | AD20: =IF(AC20="","",IF(OR(AND(AC20>計算公式!$B$9,計算公式!$D$9="超"),AND(AC20>=計算公式!$B$9,計算公式!$D$9="以上")),"H","W")) ->  | AH20: =IF(OR(I20="",L20=""),"",ROUND(VLOOKUP(I20,直管換算!$B$4:$Q$26,2,FALSE)*L20,2)) ->  | AI20: =IF(OR(I20="",M20=""),"",ROUND(VLOOKUP(I20,直管換算!$B$4:$Q$26,3,FALSE)*M20,2)) ->  | AJ20: =IF(OR(I20="",N20=""),"",ROUND(VLOOKUP(I20,直管換算!$B$4:$Q$26,4,FALSE)*N20,2)) ->  | AK20: =IF(OR(I20="",O20=""),"",ROUND(VLOOKUP(I20,直管換算!$B$4:$Q$26,5,FALSE)*O20,2)) ->  | AL20: =IF(OR(I20="",P20=""),"",ROUND(VLOOKUP(I20,直管換算!$B$4:$Q$26,6,FALSE)*P20,2)) ->  | AM20: =IF(OR(I20="",Q20=""),"",ROUND(VLOOKUP(I20,直管換算!$B$4:$Q$26,7,FALSE)*Q20,2)) ->  | AN20: =IF(OR(I20="",R20=""),"",ROUND(VLOOKUP(I20,直管換算!$B$4:$Q$26,8,FALSE)*R20,2)) ->  | AO20: =IF(OR(I20="",S20=""),"",ROUND(VLOOKUP(I20,直管換算!$B$4:$Q$26,9,FALSE)*S20,2)) ->  | AP20: =IF(OR(I20="",T20=""),"",ROUND(VLOOKUP(I20,直管換算!$B$4:$Q$26,10,FALSE)*T20,2)) ->  | AQ20: =IF(OR(I20="",U20=""),"",ROUND(VLOOKUP(I20,直管換算!$B$4:$Q$26,11,FALSE)*U20,2)) ->  | AR20: =IF(OR(I20="",V20=""),"",ROUND(VLOOKUP(I20,直管換算!$B$4:$Q$26,12,FALSE)*V20,2)) ->  | AS20: =IF(OR(I20="",W20=""),"",ROUND(VLOOKUP(I20,直管換算!$B$4:$Q$26,13,FALSE)*W20,2)) ->  | AT20: =IF(OR(I20="",X20=""),"",ROUND(VLOOKUP(I20,直管換算!$B$4:$Q$26,14,FALSE)*X20,2)) ->  | AU20: =IF(OR(I20="",Y20=""),"",ROUND(VLOOKUP(I20,直管換算!$B$4:$Q$26,15,FALSE)*Y20,2)) ->  | AV20: =IF(OR(I20="",Z20=""),"",ROUND(VLOOKUP(I20,直管換算!$B$4:$Q$26,16,FALSE)*Z20,2)) ->  | AY20: 空 | BB20: =IF(OR(H20="",I20=""),"",0.35464*計算公式!$B$14*POWER(AC20/1000,0.63)*POWER(BC20/1000,0.54)) ->  | BC20: =IF(OR(H20="",I20=""),"",10.666*POWER(計算公式!$B$14,-1.85)*POWER(AC20/1000,-4.87)*POWER(H20/1000,1.85)*1000) ->  | BD20: =IF(内径設定!B14="","",内径設定!B14) -> 250
F21: 11 | AC21: =IF(I21="","",VLOOKUP(I21,内径設定!$B$4:$C$26,2,FALSE)) ->  | AD21: =IF(AC21="","",IF(OR(AND(AC21>計算公式!$B$9,計算公式!$D$9="超"),AND(AC21>=計算公式!$B$9,計算公式!$D$9="以上")),"H","W")) ->  | AH21: =IF(OR(I21="",L21=""),"",ROUND(VLOOKUP(I21,直管換算!$B$4:$Q$26,2,FALSE)*L21,2)) ->  | AI21: =IF(OR(I21="",M21=""),"",ROUND(VLOOKUP(I21,直管換算!$B$4:$Q$26,3,FALSE)*M21,2)) ->  | AJ21: =IF(OR(I21="",N21=""),"",ROUND(VLOOKUP(I21,直管換算!$B$4:$Q$26,4,FALSE)*N21,2)) ->  | AK21: =IF(OR(I21="",O21=""),"",ROUND(VLOOKUP(I21,直管換算!$B$4:$Q$26,5,FALSE)*O21,2)) ->  | AL21: =IF(OR(I21="",P21=""),"",ROUND(VLOOKUP(I21,直管換算!$B$4:$Q$26,6,FALSE)*P21,2)) ->  | AM21: =IF(OR(I21="",Q21=""),"",ROUND(VLOOKUP(I21,直管換算!$B$4:$Q$26,7,FALSE)*Q21,2)) ->  | AN21: =IF(OR(I21="",R21=""),"",ROUND(VLOOKUP(I21,直管換算!$B$4:$Q$26,8,FALSE)*R21,2)) ->  | AO21: =IF(OR(I21="",S21=""),"",ROUND(VLOOKUP(I21,直管換算!$B$4:$Q$26,9,FALSE)*S21,2)) ->  | AP21: =IF(OR(I21="",T21=""),"",ROUND(VLOOKUP(I21,直管換算!$B$4:$Q$26,10,FALSE)*T21,2)) ->  | AQ21: =IF(OR(I21="",U21=""),"",ROUND(VLOOKUP(I21,直管換算!$B$4:$Q$26,11,FALSE)*U21,2)) ->  | AR21: =IF(OR(I21="",V21=""),"",ROUND(VLOOKUP(I21,直管換算!$B$4:$Q$26,12,FALSE)*V21,2)) ->  | AS21: =IF(OR(I21="",W21=""),"",ROUND(VLOOKUP(I21,直管換算!$B$4:$Q$26,13,FALSE)*W21,2)) ->  | AT21: =IF(OR(I21="",X21=""),"",ROUND(VLOOKUP(I21,直管換算!$B$4:$Q$26,14,FALSE)*X21,2)) ->  | AU21: =IF(OR(I21="",Y21=""),"",ROUND(VLOOKUP(I21,直管換算!$B$4:$Q$26,15,FALSE)*Y21,2)) ->  | AV21: =IF(OR(I21="",Z21=""),"",ROUND(VLOOKUP(I21,直管換算!$B$4:$Q$26,16,FALSE)*Z21,2)) ->  | AY21: 空 | BB21: =IF(OR(H21="",I21=""),"",0.35464*計算公式!$B$14*POWER(AC21/1000,0.63)*POWER(BC21/1000,0.54)) ->  | BC21: =IF(OR(H21="",I21=""),"",10.666*POWER(計算公式!$B$14,-1.85)*POWER(AC21/1000,-4.87)*POWER(H21/1000,1.85)*1000) ->  | BD21: =IF(内径設定!B15="","",内径設定!B15) -> 300
F22: 12 | AC22: =IF(I22="","",VLOOKUP(I22,内径設定!$B$4:$C$26,2,FALSE)) ->  | AD22: =IF(AC22="","",IF(OR(AND(AC22>計算公式!$B$9,計算公式!$D$9="超"),AND(AC22>=計算公式!$B$9,計算公式!$D$9="以上")),"H","W")) ->  | AH22: =IF(OR(I22="",L22=""),"",ROUND(VLOOKUP(I22,直管換算!$B$4:$Q$26,2,FALSE)*L22,2)) ->  | AI22: =IF(OR(I22="",M22=""),"",ROUND(VLOOKUP(I22,直管換算!$B$4:$Q$26,3,FALSE)*M22,2)) ->  | AJ22: =IF(OR(I22="",N22=""),"",ROUND(VLOOKUP(I22,直管換算!$B$4:$Q$26,4,FALSE)*N22,2)) ->  | AK22: =IF(OR(I22="",O22=""),"",ROUND(VLOOKUP(I22,直管換算!$B$4:$Q$26,5,FALSE)*O22,2)) ->  | AL22: =IF(OR(I22="",P22=""),"",ROUND(VLOOKUP(I22,直管換算!$B$4:$Q$26,6,FALSE)*P22,2)) ->  | AM22: =IF(OR(I22="",Q22=""),"",ROUND(VLOOKUP(I22,直管換算!$B$4:$Q$26,7,FALSE)*Q22,2)) ->  | AN22: =IF(OR(I22="",R22=""),"",ROUND(VLOOKUP(I22,直管換算!$B$4:$Q$26,8,FALSE)*R22,2)) ->  | AO22: =IF(OR(I22="",S22=""),"",ROUND(VLOOKUP(I22,直管換算!$B$4:$Q$26,9,FALSE)*S22,2)) ->  | AP22: =IF(OR(I22="",T22=""),"",ROUND(VLOOKUP(I22,直管換算!$B$4:$Q$26,10,FALSE)*T22,2)) ->  | AQ22: =IF(OR(I22="",U22=""),"",ROUND(VLOOKUP(I22,直管換算!$B$4:$Q$26,11,FALSE)*U22,2)) ->  | AR22: =IF(OR(I22="",V22=""),"",ROUND(VLOOKUP(I22,直管換算!$B$4:$Q$26,12,FALSE)*V22,2)) ->  | AS22: =IF(OR(I22="",W22=""),"",ROUND(VLOOKUP(I22,直管換算!$B$4:$Q$26,13,FALSE)*W22,2)) ->  | AT22: =IF(OR(I22="",X22=""),"",ROUND(VLOOKUP(I22,直管換算!$B$4:$Q$26,14,FALSE)*X22,2)) ->  | AU22: =IF(OR(I22="",Y22=""),"",ROUND(VLOOKUP(I22,直管換算!$B$4:$Q$26,15,FALSE)*Y22,2)) ->  | AV22: =IF(OR(I22="",Z22=""),"",ROUND(VLOOKUP(I22,直管換算!$B$4:$Q$26,16,FALSE)*Z22,2)) ->  | AY22: 空 | BB22: =IF(OR(H22="",I22=""),"",0.35464*計算公式!$B$14*POWER(AC22/1000,0.63)*POWER(BC22/1000,0.54)) ->  | BC22: =IF(OR(H22="",I22=""),"",10.666*POWER(計算公式!$B$14,-1.85)*POWER(AC22/1000,-4.87)*POWER(H22/1000,1.85)*1000) ->  | BD22: =IF(内径設定!B16="","",内径設定!B16) -> 350
F23: 13 | AC23: =IF(I23="","",VLOOKUP(I23,内径設定!$B$4:$C$26,2,FALSE)) ->  | AD23: =IF(AC23="","",IF(OR(AND(AC23>計算公式!$B$9,計算公式!$D$9="超"),AND(AC23>=計算公式!$B$9,計算公式!$D$9="以上")),"H","W")) ->  | AH23: =IF(OR(I23="",L23=""),"",ROUND(VLOOKUP(I23,直管換算!$B$4:$Q$26,2,FALSE)*L23,2)) ->  | AI23: =IF(OR(I23="",M23=""),"",ROUND(VLOOKUP(I23,直管換算!$B$4:$Q$26,3,FALSE)*M23,2)) ->  | AJ23: =IF(OR(I23="",N23=""),"",ROUND(VLOOKUP(I23,直管換算!$B$4:$Q$26,4,FALSE)*N23,2)) ->  | AK23: =IF(OR(I23="",O23=""),"",ROUND(VLOOKUP(I23,直管換算!$B$4:$Q$26,5,FALSE)*O23,2)) ->  | AL23: =IF(OR(I23="",P23=""),"",ROUND(VLOOKUP(I23,直管換算!$B$4:$Q$26,6,FALSE)*P23,2)) ->  | AM23: =IF(OR(I23="",Q23=""),"",ROUND(VLOOKUP(I23,直管換算!$B$4:$Q$26,7,FALSE)*Q23,2)) ->  | AN23: =IF(OR(I23="",R23=""),"",ROUND(VLOOKUP(I23,直管換算!$B$4:$Q$26,8,FALSE)*R23,2)) ->  | AO23: =IF(OR(I23="",S23=""),"",ROUND(VLOOKUP(I23,直管換算!$B$4:$Q$26,9,FALSE)*S23,2)) ->  | AP23: =IF(OR(I23="",T23=""),"",ROUND(VLOOKUP(I23,直管換算!$B$4:$Q$26,10,FALSE)*T23,2)) ->  | AQ23: =IF(OR(I23="",U23=""),"",ROUND(VLOOKUP(I23,直管換算!$B$4:$Q$26,11,FALSE)*U23,2)) ->  | AR23: =IF(OR(I23="",V23=""),"",ROUND(VLOOKUP(I23,直管換算!$B$4:$Q$26,12,FALSE)*V23,2)) ->  | AS23: =IF(OR(I23="",W23=""),"",ROUND(VLOOKUP(I23,直管換算!$B$4:$Q$26,13,FALSE)*W23,2)) ->  | AT23: =IF(OR(I23="",X23=""),"",ROUND(VLOOKUP(I23,直管換算!$B$4:$Q$26,14,FALSE)*X23,2)) ->  | AU23: =IF(OR(I23="",Y23=""),"",ROUND(VLOOKUP(I23,直管換算!$B$4:$Q$26,15,FALSE)*Y23,2)) ->  | AV23: =IF(OR(I23="",Z23=""),"",ROUND(VLOOKUP(I23,直管換算!$B$4:$Q$26,16,FALSE)*Z23,2)) ->  | AY23: 空 | BB23: =IF(OR(H23="",I23=""),"",0.35464*計算公式!$B$14*POWER(AC23/1000,0.63)*POWER(BC23/1000,0.54)) ->  | BC23: =IF(OR(H23="",I23=""),"",10.666*POWER(計算公式!$B$14,-1.85)*POWER(AC23/1000,-4.87)*POWER(H23/1000,1.85)*1000) ->  | BD23: =IF(内径設定!B17="","",内径設定!B17) -> 10
F24: 14 | AC24: =IF(I24="","",VLOOKUP(I24,内径設定!$B$4:$C$26,2,FALSE)) ->  | AD24: =IF(AC24="","",IF(OR(AND(AC24>計算公式!$B$9,計算公式!$D$9="超"),AND(AC24>=計算公式!$B$9,計算公式!$D$9="以上")),"H","W")) ->  | AH24: =IF(OR(I24="",L24=""),"",ROUND(VLOOKUP(I24,直管換算!$B$4:$Q$26,2,FALSE)*L24,2)) ->  | AI24: =IF(OR(I24="",M24=""),"",ROUND(VLOOKUP(I24,直管換算!$B$4:$Q$26,3,FALSE)*M24,2)) ->  | AJ24: =IF(OR(I24="",N24=""),"",ROUND(VLOOKUP(I24,直管換算!$B$4:$Q$26,4,FALSE)*N24,2)) ->  | AK24: =IF(OR(I24="",O24=""),"",ROUND(VLOOKUP(I24,直管換算!$B$4:$Q$26,5,FALSE)*O24,2)) ->  | AL24: =IF(OR(I24="",P24=""),"",ROUND(VLOOKUP(I24,直管換算!$B$4:$Q$26,6,FALSE)*P24,2)) ->  | AM24: =IF(OR(I24="",Q24=""),"",ROUND(VLOOKUP(I24,直管換算!$B$4:$Q$26,7,FALSE)*Q24,2)) ->  | AN24: =IF(OR(I24="",R24=""),"",ROUND(VLOOKUP(I24,直管換算!$B$4:$Q$26,8,FALSE)*R24,2)) ->  | AO24: =IF(OR(I24="",S24=""),"",ROUND(VLOOKUP(I24,直管換算!$B$4:$Q$26,9,FALSE)*S24,2)) ->  | AP24: =IF(OR(I24="",T24=""),"",ROUND(VLOOKUP(I24,直管換算!$B$4:$Q$26,10,FALSE)*T24,2)) ->  | AQ24: =IF(OR(I24="",U24=""),"",ROUND(VLOOKUP(I24,直管換算!$B$4:$Q$26,11,FALSE)*U24,2)) ->  | AR24: =IF(OR(I24="",V24=""),"",ROUND(VLOOKUP(I24,直管換算!$B$4:$Q$26,12,FALSE)*V24,2)) ->  | AS24: =IF(OR(I24="",W24=""),"",ROUND(VLOOKUP(I24,直管換算!$B$4:$Q$26,13,FALSE)*W24,2)) ->  | AT24: =IF(OR(I24="",X24=""),"",ROUND(VLOOKUP(I24,直管換算!$B$4:$Q$26,14,FALSE)*X24,2)) ->  | AU24: =IF(OR(I24="",Y24=""),"",ROUND(VLOOKUP(I24,直管換算!$B$4:$Q$26,15,FALSE)*Y24,2)) ->  | AV24: =IF(OR(I24="",Z24=""),"",ROUND(VLOOKUP(I24,直管換算!$B$4:$Q$26,16,FALSE)*Z24,2)) ->  | AY24: 空 | BB24: =IF(OR(H24="",I24=""),"",0.35464*計算公式!$B$14*POWER(AC24/1000,0.63)*POWER(BC24/1000,0.54)) ->  | BC24: =IF(OR(H24="",I24=""),"",10.666*POWER(計算公式!$B$14,-1.85)*POWER(AC24/1000,-4.87)*POWER(H24/1000,1.85)*1000) ->  | BD24: =IF(内径設定!B18="","",内径設定!B18) -> 16
F25: 15 | AC25: =IF(I25="","",VLOOKUP(I25,内径設定!$B$4:$C$26,2,FALSE)) ->  | AD25: =IF(AC25="","",IF(OR(AND(AC25>計算公式!$B$9,計算公式!$D$9="超"),AND(AC25>=計算公式!$B$9,計算公式!$D$9="以上")),"H","W")) ->  | AH25: =IF(OR(I25="",L25=""),"",ROUND(VLOOKUP(I25,直管換算!$B$4:$Q$26,2,FALSE)*L25,2)) ->  | AI25: =IF(OR(I25="",M25=""),"",ROUND(VLOOKUP(I25,直管換算!$B$4:$Q$26,3,FALSE)*M25,2)) ->  | AJ25: =IF(OR(I25="",N25=""),"",ROUND(VLOOKUP(I25,直管換算!$B$4:$Q$26,4,FALSE)*N25,2)) ->  | AK25: =IF(OR(I25="",O25=""),"",ROUND(VLOOKUP(I25,直管換算!$B$4:$Q$26,5,FALSE)*O25,2)) ->  | AL25: =IF(OR(I25="",P25=""),"",ROUND(VLOOKUP(I25,直管換算!$B$4:$Q$26,6,FALSE)*P25,2)) ->  | AM25: =IF(OR(I25="",Q25=""),"",ROUND(VLOOKUP(I25,直管換算!$B$4:$Q$26,7,FALSE)*Q25,2)) ->  | AN25: =IF(OR(I25="",R25=""),"",ROUND(VLOOKUP(I25,直管換算!$B$4:$Q$26,8,FALSE)*R25,2)) ->  | AO25: =IF(OR(I25="",S25=""),"",ROUND(VLOOKUP(I25,直管換算!$B$4:$Q$26,9,FALSE)*S25,2)) ->  | AP25: =IF(OR(I25="",T25=""),"",ROUND(VLOOKUP(I25,直管換算!$B$4:$Q$26,10,FALSE)*T25,2)) ->  | AQ25: =IF(OR(I25="",U25=""),"",ROUND(VLOOKUP(I25,直管換算!$B$4:$Q$26,11,FALSE)*U25,2)) ->  | AR25: =IF(OR(I25="",V25=""),"",ROUND(VLOOKUP(I25,直管換算!$B$4:$Q$26,12,FALSE)*V25,2)) ->  | AS25: =IF(OR(I25="",W25=""),"",ROUND(VLOOKUP(I25,直管換算!$B$4:$Q$26,13,FALSE)*W25,2)) ->  | AT25: =IF(OR(I25="",X25=""),"",ROUND(VLOOKUP(I25,直管換算!$B$4:$Q$26,14,FALSE)*X25,2)) ->  | AU25: =IF(OR(I25="",Y25=""),"",ROUND(VLOOKUP(I25,直管換算!$B$4:$Q$26,15,FALSE)*Y25,2)) ->  | AV25: =IF(OR(I25="",Z25=""),"",ROUND(VLOOKUP(I25,直管換算!$B$4:$Q$26,16,FALSE)*Z25,2)) ->  | AY25: 空 | BB25: =IF(OR(H25="",I25=""),"",0.35464*計算公式!$B$14*POWER(AC25/1000,0.63)*POWER(BC25/1000,0.54)) ->  | BC25: =IF(OR(H25="",I25=""),"",10.666*POWER(計算公式!$B$14,-1.85)*POWER(AC25/1000,-4.87)*POWER(H25/1000,1.85)*1000) ->  | BD25: =IF(内径設定!B19="","",内径設定!B19) -> 
F26: 16 | AC26: =IF(I26="","",VLOOKUP(I26,内径設定!$B$4:$C$26,2,FALSE)) ->  | AD26: =IF(AC26="","",IF(OR(AND(AC26>計算公式!$B$9,計算公式!$D$9="超"),AND(AC26>=計算公式!$B$9,計算公式!$D$9="以上")),"H","W")) ->  | AH26: =IF(OR(I26="",L26=""),"",ROUND(VLOOKUP(I26,直管換算!$B$4:$Q$26,2,FALSE)*L26,2)) ->  | AI26: =IF(OR(I26="",M26=""),"",ROUND(VLOOKUP(I26,直管換算!$B$4:$Q$26,3,FALSE)*M26,2)) ->  | AJ26: =IF(OR(I26="",N26=""),"",ROUND(VLOOKUP(I26,直管換算!$B$4:$Q$26,4,FALSE)*N26,2)) ->  | AK26: =IF(OR(I26="",O26=""),"",ROUND(VLOOKUP(I26,直管換算!$B$4:$Q$26,5,FALSE)*O26,2)) ->  | AL26: =IF(OR(I26="",P26=""),"",ROUND(VLOOKUP(I26,直管換算!$B$4:$Q$26,6,FALSE)*P26,2)) ->  | AM26: =IF(OR(I26="",Q26=""),"",ROUND(VLOOKUP(I26,直管換算!$B$4:$Q$26,7,FALSE)*Q26,2)) ->  | AN26: =IF(OR(I26="",R26=""),"",ROUND(VLOOKUP(I26,直管換算!$B$4:$Q$26,8,FALSE)*R26,2)) ->  | AO26: =IF(OR(I26="",S26=""),"",ROUND(VLOOKUP(I26,直管換算!$B$4:$Q$26,9,FALSE)*S26,2)) ->  | AP26: =IF(OR(I26="",T26=""),"",ROUND(VLOOKUP(I26,直管換算!$B$4:$Q$26,10,FALSE)*T26,2)) ->  | AQ26: =IF(OR(I26="",U26=""),"",ROUND(VLOOKUP(I26,直管換算!$B$4:$Q$26,11,FALSE)*U26,2)) ->  | AR26: =IF(OR(I26="",V26=""),"",ROUND(VLOOKUP(I26,直管換算!$B$4:$Q$26,12,FALSE)*V26,2)) ->  | AS26: =IF(OR(I26="",W26=""),"",ROUND(VLOOKUP(I26,直管換算!$B$4:$Q$26,13,FALSE)*W26,2)) ->  | AT26: =IF(OR(I26="",X26=""),"",ROUND(VLOOKUP(I26,直管換算!$B$4:$Q$26,14,FALSE)*X26,2)) ->  | AU26: =IF(OR(I26="",Y26=""),"",ROUND(VLOOKUP(I26,直管換算!$B$4:$Q$26,15,FALSE)*Y26,2)) ->  | AV26: =IF(OR(I26="",Z26=""),"",ROUND(VLOOKUP(I26,直管換算!$B$4:$Q$26,16,FALSE)*Z26,2)) ->  | AY26: 空 | BB26: =IF(OR(H26="",I26=""),"",0.35464*計算公式!$B$14*POWER(AC26/1000,0.63)*POWER(BC26/1000,0.54)) ->  | BC26: =IF(OR(H26="",I26=""),"",10.666*POWER(計算公式!$B$14,-1.85)*POWER(AC26/1000,-4.87)*POWER(H26/1000,1.85)*1000) ->  | BD26: =IF(内径設定!B20="","",内径設定!B20) -> 
F27: 17 | AC27: =IF(I27="","",VLOOKUP(I27,内径設定!$B$4:$C$26,2,FALSE)) ->  | AD27: =IF(AC27="","",IF(OR(AND(AC27>計算公式!$B$9,計算公式!$D$9="超"),AND(AC27>=計算公式!$B$9,計算公式!$D$9="以上")),"H","W")) ->  | AH27: =IF(OR(I27="",L27=""),"",ROUND(VLOOKUP(I27,直管換算!$B$4:$Q$26,2,FALSE)*L27,2)) ->  | AI27: =IF(OR(I27="",M27=""),"",ROUND(VLOOKUP(I27,直管換算!$B$4:$Q$26,3,FALSE)*M27,2)) ->  | AJ27: =IF(OR(I27="",N27=""),"",ROUND(VLOOKUP(I27,直管換算!$B$4:$Q$26,4,FALSE)*N27,2)) ->  | AK27: =IF(OR(I27="",O27=""),"",ROUND(VLOOKUP(I27,直管換算!$B$4:$Q$26,5,FALSE)*O27,2)) ->  | AL27: =IF(OR(I27="",P27=""),"",ROUND(VLOOKUP(I27,直管換算!$B$4:$Q$26,6,FALSE)*P27,2)) ->  | AM27: =IF(OR(I27="",Q27=""),"",ROUND(VLOOKUP(I27,直管換算!$B$4:$Q$26,7,FALSE)*Q27,2)) ->  | AN27: =IF(OR(I27="",R27=""),"",ROUND(VLOOKUP(I27,直管換算!$B$4:$Q$26,8,FALSE)*R27,2)) ->  | AO27: =IF(OR(I27="",S27=""),"",ROUND(VLOOKUP(I27,直管換算!$B$4:$Q$26,9,FALSE)*S27,2)) ->  | AP27: =IF(OR(I27="",T27=""),"",ROUND(VLOOKUP(I27,直管換算!$B$4:$Q$26,10,FALSE)*T27,2)) ->  | AQ27: =IF(OR(I27="",U27=""),"",ROUND(VLOOKUP(I27,直管換算!$B$4:$Q$26,11,FALSE)*U27,2)) ->  | AR27: =IF(OR(I27="",V27=""),"",ROUND(VLOOKUP(I27,直管換算!$B$4:$Q$26,12,FALSE)*V27,2)) ->  | AS27: =IF(OR(I27="",W27=""),"",ROUND(VLOOKUP(I27,直管換算!$B$4:$Q$26,13,FALSE)*W27,2)) ->  | AT27: =IF(OR(I27="",X27=""),"",ROUND(VLOOKUP(I27,直管換算!$B$4:$Q$26,14,FALSE)*X27,2)) ->  | AU27: =IF(OR(I27="",Y27=""),"",ROUND(VLOOKUP(I27,直管換算!$B$4:$Q$26,15,FALSE)*Y27,2)) ->  | AV27: =IF(OR(I27="",Z27=""),"",ROUND(VLOOKUP(I27,直管換算!$B$4:$Q$26,16,FALSE)*Z27,2)) ->  | AY27: 空 | BB27: =IF(OR(H27="",I27=""),"",0.35464*計算公式!$B$14*POWER(AC27/1000,0.63)*POWER(BC27/1000,0.54)) ->  | BC27: =IF(OR(H27="",I27=""),"",10.666*POWER(計算公式!$B$14,-1.85)*POWER(AC27/1000,-4.87)*POWER(H27/1000,1.85)*1000) ->  | BD27: =IF(内径設定!B21="","",内径設定!B21) -> 
F28: 18 | AC28: =IF(I28="","",VLOOKUP(I28,内径設定!$B$4:$C$26,2,FALSE)) ->  | AD28: =IF(AC28="","",IF(OR(AND(AC28>計算公式!$B$9,計算公式!$D$9="超"),AND(AC28>=計算公式!$B$9,計算公式!$D$9="以上")),"H","W")) ->  | AH28: =IF(OR(I28="",L28=""),"",ROUND(VLOOKUP(I28,直管換算!$B$4:$Q$26,2,FALSE)*L28,2)) ->  | AI28: =IF(OR(I28="",M28=""),"",ROUND(VLOOKUP(I28,直管換算!$B$4:$Q$26,3,FALSE)*M28,2)) ->  | AJ28: =IF(OR(I28="",N28=""),"",ROUND(VLOOKUP(I28,直管換算!$B$4:$Q$26,4,FALSE)*N28,2)) ->  | AK28: =IF(OR(I28="",O28=""),"",ROUND(VLOOKUP(I28,直管換算!$B$4:$Q$26,5,FALSE)*O28,2)) ->  | AL28: =IF(OR(I28="",P28=""),"",ROUND(VLOOKUP(I28,直管換算!$B$4:$Q$26,6,FALSE)*P28,2)) ->  | AM28: =IF(OR(I28="",Q28=""),"",ROUND(VLOOKUP(I28,直管換算!$B$4:$Q$26,7,FALSE)*Q28,2)) ->  | AN28: =IF(OR(I28="",R28=""),"",ROUND(VLOOKUP(I28,直管換算!$B$4:$Q$26,8,FALSE)*R28,2)) ->  | AO28: =IF(OR(I28="",S28=""),"",ROUND(VLOOKUP(I28,直管換算!$B$4:$Q$26,9,FALSE)*S28,2)) ->  | AP28: =IF(OR(I28="",T28=""),"",ROUND(VLOOKUP(I28,直管換算!$B$4:$Q$26,10,FALSE)*T28,2)) ->  | AQ28: =IF(OR(I28="",U28=""),"",ROUND(VLOOKUP(I28,直管換算!$B$4:$Q$26,11,FALSE)*U28,2)) ->  | AR28: =IF(OR(I28="",V28=""),"",ROUND(VLOOKUP(I28,直管換算!$B$4:$Q$26,12,FALSE)*V28,2)) ->  | AS28: =IF(OR(I28="",W28=""),"",ROUND(VLOOKUP(I28,直管換算!$B$4:$Q$26,13,FALSE)*W28,2)) ->  | AT28: =IF(OR(I28="",X28=""),"",ROUND(VLOOKUP(I28,直管換算!$B$4:$Q$26,14,FALSE)*X28,2)) ->  | AU28: =IF(OR(I28="",Y28=""),"",ROUND(VLOOKUP(I28,直管換算!$B$4:$Q$26,15,FALSE)*Y28,2)) ->  | AV28: =IF(OR(I28="",Z28=""),"",ROUND(VLOOKUP(I28,直管換算!$B$4:$Q$26,16,FALSE)*Z28,2)) ->  | AY28: 空 | BB28: =IF(OR(H28="",I28=""),"",0.35464*計算公式!$B$14*POWER(AC28/1000,0.63)*POWER(BC28/1000,0.54)) ->  | BC28: =IF(OR(H28="",I28=""),"",10.666*POWER(計算公式!$B$14,-1.85)*POWER(AC28/1000,-4.87)*POWER(H28/1000,1.85)*1000) ->  | BD28: =IF(内径設定!B22="","",内径設定!B22) -> 
F29: 19 | AC29: =IF(I29="","",VLOOKUP(I29,内径設定!$B$4:$C$26,2,FALSE)) ->  | AD29: =IF(AC29="","",IF(OR(AND(AC29>計算公式!$B$9,計算公式!$D$9="超"),AND(AC29>=計算公式!$B$9,計算公式!$D$9="以上")),"H","W")) ->  | AH29: =IF(OR(I29="",L29=""),"",ROUND(VLOOKUP(I29,直管換算!$B$4:$Q$26,2,FALSE)*L29,2)) ->  | AI29: =IF(OR(I29="",M29=""),"",ROUND(VLOOKUP(I29,直管換算!$B$4:$Q$26,3,FALSE)*M29,2)) ->  | AJ29: =IF(OR(I29="",N29=""),"",ROUND(VLOOKUP(I29,直管換算!$B$4:$Q$26,4,FALSE)*N29,2)) ->  | AK29: =IF(OR(I29="",O29=""),"",ROUND(VLOOKUP(I29,直管換算!$B$4:$Q$26,5,FALSE)*O29,2)) ->  | AL29: =IF(OR(I29="",P29=""),"",ROUND(VLOOKUP(I29,直管換算!$B$4:$Q$26,6,FALSE)*P29,2)) ->  | AM29: =IF(OR(I29="",Q29=""),"",ROUND(VLOOKUP(I29,直管換算!$B$4:$Q$26,7,FALSE)*Q29,2)) ->  | AN29: =IF(OR(I29="",R29=""),"",ROUND(VLOOKUP(I29,直管換算!$B$4:$Q$26,8,FALSE)*R29,2)) ->  | AO29: =IF(OR(I29="",S29=""),"",ROUND(VLOOKUP(I29,直管換算!$B$4:$Q$26,9,FALSE)*S29,2)) ->  | AP29: =IF(OR(I29="",T29=""),"",ROUND(VLOOKUP(I29,直管換算!$B$4:$Q$26,10,FALSE)*T29,2)) ->  | AQ29: =IF(OR(I29="",U29=""),"",ROUND(VLOOKUP(I29,直管換算!$B$4:$Q$26,11,FALSE)*U29,2)) ->  | AR29: =IF(OR(I29="",V29=""),"",ROUND(VLOOKUP(I29,直管換算!$B$4:$Q$26,12,FALSE)*V29,2)) ->  | AS29: =IF(OR(I29="",W29=""),"",ROUND(VLOOKUP(I29,直管換算!$B$4:$Q$26,13,FALSE)*W29,2)) ->  | AT29: =IF(OR(I29="",X29=""),"",ROUND(VLOOKUP(I29,直管換算!$B$4:$Q$26,14,FALSE)*X29,2)) ->  | AU29: =IF(OR(I29="",Y29=""),"",ROUND(VLOOKUP(I29,直管換算!$B$4:$Q$26,15,FALSE)*Y29,2)) ->  | AV29: =IF(OR(I29="",Z29=""),"",ROUND(VLOOKUP(I29,直管換算!$B$4:$Q$26,16,FALSE)*Z29,2)) ->  | AY29: 空 | BB29: =IF(OR(H29="",I29=""),"",0.35464*計算公式!$B$14*POWER(AC29/1000,0.63)*POWER(BC29/1000,0.54)) ->  | BC29: =IF(OR(H29="",I29=""),"",10.666*POWER(計算公式!$B$14,-1.85)*POWER(AC29/1000,-4.87)*POWER(H29/1000,1.85)*1000) ->  | BD29: =IF(内径設定!B23="","",内径設定!B23) -> 
F30: 20 | AC30: =IF(I30="","",VLOOKUP(I30,内径設定!$B$4:$C$26,2,FALSE)) ->  | AD30: =IF(AC30="","",IF(OR(AND(AC30>計算公式!$B$9,計算公式!$D$9="超"),AND(AC30>=計算公式!$B$9,計算公式!$D$9="以上")),"H","W")) ->  | AH30: =IF(OR(I30="",L30=""),"",ROUND(VLOOKUP(I30,直管換算!$B$4:$Q$26,2,FALSE)*L30,2)) ->  | AI30: =IF(OR(I30="",M30=""),"",ROUND(VLOOKUP(I30,直管換算!$B$4:$Q$26,3,FALSE)*M30,2)) ->  | AJ30: =IF(OR(I30="",N30=""),"",ROUND(VLOOKUP(I30,直管換算!$B$4:$Q$26,4,FALSE)*N30,2)) ->  | AK30: =IF(OR(I30="",O30=""),"",ROUND(VLOOKUP(I30,直管換算!$B$4:$Q$26,5,FALSE)*O30,2)) ->  | AL30: =IF(OR(I30="",P30=""),"",ROUND(VLOOKUP(I30,直管換算!$B$4:$Q$26,6,FALSE)*P30,2)) ->  | AM30: =IF(OR(I30="",Q30=""),"",ROUND(VLOOKUP(I30,直管換算!$B$4:$Q$26,7,FALSE)*Q30,2)) ->  | AN30: =IF(OR(I30="",R30=""),"",ROUND(VLOOKUP(I30,直管換算!$B$4:$Q$26,8,FALSE)*R30,2)) ->  | AO30: =IF(OR(I30="",S30=""),"",ROUND(VLOOKUP(I30,直管換算!$B$4:$Q$26,9,FALSE)*S30,2)) ->  | AP30: =IF(OR(I30="",T30=""),"",ROUND(VLOOKUP(I30,直管換算!$B$4:$Q$26,10,FALSE)*T30,2)) ->  | AQ30: =IF(OR(I30="",U30=""),"",ROUND(VLOOKUP(I30,直管換算!$B$4:$Q$26,11,FALSE)*U30,2)) ->  | AR30: =IF(OR(I30="",V30=""),"",ROUND(VLOOKUP(I30,直管換算!$B$4:$Q$26,12,FALSE)*V30,2)) ->  | AS30: =IF(OR(I30="",W30=""),"",ROUND(VLOOKUP(I30,直管換算!$B$4:$Q$26,13,FALSE)*W30,2)) ->  | AT30: =IF(OR(I30="",X30=""),"",ROUND(VLOOKUP(I30,直管換算!$B$4:$Q$26,14,FALSE)*X30,2)) ->  | AU30: =IF(OR(I30="",Y30=""),"",ROUND(VLOOKUP(I30,直管換算!$B$4:$Q$26,15,FALSE)*Y30,2)) ->  | AV30: =IF(OR(I30="",Z30=""),"",ROUND(VLOOKUP(I30,直管換算!$B$4:$Q$26,16,FALSE)*Z30,2)) ->  | AY30: 空 | BB30: =IF(OR(H30="",I30=""),"",0.35464*計算公式!$B$14*POWER(AC30/1000,0.63)*POWER(BC30/1000,0.54)) ->  | BC30: =IF(OR(H30="",I30=""),"",10.666*POWER(計算公式!$B$14,-1.85)*POWER(AC30/1000,-4.87)*POWER(H30/1000,1.85)*1000) ->  | BD30: =IF(内径設定!B24="","",内径設定!B24) -> 
F31: 21 | AC31: =IF(I31="","",VLOOKUP(I31,内径設定!$B$4:$C$26,2,FALSE)) ->  | AD31: =IF(AC31="","",IF(OR(AND(AC31>計算公式!$B$9,計算公式!$D$9="超"),AND(AC31>=計算公式!$B$9,計算公式!$D$9="以上")),"H","W")) ->  | AH31: =IF(OR(I31="",L31=""),"",ROUND(VLOOKUP(I31,直管換算!$B$4:$Q$26,2,FALSE)*L31,2)) ->  | AI31: =IF(OR(I31="",M31=""),"",ROUND(VLOOKUP(I31,直管換算!$B$4:$Q$26,3,FALSE)*M31,2)) ->  | AJ31: =IF(OR(I31="",N31=""),"",ROUND(VLOOKUP(I31,直管換算!$B$4:$Q$26,4,FALSE)*N31,2)) ->  | AK31: =IF(OR(I31="",O31=""),"",ROUND(VLOOKUP(I31,直管換算!$B$4:$Q$26,5,FALSE)*O31,2)) ->  | AL31: =IF(OR(I31="",P31=""),"",ROUND(VLOOKUP(I31,直管換算!$B$4:$Q$26,6,FALSE)*P31,2)) ->  | AM31: =IF(OR(I31="",Q31=""),"",ROUND(VLOOKUP(I31,直管換算!$B$4:$Q$26,7,FALSE)*Q31,2)) ->  | AN31: =IF(OR(I31="",R31=""),"",ROUND(VLOOKUP(I31,直管換算!$B$4:$Q$26,8,FALSE)*R31,2)) ->  | AO31: =IF(OR(I31="",S31=""),"",ROUND(VLOOKUP(I31,直管換算!$B$4:$Q$26,9,FALSE)*S31,2)) ->  | AP31: =IF(OR(I31="",T31=""),"",ROUND(VLOOKUP(I31,直管換算!$B$4:$Q$26,10,FALSE)*T31,2)) ->  | AQ31: =IF(OR(I31="",U31=""),"",ROUND(VLOOKUP(I31,直管換算!$B$4:$Q$26,11,FALSE)*U31,2)) ->  | AR31: =IF(OR(I31="",V31=""),"",ROUND(VLOOKUP(I31,直管換算!$B$4:$Q$26,12,FALSE)*V31,2)) ->  | AS31: =IF(OR(I31="",W31=""),"",ROUND(VLOOKUP(I31,直管換算!$B$4:$Q$26,13,FALSE)*W31,2)) ->  | AT31: =IF(OR(I31="",X31=""),"",ROUND(VLOOKUP(I31,直管換算!$B$4:$Q$26,14,FALSE)*X31,2)) ->  | AU31: =IF(OR(I31="",Y31=""),"",ROUND(VLOOKUP(I31,直管換算!$B$4:$Q$26,15,FALSE)*Y31,2)) ->  | AV31: =IF(OR(I31="",Z31=""),"",ROUND(VLOOKUP(I31,直管換算!$B$4:$Q$26,16,FALSE)*Z31,2)) ->  | AY31: 空 | BB31: =IF(OR(H31="",I31=""),"",0.35464*計算公式!$B$14*POWER(AC31/1000,0.63)*POWER(BC31/1000,0.54)) ->  | BC31: =IF(OR(H31="",I31=""),"",10.666*POWER(計算公式!$B$14,-1.85)*POWER(AC31/1000,-4.87)*POWER(H31/1000,1.85)*1000) ->  | BD31: =IF(内径設定!B25="","",内径設定!B25) -> 
F32: 22 | AC32: =IF(I32="","",VLOOKUP(I32,内径設定!$B$4:$C$26,2,FALSE)) ->  | AD32: =IF(AC32="","",IF(OR(AND(AC32>計算公式!$B$9,計算公式!$D$9="超"),AND(AC32>=計算公式!$B$9,計算公式!$D$9="以上")),"H","W")) ->  | AH32: =IF(OR(I32="",L32=""),"",ROUND(VLOOKUP(I32,直管換算!$B$4:$Q$26,2,FALSE)*L32,2)) ->  | AI32: =IF(OR(I32="",M32=""),"",ROUND(VLOOKUP(I32,直管換算!$B$4:$Q$26,3,FALSE)*M32,2)) ->  | AJ32: =IF(OR(I32="",N32=""),"",ROUND(VLOOKUP(I32,直管換算!$B$4:$Q$26,4,FALSE)*N32,2)) ->  | AK32: =IF(OR(I32="",O32=""),"",ROUND(VLOOKUP(I32,直管換算!$B$4:$Q$26,5,FALSE)*O32,2)) ->  | AL32: =IF(OR(I32="",P32=""),"",ROUND(VLOOKUP(I32,直管換算!$B$4:$Q$26,6,FALSE)*P32,2)) ->  | AM32: =IF(OR(I32="",Q32=""),"",ROUND(VLOOKUP(I32,直管換算!$B$4:$Q$26,7,FALSE)*Q32,2)) ->  | AN32: =IF(OR(I32="",R32=""),"",ROUND(VLOOKUP(I32,直管換算!$B$4:$Q$26,8,FALSE)*R32,2)) ->  | AO32: =IF(OR(I32="",S32=""),"",ROUND(VLOOKUP(I32,直管換算!$B$4:$Q$26,9,FALSE)*S32,2)) ->  | AP32: =IF(OR(I32="",T32=""),"",ROUND(VLOOKUP(I32,直管換算!$B$4:$Q$26,10,FALSE)*T32,2)) ->  | AQ32: =IF(OR(I32="",U32=""),"",ROUND(VLOOKUP(I32,直管換算!$B$4:$Q$26,11,FALSE)*U32,2)) ->  | AR32: =IF(OR(I32="",V32=""),"",ROUND(VLOOKUP(I32,直管換算!$B$4:$Q$26,12,FALSE)*V32,2)) ->  | AS32: =IF(OR(I32="",W32=""),"",ROUND(VLOOKUP(I32,直管換算!$B$4:$Q$26,13,FALSE)*W32,2)) ->  | AT32: =IF(OR(I32="",X32=""),"",ROUND(VLOOKUP(I32,直管換算!$B$4:$Q$26,14,FALSE)*X32,2)) ->  | AU32: =IF(OR(I32="",Y32=""),"",ROUND(VLOOKUP(I32,直管換算!$B$4:$Q$26,15,FALSE)*Y32,2)) ->  | AV32: =IF(OR(I32="",Z32=""),"",ROUND(VLOOKUP(I32,直管換算!$B$4:$Q$26,16,FALSE)*Z32,2)) ->  | AY32: 空 | BB32: =IF(OR(H32="",I32=""),"",0.35464*計算公式!$B$14*POWER(AC32/1000,0.63)*POWER(BC32/1000,0.54)) ->  | BC32: =IF(OR(H32="",I32=""),"",10.666*POWER(計算公式!$B$14,-1.85)*POWER(AC32/1000,-4.87)*POWER(H32/1000,1.85)*1000) ->  | BD32: =IF(内径設定!B26="","",内径設定!B26) -> 
F33: 23 | AC33: =IF(I33="","",VLOOKUP(I33,内径設定!$B$4:$C$26,2,FALSE)) ->  | AD33: =IF(AC33="","",IF(OR(AND(AC33>計算公式!$B$9,計算公式!$D$9="超"),AND(AC33>=計算公式!$B$9,計算公式!$D$9="以上")),"H","W")) ->  | AH33: =IF(OR(I33="",L33=""),"",ROUND(VLOOKUP(I33,直管換算!$B$4:$Q$26,2,FALSE)*L33,2)) ->  | AI33: =IF(OR(I33="",M33=""),"",ROUND(VLOOKUP(I33,直管換算!$B$4:$Q$26,3,FALSE)*M33,2)) ->  | AJ33: =IF(OR(I33="",N33=""),"",ROUND(VLOOKUP(I33,直管換算!$B$4:$Q$26,4,FALSE)*N33,2)) ->  | AK33: =IF(OR(I33="",O33=""),"",ROUND(VLOOKUP(I33,直管換算!$B$4:$Q$26,5,FALSE)*O33,2)) ->  | AL33: =IF(OR(I33="",P33=""),"",ROUND(VLOOKUP(I33,直管換算!$B$4:$Q$26,6,FALSE)*P33,2)) ->  | AM33: =IF(OR(I33="",Q33=""),"",ROUND(VLOOKUP(I33,直管換算!$B$4:$Q$26,7,FALSE)*Q33,2)) ->  | AN33: =IF(OR(I33="",R33=""),"",ROUND(VLOOKUP(I33,直管換算!$B$4:$Q$26,8,FALSE)*R33,2)) ->  | AO33: =IF(OR(I33="",S33=""),"",ROUND(VLOOKUP(I33,直管換算!$B$4:$Q$26,9,FALSE)*S33,2)) ->  | AP33: =IF(OR(I33="",T33=""),"",ROUND(VLOOKUP(I33,直管換算!$B$4:$Q$26,10,FALSE)*T33,2)) ->  | AQ33: =IF(OR(I33="",U33=""),"",ROUND(VLOOKUP(I33,直管換算!$B$4:$Q$26,11,FALSE)*U33,2)) ->  | AR33: =IF(OR(I33="",V33=""),"",ROUND(VLOOKUP(I33,直管換算!$B$4:$Q$26,12,FALSE)*V33,2)) ->  | AS33: =IF(OR(I33="",W33=""),"",ROUND(VLOOKUP(I33,直管換算!$B$4:$Q$26,13,FALSE)*W33,2)) ->  | AT33: =IF(OR(I33="",X33=""),"",ROUND(VLOOKUP(I33,直管換算!$B$4:$Q$26,14,FALSE)*X33,2)) ->  | AU33: =IF(OR(I33="",Y33=""),"",ROUND(VLOOKUP(I33,直管換算!$B$4:$Q$26,15,FALSE)*Y33,2)) ->  | AV33: =IF(OR(I33="",Z33=""),"",ROUND(VLOOKUP(I33,直管換算!$B$4:$Q$26,16,FALSE)*Z33,2)) ->  | AY33: 空 | BB33: =IF(OR(H33="",I33=""),"",0.35464*計算公式!$B$14*POWER(AC33/1000,0.63)*POWER(BC33/1000,0.54)) ->  | BC33: =IF(OR(H33="",I33=""),"",10.666*POWER(計算公式!$B$14,-1.85)*POWER(AC33/1000,-4.87)*POWER(H33/1000,1.85)*1000) -> 
F34: 24 | AC34: =IF(I34="","",VLOOKUP(I34,内径設定!$B$4:$C$26,2,FALSE)) ->  | AD34: =IF(AC34="","",IF(OR(AND(AC34>計算公式!$B$9,計算公式!$D$9="超"),AND(AC34>=計算公式!$B$9,計算公式!$D$9="以上")),"H","W")) ->  | AH34: =IF(OR(I34="",L34=""),"",ROUND(VLOOKUP(I34,直管換算!$B$4:$Q$26,2,FALSE)*L34,2)) ->  | AI34: =IF(OR(I34="",M34=""),"",ROUND(VLOOKUP(I34,直管換算!$B$4:$Q$26,3,FALSE)*M34,2)) ->  | AJ34: =IF(OR(I34="",N34=""),"",ROUND(VLOOKUP(I34,直管換算!$B$4:$Q$26,4,FALSE)*N34,2)) ->  | AK34: =IF(OR(I34="",O34=""),"",ROUND(VLOOKUP(I34,直管換算!$B$4:$Q$26,5,FALSE)*O34,2)) ->  | AL34: =IF(OR(I34="",P34=""),"",ROUND(VLOOKUP(I34,直管換算!$B$4:$Q$26,6,FALSE)*P34,2)) ->  | AM34: =IF(OR(I34="",Q34=""),"",ROUND(VLOOKUP(I34,直管換算!$B$4:$Q$26,7,FALSE)*Q34,2)) ->  | AN34: =IF(OR(I34="",R34=""),"",ROUND(VLOOKUP(I34,直管換算!$B$4:$Q$26,8,FALSE)*R34,2)) ->  | AO34: =IF(OR(I34="",S34=""),"",ROUND(VLOOKUP(I34,直管換算!$B$4:$Q$26,9,FALSE)*S34,2)) ->  | AP34: =IF(OR(I34="",T34=""),"",ROUND(VLOOKUP(I34,直管換算!$B$4:$Q$26,10,FALSE)*T34,2)) ->  | AQ34: =IF(OR(I34="",U34=""),"",ROUND(VLOOKUP(I34,直管換算!$B$4:$Q$26,11,FALSE)*U34,2)) ->  | AR34: =IF(OR(I34="",V34=""),"",ROUND(VLOOKUP(I34,直管換算!$B$4:$Q$26,12,FALSE)*V34,2)) ->  | AS34: =IF(OR(I34="",W34=""),"",ROUND(VLOOKUP(I34,直管換算!$B$4:$Q$26,13,FALSE)*W34,2)) ->  | AT34: =IF(OR(I34="",X34=""),"",ROUND(VLOOKUP(I34,直管換算!$B$4:$Q$26,14,FALSE)*X34,2)) ->  | AU34: =IF(OR(I34="",Y34=""),"",ROUND(VLOOKUP(I34,直管換算!$B$4:$Q$26,15,FALSE)*Y34,2)) ->  | AV34: =IF(OR(I34="",Z34=""),"",ROUND(VLOOKUP(I34,直管換算!$B$4:$Q$26,16,FALSE)*Z34,2)) ->  | AY34: 空 | BB34: =IF(OR(H34="",I34=""),"",0.35464*計算公式!$B$14*POWER(AC34/1000,0.63)*POWER(BC34/1000,0.54)) ->  | BC34: =IF(OR(H34="",I34=""),"",10.666*POWER(計算公式!$B$14,-1.85)*POWER(AC34/1000,-4.87)*POWER(H34/1000,1.85)*1000) -> 
F35: 25 | AC35: =IF(I35="","",VLOOKUP(I35,内径設定!$B$4:$C$26,2,FALSE)) ->  | AD35: =IF(AC35="","",IF(OR(AND(AC35>計算公式!$B$9,計算公式!$D$9="超"),AND(AC35>=計算公式!$B$9,計算公式!$D$9="以上")),"H","W")) ->  | AH35: =IF(OR(I35="",L35=""),"",ROUND(VLOOKUP(I35,直管換算!$B$4:$Q$26,2,FALSE)*L35,2)) ->  | AI35: =IF(OR(I35="",M35=""),"",ROUND(VLOOKUP(I35,直管換算!$B$4:$Q$26,3,FALSE)*M35,2)) ->  | AJ35: =IF(OR(I35="",N35=""),"",ROUND(VLOOKUP(I35,直管換算!$B$4:$Q$26,4,FALSE)*N35,2)) ->  | AK35: =IF(OR(I35="",O35=""),"",ROUND(VLOOKUP(I35,直管換算!$B$4:$Q$26,5,FALSE)*O35,2)) ->  | AL35: =IF(OR(I35="",P35=""),"",ROUND(VLOOKUP(I35,直管換算!$B$4:$Q$26,6,FALSE)*P35,2)) ->  | AM35: =IF(OR(I35="",Q35=""),"",ROUND(VLOOKUP(I35,直管換算!$B$4:$Q$26,7,FALSE)*Q35,2)) ->  | AN35: =IF(OR(I35="",R35=""),"",ROUND(VLOOKUP(I35,直管換算!$B$4:$Q$26,8,FALSE)*R35,2)) ->  | AO35: =IF(OR(I35="",S35=""),"",ROUND(VLOOKUP(I35,直管換算!$B$4:$Q$26,9,FALSE)*S35,2)) ->  | AP35: =IF(OR(I35="",T35=""),"",ROUND(VLOOKUP(I35,直管換算!$B$4:$Q$26,10,FALSE)*T35,2)) ->  | AQ35: =IF(OR(I35="",U35=""),"",ROUND(VLOOKUP(I35,直管換算!$B$4:$Q$26,11,FALSE)*U35,2)) ->  | AR35: =IF(OR(I35="",V35=""),"",ROUND(VLOOKUP(I35,直管換算!$B$4:$Q$26,12,FALSE)*V35,2)) ->  | AS35: =IF(OR(I35="",W35=""),"",ROUND(VLOOKUP(I35,直管換算!$B$4:$Q$26,13,FALSE)*W35,2)) ->  | AT35: =IF(OR(I35="",X35=""),"",ROUND(VLOOKUP(I35,直管換算!$B$4:$Q$26,14,FALSE)*X35,2)) ->  | AU35: =IF(OR(I35="",Y35=""),"",ROUND(VLOOKUP(I35,直管換算!$B$4:$Q$26,15,FALSE)*Y35,2)) ->  | AV35: =IF(OR(I35="",Z35=""),"",ROUND(VLOOKUP(I35,直管換算!$B$4:$Q$26,16,FALSE)*Z35,2)) ->  | AY35: 空 | BB35: =IF(OR(H35="",I35=""),"",0.35464*計算公式!$B$14*POWER(AC35/1000,0.63)*POWER(BC35/1000,0.54)) ->  | BC35: =IF(OR(H35="",I35=""),"",10.666*POWER(計算公式!$B$14,-1.85)*POWER(AC35/1000,-4.87)*POWER(H35/1000,1.85)*1000) -> 
F36: 26 | AC36: =IF(I36="","",VLOOKUP(I36,内径設定!$B$4:$C$26,2,FALSE)) ->  | AD36: =IF(AC36="","",IF(OR(AND(AC36>計算公式!$B$9,計算公式!$D$9="超"),AND(AC36>=計算公式!$B$9,計算公式!$D$9="以上")),"H","W")) ->  | AH36: =IF(OR(I36="",L36=""),"",ROUND(VLOOKUP(I36,直管換算!$B$4:$Q$26,2,FALSE)*L36,2)) ->  | AI36: =IF(OR(I36="",M36=""),"",ROUND(VLOOKUP(I36,直管換算!$B$4:$Q$26,3,FALSE)*M36,2)) ->  | AJ36: =IF(OR(I36="",N36=""),"",ROUND(VLOOKUP(I36,直管換算!$B$4:$Q$26,4,FALSE)*N36,2)) ->  | AK36: =IF(OR(I36="",O36=""),"",ROUND(VLOOKUP(I36,直管換算!$B$4:$Q$26,5,FALSE)*O36,2)) ->  | AL36: =IF(OR(I36="",P36=""),"",ROUND(VLOOKUP(I36,直管換算!$B$4:$Q$26,6,FALSE)*P36,2)) ->  | AM36: =IF(OR(I36="",Q36=""),"",ROUND(VLOOKUP(I36,直管換算!$B$4:$Q$26,7,FALSE)*Q36,2)) ->  | AN36: =IF(OR(I36="",R36=""),"",ROUND(VLOOKUP(I36,直管換算!$B$4:$Q$26,8,FALSE)*R36,2)) ->  | AO36: =IF(OR(I36="",S36=""),"",ROUND(VLOOKUP(I36,直管換算!$B$4:$Q$26,9,FALSE)*S36,2)) ->  | AP36: =IF(OR(I36="",T36=""),"",ROUND(VLOOKUP(I36,直管換算!$B$4:$Q$26,10,FALSE)*T36,2)) ->  | AQ36: =IF(OR(I36="",U36=""),"",ROUND(VLOOKUP(I36,直管換算!$B$4:$Q$26,11,FALSE)*U36,2)) ->  | AR36: =IF(OR(I36="",V36=""),"",ROUND(VLOOKUP(I36,直管換算!$B$4:$Q$26,12,FALSE)*V36,2)) ->  | AS36: =IF(OR(I36="",W36=""),"",ROUND(VLOOKUP(I36,直管換算!$B$4:$Q$26,13,FALSE)*W36,2)) ->  | AT36: =IF(OR(I36="",X36=""),"",ROUND(VLOOKUP(I36,直管換算!$B$4:$Q$26,14,FALSE)*X36,2)) ->  | AU36: =IF(OR(I36="",Y36=""),"",ROUND(VLOOKUP(I36,直管換算!$B$4:$Q$26,15,FALSE)*Y36,2)) ->  | AV36: =IF(OR(I36="",Z36=""),"",ROUND(VLOOKUP(I36,直管換算!$B$4:$Q$26,16,FALSE)*Z36,2)) ->  | AY36: 空 | BB36: =IF(OR(H36="",I36=""),"",0.35464*計算公式!$B$14*POWER(AC36/1000,0.63)*POWER(BC36/1000,0.54)) ->  | BC36: =IF(OR(H36="",I36=""),"",10.666*POWER(計算公式!$B$14,-1.85)*POWER(AC36/1000,-4.87)*POWER(H36/1000,1.85)*1000) -> 
F37: 27 | AC37: =IF(I37="","",VLOOKUP(I37,内径設定!$B$4:$C$26,2,FALSE)) ->  | AD37: =IF(AC37="","",IF(OR(AND(AC37>計算公式!$B$9,計算公式!$D$9="超"),AND(AC37>=計算公式!$B$9,計算公式!$D$9="以上")),"H","W")) ->  | AH37: =IF(OR(I37="",L37=""),"",ROUND(VLOOKUP(I37,直管換算!$B$4:$Q$26,2,FALSE)*L37,2)) ->  | AI37: =IF(OR(I37="",M37=""),"",ROUND(VLOOKUP(I37,直管換算!$B$4:$Q$26,3,FALSE)*M37,2)) ->  | AJ37: =IF(OR(I37="",N37=""),"",ROUND(VLOOKUP(I37,直管換算!$B$4:$Q$26,4,FALSE)*N37,2)) ->  | AK37: =IF(OR(I37="",O37=""),"",ROUND(VLOOKUP(I37,直管換算!$B$4:$Q$26,5,FALSE)*O37,2)) ->  | AL37: =IF(OR(I37="",P37=""),"",ROUND(VLOOKUP(I37,直管換算!$B$4:$Q$26,6,FALSE)*P37,2)) ->  | AM37: =IF(OR(I37="",Q37=""),"",ROUND(VLOOKUP(I37,直管換算!$B$4:$Q$26,7,FALSE)*Q37,2)) ->  | AN37: =IF(OR(I37="",R37=""),"",ROUND(VLOOKUP(I37,直管換算!$B$4:$Q$26,8,FALSE)*R37,2)) ->  | AO37: =IF(OR(I37="",S37=""),"",ROUND(VLOOKUP(I37,直管換算!$B$4:$Q$26,9,FALSE)*S37,2)) ->  | AP37: =IF(OR(I37="",T37=""),"",ROUND(VLOOKUP(I37,直管換算!$B$4:$Q$26,10,FALSE)*T37,2)) ->  | AQ37: =IF(OR(I37="",U37=""),"",ROUND(VLOOKUP(I37,直管換算!$B$4:$Q$26,11,FALSE)*U37,2)) ->  | AR37: =IF(OR(I37="",V37=""),"",ROUND(VLOOKUP(I37,直管換算!$B$4:$Q$26,12,FALSE)*V37,2)) ->  | AS37: =IF(OR(I37="",W37=""),"",ROUND(VLOOKUP(I37,直管換算!$B$4:$Q$26,13,FALSE)*W37,2)) ->  | AT37: =IF(OR(I37="",X37=""),"",ROUND(VLOOKUP(I37,直管換算!$B$4:$Q$26,14,FALSE)*X37,2)) ->  | AU37: =IF(OR(I37="",Y37=""),"",ROUND(VLOOKUP(I37,直管換算!$B$4:$Q$26,15,FALSE)*Y37,2)) ->  | AV37: =IF(OR(I37="",Z37=""),"",ROUND(VLOOKUP(I37,直管換算!$B$4:$Q$26,16,FALSE)*Z37,2)) ->  | AY37: 空 | BB37: =IF(OR(H37="",I37=""),"",0.35464*計算公式!$B$14*POWER(AC37/1000,0.63)*POWER(BC37/1000,0.54)) ->  | BC37: =IF(OR(H37="",I37=""),"",10.666*POWER(計算公式!$B$14,-1.85)*POWER(AC37/1000,-4.87)*POWER(H37/1000,1.85)*1000) -> 
F38: 28 | AC38: =IF(I38="","",VLOOKUP(I38,内径設定!$B$4:$C$26,2,FALSE)) ->  | AD38: =IF(AC38="","",IF(OR(AND(AC38>計算公式!$B$9,計算公式!$D$9="超"),AND(AC38>=計算公式!$B$9,計算公式!$D$9="以上")),"H","W")) ->  | AH38: =IF(OR(I38="",L38=""),"",ROUND(VLOOKUP(I38,直管換算!$B$4:$Q$26,2,FALSE)*L38,2)) ->  | AI38: =IF(OR(I38="",M38=""),"",ROUND(VLOOKUP(I38,直管換算!$B$4:$Q$26,3,FALSE)*M38,2)) ->  | AJ38: =IF(OR(I38="",N38=""),"",ROUND(VLOOKUP(I38,直管換算!$B$4:$Q$26,4,FALSE)*N38,2)) ->  | AK38: =IF(OR(I38="",O38=""),"",ROUND(VLOOKUP(I38,直管換算!$B$4:$Q$26,5,FALSE)*O38,2)) ->  | AL38: =IF(OR(I38="",P38=""),"",ROUND(VLOOKUP(I38,直管換算!$B$4:$Q$26,6,FALSE)*P38,2)) ->  | AM38: =IF(OR(I38="",Q38=""),"",ROUND(VLOOKUP(I38,直管換算!$B$4:$Q$26,7,FALSE)*Q38,2)) ->  | AN38: =IF(OR(I38="",R38=""),"",ROUND(VLOOKUP(I38,直管換算!$B$4:$Q$26,8,FALSE)*R38,2)) ->  | AO38: =IF(OR(I38="",S38=""),"",ROUND(VLOOKUP(I38,直管換算!$B$4:$Q$26,9,FALSE)*S38,2)) ->  | AP38: =IF(OR(I38="",T38=""),"",ROUND(VLOOKUP(I38,直管換算!$B$4:$Q$26,10,FALSE)*T38,2)) ->  | AQ38: =IF(OR(I38="",U38=""),"",ROUND(VLOOKUP(I38,直管換算!$B$4:$Q$26,11,FALSE)*U38,2)) ->  | AR38: =IF(OR(I38="",V38=""),"",ROUND(VLOOKUP(I38,直管換算!$B$4:$Q$26,12,FALSE)*V38,2)) ->  | AS38: =IF(OR(I38="",W38=""),"",ROUND(VLOOKUP(I38,直管換算!$B$4:$Q$26,13,FALSE)*W38,2)) ->  | AT38: =IF(OR(I38="",X38=""),"",ROUND(VLOOKUP(I38,直管換算!$B$4:$Q$26,14,FALSE)*X38,2)) ->  | AU38: =IF(OR(I38="",Y38=""),"",ROUND(VLOOKUP(I38,直管換算!$B$4:$Q$26,15,FALSE)*Y38,2)) ->  | AV38: =IF(OR(I38="",Z38=""),"",ROUND(VLOOKUP(I38,直管換算!$B$4:$Q$26,16,FALSE)*Z38,2)) ->  | AY38: 空 | BB38: =IF(OR(H38="",I38=""),"",0.35464*計算公式!$B$14*POWER(AC38/1000,0.63)*POWER(BC38/1000,0.54)) ->  | BC38: =IF(OR(H38="",I38=""),"",10.666*POWER(計算公式!$B$14,-1.85)*POWER(AC38/1000,-4.87)*POWER(H38/1000,1.85)*1000) -> 
F39: 29 | AC39: =IF(I39="","",VLOOKUP(I39,内径設定!$B$4:$C$26,2,FALSE)) ->  | AD39: =IF(AC39="","",IF(OR(AND(AC39>計算公式!$B$9,計算公式!$D$9="超"),AND(AC39>=計算公式!$B$9,計算公式!$D$9="以上")),"H","W")) ->  | AH39: =IF(OR(I39="",L39=""),"",ROUND(VLOOKUP(I39,直管換算!$B$4:$Q$26,2,FALSE)*L39,2)) ->  | AI39: =IF(OR(I39="",M39=""),"",ROUND(VLOOKUP(I39,直管換算!$B$4:$Q$26,3,FALSE)*M39,2)) ->  | AJ39: =IF(OR(I39="",N39=""),"",ROUND(VLOOKUP(I39,直管換算!$B$4:$Q$26,4,FALSE)*N39,2)) ->  | AK39: =IF(OR(I39="",O39=""),"",ROUND(VLOOKUP(I39,直管換算!$B$4:$Q$26,5,FALSE)*O39,2)) ->  | AL39: =IF(OR(I39="",P39=""),"",ROUND(VLOOKUP(I39,直管換算!$B$4:$Q$26,6,FALSE)*P39,2)) ->  | AM39: =IF(OR(I39="",Q39=""),"",ROUND(VLOOKUP(I39,直管換算!$B$4:$Q$26,7,FALSE)*Q39,2)) ->  | AN39: =IF(OR(I39="",R39=""),"",ROUND(VLOOKUP(I39,直管換算!$B$4:$Q$26,8,FALSE)*R39,2)) ->  | AO39: =IF(OR(I39="",S39=""),"",ROUND(VLOOKUP(I39,直管換算!$B$4:$Q$26,9,FALSE)*S39,2)) ->  | AP39: =IF(OR(I39="",T39=""),"",ROUND(VLOOKUP(I39,直管換算!$B$4:$Q$26,10,FALSE)*T39,2)) ->  | AQ39: =IF(OR(I39="",U39=""),"",ROUND(VLOOKUP(I39,直管換算!$B$4:$Q$26,11,FALSE)*U39,2)) ->  | AR39: =IF(OR(I39="",V39=""),"",ROUND(VLOOKUP(I39,直管換算!$B$4:$Q$26,12,FALSE)*V39,2)) ->  | AS39: =IF(OR(I39="",W39=""),"",ROUND(VLOOKUP(I39,直管換算!$B$4:$Q$26,13,FALSE)*W39,2)) ->  | AT39: =IF(OR(I39="",X39=""),"",ROUND(VLOOKUP(I39,直管換算!$B$4:$Q$26,14,FALSE)*X39,2)) ->  | AU39: =IF(OR(I39="",Y39=""),"",ROUND(VLOOKUP(I39,直管換算!$B$4:$Q$26,15,FALSE)*Y39,2)) ->  | AV39: =IF(OR(I39="",Z39=""),"",ROUND(VLOOKUP(I39,直管換算!$B$4:$Q$26,16,FALSE)*Z39,2)) ->  | AY39: 空 | BB39: =IF(OR(H39="",I39=""),"",0.35464*計算公式!$B$14*POWER(AC39/1000,0.63)*POWER(BC39/1000,0.54)) ->  | BC39: =IF(OR(H39="",I39=""),"",10.666*POWER(計算公式!$B$14,-1.85)*POWER(AC39/1000,-4.87)*POWER(H39/1000,1.85)*1000) -> 
F40: 30 | AC40: =IF(I40="","",VLOOKUP(I40,内径設定!$B$4:$C$26,2,FALSE)) ->  | AD40: =IF(AC40="","",IF(OR(AND(AC40>計算公式!$B$9,計算公式!$D$9="超"),AND(AC40>=計算公式!$B$9,計算公式!$D$9="以上")),"H","W")) ->  | AH40: =IF(OR(I40="",L40=""),"",ROUND(VLOOKUP(I40,直管換算!$B$4:$Q$26,2,FALSE)*L40,2)) ->  | AI40: =IF(OR(I40="",M40=""),"",ROUND(VLOOKUP(I40,直管換算!$B$4:$Q$26,3,FALSE)*M40,2)) ->  | AJ40: =IF(OR(I40="",N40=""),"",ROUND(VLOOKUP(I40,直管換算!$B$4:$Q$26,4,FALSE)*N40,2)) ->  | AK40: =IF(OR(I40="",O40=""),"",ROUND(VLOOKUP(I40,直管換算!$B$4:$Q$26,5,FALSE)*O40,2)) ->  | AL40: =IF(OR(I40="",P40=""),"",ROUND(VLOOKUP(I40,直管換算!$B$4:$Q$26,6,FALSE)*P40,2)) ->  | AM40: =IF(OR(I40="",Q40=""),"",ROUND(VLOOKUP(I40,直管換算!$B$4:$Q$26,7,FALSE)*Q40,2)) ->  | AN40: =IF(OR(I40="",R40=""),"",ROUND(VLOOKUP(I40,直管換算!$B$4:$Q$26,8,FALSE)*R40,2)) ->  | AO40: =IF(OR(I40="",S40=""),"",ROUND(VLOOKUP(I40,直管換算!$B$4:$Q$26,9,FALSE)*S40,2)) ->  | AP40: =IF(OR(I40="",T40=""),"",ROUND(VLOOKUP(I40,直管換算!$B$4:$Q$26,10,FALSE)*T40,2)) ->  | AQ40: =IF(OR(I40="",U40=""),"",ROUND(VLOOKUP(I40,直管換算!$B$4:$Q$26,11,FALSE)*U40,2)) ->  | AR40: =IF(OR(I40="",V40=""),"",ROUND(VLOOKUP(I40,直管換算!$B$4:$Q$26,12,FALSE)*V40,2)) ->  | AS40: =IF(OR(I40="",W40=""),"",ROUND(VLOOKUP(I40,直管換算!$B$4:$Q$26,13,FALSE)*W40,2)) ->  | AT40: =IF(OR(I40="",X40=""),"",ROUND(VLOOKUP(I40,直管換算!$B$4:$Q$26,14,FALSE)*X40,2)) ->  | AU40: =IF(OR(I40="",Y40=""),"",ROUND(VLOOKUP(I40,直管換算!$B$4:$Q$26,15,FALSE)*Y40,2)) ->  | AV40: =IF(OR(I40="",Z40=""),"",ROUND(VLOOKUP(I40,直管換算!$B$4:$Q$26,16,FALSE)*Z40,2)) ->  | AY40: 空 | BB40: =IF(OR(H40="",I40=""),"",0.35464*計算公式!$B$14*POWER(AC40/1000,0.63)*POWER(BC40/1000,0.54)) ->  | BC40: =IF(OR(H40="",I40=""),"",10.666*POWER(計算公式!$B$14,-1.85)*POWER(AC40/1000,-4.87)*POWER(H40/1000,1.85)*1000) -> 
F41: 31 | AC41: =IF(I41="","",VLOOKUP(I41,内径設定!$B$4:$C$26,2,FALSE)) ->  | AD41: =IF(AC41="","",IF(OR(AND(AC41>計算公式!$B$9,計算公式!$D$9="超"),AND(AC41>=計算公式!$B$9,計算公式!$D$9="以上")),"H","W")) ->  | AH41: =IF(OR(I41="",L41=""),"",ROUND(VLOOKUP(I41,直管換算!$B$4:$Q$26,2,FALSE)*L41,2)) ->  | AI41: =IF(OR(I41="",M41=""),"",ROUND(VLOOKUP(I41,直管換算!$B$4:$Q$26,3,FALSE)*M41,2)) ->  | AJ41: =IF(OR(I41="",N41=""),"",ROUND(VLOOKUP(I41,直管換算!$B$4:$Q$26,4,FALSE)*N41,2)) ->  | AK41: =IF(OR(I41="",O41=""),"",ROUND(VLOOKUP(I41,直管換算!$B$4:$Q$26,5,FALSE)*O41,2)) ->  | AL41: =IF(OR(I41="",P41=""),"",ROUND(VLOOKUP(I41,直管換算!$B$4:$Q$26,6,FALSE)*P41,2)) ->  | AM41: =IF(OR(I41="",Q41=""),"",ROUND(VLOOKUP(I41,直管換算!$B$4:$Q$26,7,FALSE)*Q41,2)) ->  | AN41: =IF(OR(I41="",R41=""),"",ROUND(VLOOKUP(I41,直管換算!$B$4:$Q$26,8,FALSE)*R41,2)) ->  | AO41: =IF(OR(I41="",S41=""),"",ROUND(VLOOKUP(I41,直管換算!$B$4:$Q$26,9,FALSE)*S41,2)) ->  | AP41: =IF(OR(I41="",T41=""),"",ROUND(VLOOKUP(I41,直管換算!$B$4:$Q$26,10,FALSE)*T41,2)) ->  | AQ41: =IF(OR(I41="",U41=""),"",ROUND(VLOOKUP(I41,直管換算!$B$4:$Q$26,11,FALSE)*U41,2)) ->  | AR41: =IF(OR(I41="",V41=""),"",ROUND(VLOOKUP(I41,直管換算!$B$4:$Q$26,12,FALSE)*V41,2)) ->  | AS41: =IF(OR(I41="",W41=""),"",ROUND(VLOOKUP(I41,直管換算!$B$4:$Q$26,13,FALSE)*W41,2)) ->  | AT41: =IF(OR(I41="",X41=""),"",ROUND(VLOOKUP(I41,直管換算!$B$4:$Q$26,14,FALSE)*X41,2)) ->  | AU41: =IF(OR(I41="",Y41=""),"",ROUND(VLOOKUP(I41,直管換算!$B$4:$Q$26,15,FALSE)*Y41,2)) ->  | AV41: =IF(OR(I41="",Z41=""),"",ROUND(VLOOKUP(I41,直管換算!$B$4:$Q$26,16,FALSE)*Z41,2)) ->  | AY41: 空 | BB41: =IF(OR(H41="",I41=""),"",0.35464*計算公式!$B$14*POWER(AC41/1000,0.63)*POWER(BC41/1000,0.54)) ->  | BC41: =IF(OR(H41="",I41=""),"",10.666*POWER(計算公式!$B$14,-1.85)*POWER(AC41/1000,-4.87)*POWER(H41/1000,1.85)*1000) -> 
F42: 32 | AC42: =IF(I42="","",VLOOKUP(I42,内径設定!$B$4:$C$26,2,FALSE)) ->  | AD42: =IF(AC42="","",IF(OR(AND(AC42>計算公式!$B$9,計算公式!$D$9="超"),AND(AC42>=計算公式!$B$9,計算公式!$D$9="以上")),"H","W")) ->  | AH42: =IF(OR(I42="",L42=""),"",ROUND(VLOOKUP(I42,直管換算!$B$4:$Q$26,2,FALSE)*L42,2)) ->  | AI42: =IF(OR(I42="",M42=""),"",ROUND(VLOOKUP(I42,直管換算!$B$4:$Q$26,3,FALSE)*M42,2)) ->  | AJ42: =IF(OR(I42="",N42=""),"",ROUND(VLOOKUP(I42,直管換算!$B$4:$Q$26,4,FALSE)*N42,2)) ->  | AK42: =IF(OR(I42="",O42=""),"",ROUND(VLOOKUP(I42,直管換算!$B$4:$Q$26,5,FALSE)*O42,2)) ->  | AL42: =IF(OR(I42="",P42=""),"",ROUND(VLOOKUP(I42,直管換算!$B$4:$Q$26,6,FALSE)*P42,2)) ->  | AM42: =IF(OR(I42="",Q42=""),"",ROUND(VLOOKUP(I42,直管換算!$B$4:$Q$26,7,FALSE)*Q42,2)) ->  | AN42: =IF(OR(I42="",R42=""),"",ROUND(VLOOKUP(I42,直管換算!$B$4:$Q$26,8,FALSE)*R42,2)) ->  | AO42: =IF(OR(I42="",S42=""),"",ROUND(VLOOKUP(I42,直管換算!$B$4:$Q$26,9,FALSE)*S42,2)) ->  | AP42: =IF(OR(I42="",T42=""),"",ROUND(VLOOKUP(I42,直管換算!$B$4:$Q$26,10,FALSE)*T42,2)) ->  | AQ42: =IF(OR(I42="",U42=""),"",ROUND(VLOOKUP(I42,直管換算!$B$4:$Q$26,11,FALSE)*U42,2)) ->  | AR42: =IF(OR(I42="",V42=""),"",ROUND(VLOOKUP(I42,直管換算!$B$4:$Q$26,12,FALSE)*V42,2)) ->  | AS42: =IF(OR(I42="",W42=""),"",ROUND(VLOOKUP(I42,直管換算!$B$4:$Q$26,13,FALSE)*W42,2)) ->  | AT42: =IF(OR(I42="",X42=""),"",ROUND(VLOOKUP(I42,直管換算!$B$4:$Q$26,14,FALSE)*X42,2)) ->  | AU42: =IF(OR(I42="",Y42=""),"",ROUND(VLOOKUP(I42,直管換算!$B$4:$Q$26,15,FALSE)*Y42,2)) ->  | AV42: =IF(OR(I42="",Z42=""),"",ROUND(VLOOKUP(I42,直管換算!$B$4:$Q$26,16,FALSE)*Z42,2)) ->  | AY42: 空 | BB42: =IF(OR(H42="",I42=""),"",0.35464*計算公式!$B$14*POWER(AC42/1000,0.63)*POWER(BC42/1000,0.54)) ->  | BC42: =IF(OR(H42="",I42=""),"",10.666*POWER(計算公式!$B$14,-1.85)*POWER(AC42/1000,-4.87)*POWER(H42/1000,1.85)*1000) -> 
F43: 33 | AC43: =IF(I43="","",VLOOKUP(I43,内径設定!$B$4:$C$26,2,FALSE)) ->  | AD43: =IF(AC43="","",IF(OR(AND(AC43>計算公式!$B$9,計算公式!$D$9="超"),AND(AC43>=計算公式!$B$9,計算公式!$D$9="以上")),"H","W")) ->  | AH43: =IF(OR(I43="",L43=""),"",ROUND(VLOOKUP(I43,直管換算!$B$4:$Q$26,2,FALSE)*L43,2)) ->  | AI43: =IF(OR(I43="",M43=""),"",ROUND(VLOOKUP(I43,直管換算!$B$4:$Q$26,3,FALSE)*M43,2)) ->  | AJ43: =IF(OR(I43="",N43=""),"",ROUND(VLOOKUP(I43,直管換算!$B$4:$Q$26,4,FALSE)*N43,2)) ->  | AK43: =IF(OR(I43="",O43=""),"",ROUND(VLOOKUP(I43,直管換算!$B$4:$Q$26,5,FALSE)*O43,2)) ->  | AL43: =IF(OR(I43="",P43=""),"",ROUND(VLOOKUP(I43,直管換算!$B$4:$Q$26,6,FALSE)*P43,2)) ->  | AM43: =IF(OR(I43="",Q43=""),"",ROUND(VLOOKUP(I43,直管換算!$B$4:$Q$26,7,FALSE)*Q43,2)) ->  | AN43: =IF(OR(I43="",R43=""),"",ROUND(VLOOKUP(I43,直管換算!$B$4:$Q$26,8,FALSE)*R43,2)) ->  | AO43: =IF(OR(I43="",S43=""),"",ROUND(VLOOKUP(I43,直管換算!$B$4:$Q$26,9,FALSE)*S43,2)) ->  | AP43: =IF(OR(I43="",T43=""),"",ROUND(VLOOKUP(I43,直管換算!$B$4:$Q$26,10,FALSE)*T43,2)) ->  | AQ43: =IF(OR(I43="",U43=""),"",ROUND(VLOOKUP(I43,直管換算!$B$4:$Q$26,11,FALSE)*U43,2)) ->  | AR43: =IF(OR(I43="",V43=""),"",ROUND(VLOOKUP(I43,直管換算!$B$4:$Q$26,12,FALSE)*V43,2)) ->  | AS43: =IF(OR(I43="",W43=""),"",ROUND(VLOOKUP(I43,直管換算!$B$4:$Q$26,13,FALSE)*W43,2)) ->  | AT43: =IF(OR(I43="",X43=""),"",ROUND(VLOOKUP(I43,直管換算!$B$4:$Q$26,14,FALSE)*X43,2)) ->  | AU43: =IF(OR(I43="",Y43=""),"",ROUND(VLOOKUP(I43,直管換算!$B$4:$Q$26,15,FALSE)*Y43,2)) ->  | AV43: =IF(OR(I43="",Z43=""),"",ROUND(VLOOKUP(I43,直管換算!$B$4:$Q$26,16,FALSE)*Z43,2)) ->  | AY43: 空 | BB43: =IF(OR(H43="",I43=""),"",0.35464*計算公式!$B$14*POWER(AC43/1000,0.63)*POWER(BC43/1000,0.54)) ->  | BC43: =IF(OR(H43="",I43=""),"",10.666*POWER(計算公式!$B$14,-1.85)*POWER(AC43/1000,-4.87)*POWER(H43/1000,1.85)*1000) -> 
F44: 34 | AC44: =IF(I44="","",VLOOKUP(I44,内径設定!$B$4:$C$26,2,FALSE)) ->  | AD44: =IF(AC44="","",IF(OR(AND(AC44>計算公式!$B$9,計算公式!$D$9="超"),AND(AC44>=計算公式!$B$9,計算公式!$D$9="以上")),"H","W")) ->  | AH44: =IF(OR(I44="",L44=""),"",ROUND(VLOOKUP(I44,直管換算!$B$4:$Q$26,2,FALSE)*L44,2)) ->  | AI44: =IF(OR(I44="",M44=""),"",ROUND(VLOOKUP(I44,直管換算!$B$4:$Q$26,3,FALSE)*M44,2)) ->  | AJ44: =IF(OR(I44="",N44=""),"",ROUND(VLOOKUP(I44,直管換算!$B$4:$Q$26,4,FALSE)*N44,2)) ->  | AK44: =IF(OR(I44="",O44=""),"",ROUND(VLOOKUP(I44,直管換算!$B$4:$Q$26,5,FALSE)*O44,2)) ->  | AL44: =IF(OR(I44="",P44=""),"",ROUND(VLOOKUP(I44,直管換算!$B$4:$Q$26,6,FALSE)*P44,2)) ->  | AM44: =IF(OR(I44="",Q44=""),"",ROUND(VLOOKUP(I44,直管換算!$B$4:$Q$26,7,FALSE)*Q44,2)) ->  | AN44: =IF(OR(I44="",R44=""),"",ROUND(VLOOKUP(I44,直管換算!$B$4:$Q$26,8,FALSE)*R44,2)) ->  | AO44: =IF(OR(I44="",S44=""),"",ROUND(VLOOKUP(I44,直管換算!$B$4:$Q$26,9,FALSE)*S44,2)) ->  | AP44: =IF(OR(I44="",T44=""),"",ROUND(VLOOKUP(I44,直管換算!$B$4:$Q$26,10,FALSE)*T44,2)) ->  | AQ44: =IF(OR(I44="",U44=""),"",ROUND(VLOOKUP(I44,直管換算!$B$4:$Q$26,11,FALSE)*U44,2)) ->  | AR44: =IF(OR(I44="",V44=""),"",ROUND(VLOOKUP(I44,直管換算!$B$4:$Q$26,12,FALSE)*V44,2)) ->  | AS44: =IF(OR(I44="",W44=""),"",ROUND(VLOOKUP(I44,直管換算!$B$4:$Q$26,13,FALSE)*W44,2)) ->  | AT44: =IF(OR(I44="",X44=""),"",ROUND(VLOOKUP(I44,直管換算!$B$4:$Q$26,14,FALSE)*X44,2)) ->  | AU44: =IF(OR(I44="",Y44=""),"",ROUND(VLOOKUP(I44,直管換算!$B$4:$Q$26,15,FALSE)*Y44,2)) ->  | AV44: =IF(OR(I44="",Z44=""),"",ROUND(VLOOKUP(I44,直管換算!$B$4:$Q$26,16,FALSE)*Z44,2)) ->  | AY44: 空 | BB44: =IF(OR(H44="",I44=""),"",0.35464*計算公式!$B$14*POWER(AC44/1000,0.63)*POWER(BC44/1000,0.54)) ->  | BC44: =IF(OR(H44="",I44=""),"",10.666*POWER(計算公式!$B$14,-1.85)*POWER(AC44/1000,-4.87)*POWER(H44/1000,1.85)*1000) -> 
F45: 35 | AC45: =IF(I45="","",VLOOKUP(I45,内径設定!$B$4:$C$26,2,FALSE)) ->  | AD45: =IF(AC45="","",IF(OR(AND(AC45>計算公式!$B$9,計算公式!$D$9="超"),AND(AC45>=計算公式!$B$9,計算公式!$D$9="以上")),"H","W")) ->  | AH45: =IF(OR(I45="",L45=""),"",ROUND(VLOOKUP(I45,直管換算!$B$4:$Q$26,2,FALSE)*L45,2)) ->  | AI45: =IF(OR(I45="",M45=""),"",ROUND(VLOOKUP(I45,直管換算!$B$4:$Q$26,3,FALSE)*M45,2)) ->  | AJ45: =IF(OR(I45="",N45=""),"",ROUND(VLOOKUP(I45,直管換算!$B$4:$Q$26,4,FALSE)*N45,2)) ->  | AK45: =IF(OR(I45="",O45=""),"",ROUND(VLOOKUP(I45,直管換算!$B$4:$Q$26,5,FALSE)*O45,2)) ->  | AL45: =IF(OR(I45="",P45=""),"",ROUND(VLOOKUP(I45,直管換算!$B$4:$Q$26,6,FALSE)*P45,2)) ->  | AM45: =IF(OR(I45="",Q45=""),"",ROUND(VLOOKUP(I45,直管換算!$B$4:$Q$26,7,FALSE)*Q45,2)) ->  | AN45: =IF(OR(I45="",R45=""),"",ROUND(VLOOKUP(I45,直管換算!$B$4:$Q$26,8,FALSE)*R45,2)) ->  | AO45: =IF(OR(I45="",S45=""),"",ROUND(VLOOKUP(I45,直管換算!$B$4:$Q$26,9,FALSE)*S45,2)) ->  | AP45: =IF(OR(I45="",T45=""),"",ROUND(VLOOKUP(I45,直管換算!$B$4:$Q$26,10,FALSE)*T45,2)) ->  | AQ45: =IF(OR(I45="",U45=""),"",ROUND(VLOOKUP(I45,直管換算!$B$4:$Q$26,11,FALSE)*U45,2)) ->  | AR45: =IF(OR(I45="",V45=""),"",ROUND(VLOOKUP(I45,直管換算!$B$4:$Q$26,12,FALSE)*V45,2)) ->  | AS45: =IF(OR(I45="",W45=""),"",ROUND(VLOOKUP(I45,直管換算!$B$4:$Q$26,13,FALSE)*W45,2)) ->  | AT45: =IF(OR(I45="",X45=""),"",ROUND(VLOOKUP(I45,直管換算!$B$4:$Q$26,14,FALSE)*X45,2)) ->  | AU45: =IF(OR(I45="",Y45=""),"",ROUND(VLOOKUP(I45,直管換算!$B$4:$Q$26,15,FALSE)*Y45,2)) ->  | AV45: =IF(OR(I45="",Z45=""),"",ROUND(VLOOKUP(I45,直管換算!$B$4:$Q$26,16,FALSE)*Z45,2)) ->  | AY45: 空 | BB45: =IF(OR(H45="",I45=""),"",0.35464*計算公式!$B$14*POWER(AC45/1000,0.63)*POWER(BC45/1000,0.54)) ->  | BC45: =IF(OR(H45="",I45=""),"",10.666*POWER(計算公式!$B$14,-1.85)*POWER(AC45/1000,-4.87)*POWER(H45/1000,1.85)*1000) -> 
F46: 36 | AC46: =IF(I46="","",VLOOKUP(I46,内径設定!$B$4:$C$26,2,FALSE)) ->  | AD46: =IF(AC46="","",IF(OR(AND(AC46>計算公式!$B$9,計算公式!$D$9="超"),AND(AC46>=計算公式!$B$9,計算公式!$D$9="以上")),"H","W")) ->  | AH46: =IF(OR(I46="",L46=""),"",ROUND(VLOOKUP(I46,直管換算!$B$4:$Q$26,2,FALSE)*L46,2)) ->  | AI46: =IF(OR(I46="",M46=""),"",ROUND(VLOOKUP(I46,直管換算!$B$4:$Q$26,3,FALSE)*M46,2)) ->  | AJ46: =IF(OR(I46="",N46=""),"",ROUND(VLOOKUP(I46,直管換算!$B$4:$Q$26,4,FALSE)*N46,2)) ->  | AK46: =IF(OR(I46="",O46=""),"",ROUND(VLOOKUP(I46,直管換算!$B$4:$Q$26,5,FALSE)*O46,2)) ->  | AL46: =IF(OR(I46="",P46=""),"",ROUND(VLOOKUP(I46,直管換算!$B$4:$Q$26,6,FALSE)*P46,2)) ->  | AM46: =IF(OR(I46="",Q46=""),"",ROUND(VLOOKUP(I46,直管換算!$B$4:$Q$26,7,FALSE)*Q46,2)) ->  | AN46: =IF(OR(I46="",R46=""),"",ROUND(VLOOKUP(I46,直管換算!$B$4:$Q$26,8,FALSE)*R46,2)) ->  | AO46: =IF(OR(I46="",S46=""),"",ROUND(VLOOKUP(I46,直管換算!$B$4:$Q$26,9,FALSE)*S46,2)) ->  | AP46: =IF(OR(I46="",T46=""),"",ROUND(VLOOKUP(I46,直管換算!$B$4:$Q$26,10,FALSE)*T46,2)) ->  | AQ46: =IF(OR(I46="",U46=""),"",ROUND(VLOOKUP(I46,直管換算!$B$4:$Q$26,11,FALSE)*U46,2)) ->  | AR46: =IF(OR(I46="",V46=""),"",ROUND(VLOOKUP(I46,直管換算!$B$4:$Q$26,12,FALSE)*V46,2)) ->  | AS46: =IF(OR(I46="",W46=""),"",ROUND(VLOOKUP(I46,直管換算!$B$4:$Q$26,13,FALSE)*W46,2)) ->  | AT46: =IF(OR(I46="",X46=""),"",ROUND(VLOOKUP(I46,直管換算!$B$4:$Q$26,14,FALSE)*X46,2)) ->  | AU46: =IF(OR(I46="",Y46=""),"",ROUND(VLOOKUP(I46,直管換算!$B$4:$Q$26,15,FALSE)*Y46,2)) ->  | AV46: =IF(OR(I46="",Z46=""),"",ROUND(VLOOKUP(I46,直管換算!$B$4:$Q$26,16,FALSE)*Z46,2)) ->  | AY46: 空 | BB46: =IF(OR(H46="",I46=""),"",0.35464*計算公式!$B$14*POWER(AC46/1000,0.63)*POWER(BC46/1000,0.54)) ->  | BC46: =IF(OR(H46="",I46=""),"",10.666*POWER(計算公式!$B$14,-1.85)*POWER(AC46/1000,-4.87)*POWER(H46/1000,1.85)*1000) -> 
F47: 37 | AC47: =IF(I47="","",VLOOKUP(I47,内径設定!$B$4:$C$26,2,FALSE)) ->  | AD47: =IF(AC47="","",IF(OR(AND(AC47>計算公式!$B$9,計算公式!$D$9="超"),AND(AC47>=計算公式!$B$9,計算公式!$D$9="以上")),"H","W")) ->  | AH47: =IF(OR(I47="",L47=""),"",ROUND(VLOOKUP(I47,直管換算!$B$4:$Q$26,2,FALSE)*L47,2)) ->  | AI47: =IF(OR(I47="",M47=""),"",ROUND(VLOOKUP(I47,直管換算!$B$4:$Q$26,3,FALSE)*M47,2)) ->  | AJ47: =IF(OR(I47="",N47=""),"",ROUND(VLOOKUP(I47,直管換算!$B$4:$Q$26,4,FALSE)*N47,2)) ->  | AK47: =IF(OR(I47="",O47=""),"",ROUND(VLOOKUP(I47,直管換算!$B$4:$Q$26,5,FALSE)*O47,2)) ->  | AL47: =IF(OR(I47="",P47=""),"",ROUND(VLOOKUP(I47,直管換算!$B$4:$Q$26,6,FALSE)*P47,2)) ->  | AM47: =IF(OR(I47="",Q47=""),"",ROUND(VLOOKUP(I47,直管換算!$B$4:$Q$26,7,FALSE)*Q47,2)) ->  | AN47: =IF(OR(I47="",R47=""),"",ROUND(VLOOKUP(I47,直管換算!$B$4:$Q$26,8,FALSE)*R47,2)) ->  | AO47: =IF(OR(I47="",S47=""),"",ROUND(VLOOKUP(I47,直管換算!$B$4:$Q$26,9,FALSE)*S47,2)) ->  | AP47: =IF(OR(I47="",T47=""),"",ROUND(VLOOKUP(I47,直管換算!$B$4:$Q$26,10,FALSE)*T47,2)) ->  | AQ47: =IF(OR(I47="",U47=""),"",ROUND(VLOOKUP(I47,直管換算!$B$4:$Q$26,11,FALSE)*U47,2)) ->  | AR47: =IF(OR(I47="",V47=""),"",ROUND(VLOOKUP(I47,直管換算!$B$4:$Q$26,12,FALSE)*V47,2)) ->  | AS47: =IF(OR(I47="",W47=""),"",ROUND(VLOOKUP(I47,直管換算!$B$4:$Q$26,13,FALSE)*W47,2)) ->  | AT47: =IF(OR(I47="",X47=""),"",ROUND(VLOOKUP(I47,直管換算!$B$4:$Q$26,14,FALSE)*X47,2)) ->  | AU47: =IF(OR(I47="",Y47=""),"",ROUND(VLOOKUP(I47,直管換算!$B$4:$Q$26,15,FALSE)*Y47,2)) ->  | AV47: =IF(OR(I47="",Z47=""),"",ROUND(VLOOKUP(I47,直管換算!$B$4:$Q$26,16,FALSE)*Z47,2)) ->  | AY47: 空 | BB47: =IF(OR(H47="",I47=""),"",0.35464*計算公式!$B$14*POWER(AC47/1000,0.63)*POWER(BC47/1000,0.54)) ->  | BC47: =IF(OR(H47="",I47=""),"",10.666*POWER(計算公式!$B$14,-1.85)*POWER(AC47/1000,-4.87)*POWER(H47/1000,1.85)*1000) -> 
F48: 38 | AC48: =IF(I48="","",VLOOKUP(I48,内径設定!$B$4:$C$26,2,FALSE)) ->  | AD48: =IF(AC48="","",IF(OR(AND(AC48>計算公式!$B$9,計算公式!$D$9="超"),AND(AC48>=計算公式!$B$9,計算公式!$D$9="以上")),"H","W")) ->  | AH48: =IF(OR(I48="",L48=""),"",ROUND(VLOOKUP(I48,直管換算!$B$4:$Q$26,2,FALSE)*L48,2)) ->  | AI48: =IF(OR(I48="",M48=""),"",ROUND(VLOOKUP(I48,直管換算!$B$4:$Q$26,3,FALSE)*M48,2)) ->  | AJ48: =IF(OR(I48="",N48=""),"",ROUND(VLOOKUP(I48,直管換算!$B$4:$Q$26,4,FALSE)*N48,2)) ->  | AK48: =IF(OR(I48="",O48=""),"",ROUND(VLOOKUP(I48,直管換算!$B$4:$Q$26,5,FALSE)*O48,2)) ->  | AL48: =IF(OR(I48="",P48=""),"",ROUND(VLOOKUP(I48,直管換算!$B$4:$Q$26,6,FALSE)*P48,2)) ->  | AM48: =IF(OR(I48="",Q48=""),"",ROUND(VLOOKUP(I48,直管換算!$B$4:$Q$26,7,FALSE)*Q48,2)) ->  | AN48: =IF(OR(I48="",R48=""),"",ROUND(VLOOKUP(I48,直管換算!$B$4:$Q$26,8,FALSE)*R48,2)) ->  | AO48: =IF(OR(I48="",S48=""),"",ROUND(VLOOKUP(I48,直管換算!$B$4:$Q$26,9,FALSE)*S48,2)) ->  | AP48: =IF(OR(I48="",T48=""),"",ROUND(VLOOKUP(I48,直管換算!$B$4:$Q$26,10,FALSE)*T48,2)) ->  | AQ48: =IF(OR(I48="",U48=""),"",ROUND(VLOOKUP(I48,直管換算!$B$4:$Q$26,11,FALSE)*U48,2)) ->  | AR48: =IF(OR(I48="",V48=""),"",ROUND(VLOOKUP(I48,直管換算!$B$4:$Q$26,12,FALSE)*V48,2)) ->  | AS48: =IF(OR(I48="",W48=""),"",ROUND(VLOOKUP(I48,直管換算!$B$4:$Q$26,13,FALSE)*W48,2)) ->  | AT48: =IF(OR(I48="",X48=""),"",ROUND(VLOOKUP(I48,直管換算!$B$4:$Q$26,14,FALSE)*X48,2)) ->  | AU48: =IF(OR(I48="",Y48=""),"",ROUND(VLOOKUP(I48,直管換算!$B$4:$Q$26,15,FALSE)*Y48,2)) ->  | AV48: =IF(OR(I48="",Z48=""),"",ROUND(VLOOKUP(I48,直管換算!$B$4:$Q$26,16,FALSE)*Z48,2)) ->  | AY48: 空 | BB48: =IF(OR(H48="",I48=""),"",0.35464*計算公式!$B$14*POWER(AC48/1000,0.63)*POWER(BC48/1000,0.54)) ->  | BC48: =IF(OR(H48="",I48=""),"",10.666*POWER(計算公式!$B$14,-1.85)*POWER(AC48/1000,-4.87)*POWER(H48/1000,1.85)*1000) -> 
F49: 39 | AC49: =IF(I49="","",VLOOKUP(I49,内径設定!$B$4:$C$26,2,FALSE)) ->  | AD49: =IF(AC49="","",IF(OR(AND(AC49>計算公式!$B$9,計算公式!$D$9="超"),AND(AC49>=計算公式!$B$9,計算公式!$D$9="以上")),"H","W")) ->  | AH49: =IF(OR(I49="",L49=""),"",ROUND(VLOOKUP(I49,直管換算!$B$4:$Q$26,2,FALSE)*L49,2)) ->  | AI49: =IF(OR(I49="",M49=""),"",ROUND(VLOOKUP(I49,直管換算!$B$4:$Q$26,3,FALSE)*M49,2)) ->  | AJ49: =IF(OR(I49="",N49=""),"",ROUND(VLOOKUP(I49,直管換算!$B$4:$Q$26,4,FALSE)*N49,2)) ->  | AK49: =IF(OR(I49="",O49=""),"",ROUND(VLOOKUP(I49,直管換算!$B$4:$Q$26,5,FALSE)*O49,2)) ->  | AL49: =IF(OR(I49="",P49=""),"",ROUND(VLOOKUP(I49,直管換算!$B$4:$Q$26,6,FALSE)*P49,2)) ->  | AM49: =IF(OR(I49="",Q49=""),"",ROUND(VLOOKUP(I49,直管換算!$B$4:$Q$26,7,FALSE)*Q49,2)) ->  | AN49: =IF(OR(I49="",R49=""),"",ROUND(VLOOKUP(I49,直管換算!$B$4:$Q$26,8,FALSE)*R49,2)) ->  | AO49: =IF(OR(I49="",S49=""),"",ROUND(VLOOKUP(I49,直管換算!$B$4:$Q$26,9,FALSE)*S49,2)) ->  | AP49: =IF(OR(I49="",T49=""),"",ROUND(VLOOKUP(I49,直管換算!$B$4:$Q$26,10,FALSE)*T49,2)) ->  | AQ49: =IF(OR(I49="",U49=""),"",ROUND(VLOOKUP(I49,直管換算!$B$4:$Q$26,11,FALSE)*U49,2)) ->  | AR49: =IF(OR(I49="",V49=""),"",ROUND(VLOOKUP(I49,直管換算!$B$4:$Q$26,12,FALSE)*V49,2)) ->  | AS49: =IF(OR(I49="",W49=""),"",ROUND(VLOOKUP(I49,直管換算!$B$4:$Q$26,13,FALSE)*W49,2)) ->  | AT49: =IF(OR(I49="",X49=""),"",ROUND(VLOOKUP(I49,直管換算!$B$4:$Q$26,14,FALSE)*X49,2)) ->  | AU49: =IF(OR(I49="",Y49=""),"",ROUND(VLOOKUP(I49,直管換算!$B$4:$Q$26,15,FALSE)*Y49,2)) ->  | AV49: =IF(OR(I49="",Z49=""),"",ROUND(VLOOKUP(I49,直管換算!$B$4:$Q$26,16,FALSE)*Z49,2)) ->  | AY49: 空 | BB49: =IF(OR(H49="",I49=""),"",0.35464*計算公式!$B$14*POWER(AC49/1000,0.63)*POWER(BC49/1000,0.54)) ->  | BC49: =IF(OR(H49="",I49=""),"",10.666*POWER(計算公式!$B$14,-1.85)*POWER(AC49/1000,-4.87)*POWER(H49/1000,1.85)*1000) -> 
F50: 40 | AC50: =IF(I50="","",VLOOKUP(I50,内径設定!$B$4:$C$26,2,FALSE)) ->  | AD50: =IF(AC50="","",IF(OR(AND(AC50>計算公式!$B$9,計算公式!$D$9="超"),AND(AC50>=計算公式!$B$9,計算公式!$D$9="以上")),"H","W")) ->  | AH50: =IF(OR(I50="",L50=""),"",ROUND(VLOOKUP(I50,直管換算!$B$4:$Q$26,2,FALSE)*L50,2)) ->  | AI50: =IF(OR(I50="",M50=""),"",ROUND(VLOOKUP(I50,直管換算!$B$4:$Q$26,3,FALSE)*M50,2)) ->  | AJ50: =IF(OR(I50="",N50=""),"",ROUND(VLOOKUP(I50,直管換算!$B$4:$Q$26,4,FALSE)*N50,2)) ->  | AK50: =IF(OR(I50="",O50=""),"",ROUND(VLOOKUP(I50,直管換算!$B$4:$Q$26,5,FALSE)*O50,2)) ->  | AL50: =IF(OR(I50="",P50=""),"",ROUND(VLOOKUP(I50,直管換算!$B$4:$Q$26,6,FALSE)*P50,2)) ->  | AM50: =IF(OR(I50="",Q50=""),"",ROUND(VLOOKUP(I50,直管換算!$B$4:$Q$26,7,FALSE)*Q50,2)) ->  | AN50: =IF(OR(I50="",R50=""),"",ROUND(VLOOKUP(I50,直管換算!$B$4:$Q$26,8,FALSE)*R50,2)) ->  | AO50: =IF(OR(I50="",S50=""),"",ROUND(VLOOKUP(I50,直管換算!$B$4:$Q$26,9,FALSE)*S50,2)) ->  | AP50: =IF(OR(I50="",T50=""),"",ROUND(VLOOKUP(I50,直管換算!$B$4:$Q$26,10,FALSE)*T50,2)) ->  | AQ50: =IF(OR(I50="",U50=""),"",ROUND(VLOOKUP(I50,直管換算!$B$4:$Q$26,11,FALSE)*U50,2)) ->  | AR50: =IF(OR(I50="",V50=""),"",ROUND(VLOOKUP(I50,直管換算!$B$4:$Q$26,12,FALSE)*V50,2)) ->  | AS50: =IF(OR(I50="",W50=""),"",ROUND(VLOOKUP(I50,直管換算!$B$4:$Q$26,13,FALSE)*W50,2)) ->  | AT50: =IF(OR(I50="",X50=""),"",ROUND(VLOOKUP(I50,直管換算!$B$4:$Q$26,14,FALSE)*X50,2)) ->  | AU50: =IF(OR(I50="",Y50=""),"",ROUND(VLOOKUP(I50,直管換算!$B$4:$Q$26,15,FALSE)*Y50,2)) ->  | AV50: =IF(OR(I50="",Z50=""),"",ROUND(VLOOKUP(I50,直管換算!$B$4:$Q$26,16,FALSE)*Z50,2)) ->  | AY50: 空 | BB50: =IF(OR(H50="",I50=""),"",0.35464*計算公式!$B$14*POWER(AC50/1000,0.63)*POWER(BC50/1000,0.54)) ->  | BC50: =IF(OR(H50="",I50=""),"",10.666*POWER(計算公式!$B$14,-1.85)*POWER(AC50/1000,-4.87)*POWER(H50/1000,1.85)*1000) -> 
F51: 41 | AC51: =IF(I51="","",VLOOKUP(I51,内径設定!$B$4:$C$26,2,FALSE)) ->  | AD51: =IF(AC51="","",IF(OR(AND(AC51>計算公式!$B$9,計算公式!$D$9="超"),AND(AC51>=計算公式!$B$9,計算公式!$D$9="以上")),"H","W")) ->  | AH51: =IF(OR(I51="",L51=""),"",ROUND(VLOOKUP(I51,直管換算!$B$4:$Q$26,2,FALSE)*L51,2)) ->  | AI51: =IF(OR(I51="",M51=""),"",ROUND(VLOOKUP(I51,直管換算!$B$4:$Q$26,3,FALSE)*M51,2)) ->  | AJ51: =IF(OR(I51="",N51=""),"",ROUND(VLOOKUP(I51,直管換算!$B$4:$Q$26,4,FALSE)*N51,2)) ->  | AK51: =IF(OR(I51="",O51=""),"",ROUND(VLOOKUP(I51,直管換算!$B$4:$Q$26,5,FALSE)*O51,2)) ->  | AL51: =IF(OR(I51="",P51=""),"",ROUND(VLOOKUP(I51,直管換算!$B$4:$Q$26,6,FALSE)*P51,2)) ->  | AM51: =IF(OR(I51="",Q51=""),"",ROUND(VLOOKUP(I51,直管換算!$B$4:$Q$26,7,FALSE)*Q51,2)) ->  | AN51: =IF(OR(I51="",R51=""),"",ROUND(VLOOKUP(I51,直管換算!$B$4:$Q$26,8,FALSE)*R51,2)) ->  | AO51: =IF(OR(I51="",S51=""),"",ROUND(VLOOKUP(I51,直管換算!$B$4:$Q$26,9,FALSE)*S51,2)) ->  | AP51: =IF(OR(I51="",T51=""),"",ROUND(VLOOKUP(I51,直管換算!$B$4:$Q$26,10,FALSE)*T51,2)) ->  | AQ51: =IF(OR(I51="",U51=""),"",ROUND(VLOOKUP(I51,直管換算!$B$4:$Q$26,11,FALSE)*U51,2)) ->  | AR51: =IF(OR(I51="",V51=""),"",ROUND(VLOOKUP(I51,直管換算!$B$4:$Q$26,12,FALSE)*V51,2)) ->  | AS51: =IF(OR(I51="",W51=""),"",ROUND(VLOOKUP(I51,直管換算!$B$4:$Q$26,13,FALSE)*W51,2)) ->  | AT51: =IF(OR(I51="",X51=""),"",ROUND(VLOOKUP(I51,直管換算!$B$4:$Q$26,14,FALSE)*X51,2)) ->  | AU51: =IF(OR(I51="",Y51=""),"",ROUND(VLOOKUP(I51,直管換算!$B$4:$Q$26,15,FALSE)*Y51,2)) ->  | AV51: =IF(OR(I51="",Z51=""),"",ROUND(VLOOKUP(I51,直管換算!$B$4:$Q$26,16,FALSE)*Z51,2)) ->  | AY51: 空 | BB51: =IF(OR(H51="",I51=""),"",0.35464*計算公式!$B$14*POWER(AC51/1000,0.63)*POWER(BC51/1000,0.54)) ->  | BC51: =IF(OR(H51="",I51=""),"",10.666*POWER(計算公式!$B$14,-1.85)*POWER(AC51/1000,-4.87)*POWER(H51/1000,1.85)*1000) -> 
F52: 42 | AC52: =IF(I52="","",VLOOKUP(I52,内径設定!$B$4:$C$26,2,FALSE)) ->  | AD52: =IF(AC52="","",IF(OR(AND(AC52>計算公式!$B$9,計算公式!$D$9="超"),AND(AC52>=計算公式!$B$9,計算公式!$D$9="以上")),"H","W")) ->  | AH52: =IF(OR(I52="",L52=""),"",ROUND(VLOOKUP(I52,直管換算!$B$4:$Q$26,2,FALSE)*L52,2)) ->  | AI52: =IF(OR(I52="",M52=""),"",ROUND(VLOOKUP(I52,直管換算!$B$4:$Q$26,3,FALSE)*M52,2)) ->  | AJ52: =IF(OR(I52="",N52=""),"",ROUND(VLOOKUP(I52,直管換算!$B$4:$Q$26,4,FALSE)*N52,2)) ->  | AK52: =IF(OR(I52="",O52=""),"",ROUND(VLOOKUP(I52,直管換算!$B$4:$Q$26,5,FALSE)*O52,2)) ->  | AL52: =IF(OR(I52="",P52=""),"",ROUND(VLOOKUP(I52,直管換算!$B$4:$Q$26,6,FALSE)*P52,2)) ->  | AM52: =IF(OR(I52="",Q52=""),"",ROUND(VLOOKUP(I52,直管換算!$B$4:$Q$26,7,FALSE)*Q52,2)) ->  | AN52: =IF(OR(I52="",R52=""),"",ROUND(VLOOKUP(I52,直管換算!$B$4:$Q$26,8,FALSE)*R52,2)) ->  | AO52: =IF(OR(I52="",S52=""),"",ROUND(VLOOKUP(I52,直管換算!$B$4:$Q$26,9,FALSE)*S52,2)) ->  | AP52: =IF(OR(I52="",T52=""),"",ROUND(VLOOKUP(I52,直管換算!$B$4:$Q$26,10,FALSE)*T52,2)) ->  | AQ52: =IF(OR(I52="",U52=""),"",ROUND(VLOOKUP(I52,直管換算!$B$4:$Q$26,11,FALSE)*U52,2)) ->  | AR52: =IF(OR(I52="",V52=""),"",ROUND(VLOOKUP(I52,直管換算!$B$4:$Q$26,12,FALSE)*V52,2)) ->  | AS52: =IF(OR(I52="",W52=""),"",ROUND(VLOOKUP(I52,直管換算!$B$4:$Q$26,13,FALSE)*W52,2)) ->  | AT52: =IF(OR(I52="",X52=""),"",ROUND(VLOOKUP(I52,直管換算!$B$4:$Q$26,14,FALSE)*X52,2)) ->  | AU52: =IF(OR(I52="",Y52=""),"",ROUND(VLOOKUP(I52,直管換算!$B$4:$Q$26,15,FALSE)*Y52,2)) ->  | AV52: =IF(OR(I52="",Z52=""),"",ROUND(VLOOKUP(I52,直管換算!$B$4:$Q$26,16,FALSE)*Z52,2)) ->  | AY52: 空 | BB52: =IF(OR(H52="",I52=""),"",0.35464*計算公式!$B$14*POWER(AC52/1000,0.63)*POWER(BC52/1000,0.54)) ->  | BC52: =IF(OR(H52="",I52=""),"",10.666*POWER(計算公式!$B$14,-1.85)*POWER(AC52/1000,-4.87)*POWER(H52/1000,1.85)*1000) -> 
F53: 43 | AC53: =IF(I53="","",VLOOKUP(I53,内径設定!$B$4:$C$26,2,FALSE)) ->  | AD53: =IF(AC53="","",IF(OR(AND(AC53>計算公式!$B$9,計算公式!$D$9="超"),AND(AC53>=計算公式!$B$9,計算公式!$D$9="以上")),"H","W")) ->  | AH53: =IF(OR(I53="",L53=""),"",ROUND(VLOOKUP(I53,直管換算!$B$4:$Q$26,2,FALSE)*L53,2)) ->  | AI53: =IF(OR(I53="",M53=""),"",ROUND(VLOOKUP(I53,直管換算!$B$4:$Q$26,3,FALSE)*M53,2)) ->  | AJ53: =IF(OR(I53="",N53=""),"",ROUND(VLOOKUP(I53,直管換算!$B$4:$Q$26,4,FALSE)*N53,2)) ->  | AK53: =IF(OR(I53="",O53=""),"",ROUND(VLOOKUP(I53,直管換算!$B$4:$Q$26,5,FALSE)*O53,2)) ->  | AL53: =IF(OR(I53="",P53=""),"",ROUND(VLOOKUP(I53,直管換算!$B$4:$Q$26,6,FALSE)*P53,2)) ->  | AM53: =IF(OR(I53="",Q53=""),"",ROUND(VLOOKUP(I53,直管換算!$B$4:$Q$26,7,FALSE)*Q53,2)) ->  | AN53: =IF(OR(I53="",R53=""),"",ROUND(VLOOKUP(I53,直管換算!$B$4:$Q$26,8,FALSE)*R53,2)) ->  | AO53: =IF(OR(I53="",S53=""),"",ROUND(VLOOKUP(I53,直管換算!$B$4:$Q$26,9,FALSE)*S53,2)) ->  | AP53: =IF(OR(I53="",T53=""),"",ROUND(VLOOKUP(I53,直管換算!$B$4:$Q$26,10,FALSE)*T53,2)) ->  | AQ53: =IF(OR(I53="",U53=""),"",ROUND(VLOOKUP(I53,直管換算!$B$4:$Q$26,11,FALSE)*U53,2)) ->  | AR53: =IF(OR(I53="",V53=""),"",ROUND(VLOOKUP(I53,直管換算!$B$4:$Q$26,12,FALSE)*V53,2)) ->  | AS53: =IF(OR(I53="",W53=""),"",ROUND(VLOOKUP(I53,直管換算!$B$4:$Q$26,13,FALSE)*W53,2)) ->  | AT53: =IF(OR(I53="",X53=""),"",ROUND(VLOOKUP(I53,直管換算!$B$4:$Q$26,14,FALSE)*X53,2)) ->  | AU53: =IF(OR(I53="",Y53=""),"",ROUND(VLOOKUP(I53,直管換算!$B$4:$Q$26,15,FALSE)*Y53,2)) ->  | AV53: =IF(OR(I53="",Z53=""),"",ROUND(VLOOKUP(I53,直管換算!$B$4:$Q$26,16,FALSE)*Z53,2)) ->  | AY53: 空 | BB53: =IF(OR(H53="",I53=""),"",0.35464*計算公式!$B$14*POWER(AC53/1000,0.63)*POWER(BC53/1000,0.54)) ->  | BC53: =IF(OR(H53="",I53=""),"",10.666*POWER(計算公式!$B$14,-1.85)*POWER(AC53/1000,-4.87)*POWER(H53/1000,1.85)*1000) -> 
F54: 44 | AC54: =IF(I54="","",VLOOKUP(I54,内径設定!$B$4:$C$26,2,FALSE)) ->  | AD54: =IF(AC54="","",IF(OR(AND(AC54>計算公式!$B$9,計算公式!$D$9="超"),AND(AC54>=計算公式!$B$9,計算公式!$D$9="以上")),"H","W")) ->  | AH54: =IF(OR(I54="",L54=""),"",ROUND(VLOOKUP(I54,直管換算!$B$4:$Q$26,2,FALSE)*L54,2)) ->  | AI54: =IF(OR(I54="",M54=""),"",ROUND(VLOOKUP(I54,直管換算!$B$4:$Q$26,3,FALSE)*M54,2)) ->  | AJ54: =IF(OR(I54="",N54=""),"",ROUND(VLOOKUP(I54,直管換算!$B$4:$Q$26,4,FALSE)*N54,2)) ->  | AK54: =IF(OR(I54="",O54=""),"",ROUND(VLOOKUP(I54,直管換算!$B$4:$Q$26,5,FALSE)*O54,2)) ->  | AL54: =IF(OR(I54="",P54=""),"",ROUND(VLOOKUP(I54,直管換算!$B$4:$Q$26,6,FALSE)*P54,2)) ->  | AM54: =IF(OR(I54="",Q54=""),"",ROUND(VLOOKUP(I54,直管換算!$B$4:$Q$26,7,FALSE)*Q54,2)) ->  | AN54: =IF(OR(I54="",R54=""),"",ROUND(VLOOKUP(I54,直管換算!$B$4:$Q$26,8,FALSE)*R54,2)) ->  | AO54: =IF(OR(I54="",S54=""),"",ROUND(VLOOKUP(I54,直管換算!$B$4:$Q$26,9,FALSE)*S54,2)) ->  | AP54: =IF(OR(I54="",T54=""),"",ROUND(VLOOKUP(I54,直管換算!$B$4:$Q$26,10,FALSE)*T54,2)) ->  | AQ54: =IF(OR(I54="",U54=""),"",ROUND(VLOOKUP(I54,直管換算!$B$4:$Q$26,11,FALSE)*U54,2)) ->  | AR54: =IF(OR(I54="",V54=""),"",ROUND(VLOOKUP(I54,直管換算!$B$4:$Q$26,12,FALSE)*V54,2)) ->  | AS54: =IF(OR(I54="",W54=""),"",ROUND(VLOOKUP(I54,直管換算!$B$4:$Q$26,13,FALSE)*W54,2)) ->  | AT54: =IF(OR(I54="",X54=""),"",ROUND(VLOOKUP(I54,直管換算!$B$4:$Q$26,14,FALSE)*X54,2)) ->  | AU54: =IF(OR(I54="",Y54=""),"",ROUND(VLOOKUP(I54,直管換算!$B$4:$Q$26,15,FALSE)*Y54,2)) ->  | AV54: =IF(OR(I54="",Z54=""),"",ROUND(VLOOKUP(I54,直管換算!$B$4:$Q$26,16,FALSE)*Z54,2)) ->  | AY54: 空 | BB54: =IF(OR(H54="",I54=""),"",0.35464*計算公式!$B$14*POWER(AC54/1000,0.63)*POWER(BC54/1000,0.54)) ->  | BC54: =IF(OR(H54="",I54=""),"",10.666*POWER(計算公式!$B$14,-1.85)*POWER(AC54/1000,-4.87)*POWER(H54/1000,1.85)*1000) -> 
F55: 45 | AC55: =IF(I55="","",VLOOKUP(I55,内径設定!$B$4:$C$26,2,FALSE)) ->  | AD55: =IF(AC55="","",IF(OR(AND(AC55>計算公式!$B$9,計算公式!$D$9="超"),AND(AC55>=計算公式!$B$9,計算公式!$D$9="以上")),"H","W")) ->  | AH55: =IF(OR(I55="",L55=""),"",ROUND(VLOOKUP(I55,直管換算!$B$4:$Q$26,2,FALSE)*L55,2)) ->  | AI55: =IF(OR(I55="",M55=""),"",ROUND(VLOOKUP(I55,直管換算!$B$4:$Q$26,3,FALSE)*M55,2)) ->  | AJ55: =IF(OR(I55="",N55=""),"",ROUND(VLOOKUP(I55,直管換算!$B$4:$Q$26,4,FALSE)*N55,2)) ->  | AK55: =IF(OR(I55="",O55=""),"",ROUND(VLOOKUP(I55,直管換算!$B$4:$Q$26,5,FALSE)*O55,2)) ->  | AL55: =IF(OR(I55="",P55=""),"",ROUND(VLOOKUP(I55,直管換算!$B$4:$Q$26,6,FALSE)*P55,2)) ->  | AM55: =IF(OR(I55="",Q55=""),"",ROUND(VLOOKUP(I55,直管換算!$B$4:$Q$26,7,FALSE)*Q55,2)) ->  | AN55: =IF(OR(I55="",R55=""),"",ROUND(VLOOKUP(I55,直管換算!$B$4:$Q$26,8,FALSE)*R55,2)) ->  | AO55: =IF(OR(I55="",S55=""),"",ROUND(VLOOKUP(I55,直管換算!$B$4:$Q$26,9,FALSE)*S55,2)) ->  | AP55: =IF(OR(I55="",T55=""),"",ROUND(VLOOKUP(I55,直管換算!$B$4:$Q$26,10,FALSE)*T55,2)) ->  | AQ55: =IF(OR(I55="",U55=""),"",ROUND(VLOOKUP(I55,直管換算!$B$4:$Q$26,11,FALSE)*U55,2)) ->  | AR55: =IF(OR(I55="",V55=""),"",ROUND(VLOOKUP(I55,直管換算!$B$4:$Q$26,12,FALSE)*V55,2)) ->  | AS55: =IF(OR(I55="",W55=""),"",ROUND(VLOOKUP(I55,直管換算!$B$4:$Q$26,13,FALSE)*W55,2)) ->  | AT55: =IF(OR(I55="",X55=""),"",ROUND(VLOOKUP(I55,直管換算!$B$4:$Q$26,14,FALSE)*X55,2)) ->  | AU55: =IF(OR(I55="",Y55=""),"",ROUND(VLOOKUP(I55,直管換算!$B$4:$Q$26,15,FALSE)*Y55,2)) ->  | AV55: =IF(OR(I55="",Z55=""),"",ROUND(VLOOKUP(I55,直管換算!$B$4:$Q$26,16,FALSE)*Z55,2)) ->  | AY55: 空 | BB55: =IF(OR(H55="",I55=""),"",0.35464*計算公式!$B$14*POWER(AC55/1000,0.63)*POWER(BC55/1000,0.54)) ->  | BC55: =IF(OR(H55="",I55=""),"",10.666*POWER(計算公式!$B$14,-1.85)*POWER(AC55/1000,-4.87)*POWER(H55/1000,1.85)*1000) -> 
F56: 46 | AC56: =IF(I56="","",VLOOKUP(I56,内径設定!$B$4:$C$26,2,FALSE)) ->  | AD56: =IF(AC56="","",IF(OR(AND(AC56>計算公式!$B$9,計算公式!$D$9="超"),AND(AC56>=計算公式!$B$9,計算公式!$D$9="以上")),"H","W")) ->  | AH56: =IF(OR(I56="",L56=""),"",ROUND(VLOOKUP(I56,直管換算!$B$4:$Q$26,2,FALSE)*L56,2)) ->  | AI56: =IF(OR(I56="",M56=""),"",ROUND(VLOOKUP(I56,直管換算!$B$4:$Q$26,3,FALSE)*M56,2)) ->  | AJ56: =IF(OR(I56="",N56=""),"",ROUND(VLOOKUP(I56,直管換算!$B$4:$Q$26,4,FALSE)*N56,2)) ->  | AK56: =IF(OR(I56="",O56=""),"",ROUND(VLOOKUP(I56,直管換算!$B$4:$Q$26,5,FALSE)*O56,2)) ->  | AL56: =IF(OR(I56="",P56=""),"",ROUND(VLOOKUP(I56,直管換算!$B$4:$Q$26,6,FALSE)*P56,2)) ->  | AM56: =IF(OR(I56="",Q56=""),"",ROUND(VLOOKUP(I56,直管換算!$B$4:$Q$26,7,FALSE)*Q56,2)) ->  | AN56: =IF(OR(I56="",R56=""),"",ROUND(VLOOKUP(I56,直管換算!$B$4:$Q$26,8,FALSE)*R56,2)) ->  | AO56: =IF(OR(I56="",S56=""),"",ROUND(VLOOKUP(I56,直管換算!$B$4:$Q$26,9,FALSE)*S56,2)) ->  | AP56: =IF(OR(I56="",T56=""),"",ROUND(VLOOKUP(I56,直管換算!$B$4:$Q$26,10,FALSE)*T56,2)) ->  | AQ56: =IF(OR(I56="",U56=""),"",ROUND(VLOOKUP(I56,直管換算!$B$4:$Q$26,11,FALSE)*U56,2)) ->  | AR56: =IF(OR(I56="",V56=""),"",ROUND(VLOOKUP(I56,直管換算!$B$4:$Q$26,12,FALSE)*V56,2)) ->  | AS56: =IF(OR(I56="",W56=""),"",ROUND(VLOOKUP(I56,直管換算!$B$4:$Q$26,13,FALSE)*W56,2)) ->  | AT56: =IF(OR(I56="",X56=""),"",ROUND(VLOOKUP(I56,直管換算!$B$4:$Q$26,14,FALSE)*X56,2)) ->  | AU56: =IF(OR(I56="",Y56=""),"",ROUND(VLOOKUP(I56,直管換算!$B$4:$Q$26,15,FALSE)*Y56,2)) ->  | AV56: =IF(OR(I56="",Z56=""),"",ROUND(VLOOKUP(I56,直管換算!$B$4:$Q$26,16,FALSE)*Z56,2)) ->  | AY56: 空 | BB56: =IF(OR(H56="",I56=""),"",0.35464*計算公式!$B$14*POWER(AC56/1000,0.63)*POWER(BC56/1000,0.54)) ->  | BC56: =IF(OR(H56="",I56=""),"",10.666*POWER(計算公式!$B$14,-1.85)*POWER(AC56/1000,-4.87)*POWER(H56/1000,1.85)*1000) -> 
F57: 47 | AC57: =IF(I57="","",VLOOKUP(I57,内径設定!$B$4:$C$26,2,FALSE)) ->  | AD57: =IF(AC57="","",IF(OR(AND(AC57>計算公式!$B$9,計算公式!$D$9="超"),AND(AC57>=計算公式!$B$9,計算公式!$D$9="以上")),"H","W")) ->  | AH57: =IF(OR(I57="",L57=""),"",ROUND(VLOOKUP(I57,直管換算!$B$4:$Q$26,2,FALSE)*L57,2)) ->  | AI57: =IF(OR(I57="",M57=""),"",ROUND(VLOOKUP(I57,直管換算!$B$4:$Q$26,3,FALSE)*M57,2)) ->  | AJ57: =IF(OR(I57="",N57=""),"",ROUND(VLOOKUP(I57,直管換算!$B$4:$Q$26,4,FALSE)*N57,2)) ->  | AK57: =IF(OR(I57="",O57=""),"",ROUND(VLOOKUP(I57,直管換算!$B$4:$Q$26,5,FALSE)*O57,2)) ->  | AL57: =IF(OR(I57="",P57=""),"",ROUND(VLOOKUP(I57,直管換算!$B$4:$Q$26,6,FALSE)*P57,2)) ->  | AM57: =IF(OR(I57="",Q57=""),"",ROUND(VLOOKUP(I57,直管換算!$B$4:$Q$26,7,FALSE)*Q57,2)) ->  | AN57: =IF(OR(I57="",R57=""),"",ROUND(VLOOKUP(I57,直管換算!$B$4:$Q$26,8,FALSE)*R57,2)) ->  | AO57: =IF(OR(I57="",S57=""),"",ROUND(VLOOKUP(I57,直管換算!$B$4:$Q$26,9,FALSE)*S57,2)) ->  | AP57: =IF(OR(I57="",T57=""),"",ROUND(VLOOKUP(I57,直管換算!$B$4:$Q$26,10,FALSE)*T57,2)) ->  | AQ57: =IF(OR(I57="",U57=""),"",ROUND(VLOOKUP(I57,直管換算!$B$4:$Q$26,11,FALSE)*U57,2)) ->  | AR57: =IF(OR(I57="",V57=""),"",ROUND(VLOOKUP(I57,直管換算!$B$4:$Q$26,12,FALSE)*V57,2)) ->  | AS57: =IF(OR(I57="",W57=""),"",ROUND(VLOOKUP(I57,直管換算!$B$4:$Q$26,13,FALSE)*W57,2)) ->  | AT57: =IF(OR(I57="",X57=""),"",ROUND(VLOOKUP(I57,直管換算!$B$4:$Q$26,14,FALSE)*X57,2)) ->  | AU57: =IF(OR(I57="",Y57=""),"",ROUND(VLOOKUP(I57,直管換算!$B$4:$Q$26,15,FALSE)*Y57,2)) ->  | AV57: =IF(OR(I57="",Z57=""),"",ROUND(VLOOKUP(I57,直管換算!$B$4:$Q$26,16,FALSE)*Z57,2)) ->  | AY57: 空 | BB57: =IF(OR(H57="",I57=""),"",0.35464*計算公式!$B$14*POWER(AC57/1000,0.63)*POWER(BC57/1000,0.54)) ->  | BC57: =IF(OR(H57="",I57=""),"",10.666*POWER(計算公式!$B$14,-1.85)*POWER(AC57/1000,-4.87)*POWER(H57/1000,1.85)*1000) -> 
F58: 48 | AC58: =IF(I58="","",VLOOKUP(I58,内径設定!$B$4:$C$26,2,FALSE)) ->  | AD58: =IF(AC58="","",IF(OR(AND(AC58>計算公式!$B$9,計算公式!$D$9="超"),AND(AC58>=計算公式!$B$9,計算公式!$D$9="以上")),"H","W")) ->  | AH58: =IF(OR(I58="",L58=""),"",ROUND(VLOOKUP(I58,直管換算!$B$4:$Q$26,2,FALSE)*L58,2)) ->  | AI58: =IF(OR(I58="",M58=""),"",ROUND(VLOOKUP(I58,直管換算!$B$4:$Q$26,3,FALSE)*M58,2)) ->  | AJ58: =IF(OR(I58="",N58=""),"",ROUND(VLOOKUP(I58,直管換算!$B$4:$Q$26,4,FALSE)*N58,2)) ->  | AK58: =IF(OR(I58="",O58=""),"",ROUND(VLOOKUP(I58,直管換算!$B$4:$Q$26,5,FALSE)*O58,2)) ->  | AL58: =IF(OR(I58="",P58=""),"",ROUND(VLOOKUP(I58,直管換算!$B$4:$Q$26,6,FALSE)*P58,2)) ->  | AM58: =IF(OR(I58="",Q58=""),"",ROUND(VLOOKUP(I58,直管換算!$B$4:$Q$26,7,FALSE)*Q58,2)) ->  | AN58: =IF(OR(I58="",R58=""),"",ROUND(VLOOKUP(I58,直管換算!$B$4:$Q$26,8,FALSE)*R58,2)) ->  | AO58: =IF(OR(I58="",S58=""),"",ROUND(VLOOKUP(I58,直管換算!$B$4:$Q$26,9,FALSE)*S58,2)) ->  | AP58: =IF(OR(I58="",T58=""),"",ROUND(VLOOKUP(I58,直管換算!$B$4:$Q$26,10,FALSE)*T58,2)) ->  | AQ58: =IF(OR(I58="",U58=""),"",ROUND(VLOOKUP(I58,直管換算!$B$4:$Q$26,11,FALSE)*U58,2)) ->  | AR58: =IF(OR(I58="",V58=""),"",ROUND(VLOOKUP(I58,直管換算!$B$4:$Q$26,12,FALSE)*V58,2)) ->  | AS58: =IF(OR(I58="",W58=""),"",ROUND(VLOOKUP(I58,直管換算!$B$4:$Q$26,13,FALSE)*W58,2)) ->  | AT58: =IF(OR(I58="",X58=""),"",ROUND(VLOOKUP(I58,直管換算!$B$4:$Q$26,14,FALSE)*X58,2)) ->  | AU58: =IF(OR(I58="",Y58=""),"",ROUND(VLOOKUP(I58,直管換算!$B$4:$Q$26,15,FALSE)*Y58,2)) ->  | AV58: =IF(OR(I58="",Z58=""),"",ROUND(VLOOKUP(I58,直管換算!$B$4:$Q$26,16,FALSE)*Z58,2)) ->  | AY58: 空 | BB58: =IF(OR(H58="",I58=""),"",0.35464*計算公式!$B$14*POWER(AC58/1000,0.63)*POWER(BC58/1000,0.54)) ->  | BC58: =IF(OR(H58="",I58=""),"",10.666*POWER(計算公式!$B$14,-1.85)*POWER(AC58/1000,-4.87)*POWER(H58/1000,1.85)*1000) -> 
F59: 49 | AC59: =IF(I59="","",VLOOKUP(I59,内径設定!$B$4:$C$26,2,FALSE)) ->  | AD59: =IF(AC59="","",IF(OR(AND(AC59>計算公式!$B$9,計算公式!$D$9="超"),AND(AC59>=計算公式!$B$9,計算公式!$D$9="以上")),"H","W")) ->  | AH59: =IF(OR(I59="",L59=""),"",ROUND(VLOOKUP(I59,直管換算!$B$4:$Q$26,2,FALSE)*L59,2)) ->  | AI59: =IF(OR(I59="",M59=""),"",ROUND(VLOOKUP(I59,直管換算!$B$4:$Q$26,3,FALSE)*M59,2)) ->  | AJ59: =IF(OR(I59="",N59=""),"",ROUND(VLOOKUP(I59,直管換算!$B$4:$Q$26,4,FALSE)*N59,2)) ->  | AK59: =IF(OR(I59="",O59=""),"",ROUND(VLOOKUP(I59,直管換算!$B$4:$Q$26,5,FALSE)*O59,2)) ->  | AL59: =IF(OR(I59="",P59=""),"",ROUND(VLOOKUP(I59,直管換算!$B$4:$Q$26,6,FALSE)*P59,2)) ->  | AM59: =IF(OR(I59="",Q59=""),"",ROUND(VLOOKUP(I59,直管換算!$B$4:$Q$26,7,FALSE)*Q59,2)) ->  | AN59: =IF(OR(I59="",R59=""),"",ROUND(VLOOKUP(I59,直管換算!$B$4:$Q$26,8,FALSE)*R59,2)) ->  | AO59: =IF(OR(I59="",S59=""),"",ROUND(VLOOKUP(I59,直管換算!$B$4:$Q$26,9,FALSE)*S59,2)) ->  | AP59: =IF(OR(I59="",T59=""),"",ROUND(VLOOKUP(I59,直管換算!$B$4:$Q$26,10,FALSE)*T59,2)) ->  | AQ59: =IF(OR(I59="",U59=""),"",ROUND(VLOOKUP(I59,直管換算!$B$4:$Q$26,11,FALSE)*U59,2)) ->  | AR59: =IF(OR(I59="",V59=""),"",ROUND(VLOOKUP(I59,直管換算!$B$4:$Q$26,12,FALSE)*V59,2)) ->  | AS59: =IF(OR(I59="",W59=""),"",ROUND(VLOOKUP(I59,直管換算!$B$4:$Q$26,13,FALSE)*W59,2)) ->  | AT59: =IF(OR(I59="",X59=""),"",ROUND(VLOOKUP(I59,直管換算!$B$4:$Q$26,14,FALSE)*X59,2)) ->  | AU59: =IF(OR(I59="",Y59=""),"",ROUND(VLOOKUP(I59,直管換算!$B$4:$Q$26,15,FALSE)*Y59,2)) ->  | AV59: =IF(OR(I59="",Z59=""),"",ROUND(VLOOKUP(I59,直管換算!$B$4:$Q$26,16,FALSE)*Z59,2)) ->  | AY59: 空 | BB59: =IF(OR(H59="",I59=""),"",0.35464*計算公式!$B$14*POWER(AC59/1000,0.63)*POWER(BC59/1000,0.54)) ->  | BC59: =IF(OR(H59="",I59=""),"",10.666*POWER(計算公式!$B$14,-1.85)*POWER(AC59/1000,-4.87)*POWER(H59/1000,1.85)*1000) -> 
F60: 50 | AC60: =IF(I60="","",VLOOKUP(I60,内径設定!$B$4:$C$26,2,FALSE)) ->  | AD60: =IF(AC60="","",IF(OR(AND(AC60>計算公式!$B$9,計算公式!$D$9="超"),AND(AC60>=計算公式!$B$9,計算公式!$D$9="以上")),"H","W")) ->  | AH60: =IF(OR(I60="",L60=""),"",ROUND(VLOOKUP(I60,直管換算!$B$4:$Q$26,2,FALSE)*L60,2)) ->  | AI60: =IF(OR(I60="",M60=""),"",ROUND(VLOOKUP(I60,直管換算!$B$4:$Q$26,3,FALSE)*M60,2)) ->  | AJ60: =IF(OR(I60="",N60=""),"",ROUND(VLOOKUP(I60,直管換算!$B$4:$Q$26,4,FALSE)*N60,2)) ->  | AK60: =IF(OR(I60="",O60=""),"",ROUND(VLOOKUP(I60,直管換算!$B$4:$Q$26,5,FALSE)*O60,2)) ->  | AL60: =IF(OR(I60="",P60=""),"",ROUND(VLOOKUP(I60,直管換算!$B$4:$Q$26,6,FALSE)*P60,2)) ->  | AM60: =IF(OR(I60="",Q60=""),"",ROUND(VLOOKUP(I60,直管換算!$B$4:$Q$26,7,FALSE)*Q60,2)) ->  | AN60: =IF(OR(I60="",R60=""),"",ROUND(VLOOKUP(I60,直管換算!$B$4:$Q$26,8,FALSE)*R60,2)) ->  | AO60: =IF(OR(I60="",S60=""),"",ROUND(VLOOKUP(I60,直管換算!$B$4:$Q$26,9,FALSE)*S60,2)) ->  | AP60: =IF(OR(I60="",T60=""),"",ROUND(VLOOKUP(I60,直管換算!$B$4:$Q$26,10,FALSE)*T60,2)) ->  | AQ60: =IF(OR(I60="",U60=""),"",ROUND(VLOOKUP(I60,直管換算!$B$4:$Q$26,11,FALSE)*U60,2)) ->  | AR60: =IF(OR(I60="",V60=""),"",ROUND(VLOOKUP(I60,直管換算!$B$4:$Q$26,12,FALSE)*V60,2)) ->  | AS60: =IF(OR(I60="",W60=""),"",ROUND(VLOOKUP(I60,直管換算!$B$4:$Q$26,13,FALSE)*W60,2)) ->  | AT60: =IF(OR(I60="",X60=""),"",ROUND(VLOOKUP(I60,直管換算!$B$4:$Q$26,14,FALSE)*X60,2)) ->  | AU60: =IF(OR(I60="",Y60=""),"",ROUND(VLOOKUP(I60,直管換算!$B$4:$Q$26,15,FALSE)*Y60,2)) ->  | AV60: =IF(OR(I60="",Z60=""),"",ROUND(VLOOKUP(I60,直管換算!$B$4:$Q$26,16,FALSE)*Z60,2)) ->  | AY60: 空 | BB60: =IF(OR(H60="",I60=""),"",0.35464*計算公式!$B$14*POWER(AC60/1000,0.63)*POWER(BC60/1000,0.54)) ->  | BC60: =IF(OR(H60="",I60=""),"",10.666*POWER(計算公式!$B$14,-1.85)*POWER(AC60/1000,-4.87)*POWER(H60/1000,1.85)*1000) -> 
AY61: 空
B62: =IF($BG$10<>"区間計算後に比較","","累計所要水頭") -> 累計所要水頭 | D62: =IF(OR($BG$10<>"区間計算後に比較",$F$10=0),"",IF($BF$10="MPa",OFFSET($B$10,$F$10,0,1,1),OFFSET($C$10,$F$10,0,1,1))) -> 0.15 | E62: =IF($BG$10<>"区間計算後に比較","",IF($BF$10="MPa","MPa","ｍ")) -> MPa
B63: =IF($BG$10<>"区間計算後に比較","",IF($BF$10="MPa","給水用具の必要圧力","給水用具の所要水頭")) -> 給水用具の必要圧力 | D63: =IF($BG$10<>"区間計算後に比較","",$BG$12) -> 0.03 | E63: =IF($BG$10<>"区間計算後に比較","",IF($BF$10="MPa","MPa","ｍ")) -> MPa
B64: =IF($BG$10<>"区間計算後に比較","","合計") -> 合計 | D64: =IF(OR($BG$10<>"区間計算後に比較",$D$62=""),"",$D$62+$D$63) -> 0.18 | E64: =IF($BG$10<>"区間計算後に比較","",IF($BF$10="MPa","MPa","ｍ")) -> MPa

Sheet 目次-戸数人数 (hidden)
B2: ＜目次＞
B4: ―入力項目―
C6: 水理計算書の表紙
C7: 表紙の設定をします。
C9: 基本情報の入力
C10: 「名称」「工事場所」など、基本情報を入力します。
C12: 配水管の水圧
C13: 配水管の水圧を設定します。
C15: 末端世帯の取り扱い
C16: 末端世帯の水頭の取り扱いを設定します。
C18: 末端給水用具数
C19: 末端給水用具数を入力します。
C21: 同時使用給水用具
C22: 同時に使用する給水用具を設定します。
C24: 給水用具の所要水頭
C25: 給水用具の所要水頭（必要圧力）を設定します。
C27: 安全率-末端世帯
C28: 末端世帯の安全率の設定をします。
C30: 量水器の適正使用範囲-末端世帯
C31: 結果の判定における、末端世帯の量水器の適正使用範囲の設定をします。
C33: 流速-末端世帯
C34: 結果の判定における、末端世帯の流速の設定をします。
C36: 末端世帯の区間計算を行います。
C39: 戸数と居住人数
C40: 幹栓の計画使用水量の算出方法を設定します。
C42: 安全率-幹栓
C43: 幹栓の安全率の設定をします。
C45: 量水器の適正使用範囲-幹栓
C46: 結果の判定における、幹栓の量水器の適正使用範囲の設定をします。
C48: 流速-幹栓
C49: 結果の判定における、幹栓の流速の設定をします。
C51: 幹栓の区間計算を行います。
B53: ―設定項目―
C55: 「同時使用率を考慮した末端給水用具数」の設定。
C57: 給水用具の用途別使用水量の設定。
C59: 水頭計算に用いる計算式の設定。
C61: 入力に使用する口径に対して、実際に計算に用いる内径値の設定。
C63: 量水器適正使用範囲の設定。
C65: 直管換算長の設定。

Sheet 共通1 (hidden)
B2: ＜共通1＞水理計算書の表紙
B4: ●水理計算書の表紙を作成しますか？
B6: ＜作成する場合＞
B7: 下のリストから「作成する」を選択して、シート「共通2」へ進んでください。
B9: ＜作成しない場合＞
B10: 下のリストから「作成しない」を選択して、シート「共通3」へ進んでください。
B12: 水理計算書の表紙
B13: 作成する
B14: =IF($B$13<>"","","※空白は「作成する」として処理します。") -> 
B16: 表紙を作成する場合
B20: 表紙を作成しない場合

Sheet 共通2 (hidden)
B2: ＜共通2＞基本情報の入力
B3: =IF(共通1!$B$13="作成しない","※表紙を作成しないため、このシートに入力する必要はありません。","") -> 
B4: ●「名称」「工事場所」「用途」「給水方式」を入力してください。
B6: 入力内容は水理計算書の表紙に記載されます。
B7: 記載しない項目は、リストから「記載しない」を選択してください。
B9: ■名 称 | D9: 記載する | F9: =IF(D9<>"","","※空白は「記載する」として処理します。") -> 
D11: テストアパート
B13: ■工事場所 | D13: 記載する | F13: =IF(D13<>"","","※空白は「記載する」として処理します。") -> 
D15: 千葉県某市某町1-2-3
B17: ■用 途 | D17: 記載する | F17: =IF(D17<>"","","※空白は「記載する」として処理します。") -> 
D19: ２階建てアパート
B21: ■給水方式 | D21: 記載する | F21: =IF(D21<>"","","※空白は「記載する」として処理します。") -> 
D23: 直結直圧式

Sheet 共通3 (hidden)
B2: ＜共通3＞配水管の水圧
B4: ●配水管の最小動水圧（設計水圧）の設定を行います。
B6: 給水装置の所要水頭と比較する時の単位をリストから選択し、その数値を入力してください。
B8: 比較の単位 | C8: 数値 | D8: 単位
B9: 圧力（MPa） | C9: 0.196 | D9: =IF(B9="水頭（m）","m","MPa") -> MPa
B10: =IF($B$9<>"","","※空白は「圧力（MPa）」として処理します。") -> 
B12: ■単位の変換には、下の変換式をご利用ください。
B14: 変換前 | D14: 変換後
B15: 数値 | C15: 単位 | D15: 数値 | E15: 単位
B16: 20 | C16: 水頭（m） | D16: =IF(OR(B16="",C16=""),"",IF(C16="圧力（MPa）",ROUND(B16/0.00980665,2),ROUND(B16*0.00980665,3))) -> 0.196 | E16: =IF(C16="","",IF(C16="圧力（MPa）","m","MPa")) -> MPa

Sheet 共通4 (hidden)
B2: ＜共通4＞末端世帯の取り扱い
B4: ●末端世帯の取り扱い方法を下のリストから選択してください。
B6: 末端世帯
B7: 水頭計算する
B8: =IF($B$7<>"","","※空白は「考慮しない」として処理します。") -> 
B10: ※各リスト項目の説明
B11: ＜考慮しない＞
B12: この方法は、末端世帯の損失水頭を一切考慮せず、幹栓のみの水頭計算を行います。
B14: この方法を選択した場合、「末端1」から「末端区間」までの入力は必要ありません。
B15: シート「幹栓1」へ進んでください。
B19: ＜水頭計算する＞
B20: この方法は、末端世帯の水頭計算を行います。
B22: 末端世帯の流量算出方法は、
B23: 「同時に使用する末端給水用具を設定して計算する方法」によります。
B25: シート「末端1」へ進んでください。
B29: ＜所要水頭を入力する＞
B30: この方法は、末端世帯の水頭計算は行わずに、
B31: 末端世帯の所要水頭を直接入力する方法です。
B33: 上のリストから「所要水頭を入力する」を選択した後、
B34: 下の「数値」欄に末端世帯の所要水頭を入力し、
B35: 「単位」欄のリストから、所要水頭の単位を選択してください。
B37: 数値 | C37: 単位
B38: 7 | C38: 水頭（m）
C39: =IF($C$38<>"","","※空白は「圧力（MPa）」として処理します。") -> 
B41: 所要水頭の内訳を付記することもできます。
B42: 付記する場合
B43: 下の「内訳の付記」欄のリストから「付記する」を選択し、
B44: 「内訳」欄に所要水頭の内訳を入力してください。
B46: 付記しない場合
B47: 下の「内訳の付記」欄のリストから「付記しない」を選択してください。
B48: 「内訳」欄には何も入力しません。（入力してあっても問題ありません。）
B50: 内訳の付記
B51: 付記する
B52: =IF($B$51<>"","","※空白は「付記しない」として処理します。") -> 
B53: 内訳
B54: 5ｍ＋末端分岐部から蛇口最頂部までの高低差（2ｍ）
B56: この、「所要水頭を入力する」方法を選択した場合、
B57: 「末端1」から「末端区間」までの入力は必要ありません。
B58: シート「幹栓1」へ進んでください。

Sheet 末端1 (hidden)
B2: ＜末端1＞末端給水用具数
B3: =IF(共通4!$B$7<>"水頭計算する","※末端世帯の水頭計算をしないため、このシートに入力する必要はありません。",IF(共通1!$B$13="作成しない","※表紙を作成しないため、このシートに入力する必要はありません。","")) -> 
B4: ●末端給水用具の総数を入力してください。
B6: 入力できる数値は「1～30」です。
B7: リストからも選択できます。
B8: 入力内容は水理計算書の表紙に記載されます。
B10: ■末端給水用具の総数 | C10: 7 | D10: 栓
C11: =IF(AND(共通4!$B$7="水頭計算する",共通1!$B$13<>"作成しない",$C$10=""),"※空白ですと正常に計算できません。","") -> 
B12: ■同時使用末端給水用具数 | C12: =IF(C10="","",VLOOKUP(C10,同時使用!$B$4:$C$33,2,FALSE)) -> 3 | D12: 栓

Sheet 末端2 (hidden)
B2: ＜末端2＞同時使用給水用具
B3: =IF(共通4!$B$7<>"水頭計算する","※末端世帯の水頭計算をしないため、このシートに入力する必要はありません。",IF(共通1!$B$13="作成しない","※表紙を作成しないため、このシートに入力する必要はありません。","")) -> 
B4: ●同時に使用する給水用具をリストから選択してください。
B6: 入力内容は水理計算書の表紙に記載されます。
B7: リストに無い給水用具はあらかじめ「使用水量」シートで登録してください。
I10: ↓非表示にする
B11: No | C11: 同時使用給水用具 | D11: 使用水量（L/min） | F11: 使用水量（L/sec） | I11: 同時使用末端給水用具数
B12: 1 | C12: 台所流し | D12: =IF(C12="","",VLOOKUP(C12,使用水量!$C$4:$G$53,5,FALSE)) -> 12 | E12: L/min | F12: =IF(C12="","",VLOOKUP(C12,使用水量!$C$4:$G$53,4,FALSE)) -> 0.2 | G12: L/sec | I12: =末端1!C12 -> 3
B13: 2 | C13: 洗たく流し | D13: =IF(C13="","",VLOOKUP(C13,使用水量!$C$4:$G$53,5,FALSE)) -> 12 | E13: L/min | F13: =IF(C13="","",VLOOKUP(C13,使用水量!$C$4:$G$53,4,FALSE)) -> 0.2 | G13: L/sec
B14: 3 | C14: 洗面器 | D14: =IF(C14="","",VLOOKUP(C14,使用水量!$C$4:$G$53,5,FALSE)) -> 8 | E14: L/min | F14: =IF(C14="","",VLOOKUP(C14,使用水量!$C$4:$G$53,4,FALSE)) -> 0.13 | G14: L/sec | I14: 同時使用給水用具リスト
B15: 4 | C15: 浴槽（和式） | D15: =IF(C15="","",VLOOKUP(C15,使用水量!$C$4:$G$53,5,FALSE)) -> 20 | E15: L/min | F15: =IF(C15="","",VLOOKUP(C15,使用水量!$C$4:$G$53,4,FALSE)) -> 0.33 | G15: L/sec | I15: =IF(使用水量!C4="","",使用水量!C4) -> 台所流し
B16: 5 | C16: 浴槽（洋式） | D16: =IF(C16="","",VLOOKUP(C16,使用水量!$C$4:$G$53,5,FALSE)) -> 30 | E16: L/min | F16: =IF(C16="","",VLOOKUP(C16,使用水量!$C$4:$G$53,4,FALSE)) -> 0.5 | G16: L/sec | I16: =IF(使用水量!C5="","",使用水量!C5) -> 洗たく流し
B17: 6 | C17: シャワー | D17: =IF(C17="","",VLOOKUP(C17,使用水量!$C$4:$G$53,5,FALSE)) -> 8 | E17: L/min | F17: =IF(C17="","",VLOOKUP(C17,使用水量!$C$4:$G$53,4,FALSE)) -> 0.13 | G17: L/sec | I17: =IF(使用水量!C6="","",使用水量!C6) -> 洗面器
B18: 7 | C18: 小便器（洗浄水槽） | D18: =IF(C18="","",VLOOKUP(C18,使用水量!$C$4:$G$53,5,FALSE)) -> 12 | E18: L/min | F18: =IF(C18="","",VLOOKUP(C18,使用水量!$C$4:$G$53,4,FALSE)) -> 0.2 | G18: L/sec | I18: =IF(使用水量!C7="","",使用水量!C7) -> 浴槽（和式）
B19: 8 | C19: 小便器（洗浄弁） | D19: =IF(C19="","",VLOOKUP(C19,使用水量!$C$4:$G$53,5,FALSE)) -> 15 | E19: L/min | F19: =IF(C19="","",VLOOKUP(C19,使用水量!$C$4:$G$53,4,FALSE)) -> 0.25 | G19: L/sec | I19: =IF(使用水量!C8="","",使用水量!C8) -> 浴槽（洋式）
B20: 9 | C20: 大便器（洗浄水槽） | D20: =IF(C20="","",VLOOKUP(C20,使用水量!$C$4:$G$53,5,FALSE)) -> 12 | E20: L/min | F20: =IF(C20="","",VLOOKUP(C20,使用水量!$C$4:$G$53,4,FALSE)) -> 0.2 | G20: L/sec | I20: =IF(使用水量!C9="","",使用水量!C9) -> シャワー
B21: 10 | C21: 大便器（洗浄弁） | D21: =IF(C21="","",VLOOKUP(C21,使用水量!$C$4:$G$53,5,FALSE)) -> 70 | E21: L/min | F21: =IF(C21="","",VLOOKUP(C21,使用水量!$C$4:$G$53,4,FALSE)) -> 1.17 | G21: L/sec | I21: =IF(使用水量!C10="","",使用水量!C10) -> 小便器（洗浄水槽）
B22: 合計 | D22: =IF(I12="","",SUM(OFFSET(D12,0,0,I12,1))) -> 32 | E22: L/min | F22: =IF(I12="","",SUM(OFFSET(F12,0,0,I12,1))) -> 0.53 | G22: L/sec | I22: =IF(使用水量!C11="","",使用水量!C11) -> 小便器（洗浄弁）
I23: =IF(使用水量!C12="","",使用水量!C12) -> 大便器（洗浄水槽）
I24: =IF(使用水量!C13="","",使用水量!C13) -> 大便器（洗浄弁）
I25: =IF(使用水量!C14="","",使用水量!C14) -> 手洗器
I26: =IF(使用水量!C15="","",使用水量!C15) -> 消火栓（小型）
I27: =IF(使用水量!C16="","",使用水量!C16) -> 散水
I28: =IF(使用水量!C17="","",使用水量!C17) -> 洗車
I29: =IF(使用水量!C18="","",使用水量!C18) -> 
I30: =IF(使用水量!C19="","",使用水量!C19) -> 
I31: =IF(使用水量!C20="","",使用水量!C20) -> 
I32: =IF(使用水量!C21="","",使用水量!C21) -> 
I33: =IF(使用水量!C22="","",使用水量!C22) -> 
I34: =IF(使用水量!C23="","",使用水量!C23) -> 
I35: =IF(使用水量!C24="","",使用水量!C24) -> 
I36: =IF(使用水量!C25="","",使用水量!C25) -> 
I37: =IF(使用水量!C26="","",使用水量!C26) -> 
I38: =IF(使用水量!C27="","",使用水量!C27) -> 
I39: =IF(使用水量!C28="","",使用水量!C28) -> 
I40: =IF(使用水量!C29="","",使用水量!C29) -> 
I41: =IF(使用水量!C30="","",使用水量!C30) -> 
I42: =IF(使用水量!C31="","",使用水量!C31) -> 
I43: =IF(使用水量!C32="","",使用水量!C32) -> 
I44: =IF(使用水量!C33="","",使用水量!C33) -> 
I45: =IF(使用水量!C34="","",使用水量!C34) -> 
I46: =IF(使用水量!C35="","",使用水量!C35) -> 
I47: =IF(使用水量!C36="","",使用水量!C36) -> 
I48: =IF(使用水量!C37="","",使用水量!C37) -> 
I49: =IF(使用水量!C38="","",使用水量!C38) -> 
I50: =IF(使用水量!C39="","",使用水量!C39) -> 
I51: =IF(使用水量!C40="","",使用水量!C40) -> 
I52: =IF(使用水量!C41="","",使用水量!C41) -> 
I53: =IF(使用水量!C42="","",使用水量!C42) -> 
I54: =IF(使用水量!C43="","",使用水量!C43) -> 
I55: =IF(使用水量!C44="","",使用水量!C44) -> 
I56: =IF(使用水量!C45="","",使用水量!C45) -> 
I57: =IF(使用水量!C46="","",使用水量!C46) -> 
I58: =IF(使用水量!C47="","",使用水量!C47) -> 
I59: =IF(使用水量!C48="","",使用水量!C48) -> 
I60: =IF(使用水量!C49="","",使用水量!C49) -> 
I61: =IF(使用水量!C50="","",使用水量!C50) -> 
I62: =IF(使用水量!C51="","",使用水量!C51) -> 
I63: =IF(使用水量!C52="","",使用水量!C52) -> 
I64: =IF(使用水量!C53="","",使用水量!C53) -> 

Sheet 末端3 (hidden)
B2: ＜末端3＞給水用具の所要水頭
B3: =IF(共通4!$B$7<>"水頭計算する","※末端世帯の水頭計算をしないため、このシートに入力する必要はありません。","") -> 
B4: ●給水用具の所要水頭（必要圧力）を考慮しますか？
B6: ＜考慮しない場合＞
B7: 下表の「方法」欄のリストから「考慮しない」を選択してください。
B8: 「数値」欄には何も入力しません。（入力してあっても問題ありません。）
B10: ＜区間計算の際に考慮する場合＞
B11: この方法は、区間計算の区間データに給水用具の所要水頭（必要圧力）を含めて
B12: 累計所要水頭を算出します。
B14: 下表の「方法」欄のリストから「区間計算に含める」を選択してください。
B15: 「数値」欄には何も入力しません。（入力してあっても問題ありません。）
B17: この場合、シート「末端区間」で区間データを入力する際に、「他損失水頭等」の項目に
B18: 給水用具の所要水頭（必要圧力）を入力してください。
B20: ＜区間計算後に考慮する場合＞
B21: この方法は、区間計算後に、区間計算で算出した所要水頭と
B22: 給水用具の所要水頭（必要圧力）を合計します。
B24: 下表の「方法」欄のリストから「区間計算後に比較」を選択してください。
B25: 「数値」欄には、給水用具の所要水頭（必要圧力）を入力してください。
B26: ※数値の単位は、「共通3 配水管の水圧」で選択した単位となります。
B28: 方法 | C28: 数値 | D28: 単位
B29: 区間計算後に比較 | C29: 0.03 | D29: =IF(B29<>"区間計算後に比較","",共通3!D9) -> MPa
B30: =IF(B29<>"","","※空白は「考慮しない」として処理します。") -> 
B32: ■単位の変換には、下の変換式をご利用ください。
B34: 変換前 | D34: 変換後
B35: 数値 | C35: 単位 | D35: MPa | E35: m
B36: 3 | C36: m | D36: =IF(OR($B$36="",$C$36=""),"",IF($C$36="MPa",$B$36,IF($C$36="kPa",ROUND($B$36/1000,3),IF($C$36="kgf/cm2",ROUND($B$36*0.0980665,3),ROUND($B$36*0.00980665,3))))) -> 0.029 | E36: =IF(OR($B$36="",$C$36=""),"",IF($C$36="MPa",ROUND($B$36/0.00980665,2),IF($C$36="kPa",ROUND($B$36/9.80665,2),IF($C$36="kgf/cm2",ROUND($B$36*10,2),$B$36)))) -> 3

Sheet 末端4 (hidden)
B2: ＜末端4＞安全率-末端世帯
B3: =IF(共通4!$B$7<>"水頭計算する","※末端世帯の水頭計算をしないため、このシートに入力する必要はありません。","") -> 
B4: ●安全率を設定しますか？
B6: ＜設定しない場合＞
B7: 下表の「安全率の設定」欄のリストから「設定しない」を選択してください。
B8: 「数値」欄には何も入力しません。（入力してあっても問題ありません。）
B10: ＜設定する場合＞
B11: 下表の「安全率の設定」欄のリストから「設定する」を選択してください。
B12: 「数値」欄には、安全率を入力してください。
B14: 安全率の設定 | C14: 数値 | D14: 単位
B15: 設定する | C15: 10 | D15: ％
B16: =IF($B$15<>"","","※空白は「設定しない」として処理します。") -> 
B17: =IF(OR($B$15<>"設定する",$C$15=""),"","損失水頭を") -> 損失水頭を | C17: =IF(OR($B$15<>"設定する",$C$15=""),"",$C$15/100+1) -> 1.1 | D17: =IF(OR($B$15<>"設定する",$C$15=""),"","倍します。") -> 倍します。
B19: ■下のボタンを押すと、幹栓の安全率（「幹栓2」シート）にも同じ設定を適用します。

Sheet 末端5 (hidden)
B2: ＜末端5＞量水器の適正使用範囲-末端世帯
B3: =IF(共通4!$B$7<>"水頭計算する","※末端世帯の水頭計算をしないため、このシートに入力する必要はありません。","") -> 
B4: ●量水器の適正使用範囲と同時使用水量との比較を記載しますか？
B6: ＜記載しない場合＞
B7: 下表の「量水器の比較」欄のリストから「記載しない」を選択してください。
B8: 「単位」欄、「量水器口径」欄には何も入力しません。（入力してあっても問題ありません。）
B10: ＜記載する場合＞
B11: 下表の「量水器の比較」欄のリストから「上限と下限を比較」または「上限のみ比較」を
B12: 選択してください。
B13: 「単位」欄のリストから、水量の単位を選択してください。
B14: 「量水器口径」欄のリストから、量水器の口径を選択してください。
B16: 「比較結果」で、量水器口径が適当かどうかを確認してください。
B18: ※「共通1 水理計算書の表紙」で、「表紙を作成しない」を選択した場合、「比較結果」の
B19: 「同時使用水量」欄に同時使用水量を入力してください。
B21: 量水器の比較 | D21: 単位 | E21: 量水器 口径 | K21: ↓非表示にする
B22: 上限と下限を比較 | D22: L/sec | E22: 25 | K22: 水理計算書の表紙
B23: =IF($B$22<>"","","※空白は「記載しない」として処理します。") ->  | K23: =IF(共通1!B13="作成しない",共通1!B13,"作成する") -> 作成する
B25: 比較結果 | K25: 量水器口径リスト
B26: 流量下限 | D26: 比較 | E26: 同時使用水量 | G26: 比較 | H26: 流量上限 | K26: =IF(量水器!B5="","",量水器!B5) -> 13
B27: =IF(OR($B$22<>"上限と下限を比較",$D$22="",$E$22=""),"",IF($D$22="L/sec",VLOOKUP($E$22,量水器!$B$5:$J$27,6,FALSE),VLOOKUP($E$22,量水器!$B$5:$J$27,8,FALSE))) -> 0.06 | C27: =IF(OR($B$22<>"上限と下限を比較",$D$22=""),"",IF($D$22="L/sec","L/sec","L/min")) -> L/sec | D27: =IF(OR($B$22<>"上限と下限を比較",$D$22="",$E$22=""),"",IF(B27<E27,"<",IF(B27>E27,">","="))) -> < | E27: =IF(OR($B$22="記載しない",$B$22="",末端2!$C$12="",$D$22="",$K$23="作成しない"),"",IF($D$22="L/sec",末端2!$F$22,末端2!$D$22)) -> 0.53 | F27: =IF(OR($B$22="記載しない",$B$22="",$D$22=""),"",IF($D$22="L/sec","L/sec","L/min")) -> L/sec | G27: =IF(OR($B$22="記載しない",$B$22="",$D$22="",$E$22=""),"",IF(E27<H27,"<",IF(E27>H27,">","="))) -> < | H27: =IF(OR($B$22="記載しない",$B$22="",$D$22="",$E$22=""),"",IF($D$22="L/sec",VLOOKUP($E$22,量水器!$B$5:$J$27,7,FALSE),VLOOKUP($E$22,量水器!$B$5:$J$27,9,FALSE))) -> 0.69 | I27: =IF(OR($B$22="記載しない",$B$22="",$D$22=""),"",IF($D$22="L/sec","L/sec","L/min")) -> L/sec | K27: =IF(量水器!B6="","",量水器!B6) -> 20
K28: =IF(量水器!B7="","",量水器!B7) -> 25
K29: =IF(量水器!B8="","",量水器!B8) -> 30
B30: ■「比較結果」の「同時使用水量」欄には、「末端2 同時使用給水用具」の合計を参照する | K30: =IF(量水器!B9="","",量水器!B9) -> 40
B31: 数式が入力されています。 | K31: =IF(量水器!B10="","",量水器!B10) -> 50
B32: 「表紙を作成しない」を選択した場合、数値を直接入力するため、数式は上書きされます。 | K32: =IF(量水器!B11="","",量水器!B11) -> 75
B33: 元の数式に戻したい場合には、下の「リセット」ボタンを押してください。 | K33: =IF(量水器!B12="","",量水器!B12) -> 100
K34: =IF(量水器!B13="","",量水器!B13) -> 150
K35: =IF(量水器!B14="","",量水器!B14) -> 200
K36: =IF(量水器!B15="","",量水器!B15) -> 250
K37: =IF(量水器!B16="","",量水器!B16) -> 300
K38: =IF(量水器!B17="","",量水器!B17) -> 350
K39: =IF(量水器!B18="","",量水器!B18) -> 10
K40: =IF(量水器!B19="","",量水器!B19) -> 16
K41: =IF(量水器!B20="","",量水器!B20) -> 
K42: =IF(量水器!B21="","",量水器!B21) -> 
K43: =IF(量水器!B22="","",量水器!B22) -> 
K44: =IF(量水器!B23="","",量水器!B23) -> 
K45: =IF(量水器!B24="","",量水器!B24) -> 
K46: =IF(量水器!B25="","",量水器!B25) -> 
K47: =IF(量水器!B26="","",量水器!B26) -> 
K48: =IF(量水器!B27="","",量水器!B27) -> 

Sheet 末端6 (hidden)
B2: ＜末端6＞流速-末端世帯
B3: =IF(共通4!$B$7<>"水頭計算する","※末端世帯の水頭計算をしないため、このシートに入力する必要はありません。","") -> 
B4: ●流速の比較を記載しますか？
B6: ＜記載しない場合＞
B7: 下表の「流速の比較」欄のリストから「記載しない」を選択してください。
B8: 「数値」欄には何も入力しません。（入力してあっても問題ありません。）
B10: ＜記載する場合＞
B11: 下表の「流速の比較」欄のリストから「記載する」を選択してください。
B12: 「数値」欄には、比較の基準となる流速を入力してください。
B14: 流速の比較 | C14: 数値 | D14: 単位
B15: 記載する | C15: 2 | D15: m/sec
B16: =IF($B$15<>"","","※空白は「記載しない」として処理します。") -> 
B18: ■下のボタンを押すと、幹栓の流速（「幹栓4」シート）にも同じ設定を適用します。

Sheet 末端区間 (hidden)
B2: ＜末端区間＞
B4: ●末端世帯の区間データを入力してください。
B6: 項目名にマウスカーソルを当てると簡易ヘルプが表示されます。
B7: 詳細な解説はWEB上の使用説明書をご確認ください。 | AA7: =IF($AA$8<>"","","※空白は「この項目を水理計算書に記載しない」として処理します。") -> 
AA8: この項目を水理計算書に記載しない | AY8: ↓非表示にする | AZ8: ↓非表示にする | BA8: ↓非表示にする | BB8: ↓非表示にする | BC8: ↓非表示にする | BD8: ↓非表示にする | BE8: ↓非表示にする | BF8: ↓非表示にする | BG8: ↓非表示にする
B9: 末端世帯 累計所要水頭 | D9: 区間 所要水頭 | E9: 流速 | F9: 区関数 | G9: 区間名 | H9: 流量 | I9: 口径 | J9: 管延長 | K9: 立上り | L9: =IF(直管換算!C3="","",直管換算!C3) -> 分水栓 | M9: =IF(直管換算!D3="","",直管換算!D3) -> 量水器 | N9: =IF(直管換算!E3="","",直管換算!E3) -> 水栓 | O9: =IF(直管換算!F3="","",直管換算!F3) -> ポール タップ 定水位弁 | P9: =IF(直管換算!G3="","",直管換算!G3) -> ゲート バルブ | Q9: =IF(直管換算!H3="","",直管換算!H3) -> グローブ バルブ | R9: =IF(直管換算!I3="","",直管換算!I3) -> ボール 止水栓 | S9: =IF(直管換算!J3="","",直管換算!J3) -> 逆止弁 | T9: =IF(直管換算!K3="","",直管換算!K3) -> 曲半径小 90度曲管 | U9: =IF(直管換算!L3="","",直管換算!L3) -> 曲半径小 45度曲管 | V9: =IF(直管換算!M3="","",直管換算!M3) -> 曲半径大 90度曲管 | W9: =IF(直管換算!N3="","",直管換算!N3) -> 曲半径大 45度曲管 | X9: =IF(直管換算!O3="","",直管換算!O3) -> 架橋ポリ チーズ エルボ | Y9: =IF(直管換算!P3="","",直管換算!P3) ->  | Z9: =IF(直管換算!Q3="","",直管換算!Q3) ->  | AA9: 他損失水頭等 | AC9: 計算内径 | AD9: 計算式 | AE9: 動水勾配 | AF9: 損失水頭 | AG9: 安全率 込み 損失水頭 | AH9: =IF(直管換算!C3="","",直管換算!C3) -> 分水栓 | AI9: =IF(直管換算!D3="","",直管換算!D3) -> 量水器 | AJ9: =IF(直管換算!E3="","",直管換算!E3) -> 水栓 | AK9: =IF(直管換算!F3="","",直管換算!F3) -> ポール タップ 定水位弁 | AL9: =IF(直管換算!G3="","",直管換算!G3) -> ゲート バルブ | AM9: =IF(直管換算!H3="","",直管換算!H3) -> グローブ バルブ | AN9: =IF(直管換算!I3="","",直管換算!I3) -> ボール 止水栓 | AO9: =IF(直管換算!J3="","",直管換算!J3) -> 逆止弁 | AP9: =IF(直管換算!K3="","",直管換算!K3) -> 曲半径小 90度曲管 | AQ9: =IF(直管換算!L3="","",直管換算!L3) -> 曲半径小 45度曲管 | AR9: =IF(直管換算!M3="","",直管換算!M3) -> 曲半径大 90度曲管 | AS9: =IF(直管換算!N3="","",直管換算!N3) -> 曲半径大 45度曲管 | AT9: =IF(直管換算!O3="","",直管換算!O3) -> 架橋ポリ チーズ エルボ | AU9: =IF(直管換算!P3="","",直管換算!P3) ->  | AV9: =IF(直管換算!Q3="","",直管換算!Q3) ->  | AW9: 直管 換算長計 | AY9: 区関数 確認 | AZ9: W流速 | BA9: W動水勾配 | BB9: H流速 | BC9: H動水勾配 | BD9: 口径リスト | BE9: 流速の比較 | BF9: 配水管 の水圧 | BG9: 給水用具の所要水頭
B10: MPa | C10: m | D10: m | E10: m/sec | F10: =AY10 -> 3 | H10: L/sec | I10: mm | J10: m | K10: m | L10: 個 | M10: 個 | N10: 個 | O10: 個 | P10: 個 | Q10: 個 | R10: 個 | S10: 個 | T10: 個 | U10: 個 | V10: 個 | W10: 個 | X10: 個 | Y10: 個 | Z10: 個 | AA10: m | AB10: 備考 | AC10: mm | AD10: W/H | AE10: ‰ | AF10: m | AG10: =IF(末端4!$B$15="設定する",末端4!$C$17,1) -> 1.1 | AH10: m | AI10: m | AJ10: m | AK10: m | AL10: m | AM10: m | AN10: m | AO10: m | AP10: m | AQ10: m | AR10: m | AS10: m | AT10: m | AU10: m | AV10: m | AW10: m | AY10: =MATCH("空",AY11:AY61,0)-1 -> 3 | AZ10: m/sec | BA10: 0/00 | BB10: m/sec | BC10: 0/00 | BD10: =IF(内径設定!B4="","",内径設定!B4) -> 13 | BE10: =IF(OR(末端6!$B$15="",末端6!$B$15="記載しない"),"記載しない","記載する") -> 記載する | BF10: =IF(OR(共通3!$B$9="",共通3!$B$9="圧力（MPa）"),"MPa","m") -> MPa | BG10: =IF(末端3!$B$29="","考慮しない",末端3!$B$29) -> 区間計算後に比較
B11: =IF(C11="","",ROUND(C11*0.00980665,3)) -> 0.019 | C11: =IF(OR(H11="",I11=""),"",D11) -> 1.93 | D11: =IF(OR(H11="",I11=""),"",IF($AA$8="この項目を水理計算書に記載する",AG11+ROUND(K11,2)+ROUND(AA11,2),AG11+ROUND(K11,2))) -> 1.93 | E11: =IF(OR(H11="",I11=""),"",IF(AD11="W",ROUND(AZ11,2),ROUND(BB11,2))) -> 1.51 | F11: 1 | G11: a-b | H11: 0.2 | I11: 13 | J11: 1.5 | K11: 0.8 | N11: 1 | AA11: 3 | AB11: 給水用具の所要水頭 | AC11: =IF(I11="","",VLOOKUP(I11,内径設定!$B$4:$C$26,2,FALSE)) -> 13 | AD11: =IF(AC11="","",IF(OR(AND(AC11>計算公式!$B$9,計算公式!$D$9="超"),AND(AC11>=計算公式!$B$9,計算公式!$D$9="以上")),"H","W")) -> W | AE11: =IF(OR(H11="",I11=""),"",IF(AD11="W",ROUNDUP(BA11,0),ROUNDUP(BC11,0))) -> 229 | AF11: =IF(OR(H11="",I11=""),"",(J11+AW11)*AE11/1000) -> 1.0305 | AG11: =IF(OR(H11="",I11=""),"",ROUND(AF11*$AG$10,2)) -> 1.13 | AH11: =IF(OR(I11="",L11=""),"",ROUND(VLOOKUP(I11,直管換算!$B$4:$Q$26,2,FALSE)*L11,2)) ->  | AI11: =IF(OR(I11="",M11=""),"",ROUND(VLOOKUP(I11,直管換算!$B$4:$Q$26,3,FALSE)*M11,2)) ->  | AJ11: =IF(OR(I11="",N11=""),"",ROUND(VLOOKUP(I11,直管換算!$B$4:$Q$26,4,FALSE)*N11,2)) -> 3 | AK11: =IF(OR(I11="",O11=""),"",ROUND(VLOOKUP(I11,直管換算!$B$4:$Q$26,5,FALSE)*O11,2)) ->  | AL11: =IF(OR(I11="",P11=""),"",ROUND(VLOOKUP(I11,直管換算!$B$4:$Q$26,6,FALSE)*P11,2)) ->  | AM11: =IF(OR(I11="",Q11=""),"",ROUND(VLOOKUP(I11,直管換算!$B$4:$Q$26,7,FALSE)*Q11,2)) ->  | AN11: =IF(OR(I11="",R11=""),"",ROUND(VLOOKUP(I11,直管換算!$B$4:$Q$26,8,FALSE)*R11,2)) ->  | AO11: =IF(OR(I11="",S11=""),"",ROUND(VLOOKUP(I11,直管換算!$B$4:$Q$26,9,FALSE)*S11,2)) ->  | AP11: =IF(OR(I11="",T11=""),"",ROUND(VLOOKUP(I11,直管換算!$B$4:$Q$26,10,FALSE)*T11,2)) ->  | AQ11: =IF(OR(I11="",U11=""),"",ROUND(VLOOKUP(I11,直管換算!$B$4:$Q$26,11,FALSE)*U11,2)) ->  | AR11: =IF(OR(I11="",V11=""),"",ROUND(VLOOKUP(I11,直管換算!$B$4:$Q$26,12,FALSE)*V11,2)) ->  | AS11: =IF(OR(I11="",W11=""),"",ROUND(VLOOKUP(I11,直管換算!$B$4:$Q$26,13,FALSE)*W11,2)) ->  | AT11: =IF(OR(I11="",X11=""),"",ROUND(VLOOKUP(I11,直管換算!$B$4:$Q$26,14,FALSE)*X11,2)) ->  | AU11: =IF(OR(I11="",Y11=""),"",ROUND(VLOOKUP(I11,直管換算!$B$4:$Q$26,15,FALSE)*Y11,2)) ->  | AV11: =IF(OR(I11="",Z11=""),"",ROUND(VLOOKUP(I11,直管換算!$B$4:$Q$26,16,FALSE)*Z11,2)) ->  | AW11: =IF(I11="","",SUM(AH11:AV11)) -> 3 | AY11: =IF(B11="","空",F11) -> 1 | AZ11: =IF(OR(H11="",I11=""),"",(4*H11/1000)/(PI()*POWER(AC11/1000,2))) -> 1.506792361 | BA11: =IF(OR(H11="",I11=""),"",(0.0126+(0.01739-0.1087*AC11/1000)/SQRT(AZ11))/(AC11/1000)*POWER(AZ11,2)/(2*9.8)*1000) -> 228.2510327 | BB11: =IF(OR(H11="",I11=""),"",0.35464*計算公式!$B$14*POWER(AC11/1000,0.63)*POWER(BC11/1000,0.54)) -> 1.525364451 | BC11: =IF(OR(H11="",I11=""),"",10.666*POWER(計算公式!$B$14,-1.85)*POWER(AC11/1000,-4.87)*POWER(H11/1000,1.85)*1000) -> 467.7383137 | BD11: =IF(内径設定!B5="","",内径設定!B5) -> 20 | BE11: 数値 | BF11: 数値 | BG11: 数値
B12: 0.02 | C12: =IF(OR(H12="",I12="",C11=""),"",C11+D12) -> 2.06 | D12: 0.13 | E12: 1.05 | F12: 2 | G12: b-c | H12: 0.33 | I12: 20 | J12: 1.5 | K12: 0 | AC12: =IF(I12="","",VLOOKUP(I12,内径設定!$B$4:$C$26,2,FALSE)) -> 20 | AD12: =IF(AC12="","",IF(OR(AND(AC12>計算公式!$B$9,計算公式!$D$9="超"),AND(AC12>=計算公式!$B$9,計算公式!$D$9="以上")),"H","W")) -> W | AE12: 78 | AF12: 0.117 | AG12: 0.13 | AH12: =IF(OR(I12="",L12=""),"",ROUND(VLOOKUP(I12,直管換算!$B$4:$Q$26,2,FALSE)*L12,2)) ->  | AI12: =IF(OR(I12="",M12=""),"",ROUND(VLOOKUP(I12,直管換算!$B$4:$Q$26,3,FALSE)*M12,2)) ->  | AJ12: =IF(OR(I12="",N12=""),"",ROUND(VLOOKUP(I12,直管換算!$B$4:$Q$26,4,FALSE)*N12,2)) ->  | AK12: =IF(OR(I12="",O12=""),"",ROUND(VLOOKUP(I12,直管換算!$B$4:$Q$26,5,FALSE)*O12,2)) ->  | AL12: =IF(OR(I12="",P12=""),"",ROUND(VLOOKUP(I12,直管換算!$B$4:$Q$26,6,FALSE)*P12,2)) ->  | AM12: =IF(OR(I12="",Q12=""),"",ROUND(VLOOKUP(I12,直管換算!$B$4:$Q$26,7,FALSE)*Q12,2)) ->  | AN12: =IF(OR(I12="",R12=""),"",ROUND(VLOOKUP(I12,直管換算!$B$4:$Q$26,8,FALSE)*R12,2)) ->  | AO12: =IF(OR(I12="",S12=""),"",ROUND(VLOOKUP(I12,直管換算!$B$4:$Q$26,9,FALSE)*S12,2)) ->  | AP12: =IF(OR(I12="",T12=""),"",ROUND(VLOOKUP(I12,直管換算!$B$4:$Q$26,10,FALSE)*T12,2)) ->  | AQ12: =IF(OR(I12="",U12=""),"",ROUND(VLOOKUP(I12,直管換算!$B$4:$Q$26,11,FALSE)*U12,2)) ->  | AR12: =IF(OR(I12="",V12=""),"",ROUND(VLOOKUP(I12,直管換算!$B$4:$Q$26,12,FALSE)*V12,2)) ->  | AS12: =IF(OR(I12="",W12=""),"",ROUND(VLOOKUP(I12,直管換算!$B$4:$Q$26,13,FALSE)*W12,2)) ->  | AT12: =IF(OR(I12="",X12=""),"",ROUND(VLOOKUP(I12,直管換算!$B$4:$Q$26,14,FALSE)*X12,2)) ->  | AU12: =IF(OR(I12="",Y12=""),"",ROUND(VLOOKUP(I12,直管換算!$B$4:$Q$26,15,FALSE)*Y12,2)) ->  | AV12: =IF(OR(I12="",Z12=""),"",ROUND(VLOOKUP(I12,直管換算!$B$4:$Q$26,16,FALSE)*Z12,2)) ->  | AW12: 0 | AY12: 2 | AZ12: 1.050422624 | BA12: 77.25489381 | BB12: =IF(OR(H12="",I12=""),"",0.35464*計算公式!$B$14*POWER(AC12/1000,0.63)*POWER(BC12/1000,0.54)) -> 1.062928891 | BC12: =IF(OR(H12="",I12=""),"",10.666*POWER(計算公式!$B$14,-1.85)*POWER(AC12/1000,-4.87)*POWER(H12/1000,1.85)*1000) -> 144.956031 | BD12: =IF(内径設定!B6="","",内径設定!B6) -> 25 | BE12: =IF(OR(末端6!$B$15="",末端6!$B$15="記載しない"),"",末端6!$C$15) -> 2 | BF12: =共通3!$C$9 -> 0.196 | BG12: =末端3!$C$29 -> 0.03
B13: 0.064 | C13: 6.54 | D13: 4.48 | E13: 1.69 | F13: 3 | G13: c-d | H13: 0.53 | I13: 20 | J13: 4 | K13: 2.5 | M13: 1 | R13: 1 | AC13: =IF(I13="","",VLOOKUP(I13,内径設定!$B$4:$C$26,2,FALSE)) -> 20 | AD13: =IF(AC13="","",IF(OR(AND(AC13>計算公式!$B$9,計算公式!$D$9="超"),AND(AC13>=計算公式!$B$9,計算公式!$D$9="以上")),"H","W")) -> W | AE13: 177 | AF13: 1.79655 | AG13: 1.98 | AH13: =IF(OR(I13="",L13=""),"",ROUND(VLOOKUP(I13,直管換算!$B$4:$Q$26,2,FALSE)*L13,2)) ->  | AI13: =IF(OR(I13="",M13=""),"",ROUND(VLOOKUP(I13,直管換算!$B$4:$Q$26,3,FALSE)*M13,2)) -> 6 | AJ13: =IF(OR(I13="",N13=""),"",ROUND(VLOOKUP(I13,直管換算!$B$4:$Q$26,4,FALSE)*N13,2)) ->  | AK13: =IF(OR(I13="",O13=""),"",ROUND(VLOOKUP(I13,直管換算!$B$4:$Q$26,5,FALSE)*O13,2)) ->  | AL13: =IF(OR(I13="",P13=""),"",ROUND(VLOOKUP(I13,直管換算!$B$4:$Q$26,6,FALSE)*P13,2)) ->  | AM13: =IF(OR(I13="",Q13=""),"",ROUND(VLOOKUP(I13,直管換算!$B$4:$Q$26,7,FALSE)*Q13,2)) ->  | AN13: =IF(OR(I13="",R13=""),"",ROUND(VLOOKUP(I13,直管換算!$B$4:$Q$26,8,FALSE)*R13,2)) -> 0.15 | AO13: =IF(OR(I13="",S13=""),"",ROUND(VLOOKUP(I13,直管換算!$B$4:$Q$26,9,FALSE)*S13,2)) ->  | AP13: =IF(OR(I13="",T13=""),"",ROUND(VLOOKUP(I13,直管換算!$B$4:$Q$26,10,FALSE)*T13,2)) ->  | AQ13: =IF(OR(I13="",U13=""),"",ROUND(VLOOKUP(I13,直管換算!$B$4:$Q$26,11,FALSE)*U13,2)) ->  | AR13: =IF(OR(I13="",V13=""),"",ROUND(VLOOKUP(I13,直管換算!$B$4:$Q$26,12,FALSE)*V13,2)) ->  | AS13: =IF(OR(I13="",W13=""),"",ROUND(VLOOKUP(I13,直管換算!$B$4:$Q$26,13,FALSE)*W13,2)) ->  | AT13: =IF(OR(I13="",X13=""),"",ROUND(VLOOKUP(I13,直管換算!$B$4:$Q$26,14,FALSE)*X13,2)) ->  | AU13: =IF(OR(I13="",Y13=""),"",ROUND(VLOOKUP(I13,直管換算!$B$4:$Q$26,15,FALSE)*Y13,2)) ->  | AV13: =IF(OR(I13="",Z13=""),"",ROUND(VLOOKUP(I13,直管換算!$B$4:$Q$26,16,FALSE)*Z13,2)) ->  | AW13: 6.15 | AY13: 3 | AZ13: 1.687042397 | BA13: 176.5378739 | BB13: =IF(OR(H13="",I13=""),"",0.35464*計算公式!$B$14*POWER(AC13/1000,0.63)*POWER(BC13/1000,0.54)) -> 1.7063196 | BC13: =IF(OR(H13="",I13=""),"",10.666*POWER(計算公式!$B$14,-1.85)*POWER(AC13/1000,-4.87)*POWER(H13/1000,1.85)*1000) -> 348.2537962 | BD13: =IF(内径設定!B7="","",内径設定!B7) -> 30
F14: 4 | AC14: =IF(I14="","",VLOOKUP(I14,内径設定!$B$4:$C$26,2,FALSE)) ->  | AD14: =IF(AC14="","",IF(OR(AND(AC14>計算公式!$B$9,計算公式!$D$9="超"),AND(AC14>=計算公式!$B$9,計算公式!$D$9="以上")),"H","W")) ->  | AH14: =IF(OR(I14="",L14=""),"",ROUND(VLOOKUP(I14,直管換算!$B$4:$Q$26,2,FALSE)*L14,2)) ->  | AI14: =IF(OR(I14="",M14=""),"",ROUND(VLOOKUP(I14,直管換算!$B$4:$Q$26,3,FALSE)*M14,2)) ->  | AJ14: =IF(OR(I14="",N14=""),"",ROUND(VLOOKUP(I14,直管換算!$B$4:$Q$26,4,FALSE)*N14,2)) ->  | AK14: =IF(OR(I14="",O14=""),"",ROUND(VLOOKUP(I14,直管換算!$B$4:$Q$26,5,FALSE)*O14,2)) ->  | AL14: =IF(OR(I14="",P14=""),"",ROUND(VLOOKUP(I14,直管換算!$B$4:$Q$26,6,FALSE)*P14,2)) ->  | AM14: =IF(OR(I14="",Q14=""),"",ROUND(VLOOKUP(I14,直管換算!$B$4:$Q$26,7,FALSE)*Q14,2)) ->  | AN14: =IF(OR(I14="",R14=""),"",ROUND(VLOOKUP(I14,直管換算!$B$4:$Q$26,8,FALSE)*R14,2)) ->  | AO14: =IF(OR(I14="",S14=""),"",ROUND(VLOOKUP(I14,直管換算!$B$4:$Q$26,9,FALSE)*S14,2)) ->  | AP14: =IF(OR(I14="",T14=""),"",ROUND(VLOOKUP(I14,直管換算!$B$4:$Q$26,10,FALSE)*T14,2)) ->  | AQ14: =IF(OR(I14="",U14=""),"",ROUND(VLOOKUP(I14,直管換算!$B$4:$Q$26,11,FALSE)*U14,2)) ->  | AR14: =IF(OR(I14="",V14=""),"",ROUND(VLOOKUP(I14,直管換算!$B$4:$Q$26,12,FALSE)*V14,2)) ->  | AS14: =IF(OR(I14="",W14=""),"",ROUND(VLOOKUP(I14,直管換算!$B$4:$Q$26,13,FALSE)*W14,2)) ->  | AT14: =IF(OR(I14="",X14=""),"",ROUND(VLOOKUP(I14,直管換算!$B$4:$Q$26,14,FALSE)*X14,2)) ->  | AU14: =IF(OR(I14="",Y14=""),"",ROUND(VLOOKUP(I14,直管換算!$B$4:$Q$26,15,FALSE)*Y14,2)) ->  | AV14: =IF(OR(I14="",Z14=""),"",ROUND(VLOOKUP(I14,直管換算!$B$4:$Q$26,16,FALSE)*Z14,2)) ->  | AY14: 空 | BB14: =IF(OR(H14="",I14=""),"",0.35464*計算公式!$B$14*POWER(AC14/1000,0.63)*POWER(BC14/1000,0.54)) ->  | BC14: =IF(OR(H14="",I14=""),"",10.666*POWER(計算公式!$B$14,-1.85)*POWER(AC14/1000,-4.87)*POWER(H14/1000,1.85)*1000) ->  | BD14: =IF(内径設定!B8="","",内径設定!B8) -> 40
F15: 5 | AC15: =IF(I15="","",VLOOKUP(I15,内径設定!$B$4:$C$26,2,FALSE)) ->  | AD15: =IF(AC15="","",IF(OR(AND(AC15>計算公式!$B$9,計算公式!$D$9="超"),AND(AC15>=計算公式!$B$9,計算公式!$D$9="以上")),"H","W")) ->  | AH15: =IF(OR(I15="",L15=""),"",ROUND(VLOOKUP(I15,直管換算!$B$4:$Q$26,2,FALSE)*L15,2)) ->  | AI15: =IF(OR(I15="",M15=""),"",ROUND(VLOOKUP(I15,直管換算!$B$4:$Q$26,3,FALSE)*M15,2)) ->  | AJ15: =IF(OR(I15="",N15=""),"",ROUND(VLOOKUP(I15,直管換算!$B$4:$Q$26,4,FALSE)*N15,2)) ->  | AK15: =IF(OR(I15="",O15=""),"",ROUND(VLOOKUP(I15,直管換算!$B$4:$Q$26,5,FALSE)*O15,2)) ->  | AL15: =IF(OR(I15="",P15=""),"",ROUND(VLOOKUP(I15,直管換算!$B$4:$Q$26,6,FALSE)*P15,2)) ->  | AM15: =IF(OR(I15="",Q15=""),"",ROUND(VLOOKUP(I15,直管換算!$B$4:$Q$26,7,FALSE)*Q15,2)) ->  | AN15: =IF(OR(I15="",R15=""),"",ROUND(VLOOKUP(I15,直管換算!$B$4:$Q$26,8,FALSE)*R15,2)) ->  | AO15: =IF(OR(I15="",S15=""),"",ROUND(VLOOKUP(I15,直管換算!$B$4:$Q$26,9,FALSE)*S15,2)) ->  | AP15: =IF(OR(I15="",T15=""),"",ROUND(VLOOKUP(I15,直管換算!$B$4:$Q$26,10,FALSE)*T15,2)) ->  | AQ15: =IF(OR(I15="",U15=""),"",ROUND(VLOOKUP(I15,直管換算!$B$4:$Q$26,11,FALSE)*U15,2)) ->  | AR15: =IF(OR(I15="",V15=""),"",ROUND(VLOOKUP(I15,直管換算!$B$4:$Q$26,12,FALSE)*V15,2)) ->  | AS15: =IF(OR(I15="",W15=""),"",ROUND(VLOOKUP(I15,直管換算!$B$4:$Q$26,13,FALSE)*W15,2)) ->  | AT15: =IF(OR(I15="",X15=""),"",ROUND(VLOOKUP(I15,直管換算!$B$4:$Q$26,14,FALSE)*X15,2)) ->  | AU15: =IF(OR(I15="",Y15=""),"",ROUND(VLOOKUP(I15,直管換算!$B$4:$Q$26,15,FALSE)*Y15,2)) ->  | AV15: =IF(OR(I15="",Z15=""),"",ROUND(VLOOKUP(I15,直管換算!$B$4:$Q$26,16,FALSE)*Z15,2)) ->  | AY15: 空 | BB15: =IF(OR(H15="",I15=""),"",0.35464*計算公式!$B$14*POWER(AC15/1000,0.63)*POWER(BC15/1000,0.54)) ->  | BC15: =IF(OR(H15="",I15=""),"",10.666*POWER(計算公式!$B$14,-1.85)*POWER(AC15/1000,-4.87)*POWER(H15/1000,1.85)*1000) ->  | BD15: =IF(内径設定!B9="","",内径設定!B9) -> 50
F16: 6 | AC16: =IF(I16="","",VLOOKUP(I16,内径設定!$B$4:$C$26,2,FALSE)) ->  | AD16: =IF(AC16="","",IF(OR(AND(AC16>計算公式!$B$9,計算公式!$D$9="超"),AND(AC16>=計算公式!$B$9,計算公式!$D$9="以上")),"H","W")) ->  | AH16: =IF(OR(I16="",L16=""),"",ROUND(VLOOKUP(I16,直管換算!$B$4:$Q$26,2,FALSE)*L16,2)) ->  | AI16: =IF(OR(I16="",M16=""),"",ROUND(VLOOKUP(I16,直管換算!$B$4:$Q$26,3,FALSE)*M16,2)) ->  | AJ16: =IF(OR(I16="",N16=""),"",ROUND(VLOOKUP(I16,直管換算!$B$4:$Q$26,4,FALSE)*N16,2)) ->  | AK16: =IF(OR(I16="",O16=""),"",ROUND(VLOOKUP(I16,直管換算!$B$4:$Q$26,5,FALSE)*O16,2)) ->  | AL16: =IF(OR(I16="",P16=""),"",ROUND(VLOOKUP(I16,直管換算!$B$4:$Q$26,6,FALSE)*P16,2)) ->  | AM16: =IF(OR(I16="",Q16=""),"",ROUND(VLOOKUP(I16,直管換算!$B$4:$Q$26,7,FALSE)*Q16,2)) ->  | AN16: =IF(OR(I16="",R16=""),"",ROUND(VLOOKUP(I16,直管換算!$B$4:$Q$26,8,FALSE)*R16,2)) ->  | AO16: =IF(OR(I16="",S16=""),"",ROUND(VLOOKUP(I16,直管換算!$B$4:$Q$26,9,FALSE)*S16,2)) ->  | AP16: =IF(OR(I16="",T16=""),"",ROUND(VLOOKUP(I16,直管換算!$B$4:$Q$26,10,FALSE)*T16,2)) ->  | AQ16: =IF(OR(I16="",U16=""),"",ROUND(VLOOKUP(I16,直管換算!$B$4:$Q$26,11,FALSE)*U16,2)) ->  | AR16: =IF(OR(I16="",V16=""),"",ROUND(VLOOKUP(I16,直管換算!$B$4:$Q$26,12,FALSE)*V16,2)) ->  | AS16: =IF(OR(I16="",W16=""),"",ROUND(VLOOKUP(I16,直管換算!$B$4:$Q$26,13,FALSE)*W16,2)) ->  | AT16: =IF(OR(I16="",X16=""),"",ROUND(VLOOKUP(I16,直管換算!$B$4:$Q$26,14,FALSE)*X16,2)) ->  | AU16: =IF(OR(I16="",Y16=""),"",ROUND(VLOOKUP(I16,直管換算!$B$4:$Q$26,15,FALSE)*Y16,2)) ->  | AV16: =IF(OR(I16="",Z16=""),"",ROUND(VLOOKUP(I16,直管換算!$B$4:$Q$26,16,FALSE)*Z16,2)) ->  | AY16: 空 | BB16: =IF(OR(H16="",I16=""),"",0.35464*計算公式!$B$14*POWER(AC16/1000,0.63)*POWER(BC16/1000,0.54)) ->  | BC16: =IF(OR(H16="",I16=""),"",10.666*POWER(計算公式!$B$14,-1.85)*POWER(AC16/1000,-4.87)*POWER(H16/1000,1.85)*1000) ->  | BD16: =IF(内径設定!B10="","",内径設定!B10) -> 75
F17: 7 | AC17: =IF(I17="","",VLOOKUP(I17,内径設定!$B$4:$C$26,2,FALSE)) ->  | AD17: =IF(AC17="","",IF(OR(AND(AC17>計算公式!$B$9,計算公式!$D$9="超"),AND(AC17>=計算公式!$B$9,計算公式!$D$9="以上")),"H","W")) ->  | AH17: =IF(OR(I17="",L17=""),"",ROUND(VLOOKUP(I17,直管換算!$B$4:$Q$26,2,FALSE)*L17,2)) ->  | AI17: =IF(OR(I17="",M17=""),"",ROUND(VLOOKUP(I17,直管換算!$B$4:$Q$26,3,FALSE)*M17,2)) ->  | AJ17: =IF(OR(I17="",N17=""),"",ROUND(VLOOKUP(I17,直管換算!$B$4:$Q$26,4,FALSE)*N17,2)) ->  | AK17: =IF(OR(I17="",O17=""),"",ROUND(VLOOKUP(I17,直管換算!$B$4:$Q$26,5,FALSE)*O17,2)) ->  | AL17: =IF(OR(I17="",P17=""),"",ROUND(VLOOKUP(I17,直管換算!$B$4:$Q$26,6,FALSE)*P17,2)) ->  | AM17: =IF(OR(I17="",Q17=""),"",ROUND(VLOOKUP(I17,直管換算!$B$4:$Q$26,7,FALSE)*Q17,2)) ->  | AN17: =IF(OR(I17="",R17=""),"",ROUND(VLOOKUP(I17,直管換算!$B$4:$Q$26,8,FALSE)*R17,2)) ->  | AO17: =IF(OR(I17="",S17=""),"",ROUND(VLOOKUP(I17,直管換算!$B$4:$Q$26,9,FALSE)*S17,2)) ->  | AP17: =IF(OR(I17="",T17=""),"",ROUND(VLOOKUP(I17,直管換算!$B$4:$Q$26,10,FALSE)*T17,2)) ->  | AQ17: =IF(OR(I17="",U17=""),"",ROUND(VLOOKUP(I17,直管換算!$B$4:$Q$26,11,FALSE)*U17,2)) ->  | AR17: =IF(OR(I17="",V17=""),"",ROUND(VLOOKUP(I17,直管換算!$B$4:$Q$26,12,FALSE)*V17,2)) ->  | AS17: =IF(OR(I17="",W17=""),"",ROUND(VLOOKUP(I17,直管換算!$B$4:$Q$26,13,FALSE)*W17,2)) ->  | AT17: =IF(OR(I17="",X17=""),"",ROUND(VLOOKUP(I17,直管換算!$B$4:$Q$26,14,FALSE)*X17,2)) ->  | AU17: =IF(OR(I17="",Y17=""),"",ROUND(VLOOKUP(I17,直管換算!$B$4:$Q$26,15,FALSE)*Y17,2)) ->  | AV17: =IF(OR(I17="",Z17=""),"",ROUND(VLOOKUP(I17,直管換算!$B$4:$Q$26,16,FALSE)*Z17,2)) ->  | AY17: 空 | BB17: =IF(OR(H17="",I17=""),"",0.35464*計算公式!$B$14*POWER(AC17/1000,0.63)*POWER(BC17/1000,0.54)) ->  | BC17: =IF(OR(H17="",I17=""),"",10.666*POWER(計算公式!$B$14,-1.85)*POWER(AC17/1000,-4.87)*POWER(H17/1000,1.85)*1000) ->  | BD17: =IF(内径設定!B11="","",内径設定!B11) -> 100
F18: 8 | AC18: =IF(I18="","",VLOOKUP(I18,内径設定!$B$4:$C$26,2,FALSE)) ->  | AD18: =IF(AC18="","",IF(OR(AND(AC18>計算公式!$B$9,計算公式!$D$9="超"),AND(AC18>=計算公式!$B$9,計算公式!$D$9="以上")),"H","W")) ->  | AH18: =IF(OR(I18="",L18=""),"",ROUND(VLOOKUP(I18,直管換算!$B$4:$Q$26,2,FALSE)*L18,2)) ->  | AI18: =IF(OR(I18="",M18=""),"",ROUND(VLOOKUP(I18,直管換算!$B$4:$Q$26,3,FALSE)*M18,2)) ->  | AJ18: =IF(OR(I18="",N18=""),"",ROUND(VLOOKUP(I18,直管換算!$B$4:$Q$26,4,FALSE)*N18,2)) ->  | AK18: =IF(OR(I18="",O18=""),"",ROUND(VLOOKUP(I18,直管換算!$B$4:$Q$26,5,FALSE)*O18,2)) ->  | AL18: =IF(OR(I18="",P18=""),"",ROUND(VLOOKUP(I18,直管換算!$B$4:$Q$26,6,FALSE)*P18,2)) ->  | AM18: =IF(OR(I18="",Q18=""),"",ROUND(VLOOKUP(I18,直管換算!$B$4:$Q$26,7,FALSE)*Q18,2)) ->  | AN18: =IF(OR(I18="",R18=""),"",ROUND(VLOOKUP(I18,直管換算!$B$4:$Q$26,8,FALSE)*R18,2)) ->  | AO18: =IF(OR(I18="",S18=""),"",ROUND(VLOOKUP(I18,直管換算!$B$4:$Q$26,9,FALSE)*S18,2)) ->  | AP18: =IF(OR(I18="",T18=""),"",ROUND(VLOOKUP(I18,直管換算!$B$4:$Q$26,10,FALSE)*T18,2)) ->  | AQ18: =IF(OR(I18="",U18=""),"",ROUND(VLOOKUP(I18,直管換算!$B$4:$Q$26,11,FALSE)*U18,2)) ->  | AR18: =IF(OR(I18="",V18=""),"",ROUND(VLOOKUP(I18,直管換算!$B$4:$Q$26,12,FALSE)*V18,2)) ->  | AS18: =IF(OR(I18="",W18=""),"",ROUND(VLOOKUP(I18,直管換算!$B$4:$Q$26,13,FALSE)*W18,2)) ->  | AT18: =IF(OR(I18="",X18=""),"",ROUND(VLOOKUP(I18,直管換算!$B$4:$Q$26,14,FALSE)*X18,2)) ->  | AU18: =IF(OR(I18="",Y18=""),"",ROUND(VLOOKUP(I18,直管換算!$B$4:$Q$26,15,FALSE)*Y18,2)) ->  | AV18: =IF(OR(I18="",Z18=""),"",ROUND(VLOOKUP(I18,直管換算!$B$4:$Q$26,16,FALSE)*Z18,2)) ->  | AY18: 空 | BB18: =IF(OR(H18="",I18=""),"",0.35464*計算公式!$B$14*POWER(AC18/1000,0.63)*POWER(BC18/1000,0.54)) ->  | BC18: =IF(OR(H18="",I18=""),"",10.666*POWER(計算公式!$B$14,-1.85)*POWER(AC18/1000,-4.87)*POWER(H18/1000,1.85)*1000) ->  | BD18: =IF(内径設定!B12="","",内径設定!B12) -> 150
F19: 9 | AC19: =IF(I19="","",VLOOKUP(I19,内径設定!$B$4:$C$26,2,FALSE)) ->  | AD19: =IF(AC19="","",IF(OR(AND(AC19>計算公式!$B$9,計算公式!$D$9="超"),AND(AC19>=計算公式!$B$9,計算公式!$D$9="以上")),"H","W")) ->  | AH19: =IF(OR(I19="",L19=""),"",ROUND(VLOOKUP(I19,直管換算!$B$4:$Q$26,2,FALSE)*L19,2)) ->  | AI19: =IF(OR(I19="",M19=""),"",ROUND(VLOOKUP(I19,直管換算!$B$4:$Q$26,3,FALSE)*M19,2)) ->  | AJ19: =IF(OR(I19="",N19=""),"",ROUND(VLOOKUP(I19,直管換算!$B$4:$Q$26,4,FALSE)*N19,2)) ->  | AK19: =IF(OR(I19="",O19=""),"",ROUND(VLOOKUP(I19,直管換算!$B$4:$Q$26,5,FALSE)*O19,2)) ->  | AL19: =IF(OR(I19="",P19=""),"",ROUND(VLOOKUP(I19,直管換算!$B$4:$Q$26,6,FALSE)*P19,2)) ->  | AM19: =IF(OR(I19="",Q19=""),"",ROUND(VLOOKUP(I19,直管換算!$B$4:$Q$26,7,FALSE)*Q19,2)) ->  | AN19: =IF(OR(I19="",R19=""),"",ROUND(VLOOKUP(I19,直管換算!$B$4:$Q$26,8,FALSE)*R19,2)) ->  | AO19: =IF(OR(I19="",S19=""),"",ROUND(VLOOKUP(I19,直管換算!$B$4:$Q$26,9,FALSE)*S19,2)) ->  | AP19: =IF(OR(I19="",T19=""),"",ROUND(VLOOKUP(I19,直管換算!$B$4:$Q$26,10,FALSE)*T19,2)) ->  | AQ19: =IF(OR(I19="",U19=""),"",ROUND(VLOOKUP(I19,直管換算!$B$4:$Q$26,11,FALSE)*U19,2)) ->  | AR19: =IF(OR(I19="",V19=""),"",ROUND(VLOOKUP(I19,直管換算!$B$4:$Q$26,12,FALSE)*V19,2)) ->  | AS19: =IF(OR(I19="",W19=""),"",ROUND(VLOOKUP(I19,直管換算!$B$4:$Q$26,13,FALSE)*W19,2)) ->  | AT19: =IF(OR(I19="",X19=""),"",ROUND(VLOOKUP(I19,直管換算!$B$4:$Q$26,14,FALSE)*X19,2)) ->  | AU19: =IF(OR(I19="",Y19=""),"",ROUND(VLOOKUP(I19,直管換算!$B$4:$Q$26,15,FALSE)*Y19,2)) ->  | AV19: =IF(OR(I19="",Z19=""),"",ROUND(VLOOKUP(I19,直管換算!$B$4:$Q$26,16,FALSE)*Z19,2)) ->  | AY19: 空 | BB19: =IF(OR(H19="",I19=""),"",0.35464*計算公式!$B$14*POWER(AC19/1000,0.63)*POWER(BC19/1000,0.54)) ->  | BC19: =IF(OR(H19="",I19=""),"",10.666*POWER(計算公式!$B$14,-1.85)*POWER(AC19/1000,-4.87)*POWER(H19/1000,1.85)*1000) ->  | BD19: =IF(内径設定!B13="","",内径設定!B13) -> 200
F20: 10 | AC20: =IF(I20="","",VLOOKUP(I20,内径設定!$B$4:$C$26,2,FALSE)) ->  | AD20: =IF(AC20="","",IF(OR(AND(AC20>計算公式!$B$9,計算公式!$D$9="超"),AND(AC20>=計算公式!$B$9,計算公式!$D$9="以上")),"H","W")) ->  | AH20: =IF(OR(I20="",L20=""),"",ROUND(VLOOKUP(I20,直管換算!$B$4:$Q$26,2,FALSE)*L20,2)) ->  | AI20: =IF(OR(I20="",M20=""),"",ROUND(VLOOKUP(I20,直管換算!$B$4:$Q$26,3,FALSE)*M20,2)) ->  | AJ20: =IF(OR(I20="",N20=""),"",ROUND(VLOOKUP(I20,直管換算!$B$4:$Q$26,4,FALSE)*N20,2)) ->  | AK20: =IF(OR(I20="",O20=""),"",ROUND(VLOOKUP(I20,直管換算!$B$4:$Q$26,5,FALSE)*O20,2)) ->  | AL20: =IF(OR(I20="",P20=""),"",ROUND(VLOOKUP(I20,直管換算!$B$4:$Q$26,6,FALSE)*P20,2)) ->  | AM20: =IF(OR(I20="",Q20=""),"",ROUND(VLOOKUP(I20,直管換算!$B$4:$Q$26,7,FALSE)*Q20,2)) ->  | AN20: =IF(OR(I20="",R20=""),"",ROUND(VLOOKUP(I20,直管換算!$B$4:$Q$26,8,FALSE)*R20,2)) ->  | AO20: =IF(OR(I20="",S20=""),"",ROUND(VLOOKUP(I20,直管換算!$B$4:$Q$26,9,FALSE)*S20,2)) ->  | AP20: =IF(OR(I20="",T20=""),"",ROUND(VLOOKUP(I20,直管換算!$B$4:$Q$26,10,FALSE)*T20,2)) ->  | AQ20: =IF(OR(I20="",U20=""),"",ROUND(VLOOKUP(I20,直管換算!$B$4:$Q$26,11,FALSE)*U20,2)) ->  | AR20: =IF(OR(I20="",V20=""),"",ROUND(VLOOKUP(I20,直管換算!$B$4:$Q$26,12,FALSE)*V20,2)) ->  | AS20: =IF(OR(I20="",W20=""),"",ROUND(VLOOKUP(I20,直管換算!$B$4:$Q$26,13,FALSE)*W20,2)) ->  | AT20: =IF(OR(I20="",X20=""),"",ROUND(VLOOKUP(I20,直管換算!$B$4:$Q$26,14,FALSE)*X20,2)) ->  | AU20: =IF(OR(I20="",Y20=""),"",ROUND(VLOOKUP(I20,直管換算!$B$4:$Q$26,15,FALSE)*Y20,2)) ->  | AV20: =IF(OR(I20="",Z20=""),"",ROUND(VLOOKUP(I20,直管換算!$B$4:$Q$26,16,FALSE)*Z20,2)) ->  | AY20: 空 | BB20: =IF(OR(H20="",I20=""),"",0.35464*計算公式!$B$14*POWER(AC20/1000,0.63)*POWER(BC20/1000,0.54)) ->  | BC20: =IF(OR(H20="",I20=""),"",10.666*POWER(計算公式!$B$14,-1.85)*POWER(AC20/1000,-4.87)*POWER(H20/1000,1.85)*1000) ->  | BD20: =IF(内径設定!B14="","",内径設定!B14) -> 250
F21: 11 | AC21: =IF(I21="","",VLOOKUP(I21,内径設定!$B$4:$C$26,2,FALSE)) ->  | AD21: =IF(AC21="","",IF(OR(AND(AC21>計算公式!$B$9,計算公式!$D$9="超"),AND(AC21>=計算公式!$B$9,計算公式!$D$9="以上")),"H","W")) ->  | AH21: =IF(OR(I21="",L21=""),"",ROUND(VLOOKUP(I21,直管換算!$B$4:$Q$26,2,FALSE)*L21,2)) ->  | AI21: =IF(OR(I21="",M21=""),"",ROUND(VLOOKUP(I21,直管換算!$B$4:$Q$26,3,FALSE)*M21,2)) ->  | AJ21: =IF(OR(I21="",N21=""),"",ROUND(VLOOKUP(I21,直管換算!$B$4:$Q$26,4,FALSE)*N21,2)) ->  | AK21: =IF(OR(I21="",O21=""),"",ROUND(VLOOKUP(I21,直管換算!$B$4:$Q$26,5,FALSE)*O21,2)) ->  | AL21: =IF(OR(I21="",P21=""),"",ROUND(VLOOKUP(I21,直管換算!$B$4:$Q$26,6,FALSE)*P21,2)) ->  | AM21: =IF(OR(I21="",Q21=""),"",ROUND(VLOOKUP(I21,直管換算!$B$4:$Q$26,7,FALSE)*Q21,2)) ->  | AN21: =IF(OR(I21="",R21=""),"",ROUND(VLOOKUP(I21,直管換算!$B$4:$Q$26,8,FALSE)*R21,2)) ->  | AO21: =IF(OR(I21="",S21=""),"",ROUND(VLOOKUP(I21,直管換算!$B$4:$Q$26,9,FALSE)*S21,2)) ->  | AP21: =IF(OR(I21="",T21=""),"",ROUND(VLOOKUP(I21,直管換算!$B$4:$Q$26,10,FALSE)*T21,2)) ->  | AQ21: =IF(OR(I21="",U21=""),"",ROUND(VLOOKUP(I21,直管換算!$B$4:$Q$26,11,FALSE)*U21,2)) ->  | AR21: =IF(OR(I21="",V21=""),"",ROUND(VLOOKUP(I21,直管換算!$B$4:$Q$26,12,FALSE)*V21,2)) ->  | AS21: =IF(OR(I21="",W21=""),"",ROUND(VLOOKUP(I21,直管換算!$B$4:$Q$26,13,FALSE)*W21,2)) ->  | AT21: =IF(OR(I21="",X21=""),"",ROUND(VLOOKUP(I21,直管換算!$B$4:$Q$26,14,FALSE)*X21,2)) ->  | AU21: =IF(OR(I21="",Y21=""),"",ROUND(VLOOKUP(I21,直管換算!$B$4:$Q$26,15,FALSE)*Y21,2)) ->  | AV21: =IF(OR(I21="",Z21=""),"",ROUND(VLOOKUP(I21,直管換算!$B$4:$Q$26,16,FALSE)*Z21,2)) ->  | AY21: 空 | BB21: =IF(OR(H21="",I21=""),"",0.35464*計算公式!$B$14*POWER(AC21/1000,0.63)*POWER(BC21/1000,0.54)) ->  | BC21: =IF(OR(H21="",I21=""),"",10.666*POWER(計算公式!$B$14,-1.85)*POWER(AC21/1000,-4.87)*POWER(H21/1000,1.85)*1000) ->  | BD21: =IF(内径設定!B15="","",内径設定!B15) -> 300
F22: 12 | AC22: =IF(I22="","",VLOOKUP(I22,内径設定!$B$4:$C$26,2,FALSE)) ->  | AD22: =IF(AC22="","",IF(OR(AND(AC22>計算公式!$B$9,計算公式!$D$9="超"),AND(AC22>=計算公式!$B$9,計算公式!$D$9="以上")),"H","W")) ->  | AH22: =IF(OR(I22="",L22=""),"",ROUND(VLOOKUP(I22,直管換算!$B$4:$Q$26,2,FALSE)*L22,2)) ->  | AI22: =IF(OR(I22="",M22=""),"",ROUND(VLOOKUP(I22,直管換算!$B$4:$Q$26,3,FALSE)*M22,2)) ->  | AJ22: =IF(OR(I22="",N22=""),"",ROUND(VLOOKUP(I22,直管換算!$B$4:$Q$26,4,FALSE)*N22,2)) ->  | AK22: =IF(OR(I22="",O22=""),"",ROUND(VLOOKUP(I22,直管換算!$B$4:$Q$26,5,FALSE)*O22,2)) ->  | AL22: =IF(OR(I22="",P22=""),"",ROUND(VLOOKUP(I22,直管換算!$B$4:$Q$26,6,FALSE)*P22,2)) ->  | AM22: =IF(OR(I22="",Q22=""),"",ROUND(VLOOKUP(I22,直管換算!$B$4:$Q$26,7,FALSE)*Q22,2)) ->  | AN22: =IF(OR(I22="",R22=""),"",ROUND(VLOOKUP(I22,直管換算!$B$4:$Q$26,8,FALSE)*R22,2)) ->  | AO22: =IF(OR(I22="",S22=""),"",ROUND(VLOOKUP(I22,直管換算!$B$4:$Q$26,9,FALSE)*S22,2)) ->  | AP22: =IF(OR(I22="",T22=""),"",ROUND(VLOOKUP(I22,直管換算!$B$4:$Q$26,10,FALSE)*T22,2)) ->  | AQ22: =IF(OR(I22="",U22=""),"",ROUND(VLOOKUP(I22,直管換算!$B$4:$Q$26,11,FALSE)*U22,2)) ->  | AR22: =IF(OR(I22="",V22=""),"",ROUND(VLOOKUP(I22,直管換算!$B$4:$Q$26,12,FALSE)*V22,2)) ->  | AS22: =IF(OR(I22="",W22=""),"",ROUND(VLOOKUP(I22,直管換算!$B$4:$Q$26,13,FALSE)*W22,2)) ->  | AT22: =IF(OR(I22="",X22=""),"",ROUND(VLOOKUP(I22,直管換算!$B$4:$Q$26,14,FALSE)*X22,2)) ->  | AU22: =IF(OR(I22="",Y22=""),"",ROUND(VLOOKUP(I22,直管換算!$B$4:$Q$26,15,FALSE)*Y22,2)) ->  | AV22: =IF(OR(I22="",Z22=""),"",ROUND(VLOOKUP(I22,直管換算!$B$4:$Q$26,16,FALSE)*Z22,2)) ->  | AY22: 空 | BB22: =IF(OR(H22="",I22=""),"",0.35464*計算公式!$B$14*POWER(AC22/1000,0.63)*POWER(BC22/1000,0.54)) ->  | BC22: =IF(OR(H22="",I22=""),"",10.666*POWER(計算公式!$B$14,-1.85)*POWER(AC22/1000,-4.87)*POWER(H22/1000,1.85)*1000) ->  | BD22: =IF(内径設定!B16="","",内径設定!B16) -> 350
F23: 13 | AC23: =IF(I23="","",VLOOKUP(I23,内径設定!$B$4:$C$26,2,FALSE)) ->  | AD23: =IF(AC23="","",IF(OR(AND(AC23>計算公式!$B$9,計算公式!$D$9="超"),AND(AC23>=計算公式!$B$9,計算公式!$D$9="以上")),"H","W")) ->  | AH23: =IF(OR(I23="",L23=""),"",ROUND(VLOOKUP(I23,直管換算!$B$4:$Q$26,2,FALSE)*L23,2)) ->  | AI23: =IF(OR(I23="",M23=""),"",ROUND(VLOOKUP(I23,直管換算!$B$4:$Q$26,3,FALSE)*M23,2)) ->  | AJ23: =IF(OR(I23="",N23=""),"",ROUND(VLOOKUP(I23,直管換算!$B$4:$Q$26,4,FALSE)*N23,2)) ->  | AK23: =IF(OR(I23="",O23=""),"",ROUND(VLOOKUP(I23,直管換算!$B$4:$Q$26,5,FALSE)*O23,2)) ->  | AL23: =IF(OR(I23="",P23=""),"",ROUND(VLOOKUP(I23,直管換算!$B$4:$Q$26,6,FALSE)*P23,2)) ->  | AM23: =IF(OR(I23="",Q23=""),"",ROUND(VLOOKUP(I23,直管換算!$B$4:$Q$26,7,FALSE)*Q23,2)) ->  | AN23: =IF(OR(I23="",R23=""),"",ROUND(VLOOKUP(I23,直管換算!$B$4:$Q$26,8,FALSE)*R23,2)) ->  | AO23: =IF(OR(I23="",S23=""),"",ROUND(VLOOKUP(I23,直管換算!$B$4:$Q$26,9,FALSE)*S23,2)) ->  | AP23: =IF(OR(I23="",T23=""),"",ROUND(VLOOKUP(I23,直管換算!$B$4:$Q$26,10,FALSE)*T23,2)) ->  | AQ23: =IF(OR(I23="",U23=""),"",ROUND(VLOOKUP(I23,直管換算!$B$4:$Q$26,11,FALSE)*U23,2)) ->  | AR23: =IF(OR(I23="",V23=""),"",ROUND(VLOOKUP(I23,直管換算!$B$4:$Q$26,12,FALSE)*V23,2)) ->  | AS23: =IF(OR(I23="",W23=""),"",ROUND(VLOOKUP(I23,直管換算!$B$4:$Q$26,13,FALSE)*W23,2)) ->  | AT23: =IF(OR(I23="",X23=""),"",ROUND(VLOOKUP(I23,直管換算!$B$4:$Q$26,14,FALSE)*X23,2)) ->  | AU23: =IF(OR(I23="",Y23=""),"",ROUND(VLOOKUP(I23,直管換算!$B$4:$Q$26,15,FALSE)*Y23,2)) ->  | AV23: =IF(OR(I23="",Z23=""),"",ROUND(VLOOKUP(I23,直管換算!$B$4:$Q$26,16,FALSE)*Z23,2)) ->  | AY23: 空 | BB23: =IF(OR(H23="",I23=""),"",0.35464*計算公式!$B$14*POWER(AC23/1000,0.63)*POWER(BC23/1000,0.54)) ->  | BC23: =IF(OR(H23="",I23=""),"",10.666*POWER(計算公式!$B$14,-1.85)*POWER(AC23/1000,-4.87)*POWER(H23/1000,1.85)*1000) ->  | BD23: =IF(内径設定!B17="","",内径設定!B17) -> 10
F24: 14 | AC24: =IF(I24="","",VLOOKUP(I24,内径設定!$B$4:$C$26,2,FALSE)) ->  | AD24: =IF(AC24="","",IF(OR(AND(AC24>計算公式!$B$9,計算公式!$D$9="超"),AND(AC24>=計算公式!$B$9,計算公式!$D$9="以上")),"H","W")) ->  | AH24: =IF(OR(I24="",L24=""),"",ROUND(VLOOKUP(I24,直管換算!$B$4:$Q$26,2,FALSE)*L24,2)) ->  | AI24: =IF(OR(I24="",M24=""),"",ROUND(VLOOKUP(I24,直管換算!$B$4:$Q$26,3,FALSE)*M24,2)) ->  | AJ24: =IF(OR(I24="",N24=""),"",ROUND(VLOOKUP(I24,直管換算!$B$4:$Q$26,4,FALSE)*N24,2)) ->  | AK24: =IF(OR(I24="",O24=""),"",ROUND(VLOOKUP(I24,直管換算!$B$4:$Q$26,5,FALSE)*O24,2)) ->  | AL24: =IF(OR(I24="",P24=""),"",ROUND(VLOOKUP(I24,直管換算!$B$4:$Q$26,6,FALSE)*P24,2)) ->  | AM24: =IF(OR(I24="",Q24=""),"",ROUND(VLOOKUP(I24,直管換算!$B$4:$Q$26,7,FALSE)*Q24,2)) ->  | AN24: =IF(OR(I24="",R24=""),"",ROUND(VLOOKUP(I24,直管換算!$B$4:$Q$26,8,FALSE)*R24,2)) ->  | AO24: =IF(OR(I24="",S24=""),"",ROUND(VLOOKUP(I24,直管換算!$B$4:$Q$26,9,FALSE)*S24,2)) ->  | AP24: =IF(OR(I24="",T24=""),"",ROUND(VLOOKUP(I24,直管換算!$B$4:$Q$26,10,FALSE)*T24,2)) ->  | AQ24: =IF(OR(I24="",U24=""),"",ROUND(VLOOKUP(I24,直管換算!$B$4:$Q$26,11,FALSE)*U24,2)) ->  | AR24: =IF(OR(I24="",V24=""),"",ROUND(VLOOKUP(I24,直管換算!$B$4:$Q$26,12,FALSE)*V24,2)) ->  | AS24: =IF(OR(I24="",W24=""),"",ROUND(VLOOKUP(I24,直管換算!$B$4:$Q$26,13,FALSE)*W24,2)) ->  | AT24: =IF(OR(I24="",X24=""),"",ROUND(VLOOKUP(I24,直管換算!$B$4:$Q$26,14,FALSE)*X24,2)) ->  | AU24: =IF(OR(I24="",Y24=""),"",ROUND(VLOOKUP(I24,直管換算!$B$4:$Q$26,15,FALSE)*Y24,2)) ->  | AV24: =IF(OR(I24="",Z24=""),"",ROUND(VLOOKUP(I24,直管換算!$B$4:$Q$26,16,FALSE)*Z24,2)) ->  | AY24: 空 | BB24: =IF(OR(H24="",I24=""),"",0.35464*計算公式!$B$14*POWER(AC24/1000,0.63)*POWER(BC24/1000,0.54)) ->  | BC24: =IF(OR(H24="",I24=""),"",10.666*POWER(計算公式!$B$14,-1.85)*POWER(AC24/1000,-4.87)*POWER(H24/1000,1.85)*1000) ->  | BD24: =IF(内径設定!B18="","",内径設定!B18) -> 16
F25: 15 | AC25: =IF(I25="","",VLOOKUP(I25,内径設定!$B$4:$C$26,2,FALSE)) ->  | AD25: =IF(AC25="","",IF(OR(AND(AC25>計算公式!$B$9,計算公式!$D$9="超"),AND(AC25>=計算公式!$B$9,計算公式!$D$9="以上")),"H","W")) ->  | AH25: =IF(OR(I25="",L25=""),"",ROUND(VLOOKUP(I25,直管換算!$B$4:$Q$26,2,FALSE)*L25,2)) ->  | AI25: =IF(OR(I25="",M25=""),"",ROUND(VLOOKUP(I25,直管換算!$B$4:$Q$26,3,FALSE)*M25,2)) ->  | AJ25: =IF(OR(I25="",N25=""),"",ROUND(VLOOKUP(I25,直管換算!$B$4:$Q$26,4,FALSE)*N25,2)) ->  | AK25: =IF(OR(I25="",O25=""),"",ROUND(VLOOKUP(I25,直管換算!$B$4:$Q$26,5,FALSE)*O25,2)) ->  | AL25: =IF(OR(I25="",P25=""),"",ROUND(VLOOKUP(I25,直管換算!$B$4:$Q$26,6,FALSE)*P25,2)) ->  | AM25: =IF(OR(I25="",Q25=""),"",ROUND(VLOOKUP(I25,直管換算!$B$4:$Q$26,7,FALSE)*Q25,2)) ->  | AN25: =IF(OR(I25="",R25=""),"",ROUND(VLOOKUP(I25,直管換算!$B$4:$Q$26,8,FALSE)*R25,2)) ->  | AO25: =IF(OR(I25="",S25=""),"",ROUND(VLOOKUP(I25,直管換算!$B$4:$Q$26,9,FALSE)*S25,2)) ->  | AP25: =IF(OR(I25="",T25=""),"",ROUND(VLOOKUP(I25,直管換算!$B$4:$Q$26,10,FALSE)*T25,2)) ->  | AQ25: =IF(OR(I25="",U25=""),"",ROUND(VLOOKUP(I25,直管換算!$B$4:$Q$26,11,FALSE)*U25,2)) ->  | AR25: =IF(OR(I25="",V25=""),"",ROUND(VLOOKUP(I25,直管換算!$B$4:$Q$26,12,FALSE)*V25,2)) ->  | AS25: =IF(OR(I25="",W25=""),"",ROUND(VLOOKUP(I25,直管換算!$B$4:$Q$26,13,FALSE)*W25,2)) ->  | AT25: =IF(OR(I25="",X25=""),"",ROUND(VLOOKUP(I25,直管換算!$B$4:$Q$26,14,FALSE)*X25,2)) ->  | AU25: =IF(OR(I25="",Y25=""),"",ROUND(VLOOKUP(I25,直管換算!$B$4:$Q$26,15,FALSE)*Y25,2)) ->  | AV25: =IF(OR(I25="",Z25=""),"",ROUND(VLOOKUP(I25,直管換算!$B$4:$Q$26,16,FALSE)*Z25,2)) ->  | AY25: 空 | BB25: =IF(OR(H25="",I25=""),"",0.35464*計算公式!$B$14*POWER(AC25/1000,0.63)*POWER(BC25/1000,0.54)) ->  | BC25: =IF(OR(H25="",I25=""),"",10.666*POWER(計算公式!$B$14,-1.85)*POWER(AC25/1000,-4.87)*POWER(H25/1000,1.85)*1000) ->  | BD25: =IF(内径設定!B19="","",内径設定!B19) -> 
F26: 16 | AC26: =IF(I26="","",VLOOKUP(I26,内径設定!$B$4:$C$26,2,FALSE)) ->  | AD26: =IF(AC26="","",IF(OR(AND(AC26>計算公式!$B$9,計算公式!$D$9="超"),AND(AC26>=計算公式!$B$9,計算公式!$D$9="以上")),"H","W")) ->  | AH26: =IF(OR(I26="",L26=""),"",ROUND(VLOOKUP(I26,直管換算!$B$4:$Q$26,2,FALSE)*L26,2)) ->  | AI26: =IF(OR(I26="",M26=""),"",ROUND(VLOOKUP(I26,直管換算!$B$4:$Q$26,3,FALSE)*M26,2)) ->  | AJ26: =IF(OR(I26="",N26=""),"",ROUND(VLOOKUP(I26,直管換算!$B$4:$Q$26,4,FALSE)*N26,2)) ->  | AK26: =IF(OR(I26="",O26=""),"",ROUND(VLOOKUP(I26,直管換算!$B$4:$Q$26,5,FALSE)*O26,2)) ->  | AL26: =IF(OR(I26="",P26=""),"",ROUND(VLOOKUP(I26,直管換算!$B$4:$Q$26,6,FALSE)*P26,2)) ->  | AM26: =IF(OR(I26="",Q26=""),"",ROUND(VLOOKUP(I26,直管換算!$B$4:$Q$26,7,FALSE)*Q26,2)) ->  | AN26: =IF(OR(I26="",R26=""),"",ROUND(VLOOKUP(I26,直管換算!$B$4:$Q$26,8,FALSE)*R26,2)) ->  | AO26: =IF(OR(I26="",S26=""),"",ROUND(VLOOKUP(I26,直管換算!$B$4:$Q$26,9,FALSE)*S26,2)) ->  | AP26: =IF(OR(I26="",T26=""),"",ROUND(VLOOKUP(I26,直管換算!$B$4:$Q$26,10,FALSE)*T26,2)) ->  | AQ26: =IF(OR(I26="",U26=""),"",ROUND(VLOOKUP(I26,直管換算!$B$4:$Q$26,11,FALSE)*U26,2)) ->  | AR26: =IF(OR(I26="",V26=""),"",ROUND(VLOOKUP(I26,直管換算!$B$4:$Q$26,12,FALSE)*V26,2)) ->  | AS26: =IF(OR(I26="",W26=""),"",ROUND(VLOOKUP(I26,直管換算!$B$4:$Q$26,13,FALSE)*W26,2)) ->  | AT26: =IF(OR(I26="",X26=""),"",ROUND(VLOOKUP(I26,直管換算!$B$4:$Q$26,14,FALSE)*X26,2)) ->  | AU26: =IF(OR(I26="",Y26=""),"",ROUND(VLOOKUP(I26,直管換算!$B$4:$Q$26,15,FALSE)*Y26,2)) ->  | AV26: =IF(OR(I26="",Z26=""),"",ROUND(VLOOKUP(I26,直管換算!$B$4:$Q$26,16,FALSE)*Z26,2)) ->  | AY26: 空 | BB26: =IF(OR(H26="",I26=""),"",0.35464*計算公式!$B$14*POWER(AC26/1000,0.63)*POWER(BC26/1000,0.54)) ->  | BC26: =IF(OR(H26="",I26=""),"",10.666*POWER(計算公式!$B$14,-1.85)*POWER(AC26/1000,-4.87)*POWER(H26/1000,1.85)*1000) ->  | BD26: =IF(内径設定!B20="","",内径設定!B20) -> 
F27: 17 | AC27: =IF(I27="","",VLOOKUP(I27,内径設定!$B$4:$C$26,2,FALSE)) ->  | AD27: =IF(AC27="","",IF(OR(AND(AC27>計算公式!$B$9,計算公式!$D$9="超"),AND(AC27>=計算公式!$B$9,計算公式!$D$9="以上")),"H","W")) ->  | AH27: =IF(OR(I27="",L27=""),"",ROUND(VLOOKUP(I27,直管換算!$B$4:$Q$26,2,FALSE)*L27,2)) ->  | AI27: =IF(OR(I27="",M27=""),"",ROUND(VLOOKUP(I27,直管換算!$B$4:$Q$26,3,FALSE)*M27,2)) ->  | AJ27: =IF(OR(I27="",N27=""),"",ROUND(VLOOKUP(I27,直管換算!$B$4:$Q$26,4,FALSE)*N27,2)) ->  | AK27: =IF(OR(I27="",O27=""),"",ROUND(VLOOKUP(I27,直管換算!$B$4:$Q$26,5,FALSE)*O27,2)) ->  | AL27: =IF(OR(I27="",P27=""),"",ROUND(VLOOKUP(I27,直管換算!$B$4:$Q$26,6,FALSE)*P27,2)) ->  | AM27: =IF(OR(I27="",Q27=""),"",ROUND(VLOOKUP(I27,直管換算!$B$4:$Q$26,7,FALSE)*Q27,2)) ->  | AN27: =IF(OR(I27="",R27=""),"",ROUND(VLOOKUP(I27,直管換算!$B$4:$Q$26,8,FALSE)*R27,2)) ->  | AO27: =IF(OR(I27="",S27=""),"",ROUND(VLOOKUP(I27,直管換算!$B$4:$Q$26,9,FALSE)*S27,2)) ->  | AP27: =IF(OR(I27="",T27=""),"",ROUND(VLOOKUP(I27,直管換算!$B$4:$Q$26,10,FALSE)*T27,2)) ->  | AQ27: =IF(OR(I27="",U27=""),"",ROUND(VLOOKUP(I27,直管換算!$B$4:$Q$26,11,FALSE)*U27,2)) ->  | AR27: =IF(OR(I27="",V27=""),"",ROUND(VLOOKUP(I27,直管換算!$B$4:$Q$26,12,FALSE)*V27,2)) ->  | AS27: =IF(OR(I27="",W27=""),"",ROUND(VLOOKUP(I27,直管換算!$B$4:$Q$26,13,FALSE)*W27,2)) ->  | AT27: =IF(OR(I27="",X27=""),"",ROUND(VLOOKUP(I27,直管換算!$B$4:$Q$26,14,FALSE)*X27,2)) ->  | AU27: =IF(OR(I27="",Y27=""),"",ROUND(VLOOKUP(I27,直管換算!$B$4:$Q$26,15,FALSE)*Y27,2)) ->  | AV27: =IF(OR(I27="",Z27=""),"",ROUND(VLOOKUP(I27,直管換算!$B$4:$Q$26,16,FALSE)*Z27,2)) ->  | AY27: 空 | BB27: =IF(OR(H27="",I27=""),"",0.35464*計算公式!$B$14*POWER(AC27/1000,0.63)*POWER(BC27/1000,0.54)) ->  | BC27: =IF(OR(H27="",I27=""),"",10.666*POWER(計算公式!$B$14,-1.85)*POWER(AC27/1000,-4.87)*POWER(H27/1000,1.85)*1000) ->  | BD27: =IF(内径設定!B21="","",内径設定!B21) -> 
F28: 18 | AC28: =IF(I28="","",VLOOKUP(I28,内径設定!$B$4:$C$26,2,FALSE)) ->  | AD28: =IF(AC28="","",IF(OR(AND(AC28>計算公式!$B$9,計算公式!$D$9="超"),AND(AC28>=計算公式!$B$9,計算公式!$D$9="以上")),"H","W")) ->  | AH28: =IF(OR(I28="",L28=""),"",ROUND(VLOOKUP(I28,直管換算!$B$4:$Q$26,2,FALSE)*L28,2)) ->  | AI28: =IF(OR(I28="",M28=""),"",ROUND(VLOOKUP(I28,直管換算!$B$4:$Q$26,3,FALSE)*M28,2)) ->  | AJ28: =IF(OR(I28="",N28=""),"",ROUND(VLOOKUP(I28,直管換算!$B$4:$Q$26,4,FALSE)*N28,2)) ->  | AK28: =IF(OR(I28="",O28=""),"",ROUND(VLOOKUP(I28,直管換算!$B$4:$Q$26,5,FALSE)*O28,2)) ->  | AL28: =IF(OR(I28="",P28=""),"",ROUND(VLOOKUP(I28,直管換算!$B$4:$Q$26,6,FALSE)*P28,2)) ->  | AM28: =IF(OR(I28="",Q28=""),"",ROUND(VLOOKUP(I28,直管換算!$B$4:$Q$26,7,FALSE)*Q28,2)) ->  | AN28: =IF(OR(I28="",R28=""),"",ROUND(VLOOKUP(I28,直管換算!$B$4:$Q$26,8,FALSE)*R28,2)) ->  | AO28: =IF(OR(I28="",S28=""),"",ROUND(VLOOKUP(I28,直管換算!$B$4:$Q$26,9,FALSE)*S28,2)) ->  | AP28: =IF(OR(I28="",T28=""),"",ROUND(VLOOKUP(I28,直管換算!$B$4:$Q$26,10,FALSE)*T28,2)) ->  | AQ28: =IF(OR(I28="",U28=""),"",ROUND(VLOOKUP(I28,直管換算!$B$4:$Q$26,11,FALSE)*U28,2)) ->  | AR28: =IF(OR(I28="",V28=""),"",ROUND(VLOOKUP(I28,直管換算!$B$4:$Q$26,12,FALSE)*V28,2)) ->  | AS28: =IF(OR(I28="",W28=""),"",ROUND(VLOOKUP(I28,直管換算!$B$4:$Q$26,13,FALSE)*W28,2)) ->  | AT28: =IF(OR(I28="",X28=""),"",ROUND(VLOOKUP(I28,直管換算!$B$4:$Q$26,14,FALSE)*X28,2)) ->  | AU28: =IF(OR(I28="",Y28=""),"",ROUND(VLOOKUP(I28,直管換算!$B$4:$Q$26,15,FALSE)*Y28,2)) ->  | AV28: =IF(OR(I28="",Z28=""),"",ROUND(VLOOKUP(I28,直管換算!$B$4:$Q$26,16,FALSE)*Z28,2)) ->  | AY28: 空 | BB28: =IF(OR(H28="",I28=""),"",0.35464*計算公式!$B$14*POWER(AC28/1000,0.63)*POWER(BC28/1000,0.54)) ->  | BC28: =IF(OR(H28="",I28=""),"",10.666*POWER(計算公式!$B$14,-1.85)*POWER(AC28/1000,-4.87)*POWER(H28/1000,1.85)*1000) ->  | BD28: =IF(内径設定!B22="","",内径設定!B22) -> 
F29: 19 | AC29: =IF(I29="","",VLOOKUP(I29,内径設定!$B$4:$C$26,2,FALSE)) ->  | AD29: =IF(AC29="","",IF(OR(AND(AC29>計算公式!$B$9,計算公式!$D$9="超"),AND(AC29>=計算公式!$B$9,計算公式!$D$9="以上")),"H","W")) ->  | AH29: =IF(OR(I29="",L29=""),"",ROUND(VLOOKUP(I29,直管換算!$B$4:$Q$26,2,FALSE)*L29,2)) ->  | AI29: =IF(OR(I29="",M29=""),"",ROUND(VLOOKUP(I29,直管換算!$B$4:$Q$26,3,FALSE)*M29,2)) ->  | AJ29: =IF(OR(I29="",N29=""),"",ROUND(VLOOKUP(I29,直管換算!$B$4:$Q$26,4,FALSE)*N29,2)) ->  | AK29: =IF(OR(I29="",O29=""),"",ROUND(VLOOKUP(I29,直管換算!$B$4:$Q$26,5,FALSE)*O29,2)) ->  | AL29: =IF(OR(I29="",P29=""),"",ROUND(VLOOKUP(I29,直管換算!$B$4:$Q$26,6,FALSE)*P29,2)) ->  | AM29: =IF(OR(I29="",Q29=""),"",ROUND(VLOOKUP(I29,直管換算!$B$4:$Q$26,7,FALSE)*Q29,2)) ->  | AN29: =IF(OR(I29="",R29=""),"",ROUND(VLOOKUP(I29,直管換算!$B$4:$Q$26,8,FALSE)*R29,2)) ->  | AO29: =IF(OR(I29="",S29=""),"",ROUND(VLOOKUP(I29,直管換算!$B$4:$Q$26,9,FALSE)*S29,2)) ->  | AP29: =IF(OR(I29="",T29=""),"",ROUND(VLOOKUP(I29,直管換算!$B$4:$Q$26,10,FALSE)*T29,2)) ->  | AQ29: =IF(OR(I29="",U29=""),"",ROUND(VLOOKUP(I29,直管換算!$B$4:$Q$26,11,FALSE)*U29,2)) ->  | AR29: =IF(OR(I29="",V29=""),"",ROUND(VLOOKUP(I29,直管換算!$B$4:$Q$26,12,FALSE)*V29,2)) ->  | AS29: =IF(OR(I29="",W29=""),"",ROUND(VLOOKUP(I29,直管換算!$B$4:$Q$26,13,FALSE)*W29,2)) ->  | AT29: =IF(OR(I29="",X29=""),"",ROUND(VLOOKUP(I29,直管換算!$B$4:$Q$26,14,FALSE)*X29,2)) ->  | AU29: =IF(OR(I29="",Y29=""),"",ROUND(VLOOKUP(I29,直管換算!$B$4:$Q$26,15,FALSE)*Y29,2)) ->  | AV29: =IF(OR(I29="",Z29=""),"",ROUND(VLOOKUP(I29,直管換算!$B$4:$Q$26,16,FALSE)*Z29,2)) ->  | AY29: 空 | BB29: =IF(OR(H29="",I29=""),"",0.35464*計算公式!$B$14*POWER(AC29/1000,0.63)*POWER(BC29/1000,0.54)) ->  | BC29: =IF(OR(H29="",I29=""),"",10.666*POWER(計算公式!$B$14,-1.85)*POWER(AC29/1000,-4.87)*POWER(H29/1000,1.85)*1000) ->  | BD29: =IF(内径設定!B23="","",内径設定!B23) -> 
F30: 20 | AC30: =IF(I30="","",VLOOKUP(I30,内径設定!$B$4:$C$26,2,FALSE)) ->  | AD30: =IF(AC30="","",IF(OR(AND(AC30>計算公式!$B$9,計算公式!$D$9="超"),AND(AC30>=計算公式!$B$9,計算公式!$D$9="以上")),"H","W")) ->  | AH30: =IF(OR(I30="",L30=""),"",ROUND(VLOOKUP(I30,直管換算!$B$4:$Q$26,2,FALSE)*L30,2)) ->  | AI30: =IF(OR(I30="",M30=""),"",ROUND(VLOOKUP(I30,直管換算!$B$4:$Q$26,3,FALSE)*M30,2)) ->  | AJ30: =IF(OR(I30="",N30=""),"",ROUND(VLOOKUP(I30,直管換算!$B$4:$Q$26,4,FALSE)*N30,2)) ->  | AK30: =IF(OR(I30="",O30=""),"",ROUND(VLOOKUP(I30,直管換算!$B$4:$Q$26,5,FALSE)*O30,2)) ->  | AL30: =IF(OR(I30="",P30=""),"",ROUND(VLOOKUP(I30,直管換算!$B$4:$Q$26,6,FALSE)*P30,2)) ->  | AM30: =IF(OR(I30="",Q30=""),"",ROUND(VLOOKUP(I30,直管換算!$B$4:$Q$26,7,FALSE)*Q30,2)) ->  | AN30: =IF(OR(I30="",R30=""),"",ROUND(VLOOKUP(I30,直管換算!$B$4:$Q$26,8,FALSE)*R30,2)) ->  | AO30: =IF(OR(I30="",S30=""),"",ROUND(VLOOKUP(I30,直管換算!$B$4:$Q$26,9,FALSE)*S30,2)) ->  | AP30: =IF(OR(I30="",T30=""),"",ROUND(VLOOKUP(I30,直管換算!$B$4:$Q$26,10,FALSE)*T30,2)) ->  | AQ30: =IF(OR(I30="",U30=""),"",ROUND(VLOOKUP(I30,直管換算!$B$4:$Q$26,11,FALSE)*U30,2)) ->  | AR30: =IF(OR(I30="",V30=""),"",ROUND(VLOOKUP(I30,直管換算!$B$4:$Q$26,12,FALSE)*V30,2)) ->  | AS30: =IF(OR(I30="",W30=""),"",ROUND(VLOOKUP(I30,直管換算!$B$4:$Q$26,13,FALSE)*W30,2)) ->  | AT30: =IF(OR(I30="",X30=""),"",ROUND(VLOOKUP(I30,直管換算!$B$4:$Q$26,14,FALSE)*X30,2)) ->  | AU30: =IF(OR(I30="",Y30=""),"",ROUND(VLOOKUP(I30,直管換算!$B$4:$Q$26,15,FALSE)*Y30,2)) ->  | AV30: =IF(OR(I30="",Z30=""),"",ROUND(VLOOKUP(I30,直管換算!$B$4:$Q$26,16,FALSE)*Z30,2)) ->  | AY30: 空 | BB30: =IF(OR(H30="",I30=""),"",0.35464*計算公式!$B$14*POWER(AC30/1000,0.63)*POWER(BC30/1000,0.54)) ->  | BC30: =IF(OR(H30="",I30=""),"",10.666*POWER(計算公式!$B$14,-1.85)*POWER(AC30/1000,-4.87)*POWER(H30/1000,1.85)*1000) ->  | BD30: =IF(内径設定!B24="","",内径設定!B24) -> 
F31: 21 | AC31: =IF(I31="","",VLOOKUP(I31,内径設定!$B$4:$C$26,2,FALSE)) ->  | AD31: =IF(AC31="","",IF(OR(AND(AC31>計算公式!$B$9,計算公式!$D$9="超"),AND(AC31>=計算公式!$B$9,計算公式!$D$9="以上")),"H","W")) ->  | AH31: =IF(OR(I31="",L31=""),"",ROUND(VLOOKUP(I31,直管換算!$B$4:$Q$26,2,FALSE)*L31,2)) ->  | AI31: =IF(OR(I31="",M31=""),"",ROUND(VLOOKUP(I31,直管換算!$B$4:$Q$26,3,FALSE)*M31,2)) ->  | AJ31: =IF(OR(I31="",N31=""),"",ROUND(VLOOKUP(I31,直管換算!$B$4:$Q$26,4,FALSE)*N31,2)) ->  | AK31: =IF(OR(I31="",O31=""),"",ROUND(VLOOKUP(I31,直管換算!$B$4:$Q$26,5,FALSE)*O31,2)) ->  | AL31: =IF(OR(I31="",P31=""),"",ROUND(VLOOKUP(I31,直管換算!$B$4:$Q$26,6,FALSE)*P31,2)) ->  | AM31: =IF(OR(I31="",Q31=""),"",ROUND(VLOOKUP(I31,直管換算!$B$4:$Q$26,7,FALSE)*Q31,2)) ->  | AN31: =IF(OR(I31="",R31=""),"",ROUND(VLOOKUP(I31,直管換算!$B$4:$Q$26,8,FALSE)*R31,2)) ->  | AO31: =IF(OR(I31="",S31=""),"",ROUND(VLOOKUP(I31,直管換算!$B$4:$Q$26,9,FALSE)*S31,2)) ->  | AP31: =IF(OR(I31="",T31=""),"",ROUND(VLOOKUP(I31,直管換算!$B$4:$Q$26,10,FALSE)*T31,2)) ->  | AQ31: =IF(OR(I31="",U31=""),"",ROUND(VLOOKUP(I31,直管換算!$B$4:$Q$26,11,FALSE)*U31,2)) ->  | AR31: =IF(OR(I31="",V31=""),"",ROUND(VLOOKUP(I31,直管換算!$B$4:$Q$26,12,FALSE)*V31,2)) ->  | AS31: =IF(OR(I31="",W31=""),"",ROUND(VLOOKUP(I31,直管換算!$B$4:$Q$26,13,FALSE)*W31,2)) ->  | AT31: =IF(OR(I31="",X31=""),"",ROUND(VLOOKUP(I31,直管換算!$B$4:$Q$26,14,FALSE)*X31,2)) ->  | AU31: =IF(OR(I31="",Y31=""),"",ROUND(VLOOKUP(I31,直管換算!$B$4:$Q$26,15,FALSE)*Y31,2)) ->  | AV31: =IF(OR(I31="",Z31=""),"",ROUND(VLOOKUP(I31,直管換算!$B$4:$Q$26,16,FALSE)*Z31,2)) ->  | AY31: 空 | BB31: =IF(OR(H31="",I31=""),"",0.35464*計算公式!$B$14*POWER(AC31/1000,0.63)*POWER(BC31/1000,0.54)) ->  | BC31: =IF(OR(H31="",I31=""),"",10.666*POWER(計算公式!$B$14,-1.85)*POWER(AC31/1000,-4.87)*POWER(H31/1000,1.85)*1000) ->  | BD31: =IF(内径設定!B25="","",内径設定!B25) -> 
F32: 22 | AC32: =IF(I32="","",VLOOKUP(I32,内径設定!$B$4:$C$26,2,FALSE)) ->  | AD32: =IF(AC32="","",IF(OR(AND(AC32>計算公式!$B$9,計算公式!$D$9="超"),AND(AC32>=計算公式!$B$9,計算公式!$D$9="以上")),"H","W")) ->  | AH32: =IF(OR(I32="",L32=""),"",ROUND(VLOOKUP(I32,直管換算!$B$4:$Q$26,2,FALSE)*L32,2)) ->  | AI32: =IF(OR(I32="",M32=""),"",ROUND(VLOOKUP(I32,直管換算!$B$4:$Q$26,3,FALSE)*M32,2)) ->  | AJ32: =IF(OR(I32="",N32=""),"",ROUND(VLOOKUP(I32,直管換算!$B$4:$Q$26,4,FALSE)*N32,2)) ->  | AK32: =IF(OR(I32="",O32=""),"",ROUND(VLOOKUP(I32,直管換算!$B$4:$Q$26,5,FALSE)*O32,2)) ->  | AL32: =IF(OR(I32="",P32=""),"",ROUND(VLOOKUP(I32,直管換算!$B$4:$Q$26,6,FALSE)*P32,2)) ->  | AM32: =IF(OR(I32="",Q32=""),"",ROUND(VLOOKUP(I32,直管換算!$B$4:$Q$26,7,FALSE)*Q32,2)) ->  | AN32: =IF(OR(I32="",R32=""),"",ROUND(VLOOKUP(I32,直管換算!$B$4:$Q$26,8,FALSE)*R32,2)) ->  | AO32: =IF(OR(I32="",S32=""),"",ROUND(VLOOKUP(I32,直管換算!$B$4:$Q$26,9,FALSE)*S32,2)) ->  | AP32: =IF(OR(I32="",T32=""),"",ROUND(VLOOKUP(I32,直管換算!$B$4:$Q$26,10,FALSE)*T32,2)) ->  | AQ32: =IF(OR(I32="",U32=""),"",ROUND(VLOOKUP(I32,直管換算!$B$4:$Q$26,11,FALSE)*U32,2)) ->  | AR32: =IF(OR(I32="",V32=""),"",ROUND(VLOOKUP(I32,直管換算!$B$4:$Q$26,12,FALSE)*V32,2)) ->  | AS32: =IF(OR(I32="",W32=""),"",ROUND(VLOOKUP(I32,直管換算!$B$4:$Q$26,13,FALSE)*W32,2)) ->  | AT32: =IF(OR(I32="",X32=""),"",ROUND(VLOOKUP(I32,直管換算!$B$4:$Q$26,14,FALSE)*X32,2)) ->  | AU32: =IF(OR(I32="",Y32=""),"",ROUND(VLOOKUP(I32,直管換算!$B$4:$Q$26,15,FALSE)*Y32,2)) ->  | AV32: =IF(OR(I32="",Z32=""),"",ROUND(VLOOKUP(I32,直管換算!$B$4:$Q$26,16,FALSE)*Z32,2)) ->  | AY32: 空 | BB32: =IF(OR(H32="",I32=""),"",0.35464*計算公式!$B$14*POWER(AC32/1000,0.63)*POWER(BC32/1000,0.54)) ->  | BC32: =IF(OR(H32="",I32=""),"",10.666*POWER(計算公式!$B$14,-1.85)*POWER(AC32/1000,-4.87)*POWER(H32/1000,1.85)*1000) ->  | BD32: =IF(内径設定!B26="","",内径設定!B26) -> 
F33: 23 | AC33: =IF(I33="","",VLOOKUP(I33,内径設定!$B$4:$C$26,2,FALSE)) ->  | AD33: =IF(AC33="","",IF(OR(AND(AC33>計算公式!$B$9,計算公式!$D$9="超"),AND(AC33>=計算公式!$B$9,計算公式!$D$9="以上")),"H","W")) ->  | AH33: =IF(OR(I33="",L33=""),"",ROUND(VLOOKUP(I33,直管換算!$B$4:$Q$26,2,FALSE)*L33,2)) ->  | AI33: =IF(OR(I33="",M33=""),"",ROUND(VLOOKUP(I33,直管換算!$B$4:$Q$26,3,FALSE)*M33,2)) ->  | AJ33: =IF(OR(I33="",N33=""),"",ROUND(VLOOKUP(I33,直管換算!$B$4:$Q$26,4,FALSE)*N33,2)) ->  | AK33: =IF(OR(I33="",O33=""),"",ROUND(VLOOKUP(I33,直管換算!$B$4:$Q$26,5,FALSE)*O33,2)) ->  | AL33: =IF(OR(I33="",P33=""),"",ROUND(VLOOKUP(I33,直管換算!$B$4:$Q$26,6,FALSE)*P33,2)) ->  | AM33: =IF(OR(I33="",Q33=""),"",ROUND(VLOOKUP(I33,直管換算!$B$4:$Q$26,7,FALSE)*Q33,2)) ->  | AN33: =IF(OR(I33="",R33=""),"",ROUND(VLOOKUP(I33,直管換算!$B$4:$Q$26,8,FALSE)*R33,2)) ->  | AO33: =IF(OR(I33="",S33=""),"",ROUND(VLOOKUP(I33,直管換算!$B$4:$Q$26,9,FALSE)*S33,2)) ->  | AP33: =IF(OR(I33="",T33=""),"",ROUND(VLOOKUP(I33,直管換算!$B$4:$Q$26,10,FALSE)*T33,2)) ->  | AQ33: =IF(OR(I33="",U33=""),"",ROUND(VLOOKUP(I33,直管換算!$B$4:$Q$26,11,FALSE)*U33,2)) ->  | AR33: =IF(OR(I33="",V33=""),"",ROUND(VLOOKUP(I33,直管換算!$B$4:$Q$26,12,FALSE)*V33,2)) ->  | AS33: =IF(OR(I33="",W33=""),"",ROUND(VLOOKUP(I33,直管換算!$B$4:$Q$26,13,FALSE)*W33,2)) ->  | AT33: =IF(OR(I33="",X33=""),"",ROUND(VLOOKUP(I33,直管換算!$B$4:$Q$26,14,FALSE)*X33,2)) ->  | AU33: =IF(OR(I33="",Y33=""),"",ROUND(VLOOKUP(I33,直管換算!$B$4:$Q$26,15,FALSE)*Y33,2)) ->  | AV33: =IF(OR(I33="",Z33=""),"",ROUND(VLOOKUP(I33,直管換算!$B$4:$Q$26,16,FALSE)*Z33,2)) ->  | AY33: 空 | BB33: =IF(OR(H33="",I33=""),"",0.35464*計算公式!$B$14*POWER(AC33/1000,0.63)*POWER(BC33/1000,0.54)) ->  | BC33: =IF(OR(H33="",I33=""),"",10.666*POWER(計算公式!$B$14,-1.85)*POWER(AC33/1000,-4.87)*POWER(H33/1000,1.85)*1000) -> 
F34: 24 | AC34: =IF(I34="","",VLOOKUP(I34,内径設定!$B$4:$C$26,2,FALSE)) ->  | AD34: =IF(AC34="","",IF(OR(AND(AC34>計算公式!$B$9,計算公式!$D$9="超"),AND(AC34>=計算公式!$B$9,計算公式!$D$9="以上")),"H","W")) ->  | AH34: =IF(OR(I34="",L34=""),"",ROUND(VLOOKUP(I34,直管換算!$B$4:$Q$26,2,FALSE)*L34,2)) ->  | AI34: =IF(OR(I34="",M34=""),"",ROUND(VLOOKUP(I34,直管換算!$B$4:$Q$26,3,FALSE)*M34,2)) ->  | AJ34: =IF(OR(I34="",N34=""),"",ROUND(VLOOKUP(I34,直管換算!$B$4:$Q$26,4,FALSE)*N34,2)) ->  | AK34: =IF(OR(I34="",O34=""),"",ROUND(VLOOKUP(I34,直管換算!$B$4:$Q$26,5,FALSE)*O34,2)) ->  | AL34: =IF(OR(I34="",P34=""),"",ROUND(VLOOKUP(I34,直管換算!$B$4:$Q$26,6,FALSE)*P34,2)) ->  | AM34: =IF(OR(I34="",Q34=""),"",ROUND(VLOOKUP(I34,直管換算!$B$4:$Q$26,7,FALSE)*Q34,2)) ->  | AN34: =IF(OR(I34="",R34=""),"",ROUND(VLOOKUP(I34,直管換算!$B$4:$Q$26,8,FALSE)*R34,2)) ->  | AO34: =IF(OR(I34="",S34=""),"",ROUND(VLOOKUP(I34,直管換算!$B$4:$Q$26,9,FALSE)*S34,2)) ->  | AP34: =IF(OR(I34="",T34=""),"",ROUND(VLOOKUP(I34,直管換算!$B$4:$Q$26,10,FALSE)*T34,2)) ->  | AQ34: =IF(OR(I34="",U34=""),"",ROUND(VLOOKUP(I34,直管換算!$B$4:$Q$26,11,FALSE)*U34,2)) ->  | AR34: =IF(OR(I34="",V34=""),"",ROUND(VLOOKUP(I34,直管換算!$B$4:$Q$26,12,FALSE)*V34,2)) ->  | AS34: =IF(OR(I34="",W34=""),"",ROUND(VLOOKUP(I34,直管換算!$B$4:$Q$26,13,FALSE)*W34,2)) ->  | AT34: =IF(OR(I34="",X34=""),"",ROUND(VLOOKUP(I34,直管換算!$B$4:$Q$26,14,FALSE)*X34,2)) ->  | AU34: =IF(OR(I34="",Y34=""),"",ROUND(VLOOKUP(I34,直管換算!$B$4:$Q$26,15,FALSE)*Y34,2)) ->  | AV34: =IF(OR(I34="",Z34=""),"",ROUND(VLOOKUP(I34,直管換算!$B$4:$Q$26,16,FALSE)*Z34,2)) ->  | AY34: 空 | BB34: =IF(OR(H34="",I34=""),"",0.35464*計算公式!$B$14*POWER(AC34/1000,0.63)*POWER(BC34/1000,0.54)) ->  | BC34: =IF(OR(H34="",I34=""),"",10.666*POWER(計算公式!$B$14,-1.85)*POWER(AC34/1000,-4.87)*POWER(H34/1000,1.85)*1000) -> 
F35: 25 | AC35: =IF(I35="","",VLOOKUP(I35,内径設定!$B$4:$C$26,2,FALSE)) ->  | AD35: =IF(AC35="","",IF(OR(AND(AC35>計算公式!$B$9,計算公式!$D$9="超"),AND(AC35>=計算公式!$B$9,計算公式!$D$9="以上")),"H","W")) ->  | AH35: =IF(OR(I35="",L35=""),"",ROUND(VLOOKUP(I35,直管換算!$B$4:$Q$26,2,FALSE)*L35,2)) ->  | AI35: =IF(OR(I35="",M35=""),"",ROUND(VLOOKUP(I35,直管換算!$B$4:$Q$26,3,FALSE)*M35,2)) ->  | AJ35: =IF(OR(I35="",N35=""),"",ROUND(VLOOKUP(I35,直管換算!$B$4:$Q$26,4,FALSE)*N35,2)) ->  | AK35: =IF(OR(I35="",O35=""),"",ROUND(VLOOKUP(I35,直管換算!$B$4:$Q$26,5,FALSE)*O35,2)) ->  | AL35: =IF(OR(I35="",P35=""),"",ROUND(VLOOKUP(I35,直管換算!$B$4:$Q$26,6,FALSE)*P35,2)) ->  | AM35: =IF(OR(I35="",Q35=""),"",ROUND(VLOOKUP(I35,直管換算!$B$4:$Q$26,7,FALSE)*Q35,2)) ->  | AN35: =IF(OR(I35="",R35=""),"",ROUND(VLOOKUP(I35,直管換算!$B$4:$Q$26,8,FALSE)*R35,2)) ->  | AO35: =IF(OR(I35="",S35=""),"",ROUND(VLOOKUP(I35,直管換算!$B$4:$Q$26,9,FALSE)*S35,2)) ->  | AP35: =IF(OR(I35="",T35=""),"",ROUND(VLOOKUP(I35,直管換算!$B$4:$Q$26,10,FALSE)*T35,2)) ->  | AQ35: =IF(OR(I35="",U35=""),"",ROUND(VLOOKUP(I35,直管換算!$B$4:$Q$26,11,FALSE)*U35,2)) ->  | AR35: =IF(OR(I35="",V35=""),"",ROUND(VLOOKUP(I35,直管換算!$B$4:$Q$26,12,FALSE)*V35,2)) ->  | AS35: =IF(OR(I35="",W35=""),"",ROUND(VLOOKUP(I35,直管換算!$B$4:$Q$26,13,FALSE)*W35,2)) ->  | AT35: =IF(OR(I35="",X35=""),"",ROUND(VLOOKUP(I35,直管換算!$B$4:$Q$26,14,FALSE)*X35,2)) ->  | AU35: =IF(OR(I35="",Y35=""),"",ROUND(VLOOKUP(I35,直管換算!$B$4:$Q$26,15,FALSE)*Y35,2)) ->  | AV35: =IF(OR(I35="",Z35=""),"",ROUND(VLOOKUP(I35,直管換算!$B$4:$Q$26,16,FALSE)*Z35,2)) ->  | AY35: 空 | BB35: =IF(OR(H35="",I35=""),"",0.35464*計算公式!$B$14*POWER(AC35/1000,0.63)*POWER(BC35/1000,0.54)) ->  | BC35: =IF(OR(H35="",I35=""),"",10.666*POWER(計算公式!$B$14,-1.85)*POWER(AC35/1000,-4.87)*POWER(H35/1000,1.85)*1000) -> 
F36: 26 | AC36: =IF(I36="","",VLOOKUP(I36,内径設定!$B$4:$C$26,2,FALSE)) ->  | AD36: =IF(AC36="","",IF(OR(AND(AC36>計算公式!$B$9,計算公式!$D$9="超"),AND(AC36>=計算公式!$B$9,計算公式!$D$9="以上")),"H","W")) ->  | AH36: =IF(OR(I36="",L36=""),"",ROUND(VLOOKUP(I36,直管換算!$B$4:$Q$26,2,FALSE)*L36,2)) ->  | AI36: =IF(OR(I36="",M36=""),"",ROUND(VLOOKUP(I36,直管換算!$B$4:$Q$26,3,FALSE)*M36,2)) ->  | AJ36: =IF(OR(I36="",N36=""),"",ROUND(VLOOKUP(I36,直管換算!$B$4:$Q$26,4,FALSE)*N36,2)) ->  | AK36: =IF(OR(I36="",O36=""),"",ROUND(VLOOKUP(I36,直管換算!$B$4:$Q$26,5,FALSE)*O36,2)) ->  | AL36: =IF(OR(I36="",P36=""),"",ROUND(VLOOKUP(I36,直管換算!$B$4:$Q$26,6,FALSE)*P36,2)) ->  | AM36: =IF(OR(I36="",Q36=""),"",ROUND(VLOOKUP(I36,直管換算!$B$4:$Q$26,7,FALSE)*Q36,2)) ->  | AN36: =IF(OR(I36="",R36=""),"",ROUND(VLOOKUP(I36,直管換算!$B$4:$Q$26,8,FALSE)*R36,2)) ->  | AO36: =IF(OR(I36="",S36=""),"",ROUND(VLOOKUP(I36,直管換算!$B$4:$Q$26,9,FALSE)*S36,2)) ->  | AP36: =IF(OR(I36="",T36=""),"",ROUND(VLOOKUP(I36,直管換算!$B$4:$Q$26,10,FALSE)*T36,2)) ->  | AQ36: =IF(OR(I36="",U36=""),"",ROUND(VLOOKUP(I36,直管換算!$B$4:$Q$26,11,FALSE)*U36,2)) ->  | AR36: =IF(OR(I36="",V36=""),"",ROUND(VLOOKUP(I36,直管換算!$B$4:$Q$26,12,FALSE)*V36,2)) ->  | AS36: =IF(OR(I36="",W36=""),"",ROUND(VLOOKUP(I36,直管換算!$B$4:$Q$26,13,FALSE)*W36,2)) ->  | AT36: =IF(OR(I36="",X36=""),"",ROUND(VLOOKUP(I36,直管換算!$B$4:$Q$26,14,FALSE)*X36,2)) ->  | AU36: =IF(OR(I36="",Y36=""),"",ROUND(VLOOKUP(I36,直管換算!$B$4:$Q$26,15,FALSE)*Y36,2)) ->  | AV36: =IF(OR(I36="",Z36=""),"",ROUND(VLOOKUP(I36,直管換算!$B$4:$Q$26,16,FALSE)*Z36,2)) ->  | AY36: 空 | BB36: =IF(OR(H36="",I36=""),"",0.35464*計算公式!$B$14*POWER(AC36/1000,0.63)*POWER(BC36/1000,0.54)) ->  | BC36: =IF(OR(H36="",I36=""),"",10.666*POWER(計算公式!$B$14,-1.85)*POWER(AC36/1000,-4.87)*POWER(H36/1000,1.85)*1000) -> 
F37: 27 | AC37: =IF(I37="","",VLOOKUP(I37,内径設定!$B$4:$C$26,2,FALSE)) ->  | AD37: =IF(AC37="","",IF(OR(AND(AC37>計算公式!$B$9,計算公式!$D$9="超"),AND(AC37>=計算公式!$B$9,計算公式!$D$9="以上")),"H","W")) ->  | AH37: =IF(OR(I37="",L37=""),"",ROUND(VLOOKUP(I37,直管換算!$B$4:$Q$26,2,FALSE)*L37,2)) ->  | AI37: =IF(OR(I37="",M37=""),"",ROUND(VLOOKUP(I37,直管換算!$B$4:$Q$26,3,FALSE)*M37,2)) ->  | AJ37: =IF(OR(I37="",N37=""),"",ROUND(VLOOKUP(I37,直管換算!$B$4:$Q$26,4,FALSE)*N37,2)) ->  | AK37: =IF(OR(I37="",O37=""),"",ROUND(VLOOKUP(I37,直管換算!$B$4:$Q$26,5,FALSE)*O37,2)) ->  | AL37: =IF(OR(I37="",P37=""),"",ROUND(VLOOKUP(I37,直管換算!$B$4:$Q$26,6,FALSE)*P37,2)) ->  | AM37: =IF(OR(I37="",Q37=""),"",ROUND(VLOOKUP(I37,直管換算!$B$4:$Q$26,7,FALSE)*Q37,2)) ->  | AN37: =IF(OR(I37="",R37=""),"",ROUND(VLOOKUP(I37,直管換算!$B$4:$Q$26,8,FALSE)*R37,2)) ->  | AO37: =IF(OR(I37="",S37=""),"",ROUND(VLOOKUP(I37,直管換算!$B$4:$Q$26,9,FALSE)*S37,2)) ->  | AP37: =IF(OR(I37="",T37=""),"",ROUND(VLOOKUP(I37,直管換算!$B$4:$Q$26,10,FALSE)*T37,2)) ->  | AQ37: =IF(OR(I37="",U37=""),"",ROUND(VLOOKUP(I37,直管換算!$B$4:$Q$26,11,FALSE)*U37,2)) ->  | AR37: =IF(OR(I37="",V37=""),"",ROUND(VLOOKUP(I37,直管換算!$B$4:$Q$26,12,FALSE)*V37,2)) ->  | AS37: =IF(OR(I37="",W37=""),"",ROUND(VLOOKUP(I37,直管換算!$B$4:$Q$26,13,FALSE)*W37,2)) ->  | AT37: =IF(OR(I37="",X37=""),"",ROUND(VLOOKUP(I37,直管換算!$B$4:$Q$26,14,FALSE)*X37,2)) ->  | AU37: =IF(OR(I37="",Y37=""),"",ROUND(VLOOKUP(I37,直管換算!$B$4:$Q$26,15,FALSE)*Y37,2)) ->  | AV37: =IF(OR(I37="",Z37=""),"",ROUND(VLOOKUP(I37,直管換算!$B$4:$Q$26,16,FALSE)*Z37,2)) ->  | AY37: 空 | BB37: =IF(OR(H37="",I37=""),"",0.35464*計算公式!$B$14*POWER(AC37/1000,0.63)*POWER(BC37/1000,0.54)) ->  | BC37: =IF(OR(H37="",I37=""),"",10.666*POWER(計算公式!$B$14,-1.85)*POWER(AC37/1000,-4.87)*POWER(H37/1000,1.85)*1000) -> 
F38: 28 | AC38: =IF(I38="","",VLOOKUP(I38,内径設定!$B$4:$C$26,2,FALSE)) ->  | AD38: =IF(AC38="","",IF(OR(AND(AC38>計算公式!$B$9,計算公式!$D$9="超"),AND(AC38>=計算公式!$B$9,計算公式!$D$9="以上")),"H","W")) ->  | AH38: =IF(OR(I38="",L38=""),"",ROUND(VLOOKUP(I38,直管換算!$B$4:$Q$26,2,FALSE)*L38,2)) ->  | AI38: =IF(OR(I38="",M38=""),"",ROUND(VLOOKUP(I38,直管換算!$B$4:$Q$26,3,FALSE)*M38,2)) ->  | AJ38: =IF(OR(I38="",N38=""),"",ROUND(VLOOKUP(I38,直管換算!$B$4:$Q$26,4,FALSE)*N38,2)) ->  | AK38: =IF(OR(I38="",O38=""),"",ROUND(VLOOKUP(I38,直管換算!$B$4:$Q$26,5,FALSE)*O38,2)) ->  | AL38: =IF(OR(I38="",P38=""),"",ROUND(VLOOKUP(I38,直管換算!$B$4:$Q$26,6,FALSE)*P38,2)) ->  | AM38: =IF(OR(I38="",Q38=""),"",ROUND(VLOOKUP(I38,直管換算!$B$4:$Q$26,7,FALSE)*Q38,2)) ->  | AN38: =IF(OR(I38="",R38=""),"",ROUND(VLOOKUP(I38,直管換算!$B$4:$Q$26,8,FALSE)*R38,2)) ->  | AO38: =IF(OR(I38="",S38=""),"",ROUND(VLOOKUP(I38,直管換算!$B$4:$Q$26,9,FALSE)*S38,2)) ->  | AP38: =IF(OR(I38="",T38=""),"",ROUND(VLOOKUP(I38,直管換算!$B$4:$Q$26,10,FALSE)*T38,2)) ->  | AQ38: =IF(OR(I38="",U38=""),"",ROUND(VLOOKUP(I38,直管換算!$B$4:$Q$26,11,FALSE)*U38,2)) ->  | AR38: =IF(OR(I38="",V38=""),"",ROUND(VLOOKUP(I38,直管換算!$B$4:$Q$26,12,FALSE)*V38,2)) ->  | AS38: =IF(OR(I38="",W38=""),"",ROUND(VLOOKUP(I38,直管換算!$B$4:$Q$26,13,FALSE)*W38,2)) ->  | AT38: =IF(OR(I38="",X38=""),"",ROUND(VLOOKUP(I38,直管換算!$B$4:$Q$26,14,FALSE)*X38,2)) ->  | AU38: =IF(OR(I38="",Y38=""),"",ROUND(VLOOKUP(I38,直管換算!$B$4:$Q$26,15,FALSE)*Y38,2)) ->  | AV38: =IF(OR(I38="",Z38=""),"",ROUND(VLOOKUP(I38,直管換算!$B$4:$Q$26,16,FALSE)*Z38,2)) ->  | AY38: 空 | BB38: =IF(OR(H38="",I38=""),"",0.35464*計算公式!$B$14*POWER(AC38/1000,0.63)*POWER(BC38/1000,0.54)) ->  | BC38: =IF(OR(H38="",I38=""),"",10.666*POWER(計算公式!$B$14,-1.85)*POWER(AC38/1000,-4.87)*POWER(H38/1000,1.85)*1000) -> 
F39: 29 | AC39: =IF(I39="","",VLOOKUP(I39,内径設定!$B$4:$C$26,2,FALSE)) ->  | AD39: =IF(AC39="","",IF(OR(AND(AC39>計算公式!$B$9,計算公式!$D$9="超"),AND(AC39>=計算公式!$B$9,計算公式!$D$9="以上")),"H","W")) ->  | AH39: =IF(OR(I39="",L39=""),"",ROUND(VLOOKUP(I39,直管換算!$B$4:$Q$26,2,FALSE)*L39,2)) ->  | AI39: =IF(OR(I39="",M39=""),"",ROUND(VLOOKUP(I39,直管換算!$B$4:$Q$26,3,FALSE)*M39,2)) ->  | AJ39: =IF(OR(I39="",N39=""),"",ROUND(VLOOKUP(I39,直管換算!$B$4:$Q$26,4,FALSE)*N39,2)) ->  | AK39: =IF(OR(I39="",O39=""),"",ROUND(VLOOKUP(I39,直管換算!$B$4:$Q$26,5,FALSE)*O39,2)) ->  | AL39: =IF(OR(I39="",P39=""),"",ROUND(VLOOKUP(I39,直管換算!$B$4:$Q$26,6,FALSE)*P39,2)) ->  | AM39: =IF(OR(I39="",Q39=""),"",ROUND(VLOOKUP(I39,直管換算!$B$4:$Q$26,7,FALSE)*Q39,2)) ->  | AN39: =IF(OR(I39="",R39=""),"",ROUND(VLOOKUP(I39,直管換算!$B$4:$Q$26,8,FALSE)*R39,2)) ->  | AO39: =IF(OR(I39="",S39=""),"",ROUND(VLOOKUP(I39,直管換算!$B$4:$Q$26,9,FALSE)*S39,2)) ->  | AP39: =IF(OR(I39="",T39=""),"",ROUND(VLOOKUP(I39,直管換算!$B$4:$Q$26,10,FALSE)*T39,2)) ->  | AQ39: =IF(OR(I39="",U39=""),"",ROUND(VLOOKUP(I39,直管換算!$B$4:$Q$26,11,FALSE)*U39,2)) ->  | AR39: =IF(OR(I39="",V39=""),"",ROUND(VLOOKUP(I39,直管換算!$B$4:$Q$26,12,FALSE)*V39,2)) ->  | AS39: =IF(OR(I39="",W39=""),"",ROUND(VLOOKUP(I39,直管換算!$B$4:$Q$26,13,FALSE)*W39,2)) ->  | AT39: =IF(OR(I39="",X39=""),"",ROUND(VLOOKUP(I39,直管換算!$B$4:$Q$26,14,FALSE)*X39,2)) ->  | AU39: =IF(OR(I39="",Y39=""),"",ROUND(VLOOKUP(I39,直管換算!$B$4:$Q$26,15,FALSE)*Y39,2)) ->  | AV39: =IF(OR(I39="",Z39=""),"",ROUND(VLOOKUP(I39,直管換算!$B$4:$Q$26,16,FALSE)*Z39,2)) ->  | AY39: 空 | BB39: =IF(OR(H39="",I39=""),"",0.35464*計算公式!$B$14*POWER(AC39/1000,0.63)*POWER(BC39/1000,0.54)) ->  | BC39: =IF(OR(H39="",I39=""),"",10.666*POWER(計算公式!$B$14,-1.85)*POWER(AC39/1000,-4.87)*POWER(H39/1000,1.85)*1000) -> 
F40: 30 | AC40: =IF(I40="","",VLOOKUP(I40,内径設定!$B$4:$C$26,2,FALSE)) ->  | AD40: =IF(AC40="","",IF(OR(AND(AC40>計算公式!$B$9,計算公式!$D$9="超"),AND(AC40>=計算公式!$B$9,計算公式!$D$9="以上")),"H","W")) ->  | AH40: =IF(OR(I40="",L40=""),"",ROUND(VLOOKUP(I40,直管換算!$B$4:$Q$26,2,FALSE)*L40,2)) ->  | AI40: =IF(OR(I40="",M40=""),"",ROUND(VLOOKUP(I40,直管換算!$B$4:$Q$26,3,FALSE)*M40,2)) ->  | AJ40: =IF(OR(I40="",N40=""),"",ROUND(VLOOKUP(I40,直管換算!$B$4:$Q$26,4,FALSE)*N40,2)) ->  | AK40: =IF(OR(I40="",O40=""),"",ROUND(VLOOKUP(I40,直管換算!$B$4:$Q$26,5,FALSE)*O40,2)) ->  | AL40: =IF(OR(I40="",P40=""),"",ROUND(VLOOKUP(I40,直管換算!$B$4:$Q$26,6,FALSE)*P40,2)) ->  | AM40: =IF(OR(I40="",Q40=""),"",ROUND(VLOOKUP(I40,直管換算!$B$4:$Q$26,7,FALSE)*Q40,2)) ->  | AN40: =IF(OR(I40="",R40=""),"",ROUND(VLOOKUP(I40,直管換算!$B$4:$Q$26,8,FALSE)*R40,2)) ->  | AO40: =IF(OR(I40="",S40=""),"",ROUND(VLOOKUP(I40,直管換算!$B$4:$Q$26,9,FALSE)*S40,2)) ->  | AP40: =IF(OR(I40="",T40=""),"",ROUND(VLOOKUP(I40,直管換算!$B$4:$Q$26,10,FALSE)*T40,2)) ->  | AQ40: =IF(OR(I40="",U40=""),"",ROUND(VLOOKUP(I40,直管換算!$B$4:$Q$26,11,FALSE)*U40,2)) ->  | AR40: =IF(OR(I40="",V40=""),"",ROUND(VLOOKUP(I40,直管換算!$B$4:$Q$26,12,FALSE)*V40,2)) ->  | AS40: =IF(OR(I40="",W40=""),"",ROUND(VLOOKUP(I40,直管換算!$B$4:$Q$26,13,FALSE)*W40,2)) ->  | AT40: =IF(OR(I40="",X40=""),"",ROUND(VLOOKUP(I40,直管換算!$B$4:$Q$26,14,FALSE)*X40,2)) ->  | AU40: =IF(OR(I40="",Y40=""),"",ROUND(VLOOKUP(I40,直管換算!$B$4:$Q$26,15,FALSE)*Y40,2)) ->  | AV40: =IF(OR(I40="",Z40=""),"",ROUND(VLOOKUP(I40,直管換算!$B$4:$Q$26,16,FALSE)*Z40,2)) ->  | AY40: 空 | BB40: =IF(OR(H40="",I40=""),"",0.35464*計算公式!$B$14*POWER(AC40/1000,0.63)*POWER(BC40/1000,0.54)) ->  | BC40: =IF(OR(H40="",I40=""),"",10.666*POWER(計算公式!$B$14,-1.85)*POWER(AC40/1000,-4.87)*POWER(H40/1000,1.85)*1000) -> 
F41: 31 | AC41: =IF(I41="","",VLOOKUP(I41,内径設定!$B$4:$C$26,2,FALSE)) ->  | AD41: =IF(AC41="","",IF(OR(AND(AC41>計算公式!$B$9,計算公式!$D$9="超"),AND(AC41>=計算公式!$B$9,計算公式!$D$9="以上")),"H","W")) ->  | AH41: =IF(OR(I41="",L41=""),"",ROUND(VLOOKUP(I41,直管換算!$B$4:$Q$26,2,FALSE)*L41,2)) ->  | AI41: =IF(OR(I41="",M41=""),"",ROUND(VLOOKUP(I41,直管換算!$B$4:$Q$26,3,FALSE)*M41,2)) ->  | AJ41: =IF(OR(I41="",N41=""),"",ROUND(VLOOKUP(I41,直管換算!$B$4:$Q$26,4,FALSE)*N41,2)) ->  | AK41: =IF(OR(I41="",O41=""),"",ROUND(VLOOKUP(I41,直管換算!$B$4:$Q$26,5,FALSE)*O41,2)) ->  | AL41: =IF(OR(I41="",P41=""),"",ROUND(VLOOKUP(I41,直管換算!$B$4:$Q$26,6,FALSE)*P41,2)) ->  | AM41: =IF(OR(I41="",Q41=""),"",ROUND(VLOOKUP(I41,直管換算!$B$4:$Q$26,7,FALSE)*Q41,2)) ->  | AN41: =IF(OR(I41="",R41=""),"",ROUND(VLOOKUP(I41,直管換算!$B$4:$Q$26,8,FALSE)*R41,2)) ->  | AO41: =IF(OR(I41="",S41=""),"",ROUND(VLOOKUP(I41,直管換算!$B$4:$Q$26,9,FALSE)*S41,2)) ->  | AP41: =IF(OR(I41="",T41=""),"",ROUND(VLOOKUP(I41,直管換算!$B$4:$Q$26,10,FALSE)*T41,2)) ->  | AQ41: =IF(OR(I41="",U41=""),"",ROUND(VLOOKUP(I41,直管換算!$B$4:$Q$26,11,FALSE)*U41,2)) ->  | AR41: =IF(OR(I41="",V41=""),"",ROUND(VLOOKUP(I41,直管換算!$B$4:$Q$26,12,FALSE)*V41,2)) ->  | AS41: =IF(OR(I41="",W41=""),"",ROUND(VLOOKUP(I41,直管換算!$B$4:$Q$26,13,FALSE)*W41,2)) ->  | AT41: =IF(OR(I41="",X41=""),"",ROUND(VLOOKUP(I41,直管換算!$B$4:$Q$26,14,FALSE)*X41,2)) ->  | AU41: =IF(OR(I41="",Y41=""),"",ROUND(VLOOKUP(I41,直管換算!$B$4:$Q$26,15,FALSE)*Y41,2)) ->  | AV41: =IF(OR(I41="",Z41=""),"",ROUND(VLOOKUP(I41,直管換算!$B$4:$Q$26,16,FALSE)*Z41,2)) ->  | AY41: 空 | BB41: =IF(OR(H41="",I41=""),"",0.35464*計算公式!$B$14*POWER(AC41/1000,0.63)*POWER(BC41/1000,0.54)) ->  | BC41: =IF(OR(H41="",I41=""),"",10.666*POWER(計算公式!$B$14,-1.85)*POWER(AC41/1000,-4.87)*POWER(H41/1000,1.85)*1000) -> 
F42: 32 | AC42: =IF(I42="","",VLOOKUP(I42,内径設定!$B$4:$C$26,2,FALSE)) ->  | AD42: =IF(AC42="","",IF(OR(AND(AC42>計算公式!$B$9,計算公式!$D$9="超"),AND(AC42>=計算公式!$B$9,計算公式!$D$9="以上")),"H","W")) ->  | AH42: =IF(OR(I42="",L42=""),"",ROUND(VLOOKUP(I42,直管換算!$B$4:$Q$26,2,FALSE)*L42,2)) ->  | AI42: =IF(OR(I42="",M42=""),"",ROUND(VLOOKUP(I42,直管換算!$B$4:$Q$26,3,FALSE)*M42,2)) ->  | AJ42: =IF(OR(I42="",N42=""),"",ROUND(VLOOKUP(I42,直管換算!$B$4:$Q$26,4,FALSE)*N42,2)) ->  | AK42: =IF(OR(I42="",O42=""),"",ROUND(VLOOKUP(I42,直管換算!$B$4:$Q$26,5,FALSE)*O42,2)) ->  | AL42: =IF(OR(I42="",P42=""),"",ROUND(VLOOKUP(I42,直管換算!$B$4:$Q$26,6,FALSE)*P42,2)) ->  | AM42: =IF(OR(I42="",Q42=""),"",ROUND(VLOOKUP(I42,直管換算!$B$4:$Q$26,7,FALSE)*Q42,2)) ->  | AN42: =IF(OR(I42="",R42=""),"",ROUND(VLOOKUP(I42,直管換算!$B$4:$Q$26,8,FALSE)*R42,2)) ->  | AO42: =IF(OR(I42="",S42=""),"",ROUND(VLOOKUP(I42,直管換算!$B$4:$Q$26,9,FALSE)*S42,2)) ->  | AP42: =IF(OR(I42="",T42=""),"",ROUND(VLOOKUP(I42,直管換算!$B$4:$Q$26,10,FALSE)*T42,2)) ->  | AQ42: =IF(OR(I42="",U42=""),"",ROUND(VLOOKUP(I42,直管換算!$B$4:$Q$26,11,FALSE)*U42,2)) ->  | AR42: =IF(OR(I42="",V42=""),"",ROUND(VLOOKUP(I42,直管換算!$B$4:$Q$26,12,FALSE)*V42,2)) ->  | AS42: =IF(OR(I42="",W42=""),"",ROUND(VLOOKUP(I42,直管換算!$B$4:$Q$26,13,FALSE)*W42,2)) ->  | AT42: =IF(OR(I42="",X42=""),"",ROUND(VLOOKUP(I42,直管換算!$B$4:$Q$26,14,FALSE)*X42,2)) ->  | AU42: =IF(OR(I42="",Y42=""),"",ROUND(VLOOKUP(I42,直管換算!$B$4:$Q$26,15,FALSE)*Y42,2)) ->  | AV42: =IF(OR(I42="",Z42=""),"",ROUND(VLOOKUP(I42,直管換算!$B$4:$Q$26,16,FALSE)*Z42,2)) ->  | AY42: 空 | BB42: =IF(OR(H42="",I42=""),"",0.35464*計算公式!$B$14*POWER(AC42/1000,0.63)*POWER(BC42/1000,0.54)) ->  | BC42: =IF(OR(H42="",I42=""),"",10.666*POWER(計算公式!$B$14,-1.85)*POWER(AC42/1000,-4.87)*POWER(H42/1000,1.85)*1000) -> 
F43: 33 | AC43: =IF(I43="","",VLOOKUP(I43,内径設定!$B$4:$C$26,2,FALSE)) ->  | AD43: =IF(AC43="","",IF(OR(AND(AC43>計算公式!$B$9,計算公式!$D$9="超"),AND(AC43>=計算公式!$B$9,計算公式!$D$9="以上")),"H","W")) ->  | AH43: =IF(OR(I43="",L43=""),"",ROUND(VLOOKUP(I43,直管換算!$B$4:$Q$26,2,FALSE)*L43,2)) ->  | AI43: =IF(OR(I43="",M43=""),"",ROUND(VLOOKUP(I43,直管換算!$B$4:$Q$26,3,FALSE)*M43,2)) ->  | AJ43: =IF(OR(I43="",N43=""),"",ROUND(VLOOKUP(I43,直管換算!$B$4:$Q$26,4,FALSE)*N43,2)) ->  | AK43: =IF(OR(I43="",O43=""),"",ROUND(VLOOKUP(I43,直管換算!$B$4:$Q$26,5,FALSE)*O43,2)) ->  | AL43: =IF(OR(I43="",P43=""),"",ROUND(VLOOKUP(I43,直管換算!$B$4:$Q$26,6,FALSE)*P43,2)) ->  | AM43: =IF(OR(I43="",Q43=""),"",ROUND(VLOOKUP(I43,直管換算!$B$4:$Q$26,7,FALSE)*Q43,2)) ->  | AN43: =IF(OR(I43="",R43=""),"",ROUND(VLOOKUP(I43,直管換算!$B$4:$Q$26,8,FALSE)*R43,2)) ->  | AO43: =IF(OR(I43="",S43=""),"",ROUND(VLOOKUP(I43,直管換算!$B$4:$Q$26,9,FALSE)*S43,2)) ->  | AP43: =IF(OR(I43="",T43=""),"",ROUND(VLOOKUP(I43,直管換算!$B$4:$Q$26,10,FALSE)*T43,2)) ->  | AQ43: =IF(OR(I43="",U43=""),"",ROUND(VLOOKUP(I43,直管換算!$B$4:$Q$26,11,FALSE)*U43,2)) ->  | AR43: =IF(OR(I43="",V43=""),"",ROUND(VLOOKUP(I43,直管換算!$B$4:$Q$26,12,FALSE)*V43,2)) ->  | AS43: =IF(OR(I43="",W43=""),"",ROUND(VLOOKUP(I43,直管換算!$B$4:$Q$26,13,FALSE)*W43,2)) ->  | AT43: =IF(OR(I43="",X43=""),"",ROUND(VLOOKUP(I43,直管換算!$B$4:$Q$26,14,FALSE)*X43,2)) ->  | AU43: =IF(OR(I43="",Y43=""),"",ROUND(VLOOKUP(I43,直管換算!$B$4:$Q$26,15,FALSE)*Y43,2)) ->  | AV43: =IF(OR(I43="",Z43=""),"",ROUND(VLOOKUP(I43,直管換算!$B$4:$Q$26,16,FALSE)*Z43,2)) ->  | AY43: 空 | BB43: =IF(OR(H43="",I43=""),"",0.35464*計算公式!$B$14*POWER(AC43/1000,0.63)*POWER(BC43/1000,0.54)) ->  | BC43: =IF(OR(H43="",I43=""),"",10.666*POWER(計算公式!$B$14,-1.85)*POWER(AC43/1000,-4.87)*POWER(H43/1000,1.85)*1000) -> 
F44: 34 | AC44: =IF(I44="","",VLOOKUP(I44,内径設定!$B$4:$C$26,2,FALSE)) ->  | AD44: =IF(AC44="","",IF(OR(AND(AC44>計算公式!$B$9,計算公式!$D$9="超"),AND(AC44>=計算公式!$B$9,計算公式!$D$9="以上")),"H","W")) ->  | AH44: =IF(OR(I44="",L44=""),"",ROUND(VLOOKUP(I44,直管換算!$B$4:$Q$26,2,FALSE)*L44,2)) ->  | AI44: =IF(OR(I44="",M44=""),"",ROUND(VLOOKUP(I44,直管換算!$B$4:$Q$26,3,FALSE)*M44,2)) ->  | AJ44: =IF(OR(I44="",N44=""),"",ROUND(VLOOKUP(I44,直管換算!$B$4:$Q$26,4,FALSE)*N44,2)) ->  | AK44: =IF(OR(I44="",O44=""),"",ROUND(VLOOKUP(I44,直管換算!$B$4:$Q$26,5,FALSE)*O44,2)) ->  | AL44: =IF(OR(I44="",P44=""),"",ROUND(VLOOKUP(I44,直管換算!$B$4:$Q$26,6,FALSE)*P44,2)) ->  | AM44: =IF(OR(I44="",Q44=""),"",ROUND(VLOOKUP(I44,直管換算!$B$4:$Q$26,7,FALSE)*Q44,2)) ->  | AN44: =IF(OR(I44="",R44=""),"",ROUND(VLOOKUP(I44,直管換算!$B$4:$Q$26,8,FALSE)*R44,2)) ->  | AO44: =IF(OR(I44="",S44=""),"",ROUND(VLOOKUP(I44,直管換算!$B$4:$Q$26,9,FALSE)*S44,2)) ->  | AP44: =IF(OR(I44="",T44=""),"",ROUND(VLOOKUP(I44,直管換算!$B$4:$Q$26,10,FALSE)*T44,2)) ->  | AQ44: =IF(OR(I44="",U44=""),"",ROUND(VLOOKUP(I44,直管換算!$B$4:$Q$26,11,FALSE)*U44,2)) ->  | AR44: =IF(OR(I44="",V44=""),"",ROUND(VLOOKUP(I44,直管換算!$B$4:$Q$26,12,FALSE)*V44,2)) ->  | AS44: =IF(OR(I44="",W44=""),"",ROUND(VLOOKUP(I44,直管換算!$B$4:$Q$26,13,FALSE)*W44,2)) ->  | AT44: =IF(OR(I44="",X44=""),"",ROUND(VLOOKUP(I44,直管換算!$B$4:$Q$26,14,FALSE)*X44,2)) ->  | AU44: =IF(OR(I44="",Y44=""),"",ROUND(VLOOKUP(I44,直管換算!$B$4:$Q$26,15,FALSE)*Y44,2)) ->  | AV44: =IF(OR(I44="",Z44=""),"",ROUND(VLOOKUP(I44,直管換算!$B$4:$Q$26,16,FALSE)*Z44,2)) ->  | AY44: 空 | BB44: =IF(OR(H44="",I44=""),"",0.35464*計算公式!$B$14*POWER(AC44/1000,0.63)*POWER(BC44/1000,0.54)) ->  | BC44: =IF(OR(H44="",I44=""),"",10.666*POWER(計算公式!$B$14,-1.85)*POWER(AC44/1000,-4.87)*POWER(H44/1000,1.85)*1000) -> 
F45: 35 | AC45: =IF(I45="","",VLOOKUP(I45,内径設定!$B$4:$C$26,2,FALSE)) ->  | AD45: =IF(AC45="","",IF(OR(AND(AC45>計算公式!$B$9,計算公式!$D$9="超"),AND(AC45>=計算公式!$B$9,計算公式!$D$9="以上")),"H","W")) ->  | AH45: =IF(OR(I45="",L45=""),"",ROUND(VLOOKUP(I45,直管換算!$B$4:$Q$26,2,FALSE)*L45,2)) ->  | AI45: =IF(OR(I45="",M45=""),"",ROUND(VLOOKUP(I45,直管換算!$B$4:$Q$26,3,FALSE)*M45,2)) ->  | AJ45: =IF(OR(I45="",N45=""),"",ROUND(VLOOKUP(I45,直管換算!$B$4:$Q$26,4,FALSE)*N45,2)) ->  | AK45: =IF(OR(I45="",O45=""),"",ROUND(VLOOKUP(I45,直管換算!$B$4:$Q$26,5,FALSE)*O45,2)) ->  | AL45: =IF(OR(I45="",P45=""),"",ROUND(VLOOKUP(I45,直管換算!$B$4:$Q$26,6,FALSE)*P45,2)) ->  | AM45: =IF(OR(I45="",Q45=""),"",ROUND(VLOOKUP(I45,直管換算!$B$4:$Q$26,7,FALSE)*Q45,2)) ->  | AN45: =IF(OR(I45="",R45=""),"",ROUND(VLOOKUP(I45,直管換算!$B$4:$Q$26,8,FALSE)*R45,2)) ->  | AO45: =IF(OR(I45="",S45=""),"",ROUND(VLOOKUP(I45,直管換算!$B$4:$Q$26,9,FALSE)*S45,2)) ->  | AP45: =IF(OR(I45="",T45=""),"",ROUND(VLOOKUP(I45,直管換算!$B$4:$Q$26,10,FALSE)*T45,2)) ->  | AQ45: =IF(OR(I45="",U45=""),"",ROUND(VLOOKUP(I45,直管換算!$B$4:$Q$26,11,FALSE)*U45,2)) ->  | AR45: =IF(OR(I45="",V45=""),"",ROUND(VLOOKUP(I45,直管換算!$B$4:$Q$26,12,FALSE)*V45,2)) ->  | AS45: =IF(OR(I45="",W45=""),"",ROUND(VLOOKUP(I45,直管換算!$B$4:$Q$26,13,FALSE)*W45,2)) ->  | AT45: =IF(OR(I45="",X45=""),"",ROUND(VLOOKUP(I45,直管換算!$B$4:$Q$26,14,FALSE)*X45,2)) ->  | AU45: =IF(OR(I45="",Y45=""),"",ROUND(VLOOKUP(I45,直管換算!$B$4:$Q$26,15,FALSE)*Y45,2)) ->  | AV45: =IF(OR(I45="",Z45=""),"",ROUND(VLOOKUP(I45,直管換算!$B$4:$Q$26,16,FALSE)*Z45,2)) ->  | AY45: 空 | BB45: =IF(OR(H45="",I45=""),"",0.35464*計算公式!$B$14*POWER(AC45/1000,0.63)*POWER(BC45/1000,0.54)) ->  | BC45: =IF(OR(H45="",I45=""),"",10.666*POWER(計算公式!$B$14,-1.85)*POWER(AC45/1000,-4.87)*POWER(H45/1000,1.85)*1000) -> 
F46: 36 | AC46: =IF(I46="","",VLOOKUP(I46,内径設定!$B$4:$C$26,2,FALSE)) ->  | AD46: =IF(AC46="","",IF(OR(AND(AC46>計算公式!$B$9,計算公式!$D$9="超"),AND(AC46>=計算公式!$B$9,計算公式!$D$9="以上")),"H","W")) ->  | AH46: =IF(OR(I46="",L46=""),"",ROUND(VLOOKUP(I46,直管換算!$B$4:$Q$26,2,FALSE)*L46,2)) ->  | AI46: =IF(OR(I46="",M46=""),"",ROUND(VLOOKUP(I46,直管換算!$B$4:$Q$26,3,FALSE)*M46,2)) ->  | AJ46: =IF(OR(I46="",N46=""),"",ROUND(VLOOKUP(I46,直管換算!$B$4:$Q$26,4,FALSE)*N46,2)) ->  | AK46: =IF(OR(I46="",O46=""),"",ROUND(VLOOKUP(I46,直管換算!$B$4:$Q$26,5,FALSE)*O46,2)) ->  | AL46: =IF(OR(I46="",P46=""),"",ROUND(VLOOKUP(I46,直管換算!$B$4:$Q$26,6,FALSE)*P46,2)) ->  | AM46: =IF(OR(I46="",Q46=""),"",ROUND(VLOOKUP(I46,直管換算!$B$4:$Q$26,7,FALSE)*Q46,2)) ->  | AN46: =IF(OR(I46="",R46=""),"",ROUND(VLOOKUP(I46,直管換算!$B$4:$Q$26,8,FALSE)*R46,2)) ->  | AO46: =IF(OR(I46="",S46=""),"",ROUND(VLOOKUP(I46,直管換算!$B$4:$Q$26,9,FALSE)*S46,2)) ->  | AP46: =IF(OR(I46="",T46=""),"",ROUND(VLOOKUP(I46,直管換算!$B$4:$Q$26,10,FALSE)*T46,2)) ->  | AQ46: =IF(OR(I46="",U46=""),"",ROUND(VLOOKUP(I46,直管換算!$B$4:$Q$26,11,FALSE)*U46,2)) ->  | AR46: =IF(OR(I46="",V46=""),"",ROUND(VLOOKUP(I46,直管換算!$B$4:$Q$26,12,FALSE)*V46,2)) ->  | AS46: =IF(OR(I46="",W46=""),"",ROUND(VLOOKUP(I46,直管換算!$B$4:$Q$26,13,FALSE)*W46,2)) ->  | AT46: =IF(OR(I46="",X46=""),"",ROUND(VLOOKUP(I46,直管換算!$B$4:$Q$26,14,FALSE)*X46,2)) ->  | AU46: =IF(OR(I46="",Y46=""),"",ROUND(VLOOKUP(I46,直管換算!$B$4:$Q$26,15,FALSE)*Y46,2)) ->  | AV46: =IF(OR(I46="",Z46=""),"",ROUND(VLOOKUP(I46,直管換算!$B$4:$Q$26,16,FALSE)*Z46,2)) ->  | AY46: 空 | BB46: =IF(OR(H46="",I46=""),"",0.35464*計算公式!$B$14*POWER(AC46/1000,0.63)*POWER(BC46/1000,0.54)) ->  | BC46: =IF(OR(H46="",I46=""),"",10.666*POWER(計算公式!$B$14,-1.85)*POWER(AC46/1000,-4.87)*POWER(H46/1000,1.85)*1000) -> 
F47: 37 | AC47: =IF(I47="","",VLOOKUP(I47,内径設定!$B$4:$C$26,2,FALSE)) ->  | AD47: =IF(AC47="","",IF(OR(AND(AC47>計算公式!$B$9,計算公式!$D$9="超"),AND(AC47>=計算公式!$B$9,計算公式!$D$9="以上")),"H","W")) ->  | AH47: =IF(OR(I47="",L47=""),"",ROUND(VLOOKUP(I47,直管換算!$B$4:$Q$26,2,FALSE)*L47,2)) ->  | AI47: =IF(OR(I47="",M47=""),"",ROUND(VLOOKUP(I47,直管換算!$B$4:$Q$26,3,FALSE)*M47,2)) ->  | AJ47: =IF(OR(I47="",N47=""),"",ROUND(VLOOKUP(I47,直管換算!$B$4:$Q$26,4,FALSE)*N47,2)) ->  | AK47: =IF(OR(I47="",O47=""),"",ROUND(VLOOKUP(I47,直管換算!$B$4:$Q$26,5,FALSE)*O47,2)) ->  | AL47: =IF(OR(I47="",P47=""),"",ROUND(VLOOKUP(I47,直管換算!$B$4:$Q$26,6,FALSE)*P47,2)) ->  | AM47: =IF(OR(I47="",Q47=""),"",ROUND(VLOOKUP(I47,直管換算!$B$4:$Q$26,7,FALSE)*Q47,2)) ->  | AN47: =IF(OR(I47="",R47=""),"",ROUND(VLOOKUP(I47,直管換算!$B$4:$Q$26,8,FALSE)*R47,2)) ->  | AO47: =IF(OR(I47="",S47=""),"",ROUND(VLOOKUP(I47,直管換算!$B$4:$Q$26,9,FALSE)*S47,2)) ->  | AP47: =IF(OR(I47="",T47=""),"",ROUND(VLOOKUP(I47,直管換算!$B$4:$Q$26,10,FALSE)*T47,2)) ->  | AQ47: =IF(OR(I47="",U47=""),"",ROUND(VLOOKUP(I47,直管換算!$B$4:$Q$26,11,FALSE)*U47,2)) ->  | AR47: =IF(OR(I47="",V47=""),"",ROUND(VLOOKUP(I47,直管換算!$B$4:$Q$26,12,FALSE)*V47,2)) ->  | AS47: =IF(OR(I47="",W47=""),"",ROUND(VLOOKUP(I47,直管換算!$B$4:$Q$26,13,FALSE)*W47,2)) ->  | AT47: =IF(OR(I47="",X47=""),"",ROUND(VLOOKUP(I47,直管換算!$B$4:$Q$26,14,FALSE)*X47,2)) ->  | AU47: =IF(OR(I47="",Y47=""),"",ROUND(VLOOKUP(I47,直管換算!$B$4:$Q$26,15,FALSE)*Y47,2)) ->  | AV47: =IF(OR(I47="",Z47=""),"",ROUND(VLOOKUP(I47,直管換算!$B$4:$Q$26,16,FALSE)*Z47,2)) ->  | AY47: 空 | BB47: =IF(OR(H47="",I47=""),"",0.35464*計算公式!$B$14*POWER(AC47/1000,0.63)*POWER(BC47/1000,0.54)) ->  | BC47: =IF(OR(H47="",I47=""),"",10.666*POWER(計算公式!$B$14,-1.85)*POWER(AC47/1000,-4.87)*POWER(H47/1000,1.85)*1000) -> 
F48: 38 | AC48: =IF(I48="","",VLOOKUP(I48,内径設定!$B$4:$C$26,2,FALSE)) ->  | AD48: =IF(AC48="","",IF(OR(AND(AC48>計算公式!$B$9,計算公式!$D$9="超"),AND(AC48>=計算公式!$B$9,計算公式!$D$9="以上")),"H","W")) ->  | AH48: =IF(OR(I48="",L48=""),"",ROUND(VLOOKUP(I48,直管換算!$B$4:$Q$26,2,FALSE)*L48,2)) ->  | AI48: =IF(OR(I48="",M48=""),"",ROUND(VLOOKUP(I48,直管換算!$B$4:$Q$26,3,FALSE)*M48,2)) ->  | AJ48: =IF(OR(I48="",N48=""),"",ROUND(VLOOKUP(I48,直管換算!$B$4:$Q$26,4,FALSE)*N48,2)) ->  | AK48: =IF(OR(I48="",O48=""),"",ROUND(VLOOKUP(I48,直管換算!$B$4:$Q$26,5,FALSE)*O48,2)) ->  | AL48: =IF(OR(I48="",P48=""),"",ROUND(VLOOKUP(I48,直管換算!$B$4:$Q$26,6,FALSE)*P48,2)) ->  | AM48: =IF(OR(I48="",Q48=""),"",ROUND(VLOOKUP(I48,直管換算!$B$4:$Q$26,7,FALSE)*Q48,2)) ->  | AN48: =IF(OR(I48="",R48=""),"",ROUND(VLOOKUP(I48,直管換算!$B$4:$Q$26,8,FALSE)*R48,2)) ->  | AO48: =IF(OR(I48="",S48=""),"",ROUND(VLOOKUP(I48,直管換算!$B$4:$Q$26,9,FALSE)*S48,2)) ->  | AP48: =IF(OR(I48="",T48=""),"",ROUND(VLOOKUP(I48,直管換算!$B$4:$Q$26,10,FALSE)*T48,2)) ->  | AQ48: =IF(OR(I48="",U48=""),"",ROUND(VLOOKUP(I48,直管換算!$B$4:$Q$26,11,FALSE)*U48,2)) ->  | AR48: =IF(OR(I48="",V48=""),"",ROUND(VLOOKUP(I48,直管換算!$B$4:$Q$26,12,FALSE)*V48,2)) ->  | AS48: =IF(OR(I48="",W48=""),"",ROUND(VLOOKUP(I48,直管換算!$B$4:$Q$26,13,FALSE)*W48,2)) ->  | AT48: =IF(OR(I48="",X48=""),"",ROUND(VLOOKUP(I48,直管換算!$B$4:$Q$26,14,FALSE)*X48,2)) ->  | AU48: =IF(OR(I48="",Y48=""),"",ROUND(VLOOKUP(I48,直管換算!$B$4:$Q$26,15,FALSE)*Y48,2)) ->  | AV48: =IF(OR(I48="",Z48=""),"",ROUND(VLOOKUP(I48,直管換算!$B$4:$Q$26,16,FALSE)*Z48,2)) ->  | AY48: 空 | BB48: =IF(OR(H48="",I48=""),"",0.35464*計算公式!$B$14*POWER(AC48/1000,0.63)*POWER(BC48/1000,0.54)) ->  | BC48: =IF(OR(H48="",I48=""),"",10.666*POWER(計算公式!$B$14,-1.85)*POWER(AC48/1000,-4.87)*POWER(H48/1000,1.85)*1000) -> 
F49: 39 | AC49: =IF(I49="","",VLOOKUP(I49,内径設定!$B$4:$C$26,2,FALSE)) ->  | AD49: =IF(AC49="","",IF(OR(AND(AC49>計算公式!$B$9,計算公式!$D$9="超"),AND(AC49>=計算公式!$B$9,計算公式!$D$9="以上")),"H","W")) ->  | AH49: =IF(OR(I49="",L49=""),"",ROUND(VLOOKUP(I49,直管換算!$B$4:$Q$26,2,FALSE)*L49,2)) ->  | AI49: =IF(OR(I49="",M49=""),"",ROUND(VLOOKUP(I49,直管換算!$B$4:$Q$26,3,FALSE)*M49,2)) ->  | AJ49: =IF(OR(I49="",N49=""),"",ROUND(VLOOKUP(I49,直管換算!$B$4:$Q$26,4,FALSE)*N49,2)) ->  | AK49: =IF(OR(I49="",O49=""),"",ROUND(VLOOKUP(I49,直管換算!$B$4:$Q$26,5,FALSE)*O49,2)) ->  | AL49: =IF(OR(I49="",P49=""),"",ROUND(VLOOKUP(I49,直管換算!$B$4:$Q$26,6,FALSE)*P49,2)) ->  | AM49: =IF(OR(I49="",Q49=""),"",ROUND(VLOOKUP(I49,直管換算!$B$4:$Q$26,7,FALSE)*Q49,2)) ->  | AN49: =IF(OR(I49="",R49=""),"",ROUND(VLOOKUP(I49,直管換算!$B$4:$Q$26,8,FALSE)*R49,2)) ->  | AO49: =IF(OR(I49="",S49=""),"",ROUND(VLOOKUP(I49,直管換算!$B$4:$Q$26,9,FALSE)*S49,2)) ->  | AP49: =IF(OR(I49="",T49=""),"",ROUND(VLOOKUP(I49,直管換算!$B$4:$Q$26,10,FALSE)*T49,2)) ->  | AQ49: =IF(OR(I49="",U49=""),"",ROUND(VLOOKUP(I49,直管換算!$B$4:$Q$26,11,FALSE)*U49,2)) ->  | AR49: =IF(OR(I49="",V49=""),"",ROUND(VLOOKUP(I49,直管換算!$B$4:$Q$26,12,FALSE)*V49,2)) ->  | AS49: =IF(OR(I49="",W49=""),"",ROUND(VLOOKUP(I49,直管換算!$B$4:$Q$26,13,FALSE)*W49,2)) ->  | AT49: =IF(OR(I49="",X49=""),"",ROUND(VLOOKUP(I49,直管換算!$B$4:$Q$26,14,FALSE)*X49,2)) ->  | AU49: =IF(OR(I49="",Y49=""),"",ROUND(VLOOKUP(I49,直管換算!$B$4:$Q$26,15,FALSE)*Y49,2)) ->  | AV49: =IF(OR(I49="",Z49=""),"",ROUND(VLOOKUP(I49,直管換算!$B$4:$Q$26,16,FALSE)*Z49,2)) ->  | AY49: 空 | BB49: =IF(OR(H49="",I49=""),"",0.35464*計算公式!$B$14*POWER(AC49/1000,0.63)*POWER(BC49/1000,0.54)) ->  | BC49: =IF(OR(H49="",I49=""),"",10.666*POWER(計算公式!$B$14,-1.85)*POWER(AC49/1000,-4.87)*POWER(H49/1000,1.85)*1000) -> 
F50: 40 | AC50: =IF(I50="","",VLOOKUP(I50,内径設定!$B$4:$C$26,2,FALSE)) ->  | AD50: =IF(AC50="","",IF(OR(AND(AC50>計算公式!$B$9,計算公式!$D$9="超"),AND(AC50>=計算公式!$B$9,計算公式!$D$9="以上")),"H","W")) ->  | AH50: =IF(OR(I50="",L50=""),"",ROUND(VLOOKUP(I50,直管換算!$B$4:$Q$26,2,FALSE)*L50,2)) ->  | AI50: =IF(OR(I50="",M50=""),"",ROUND(VLOOKUP(I50,直管換算!$B$4:$Q$26,3,FALSE)*M50,2)) ->  | AJ50: =IF(OR(I50="",N50=""),"",ROUND(VLOOKUP(I50,直管換算!$B$4:$Q$26,4,FALSE)*N50,2)) ->  | AK50: =IF(OR(I50="",O50=""),"",ROUND(VLOOKUP(I50,直管換算!$B$4:$Q$26,5,FALSE)*O50,2)) ->  | AL50: =IF(OR(I50="",P50=""),"",ROUND(VLOOKUP(I50,直管換算!$B$4:$Q$26,6,FALSE)*P50,2)) ->  | AM50: =IF(OR(I50="",Q50=""),"",ROUND(VLOOKUP(I50,直管換算!$B$4:$Q$26,7,FALSE)*Q50,2)) ->  | AN50: =IF(OR(I50="",R50=""),"",ROUND(VLOOKUP(I50,直管換算!$B$4:$Q$26,8,FALSE)*R50,2)) ->  | AO50: =IF(OR(I50="",S50=""),"",ROUND(VLOOKUP(I50,直管換算!$B$4:$Q$26,9,FALSE)*S50,2)) ->  | AP50: =IF(OR(I50="",T50=""),"",ROUND(VLOOKUP(I50,直管換算!$B$4:$Q$26,10,FALSE)*T50,2)) ->  | AQ50: =IF(OR(I50="",U50=""),"",ROUND(VLOOKUP(I50,直管換算!$B$4:$Q$26,11,FALSE)*U50,2)) ->  | AR50: =IF(OR(I50="",V50=""),"",ROUND(VLOOKUP(I50,直管換算!$B$4:$Q$26,12,FALSE)*V50,2)) ->  | AS50: =IF(OR(I50="",W50=""),"",ROUND(VLOOKUP(I50,直管換算!$B$4:$Q$26,13,FALSE)*W50,2)) ->  | AT50: =IF(OR(I50="",X50=""),"",ROUND(VLOOKUP(I50,直管換算!$B$4:$Q$26,14,FALSE)*X50,2)) ->  | AU50: =IF(OR(I50="",Y50=""),"",ROUND(VLOOKUP(I50,直管換算!$B$4:$Q$26,15,FALSE)*Y50,2)) ->  | AV50: =IF(OR(I50="",Z50=""),"",ROUND(VLOOKUP(I50,直管換算!$B$4:$Q$26,16,FALSE)*Z50,2)) ->  | AY50: 空 | BB50: =IF(OR(H50="",I50=""),"",0.35464*計算公式!$B$14*POWER(AC50/1000,0.63)*POWER(BC50/1000,0.54)) ->  | BC50: =IF(OR(H50="",I50=""),"",10.666*POWER(計算公式!$B$14,-1.85)*POWER(AC50/1000,-4.87)*POWER(H50/1000,1.85)*1000) -> 
F51: 41 | AC51: =IF(I51="","",VLOOKUP(I51,内径設定!$B$4:$C$26,2,FALSE)) ->  | AD51: =IF(AC51="","",IF(OR(AND(AC51>計算公式!$B$9,計算公式!$D$9="超"),AND(AC51>=計算公式!$B$9,計算公式!$D$9="以上")),"H","W")) ->  | AH51: =IF(OR(I51="",L51=""),"",ROUND(VLOOKUP(I51,直管換算!$B$4:$Q$26,2,FALSE)*L51,2)) ->  | AI51: =IF(OR(I51="",M51=""),"",ROUND(VLOOKUP(I51,直管換算!$B$4:$Q$26,3,FALSE)*M51,2)) ->  | AJ51: =IF(OR(I51="",N51=""),"",ROUND(VLOOKUP(I51,直管換算!$B$4:$Q$26,4,FALSE)*N51,2)) ->  | AK51: =IF(OR(I51="",O51=""),"",ROUND(VLOOKUP(I51,直管換算!$B$4:$Q$26,5,FALSE)*O51,2)) ->  | AL51: =IF(OR(I51="",P51=""),"",ROUND(VLOOKUP(I51,直管換算!$B$4:$Q$26,6,FALSE)*P51,2)) ->  | AM51: =IF(OR(I51="",Q51=""),"",ROUND(VLOOKUP(I51,直管換算!$B$4:$Q$26,7,FALSE)*Q51,2)) ->  | AN51: =IF(OR(I51="",R51=""),"",ROUND(VLOOKUP(I51,直管換算!$B$4:$Q$26,8,FALSE)*R51,2)) ->  | AO51: =IF(OR(I51="",S51=""),"",ROUND(VLOOKUP(I51,直管換算!$B$4:$Q$26,9,FALSE)*S51,2)) ->  | AP51: =IF(OR(I51="",T51=""),"",ROUND(VLOOKUP(I51,直管換算!$B$4:$Q$26,10,FALSE)*T51,2)) ->  | AQ51: =IF(OR(I51="",U51=""),"",ROUND(VLOOKUP(I51,直管換算!$B$4:$Q$26,11,FALSE)*U51,2)) ->  | AR51: =IF(OR(I51="",V51=""),"",ROUND(VLOOKUP(I51,直管換算!$B$4:$Q$26,12,FALSE)*V51,2)) ->  | AS51: =IF(OR(I51="",W51=""),"",ROUND(VLOOKUP(I51,直管換算!$B$4:$Q$26,13,FALSE)*W51,2)) ->  | AT51: =IF(OR(I51="",X51=""),"",ROUND(VLOOKUP(I51,直管換算!$B$4:$Q$26,14,FALSE)*X51,2)) ->  | AU51: =IF(OR(I51="",Y51=""),"",ROUND(VLOOKUP(I51,直管換算!$B$4:$Q$26,15,FALSE)*Y51,2)) ->  | AV51: =IF(OR(I51="",Z51=""),"",ROUND(VLOOKUP(I51,直管換算!$B$4:$Q$26,16,FALSE)*Z51,2)) ->  | AY51: 空 | BB51: =IF(OR(H51="",I51=""),"",0.35464*計算公式!$B$14*POWER(AC51/1000,0.63)*POWER(BC51/1000,0.54)) ->  | BC51: =IF(OR(H51="",I51=""),"",10.666*POWER(計算公式!$B$14,-1.85)*POWER(AC51/1000,-4.87)*POWER(H51/1000,1.85)*1000) -> 
F52: 42 | AC52: =IF(I52="","",VLOOKUP(I52,内径設定!$B$4:$C$26,2,FALSE)) ->  | AD52: =IF(AC52="","",IF(OR(AND(AC52>計算公式!$B$9,計算公式!$D$9="超"),AND(AC52>=計算公式!$B$9,計算公式!$D$9="以上")),"H","W")) ->  | AH52: =IF(OR(I52="",L52=""),"",ROUND(VLOOKUP(I52,直管換算!$B$4:$Q$26,2,FALSE)*L52,2)) ->  | AI52: =IF(OR(I52="",M52=""),"",ROUND(VLOOKUP(I52,直管換算!$B$4:$Q$26,3,FALSE)*M52,2)) ->  | AJ52: =IF(OR(I52="",N52=""),"",ROUND(VLOOKUP(I52,直管換算!$B$4:$Q$26,4,FALSE)*N52,2)) ->  | AK52: =IF(OR(I52="",O52=""),"",ROUND(VLOOKUP(I52,直管換算!$B$4:$Q$26,5,FALSE)*O52,2)) ->  | AL52: =IF(OR(I52="",P52=""),"",ROUND(VLOOKUP(I52,直管換算!$B$4:$Q$26,6,FALSE)*P52,2)) ->  | AM52: =IF(OR(I52="",Q52=""),"",ROUND(VLOOKUP(I52,直管換算!$B$4:$Q$26,7,FALSE)*Q52,2)) ->  | AN52: =IF(OR(I52="",R52=""),"",ROUND(VLOOKUP(I52,直管換算!$B$4:$Q$26,8,FALSE)*R52,2)) ->  | AO52: =IF(OR(I52="",S52=""),"",ROUND(VLOOKUP(I52,直管換算!$B$4:$Q$26,9,FALSE)*S52,2)) ->  | AP52: =IF(OR(I52="",T52=""),"",ROUND(VLOOKUP(I52,直管換算!$B$4:$Q$26,10,FALSE)*T52,2)) ->  | AQ52: =IF(OR(I52="",U52=""),"",ROUND(VLOOKUP(I52,直管換算!$B$4:$Q$26,11,FALSE)*U52,2)) ->  | AR52: =IF(OR(I52="",V52=""),"",ROUND(VLOOKUP(I52,直管換算!$B$4:$Q$26,12,FALSE)*V52,2)) ->  | AS52: =IF(OR(I52="",W52=""),"",ROUND(VLOOKUP(I52,直管換算!$B$4:$Q$26,13,FALSE)*W52,2)) ->  | AT52: =IF(OR(I52="",X52=""),"",ROUND(VLOOKUP(I52,直管換算!$B$4:$Q$26,14,FALSE)*X52,2)) ->  | AU52: =IF(OR(I52="",Y52=""),"",ROUND(VLOOKUP(I52,直管換算!$B$4:$Q$26,15,FALSE)*Y52,2)) ->  | AV52: =IF(OR(I52="",Z52=""),"",ROUND(VLOOKUP(I52,直管換算!$B$4:$Q$26,16,FALSE)*Z52,2)) ->  | AY52: 空 | BB52: =IF(OR(H52="",I52=""),"",0.35464*計算公式!$B$14*POWER(AC52/1000,0.63)*POWER(BC52/1000,0.54)) ->  | BC52: =IF(OR(H52="",I52=""),"",10.666*POWER(計算公式!$B$14,-1.85)*POWER(AC52/1000,-4.87)*POWER(H52/1000,1.85)*1000) -> 
F53: 43 | AC53: =IF(I53="","",VLOOKUP(I53,内径設定!$B$4:$C$26,2,FALSE)) ->  | AD53: =IF(AC53="","",IF(OR(AND(AC53>計算公式!$B$9,計算公式!$D$9="超"),AND(AC53>=計算公式!$B$9,計算公式!$D$9="以上")),"H","W")) ->  | AH53: =IF(OR(I53="",L53=""),"",ROUND(VLOOKUP(I53,直管換算!$B$4:$Q$26,2,FALSE)*L53,2)) ->  | AI53: =IF(OR(I53="",M53=""),"",ROUND(VLOOKUP(I53,直管換算!$B$4:$Q$26,3,FALSE)*M53,2)) ->  | AJ53: =IF(OR(I53="",N53=""),"",ROUND(VLOOKUP(I53,直管換算!$B$4:$Q$26,4,FALSE)*N53,2)) ->  | AK53: =IF(OR(I53="",O53=""),"",ROUND(VLOOKUP(I53,直管換算!$B$4:$Q$26,5,FALSE)*O53,2)) ->  | AL53: =IF(OR(I53="",P53=""),"",ROUND(VLOOKUP(I53,直管換算!$B$4:$Q$26,6,FALSE)*P53,2)) ->  | AM53: =IF(OR(I53="",Q53=""),"",ROUND(VLOOKUP(I53,直管換算!$B$4:$Q$26,7,FALSE)*Q53,2)) ->  | AN53: =IF(OR(I53="",R53=""),"",ROUND(VLOOKUP(I53,直管換算!$B$4:$Q$26,8,FALSE)*R53,2)) ->  | AO53: =IF(OR(I53="",S53=""),"",ROUND(VLOOKUP(I53,直管換算!$B$4:$Q$26,9,FALSE)*S53,2)) ->  | AP53: =IF(OR(I53="",T53=""),"",ROUND(VLOOKUP(I53,直管換算!$B$4:$Q$26,10,FALSE)*T53,2)) ->  | AQ53: =IF(OR(I53="",U53=""),"",ROUND(VLOOKUP(I53,直管換算!$B$4:$Q$26,11,FALSE)*U53,2)) ->  | AR53: =IF(OR(I53="",V53=""),"",ROUND(VLOOKUP(I53,直管換算!$B$4:$Q$26,12,FALSE)*V53,2)) ->  | AS53: =IF(OR(I53="",W53=""),"",ROUND(VLOOKUP(I53,直管換算!$B$4:$Q$26,13,FALSE)*W53,2)) ->  | AT53: =IF(OR(I53="",X53=""),"",ROUND(VLOOKUP(I53,直管換算!$B$4:$Q$26,14,FALSE)*X53,2)) ->  | AU53: =IF(OR(I53="",Y53=""),"",ROUND(VLOOKUP(I53,直管換算!$B$4:$Q$26,15,FALSE)*Y53,2)) ->  | AV53: =IF(OR(I53="",Z53=""),"",ROUND(VLOOKUP(I53,直管換算!$B$4:$Q$26,16,FALSE)*Z53,2)) ->  | AY53: 空 | BB53: =IF(OR(H53="",I53=""),"",0.35464*計算公式!$B$14*POWER(AC53/1000,0.63)*POWER(BC53/1000,0.54)) ->  | BC53: =IF(OR(H53="",I53=""),"",10.666*POWER(計算公式!$B$14,-1.85)*POWER(AC53/1000,-4.87)*POWER(H53/1000,1.85)*1000) -> 
F54: 44 | AC54: =IF(I54="","",VLOOKUP(I54,内径設定!$B$4:$C$26,2,FALSE)) ->  | AD54: =IF(AC54="","",IF(OR(AND(AC54>計算公式!$B$9,計算公式!$D$9="超"),AND(AC54>=計算公式!$B$9,計算公式!$D$9="以上")),"H","W")) ->  | AH54: =IF(OR(I54="",L54=""),"",ROUND(VLOOKUP(I54,直管換算!$B$4:$Q$26,2,FALSE)*L54,2)) ->  | AI54: =IF(OR(I54="",M54=""),"",ROUND(VLOOKUP(I54,直管換算!$B$4:$Q$26,3,FALSE)*M54,2)) ->  | AJ54: =IF(OR(I54="",N54=""),"",ROUND(VLOOKUP(I54,直管換算!$B$4:$Q$26,4,FALSE)*N54,2)) ->  | AK54: =IF(OR(I54="",O54=""),"",ROUND(VLOOKUP(I54,直管換算!$B$4:$Q$26,5,FALSE)*O54,2)) ->  | AL54: =IF(OR(I54="",P54=""),"",ROUND(VLOOKUP(I54,直管換算!$B$4:$Q$26,6,FALSE)*P54,2)) ->  | AM54: =IF(OR(I54="",Q54=""),"",ROUND(VLOOKUP(I54,直管換算!$B$4:$Q$26,7,FALSE)*Q54,2)) ->  | AN54: =IF(OR(I54="",R54=""),"",ROUND(VLOOKUP(I54,直管換算!$B$4:$Q$26,8,FALSE)*R54,2)) ->  | AO54: =IF(OR(I54="",S54=""),"",ROUND(VLOOKUP(I54,直管換算!$B$4:$Q$26,9,FALSE)*S54,2)) ->  | AP54: =IF(OR(I54="",T54=""),"",ROUND(VLOOKUP(I54,直管換算!$B$4:$Q$26,10,FALSE)*T54,2)) ->  | AQ54: =IF(OR(I54="",U54=""),"",ROUND(VLOOKUP(I54,直管換算!$B$4:$Q$26,11,FALSE)*U54,2)) ->  | AR54: =IF(OR(I54="",V54=""),"",ROUND(VLOOKUP(I54,直管換算!$B$4:$Q$26,12,FALSE)*V54,2)) ->  | AS54: =IF(OR(I54="",W54=""),"",ROUND(VLOOKUP(I54,直管換算!$B$4:$Q$26,13,FALSE)*W54,2)) ->  | AT54: =IF(OR(I54="",X54=""),"",ROUND(VLOOKUP(I54,直管換算!$B$4:$Q$26,14,FALSE)*X54,2)) ->  | AU54: =IF(OR(I54="",Y54=""),"",ROUND(VLOOKUP(I54,直管換算!$B$4:$Q$26,15,FALSE)*Y54,2)) ->  | AV54: =IF(OR(I54="",Z54=""),"",ROUND(VLOOKUP(I54,直管換算!$B$4:$Q$26,16,FALSE)*Z54,2)) ->  | AY54: 空 | BB54: =IF(OR(H54="",I54=""),"",0.35464*計算公式!$B$14*POWER(AC54/1000,0.63)*POWER(BC54/1000,0.54)) ->  | BC54: =IF(OR(H54="",I54=""),"",10.666*POWER(計算公式!$B$14,-1.85)*POWER(AC54/1000,-4.87)*POWER(H54/1000,1.85)*1000) -> 
F55: 45 | AC55: =IF(I55="","",VLOOKUP(I55,内径設定!$B$4:$C$26,2,FALSE)) ->  | AD55: =IF(AC55="","",IF(OR(AND(AC55>計算公式!$B$9,計算公式!$D$9="超"),AND(AC55>=計算公式!$B$9,計算公式!$D$9="以上")),"H","W")) ->  | AH55: =IF(OR(I55="",L55=""),"",ROUND(VLOOKUP(I55,直管換算!$B$4:$Q$26,2,FALSE)*L55,2)) ->  | AI55: =IF(OR(I55="",M55=""),"",ROUND(VLOOKUP(I55,直管換算!$B$4:$Q$26,3,FALSE)*M55,2)) ->  | AJ55: =IF(OR(I55="",N55=""),"",ROUND(VLOOKUP(I55,直管換算!$B$4:$Q$26,4,FALSE)*N55,2)) ->  | AK55: =IF(OR(I55="",O55=""),"",ROUND(VLOOKUP(I55,直管換算!$B$4:$Q$26,5,FALSE)*O55,2)) ->  | AL55: =IF(OR(I55="",P55=""),"",ROUND(VLOOKUP(I55,直管換算!$B$4:$Q$26,6,FALSE)*P55,2)) ->  | AM55: =IF(OR(I55="",Q55=""),"",ROUND(VLOOKUP(I55,直管換算!$B$4:$Q$26,7,FALSE)*Q55,2)) ->  | AN55: =IF(OR(I55="",R55=""),"",ROUND(VLOOKUP(I55,直管換算!$B$4:$Q$26,8,FALSE)*R55,2)) ->  | AO55: =IF(OR(I55="",S55=""),"",ROUND(VLOOKUP(I55,直管換算!$B$4:$Q$26,9,FALSE)*S55,2)) ->  | AP55: =IF(OR(I55="",T55=""),"",ROUND(VLOOKUP(I55,直管換算!$B$4:$Q$26,10,FALSE)*T55,2)) ->  | AQ55: =IF(OR(I55="",U55=""),"",ROUND(VLOOKUP(I55,直管換算!$B$4:$Q$26,11,FALSE)*U55,2)) ->  | AR55: =IF(OR(I55="",V55=""),"",ROUND(VLOOKUP(I55,直管換算!$B$4:$Q$26,12,FALSE)*V55,2)) ->  | AS55: =IF(OR(I55="",W55=""),"",ROUND(VLOOKUP(I55,直管換算!$B$4:$Q$26,13,FALSE)*W55,2)) ->  | AT55: =IF(OR(I55="",X55=""),"",ROUND(VLOOKUP(I55,直管換算!$B$4:$Q$26,14,FALSE)*X55,2)) ->  | AU55: =IF(OR(I55="",Y55=""),"",ROUND(VLOOKUP(I55,直管換算!$B$4:$Q$26,15,FALSE)*Y55,2)) ->  | AV55: =IF(OR(I55="",Z55=""),"",ROUND(VLOOKUP(I55,直管換算!$B$4:$Q$26,16,FALSE)*Z55,2)) ->  | AY55: 空 | BB55: =IF(OR(H55="",I55=""),"",0.35464*計算公式!$B$14*POWER(AC55/1000,0.63)*POWER(BC55/1000,0.54)) ->  | BC55: =IF(OR(H55="",I55=""),"",10.666*POWER(計算公式!$B$14,-1.85)*POWER(AC55/1000,-4.87)*POWER(H55/1000,1.85)*1000) -> 
F56: 46 | AC56: =IF(I56="","",VLOOKUP(I56,内径設定!$B$4:$C$26,2,FALSE)) ->  | AD56: =IF(AC56="","",IF(OR(AND(AC56>計算公式!$B$9,計算公式!$D$9="超"),AND(AC56>=計算公式!$B$9,計算公式!$D$9="以上")),"H","W")) ->  | AH56: =IF(OR(I56="",L56=""),"",ROUND(VLOOKUP(I56,直管換算!$B$4:$Q$26,2,FALSE)*L56,2)) ->  | AI56: =IF(OR(I56="",M56=""),"",ROUND(VLOOKUP(I56,直管換算!$B$4:$Q$26,3,FALSE)*M56,2)) ->  | AJ56: =IF(OR(I56="",N56=""),"",ROUND(VLOOKUP(I56,直管換算!$B$4:$Q$26,4,FALSE)*N56,2)) ->  | AK56: =IF(OR(I56="",O56=""),"",ROUND(VLOOKUP(I56,直管換算!$B$4:$Q$26,5,FALSE)*O56,2)) ->  | AL56: =IF(OR(I56="",P56=""),"",ROUND(VLOOKUP(I56,直管換算!$B$4:$Q$26,6,FALSE)*P56,2)) ->  | AM56: =IF(OR(I56="",Q56=""),"",ROUND(VLOOKUP(I56,直管換算!$B$4:$Q$26,7,FALSE)*Q56,2)) ->  | AN56: =IF(OR(I56="",R56=""),"",ROUND(VLOOKUP(I56,直管換算!$B$4:$Q$26,8,FALSE)*R56,2)) ->  | AO56: =IF(OR(I56="",S56=""),"",ROUND(VLOOKUP(I56,直管換算!$B$4:$Q$26,9,FALSE)*S56,2)) ->  | AP56: =IF(OR(I56="",T56=""),"",ROUND(VLOOKUP(I56,直管換算!$B$4:$Q$26,10,FALSE)*T56,2)) ->  | AQ56: =IF(OR(I56="",U56=""),"",ROUND(VLOOKUP(I56,直管換算!$B$4:$Q$26,11,FALSE)*U56,2)) ->  | AR56: =IF(OR(I56="",V56=""),"",ROUND(VLOOKUP(I56,直管換算!$B$4:$Q$26,12,FALSE)*V56,2)) ->  | AS56: =IF(OR(I56="",W56=""),"",ROUND(VLOOKUP(I56,直管換算!$B$4:$Q$26,13,FALSE)*W56,2)) ->  | AT56: =IF(OR(I56="",X56=""),"",ROUND(VLOOKUP(I56,直管換算!$B$4:$Q$26,14,FALSE)*X56,2)) ->  | AU56: =IF(OR(I56="",Y56=""),"",ROUND(VLOOKUP(I56,直管換算!$B$4:$Q$26,15,FALSE)*Y56,2)) ->  | AV56: =IF(OR(I56="",Z56=""),"",ROUND(VLOOKUP(I56,直管換算!$B$4:$Q$26,16,FALSE)*Z56,2)) ->  | AY56: 空 | BB56: =IF(OR(H56="",I56=""),"",0.35464*計算公式!$B$14*POWER(AC56/1000,0.63)*POWER(BC56/1000,0.54)) ->  | BC56: =IF(OR(H56="",I56=""),"",10.666*POWER(計算公式!$B$14,-1.85)*POWER(AC56/1000,-4.87)*POWER(H56/1000,1.85)*1000) -> 
F57: 47 | AC57: =IF(I57="","",VLOOKUP(I57,内径設定!$B$4:$C$26,2,FALSE)) ->  | AD57: =IF(AC57="","",IF(OR(AND(AC57>計算公式!$B$9,計算公式!$D$9="超"),AND(AC57>=計算公式!$B$9,計算公式!$D$9="以上")),"H","W")) ->  | AH57: =IF(OR(I57="",L57=""),"",ROUND(VLOOKUP(I57,直管換算!$B$4:$Q$26,2,FALSE)*L57,2)) ->  | AI57: =IF(OR(I57="",M57=""),"",ROUND(VLOOKUP(I57,直管換算!$B$4:$Q$26,3,FALSE)*M57,2)) ->  | AJ57: =IF(OR(I57="",N57=""),"",ROUND(VLOOKUP(I57,直管換算!$B$4:$Q$26,4,FALSE)*N57,2)) ->  | AK57: =IF(OR(I57="",O57=""),"",ROUND(VLOOKUP(I57,直管換算!$B$4:$Q$26,5,FALSE)*O57,2)) ->  | AL57: =IF(OR(I57="",P57=""),"",ROUND(VLOOKUP(I57,直管換算!$B$4:$Q$26,6,FALSE)*P57,2)) ->  | AM57: =IF(OR(I57="",Q57=""),"",ROUND(VLOOKUP(I57,直管換算!$B$4:$Q$26,7,FALSE)*Q57,2)) ->  | AN57: =IF(OR(I57="",R57=""),"",ROUND(VLOOKUP(I57,直管換算!$B$4:$Q$26,8,FALSE)*R57,2)) ->  | AO57: =IF(OR(I57="",S57=""),"",ROUND(VLOOKUP(I57,直管換算!$B$4:$Q$26,9,FALSE)*S57,2)) ->  | AP57: =IF(OR(I57="",T57=""),"",ROUND(VLOOKUP(I57,直管換算!$B$4:$Q$26,10,FALSE)*T57,2)) ->  | AQ57: =IF(OR(I57="",U57=""),"",ROUND(VLOOKUP(I57,直管換算!$B$4:$Q$26,11,FALSE)*U57,2)) ->  | AR57: =IF(OR(I57="",V57=""),"",ROUND(VLOOKUP(I57,直管換算!$B$4:$Q$26,12,FALSE)*V57,2)) ->  | AS57: =IF(OR(I57="",W57=""),"",ROUND(VLOOKUP(I57,直管換算!$B$4:$Q$26,13,FALSE)*W57,2)) ->  | AT57: =IF(OR(I57="",X57=""),"",ROUND(VLOOKUP(I57,直管換算!$B$4:$Q$26,14,FALSE)*X57,2)) ->  | AU57: =IF(OR(I57="",Y57=""),"",ROUND(VLOOKUP(I57,直管換算!$B$4:$Q$26,15,FALSE)*Y57,2)) ->  | AV57: =IF(OR(I57="",Z57=""),"",ROUND(VLOOKUP(I57,直管換算!$B$4:$Q$26,16,FALSE)*Z57,2)) ->  | AY57: 空 | BB57: =IF(OR(H57="",I57=""),"",0.35464*計算公式!$B$14*POWER(AC57/1000,0.63)*POWER(BC57/1000,0.54)) ->  | BC57: =IF(OR(H57="",I57=""),"",10.666*POWER(計算公式!$B$14,-1.85)*POWER(AC57/1000,-4.87)*POWER(H57/1000,1.85)*1000) -> 
F58: 48 | AC58: =IF(I58="","",VLOOKUP(I58,内径設定!$B$4:$C$26,2,FALSE)) ->  | AD58: =IF(AC58="","",IF(OR(AND(AC58>計算公式!$B$9,計算公式!$D$9="超"),AND(AC58>=計算公式!$B$9,計算公式!$D$9="以上")),"H","W")) ->  | AH58: =IF(OR(I58="",L58=""),"",ROUND(VLOOKUP(I58,直管換算!$B$4:$Q$26,2,FALSE)*L58,2)) ->  | AI58: =IF(OR(I58="",M58=""),"",ROUND(VLOOKUP(I58,直管換算!$B$4:$Q$26,3,FALSE)*M58,2)) ->  | AJ58: =IF(OR(I58="",N58=""),"",ROUND(VLOOKUP(I58,直管換算!$B$4:$Q$26,4,FALSE)*N58,2)) ->  | AK58: =IF(OR(I58="",O58=""),"",ROUND(VLOOKUP(I58,直管換算!$B$4:$Q$26,5,FALSE)*O58,2)) ->  | AL58: =IF(OR(I58="",P58=""),"",ROUND(VLOOKUP(I58,直管換算!$B$4:$Q$26,6,FALSE)*P58,2)) ->  | AM58: =IF(OR(I58="",Q58=""),"",ROUND(VLOOKUP(I58,直管換算!$B$4:$Q$26,7,FALSE)*Q58,2)) ->  | AN58: =IF(OR(I58="",R58=""),"",ROUND(VLOOKUP(I58,直管換算!$B$4:$Q$26,8,FALSE)*R58,2)) ->  | AO58: =IF(OR(I58="",S58=""),"",ROUND(VLOOKUP(I58,直管換算!$B$4:$Q$26,9,FALSE)*S58,2)) ->  | AP58: =IF(OR(I58="",T58=""),"",ROUND(VLOOKUP(I58,直管換算!$B$4:$Q$26,10,FALSE)*T58,2)) ->  | AQ58: =IF(OR(I58="",U58=""),"",ROUND(VLOOKUP(I58,直管換算!$B$4:$Q$26,11,FALSE)*U58,2)) ->  | AR58: =IF(OR(I58="",V58=""),"",ROUND(VLOOKUP(I58,直管換算!$B$4:$Q$26,12,FALSE)*V58,2)) ->  | AS58: =IF(OR(I58="",W58=""),"",ROUND(VLOOKUP(I58,直管換算!$B$4:$Q$26,13,FALSE)*W58,2)) ->  | AT58: =IF(OR(I58="",X58=""),"",ROUND(VLOOKUP(I58,直管換算!$B$4:$Q$26,14,FALSE)*X58,2)) ->  | AU58: =IF(OR(I58="",Y58=""),"",ROUND(VLOOKUP(I58,直管換算!$B$4:$Q$26,15,FALSE)*Y58,2)) ->  | AV58: =IF(OR(I58="",Z58=""),"",ROUND(VLOOKUP(I58,直管換算!$B$4:$Q$26,16,FALSE)*Z58,2)) ->  | AY58: 空 | BB58: =IF(OR(H58="",I58=""),"",0.35464*計算公式!$B$14*POWER(AC58/1000,0.63)*POWER(BC58/1000,0.54)) ->  | BC58: =IF(OR(H58="",I58=""),"",10.666*POWER(計算公式!$B$14,-1.85)*POWER(AC58/1000,-4.87)*POWER(H58/1000,1.85)*1000) -> 
F59: 49 | AC59: =IF(I59="","",VLOOKUP(I59,内径設定!$B$4:$C$26,2,FALSE)) ->  | AD59: =IF(AC59="","",IF(OR(AND(AC59>計算公式!$B$9,計算公式!$D$9="超"),AND(AC59>=計算公式!$B$9,計算公式!$D$9="以上")),"H","W")) ->  | AH59: =IF(OR(I59="",L59=""),"",ROUND(VLOOKUP(I59,直管換算!$B$4:$Q$26,2,FALSE)*L59,2)) ->  | AI59: =IF(OR(I59="",M59=""),"",ROUND(VLOOKUP(I59,直管換算!$B$4:$Q$26,3,FALSE)*M59,2)) ->  | AJ59: =IF(OR(I59="",N59=""),"",ROUND(VLOOKUP(I59,直管換算!$B$4:$Q$26,4,FALSE)*N59,2)) ->  | AK59: =IF(OR(I59="",O59=""),"",ROUND(VLOOKUP(I59,直管換算!$B$4:$Q$26,5,FALSE)*O59,2)) ->  | AL59: =IF(OR(I59="",P59=""),"",ROUND(VLOOKUP(I59,直管換算!$B$4:$Q$26,6,FALSE)*P59,2)) ->  | AM59: =IF(OR(I59="",Q59=""),"",ROUND(VLOOKUP(I59,直管換算!$B$4:$Q$26,7,FALSE)*Q59,2)) ->  | AN59: =IF(OR(I59="",R59=""),"",ROUND(VLOOKUP(I59,直管換算!$B$4:$Q$26,8,FALSE)*R59,2)) ->  | AO59: =IF(OR(I59="",S59=""),"",ROUND(VLOOKUP(I59,直管換算!$B$4:$Q$26,9,FALSE)*S59,2)) ->  | AP59: =IF(OR(I59="",T59=""),"",ROUND(VLOOKUP(I59,直管換算!$B$4:$Q$26,10,FALSE)*T59,2)) ->  | AQ59: =IF(OR(I59="",U59=""),"",ROUND(VLOOKUP(I59,直管換算!$B$4:$Q$26,11,FALSE)*U59,2)) ->  | AR59: =IF(OR(I59="",V59=""),"",ROUND(VLOOKUP(I59,直管換算!$B$4:$Q$26,12,FALSE)*V59,2)) ->  | AS59: =IF(OR(I59="",W59=""),"",ROUND(VLOOKUP(I59,直管換算!$B$4:$Q$26,13,FALSE)*W59,2)) ->  | AT59: =IF(OR(I59="",X59=""),"",ROUND(VLOOKUP(I59,直管換算!$B$4:$Q$26,14,FALSE)*X59,2)) ->  | AU59: =IF(OR(I59="",Y59=""),"",ROUND(VLOOKUP(I59,直管換算!$B$4:$Q$26,15,FALSE)*Y59,2)) ->  | AV59: =IF(OR(I59="",Z59=""),"",ROUND(VLOOKUP(I59,直管換算!$B$4:$Q$26,16,FALSE)*Z59,2)) ->  | AY59: 空 | BB59: =IF(OR(H59="",I59=""),"",0.35464*計算公式!$B$14*POWER(AC59/1000,0.63)*POWER(BC59/1000,0.54)) ->  | BC59: =IF(OR(H59="",I59=""),"",10.666*POWER(計算公式!$B$14,-1.85)*POWER(AC59/1000,-4.87)*POWER(H59/1000,1.85)*1000) -> 
F60: 50 | AC60: =IF(I60="","",VLOOKUP(I60,内径設定!$B$4:$C$26,2,FALSE)) ->  | AD60: =IF(AC60="","",IF(OR(AND(AC60>計算公式!$B$9,計算公式!$D$9="超"),AND(AC60>=計算公式!$B$9,計算公式!$D$9="以上")),"H","W")) ->  | AH60: =IF(OR(I60="",L60=""),"",ROUND(VLOOKUP(I60,直管換算!$B$4:$Q$26,2,FALSE)*L60,2)) ->  | AI60: =IF(OR(I60="",M60=""),"",ROUND(VLOOKUP(I60,直管換算!$B$4:$Q$26,3,FALSE)*M60,2)) ->  | AJ60: =IF(OR(I60="",N60=""),"",ROUND(VLOOKUP(I60,直管換算!$B$4:$Q$26,4,FALSE)*N60,2)) ->  | AK60: =IF(OR(I60="",O60=""),"",ROUND(VLOOKUP(I60,直管換算!$B$4:$Q$26,5,FALSE)*O60,2)) ->  | AL60: =IF(OR(I60="",P60=""),"",ROUND(VLOOKUP(I60,直管換算!$B$4:$Q$26,6,FALSE)*P60,2)) ->  | AM60: =IF(OR(I60="",Q60=""),"",ROUND(VLOOKUP(I60,直管換算!$B$4:$Q$26,7,FALSE)*Q60,2)) ->  | AN60: =IF(OR(I60="",R60=""),"",ROUND(VLOOKUP(I60,直管換算!$B$4:$Q$26,8,FALSE)*R60,2)) ->  | AO60: =IF(OR(I60="",S60=""),"",ROUND(VLOOKUP(I60,直管換算!$B$4:$Q$26,9,FALSE)*S60,2)) ->  | AP60: =IF(OR(I60="",T60=""),"",ROUND(VLOOKUP(I60,直管換算!$B$4:$Q$26,10,FALSE)*T60,2)) ->  | AQ60: =IF(OR(I60="",U60=""),"",ROUND(VLOOKUP(I60,直管換算!$B$4:$Q$26,11,FALSE)*U60,2)) ->  | AR60: =IF(OR(I60="",V60=""),"",ROUND(VLOOKUP(I60,直管換算!$B$4:$Q$26,12,FALSE)*V60,2)) ->  | AS60: =IF(OR(I60="",W60=""),"",ROUND(VLOOKUP(I60,直管換算!$B$4:$Q$26,13,FALSE)*W60,2)) ->  | AT60: =IF(OR(I60="",X60=""),"",ROUND(VLOOKUP(I60,直管換算!$B$4:$Q$26,14,FALSE)*X60,2)) ->  | AU60: =IF(OR(I60="",Y60=""),"",ROUND(VLOOKUP(I60,直管換算!$B$4:$Q$26,15,FALSE)*Y60,2)) ->  | AV60: =IF(OR(I60="",Z60=""),"",ROUND(VLOOKUP(I60,直管換算!$B$4:$Q$26,16,FALSE)*Z60,2)) ->  | AY60: 空 | BB60: =IF(OR(H60="",I60=""),"",0.35464*計算公式!$B$14*POWER(AC60/1000,0.63)*POWER(BC60/1000,0.54)) ->  | BC60: =IF(OR(H60="",I60=""),"",10.666*POWER(計算公式!$B$14,-1.85)*POWER(AC60/1000,-4.87)*POWER(H60/1000,1.85)*1000) -> 
AY61: 空
B62: =IF($BG$10<>"区間計算後に比較","","累計所要水頭") -> 累計所要水頭 | D62: =IF(OR($BG$10<>"区間計算後に比較",$F$10=0),"",IF($BF$10="MPa",OFFSET($B$10,$F$10,0,1,1),OFFSET($C$10,$F$10,0,1,1))) -> 0.064 | E62: =IF($BG$10<>"区間計算後に比較","",IF($BF$10="MPa","MPa","ｍ")) -> MPa
B63: =IF($BG$10<>"区間計算後に比較","",IF($BF$10="MPa","給水用具の必要圧力","給水用具の所要水頭")) -> 給水用具の必要圧力 | D63: =IF($BG$10<>"区間計算後に比較","",$BG$12) -> 0.03 | E63: =IF($BG$10<>"区間計算後に比較","",IF($BF$10="MPa","MPa","ｍ")) -> MPa
B64: =IF($BG$10<>"区間計算後に比較","","合計") -> 合計 | D64: =IF(OR($BG$10<>"区間計算後に比較",$D$62=""),"",$D$62+$D$63) -> 0.094 | E64: =IF($BG$10<>"区間計算後に比較","",IF($BF$10="MPa","MPa","ｍ")) -> MPa

Sheet 幹栓1 (hidden)
B2: ＜幹栓1＞戸数と居住人数
B4: ●幹栓の計画使用水量の算出方法を選択してください。
B6: ＜「戸数」から同時使用水量を予測する算定式を用いる方法＞
B7: 下の「算出方法」欄のリストから、「戸数」を選択してください。
B8: 「戸数」欄には、計算対象となる最大戸数を入力してください。
B10: ＜「居住人数」から同時使用水量を予測する算定式を用いる方法＞
B11: 下の「算出方法」欄のリストから、「居住人数」を選択してください。
B12: 「居住人数」欄には、計算対象となる最大居住人数を入力してください。
B14: 算出方法 | C14: =IF(B15="居住人数","居住人数","戸数") -> 戸数
B15: 戸数 | C15: 12 | D15: =IF(B15="居住人数","人","戸") -> 戸
B16: =IF($B$15<>"","","※空白は「戸数」として処理します。") -> 
K17: ↓非表示にする | L17: ↓非表示にする | M17: ↓非表示にする | N17: ↓非表示にする | O17: ↓非表示にする | P17: ↓非表示にする
B18: 同時使用水量 | L18: 戸数 | N18: 居住人数
B19: =IF($C$15="","",IF(AND($B$15<>"居住人数",$C$15>=1,$C$15<=9),L20,IF(AND($B$15<>"居住人数",$C$15>=10,$C$15<=599),M20,IF(AND($B$15="居住人数",$C$15>=1,$C$15<=30),N20,IF(AND($B$15="居住人数",$C$15>=31,$C$15<=200),O20,IF(AND($B$15="居住人数",$C$15>=201,$C$15<=2000),P20,"計算できません")))))) -> 100.4 | C19: L/min | L19: 1～9 | M19: 10～599 | N19: 1～30 | O19: 31～200 | P19: 201～2000
B20: =IF($C$15="","",IF(AND($B$15<>"居住人数",$C$15>=1,$C$15<=9),L21,IF(AND($B$15<>"居住人数",$C$15>=10,$C$15<=599),M21,IF(AND($B$15="居住人数",$C$15>=1,$C$15<=30),N21,IF(AND($B$15="居住人数",$C$15>=31,$C$15<=200),O21,IF(AND($B$15="居住人数",$C$15>=201,$C$15<=2000),P21,"計算できません")))))) -> 1.67 | C20: L/sec | K20: L/min | L20: =ROUND(42*POWER($C$15,0.33),1) -> 95.4 | M20: =ROUND(19*POWER($C$15,0.67),1) -> 100.4 | N20: =ROUND(26*POWER($C$15,0.36),1) -> 63.6 | O20: =ROUND(13*POWER($C$15,0.56),1) -> 52.3 | P20: =ROUND(6.9*POWER($C$15,0.67),1) -> 36.5
K21: L/sec | L21: =ROUND(42*POWER($C$15,0.33)/60,2) -> 1.59 | M21: =ROUND(19*POWER($C$15,0.67)/60,2) -> 1.67 | N21: =ROUND(26*POWER($C$15,0.36)/60,2) -> 1.06 | O21: =ROUND(13*POWER($C$15,0.56)/60,2) -> 0.87 | P21: =ROUND(6.9*POWER($C$15,0.67)/60,2) -> 0.61

Sheet 幹栓2 (hidden)
B2: ＜幹栓2＞安全率-幹栓
B4: ●安全率を設定しますか？
B6: ＜設定しない場合＞
B7: 下表の「安全率の設定」欄のリストから「設定しない」を選択してください。
B8: 「数値」欄には何も入力しません。（入力してあっても問題ありません。）
B10: ＜設定する場合＞
B11: 下表の「安全率の設定」欄のリストから「設定する」を選択してください。
B12: 「数値」欄には、安全率を入力してください。
B14: 安全率の設定 | C14: 数値 | D14: 単位
B15: 設定する | C15: 10 | D15: ％
B16: =IF($B$15<>"","","※空白は「設定しない」として処理します。") -> 
B17: =IF(OR($B$15<>"設定する",$C$15=""),"","損失水頭を") -> 損失水頭を | C17: =IF(OR($B$15<>"設定する",$C$15=""),"",$C$15/100+1) -> 1.1 | D17: =IF(OR($B$15<>"設定する",$C$15=""),"","倍します。") -> 倍します。
B19: ■下のボタンを押すと、末端世帯の安全率（「末端4」シート）にも同じ設定を適用します。

Sheet 幹栓3 (hidden)
B2: ＜幹栓3＞量水器の適正使用範囲-幹栓
B4: ●量水器の適正使用範囲と同時使用水量との比較を記載しますか？
B6: ＜記載しない場合＞
B7: 下表の「量水器の比較」欄のリストから「記載しない」を選択してください。
B8: 「単位」欄、「量水器口径」欄には何も入力しません。（入力してあっても問題ありません。）
B10: ＜記載する場合＞
B11: 下表の「量水器の比較」欄のリストから「上限と下限を比較」または「上限のみ比較」を
B12: 選択してください。
B13: 「単位」欄のリストから、水量の単位を選択してください。
B14: 「量水器口径」欄のリストから、量水器の口径を選択してください。
B16: 「比較結果」で、量水器口径が適当かどうかを確認してください。
B18: ※「幹栓1 戸数と居住人数」の設定を先に行わないと、比較結果が正しく表示されません。
B21: 量水器の比較 | D21: 単位 | E21: 量水器 口径 | K21: ↓非表示にする
B22: 上限と下限を比較 | D22: L/sec | E22: 50 | K22: 水理計算書の表紙
B23: =IF($B$22<>"","","※空白は「記載しない」として処理します。") ->  | K23: =IF(共通1!B13="作成しない",共通1!B13,"作成する") -> 作成する
B25: 比較結果 | K25: 量水器口径リスト
B26: 流量下限 | D26: 比較 | E26: 同時使用水量 | G26: 比較 | H26: 流量上限 | K26: =IF(量水器!B5="","",量水器!B5) -> 13
B27: =IF(OR($B$22<>"上限と下限を比較",$D$22="",$E$22=""),"",IF($D$22="L/sec",VLOOKUP($E$22,量水器!$B$5:$J$27,6,FALSE),VLOOKUP($E$22,量水器!$B$5:$J$27,8,FALSE))) -> 0.35 | C27: =IF(OR($B$22<>"上限と下限を比較",$D$22=""),"",IF($D$22="L/sec","L/sec","L/min")) -> L/sec | D27: =IF(OR($B$22<>"上限と下限を比較",$D$22="",$E$22=""),"",IF(B27<E27,"<",IF(B27>E27,">","="))) -> < | E27: =IF(OR($B$22="記載しない",$B$22="",$D$22="",$E$22=""),"",IF($D$22="L/sec",幹栓1!$B$20,幹栓1!$B$19)) -> 1.67 | F27: =IF(OR($B$22="記載しない",$B$22="",$D$22=""),"",IF($D$22="L/sec","L/sec","L/min")) -> L/sec | G27: =IF(OR($B$22="記載しない",$B$22="",$D$22="",$E$22=""),"",IF(E27<H27,"<",IF(E27>H27,">","="))) -> < | H27: =IF(OR($B$22="記載しない",$B$22="",$D$22="",$E$22=""),"",IF($D$22="L/sec",VLOOKUP($E$22,量水器!$B$5:$J$27,7,FALSE),VLOOKUP($E$22,量水器!$B$5:$J$27,9,FALSE))) -> 4.72 | I27: =IF(OR($B$22="記載しない",$B$22="",$D$22=""),"",IF($D$22="L/sec","L/sec","L/min")) -> L/sec | K27: =IF(量水器!B6="","",量水器!B6) -> 20
K28: =IF(量水器!B7="","",量水器!B7) -> 25
K29: =IF(量水器!B8="","",量水器!B8) -> 30
K30: =IF(量水器!B9="","",量水器!B9) -> 40
K31: =IF(量水器!B10="","",量水器!B10) -> 50
K32: =IF(量水器!B11="","",量水器!B11) -> 75
K33: =IF(量水器!B12="","",量水器!B12) -> 100
K34: =IF(量水器!B13="","",量水器!B13) -> 150
K35: =IF(量水器!B14="","",量水器!B14) -> 200
K36: =IF(量水器!B15="","",量水器!B15) -> 250
K37: =IF(量水器!B16="","",量水器!B16) -> 300
K38: =IF(量水器!B17="","",量水器!B17) -> 350
K39: =IF(量水器!B18="","",量水器!B18) -> 10
K40: =IF(量水器!B19="","",量水器!B19) -> 16
K41: =IF(量水器!B20="","",量水器!B20) -> 
K42: =IF(量水器!B21="","",量水器!B21) -> 
K43: =IF(量水器!B22="","",量水器!B22) -> 
K44: =IF(量水器!B23="","",量水器!B23) -> 
K45: =IF(量水器!B24="","",量水器!B24) -> 
K46: =IF(量水器!B25="","",量水器!B25) -> 
K47: =IF(量水器!B26="","",量水器!B26) -> 
K48: =IF(量水器!B27="","",量水器!B27) -> 

Sheet 幹栓4 (hidden)
B2: ＜幹栓4＞流速-幹栓
B4: ●流速の比較を記載しますか？
B6: ＜記載しない場合＞
B7: 下表の「流速の比較」欄のリストから「記載しない」を選択してください。
B8: 「数値」欄には何も入力しません。（入力してあっても問題ありません。）
B10: ＜記載する場合＞
B11: 下表の「流速の比較」欄のリストから「記載する」を選択してください。
B12: 「数値」欄には、比較の基準となる流速を入力してください。
B14: 流速の比較 | C14: 数値 | D14: 単位
B15: 記載する | C15: 2 | D15: m/sec
B16: =IF($B$15<>"","","※空白は「記載しない」として処理します。") -> 
B18: ■下のボタンを押すと、末端世帯の流速（「末端6」シート）にも同じ設定を適用します。

Sheet 幹栓区間 (hidden)
K1: サンプル用データ入力ボタン
B2: ＜幹栓区間＞
K3: データ4
B4: ●幹栓の区間データを入力してください。 | K4: 15区間まで入力がありますが、途中で空行があるため、
K5: 有効な区間数は10区間となります。
B6: 項目名にマウスカーソルを当てると簡易ヘルプが表示されます。 | K6: 各入力シートの設定を色々と変更し、
B7: 詳細な解説はWEB上の使用説明書をご確認ください。 | K7: 出来上がる水理計算書の違いを確認してみてください。 | AD7: =IF($AD$8<>"","","※空白は「この項目を水理計算書に記載しない」として処理します。") -> 
AD8: この項目を水理計算書に記載しない | BB8: ↓非表示にする | BC8: ↓非表示にする | BD8: ↓非表示にする | BE8: ↓非表示にする | BF8: ↓非表示にする | BG8: ↓非表示にする | BH8: ↓非表示にする | BI8: ↓非表示にする | BJ8: ↓非表示にする | BK8: ↓非表示にする | BL8: ↓非表示にする | BM8: ↓非表示にする | BN8: ↓非表示にする | BO8: ↓非表示にする | BP8: ↓非表示にする | BQ8: ↓非表示にする | BR8: ↓非表示にする
B9: 末端世帯込み 累計所要水頭 | D9: 幹栓 累計所要水頭 | F9: 区間 所要水頭 | G9: 流速 | H9: 流量 | I9: 区関数 | J9: 区間名 | K9: =IF(幹栓1!$B$15="居住人数","居住人数","戸数") -> 戸数 | L9: 口径 | M9: 管延長 | N9: 立上り | O9: =IF(直管換算!C3="","",直管換算!C3) -> 分水栓 | P9: =IF(直管換算!D3="","",直管換算!D3) -> 量水器 | Q9: =IF(直管換算!E3="","",直管換算!E3) -> 水栓 | R9: =IF(直管換算!F3="","",直管換算!F3) -> ポール タップ 定水位弁 | S9: =IF(直管換算!G3="","",直管換算!G3) -> ゲート バルブ | T9: =IF(直管換算!H3="","",直管換算!H3) -> グローブ バルブ | U9: =IF(直管換算!I3="","",直管換算!I3) -> ボール 止水栓 | V9: =IF(直管換算!J3="","",直管換算!J3) -> 逆止弁 | W9: =IF(直管換算!K3="","",直管換算!K3) -> 曲半径小 90度曲管 | X9: =IF(直管換算!L3="","",直管換算!L3) -> 曲半径小 45度曲管 | Y9: =IF(直管換算!M3="","",直管換算!M3) -> 曲半径大 90度曲管 | Z9: =IF(直管換算!N3="","",直管換算!N3) -> 曲半径大 45度曲管 | AA9: =IF(直管換算!O3="","",直管換算!O3) -> 架橋ポリ チーズ エルボ | AB9: =IF(直管換算!P3="","",直管換算!P3) ->  | AC9: =IF(直管換算!Q3="","",直管換算!Q3) ->  | AD9: 給水用具の損失水頭 | AF9: 計算内径 | AG9: 計算式 | AH9: 動水勾配 | AI9: 損失水頭 | AJ9: 安全率 込み 損失水頭 | AK9: =IF(直管換算!C3="","",直管換算!C3) -> 分水栓 | AL9: =IF(直管換算!D3="","",直管換算!D3) -> 量水器 | AM9: =IF(直管換算!E3="","",直管換算!E3) -> 水栓 | AN9: =IF(直管換算!F3="","",直管換算!F3) -> ポール タップ 定水位弁 | AO9: =IF(直管換算!G3="","",直管換算!G3) -> ゲート バルブ | AP9: =IF(直管換算!H3="","",直管換算!H3) -> グローブ バルブ | AQ9: =IF(直管換算!I3="","",直管換算!I3) -> ボール 止水栓 | AR9: =IF(直管換算!J3="","",直管換算!J3) -> 逆止弁 | AS9: =IF(直管換算!K3="","",直管換算!K3) -> 曲半径小 90度曲管 | AT9: =IF(直管換算!L3="","",直管換算!L3) -> 曲半径小 45度曲管 | AU9: =IF(直管換算!M3="","",直管換算!M3) -> 曲半径大 90度曲管 | AV9: =IF(直管換算!N3="","",直管換算!N3) -> 曲半径大 45度曲管 | AW9: =IF(直管換算!O3="","",直管換算!O3) -> 架橋ポリ チーズ エルボ | AX9: =IF(直管換算!P3="","",直管換算!P3) ->  | AY9: =IF(直管換算!Q3="","",直管換算!Q3) ->  | AZ9: 直管 換算長計 | BB9: 区関数 確認 | BC9: W流速 | BD9: W動水勾配 | BE9: H流速 | BF9: H動水勾配 | BG9: 口径リスト | BH9: 流速の比較 | BI9: 配水管 の水圧 | BJ9: 給水用具の所要水頭 | BK9: 戸数 1～9 | BL9: 戸数 10～599 | BM9: 居住人数 1～30 | BN9: 居住人数 31～200 | BO9: 居住人数 201～2000 | BP9: 末端世帯 の水圧 (直接入力) | BQ9: 末端世帯 の水圧 (水頭計算) | BR9: サンプルデータ番号
B10: MPa | C10: m | D10: MPa | E10: m | F10: m | G10: m/sec | H10: L/sec | I10: =BB10 -> 10 | K10: =IF(幹栓1!$B$15="居住人数","人","戸") -> 戸 | L10: mm | M10: m | N10: m | O10: 個 | P10: 個 | Q10: 個 | R10: 個 | S10: 個 | T10: 個 | U10: 個 | V10: 個 | W10: 個 | X10: 個 | Y10: 個 | Z10: 個 | AA10: 個 | AB10: 個 | AC10: 個 | AD10: m | AE10: 備考 | AF10: mm | AG10: W/H | AH10: ‰ | AI10: m | AJ10: =IF(幹栓2!$B$15="設定する",幹栓2!$C$17,1) -> 1.1 | AK10: m | AL10: m | AM10: m | AN10: m | AO10: m | AP10: m | AQ10: m | AR10: m | AS10: m | AT10: m | AU10: m | AV10: m | AW10: m | AX10: m | AY10: m | AZ10: m | BB10: =MATCH("空",BB11:BB61,0)-1 -> 10 | BC10: m/sec | BD10: 0/00 | BE10: m/sec | BF10: 0/00 | BG10: =IF(内径設定!B4="","",内径設定!B4) -> 13 | BH10: =IF(OR(幹栓4!$B$15="",幹栓4!$B$15="記載しない"),"記載しない","記載する") -> 記載する | BI10: =IF(OR(共通3!$B$9="",共通3!$B$9="圧力（MPa）"),"MPa","m") -> MPa | BJ10: =IF(末端3!$B$29="","考慮しない",末端3!$B$29) -> 区間計算後に比較 | BP10: =IF(共通4!$C$38="水頭（m）","m","MPa") -> m | BQ10: MPa | BR10: 4
B11: =IF(OR($D$62="考慮しない",D11="",$BI$10="m"),"",D11+$D$65) -> 0.095 | C11: =IF(OR($D$62="考慮しない",E11="",$BI$10="MPa"),"",E11+$D$65) ->  | D11: =IF(E11="","",ROUND(E11*0.00980665,3)) -> 0.001 | E11: =IF(OR(K11="",L11=""),"",F11) -> 0.06 | F11: =IF(OR(K11="",L11=""),"",IF($AD$8="この項目を水理計算書に記載する",AJ11+ROUND(N11,2)+ROUND(AD11,2),AJ11+ROUND(N11,2))) -> 0.06 | G11: =IF(OR(K11="",L11=""),"",IF(AG11="W",ROUND(BC11,2),ROUND(BE11,2))) -> 0.7 | H11: =IF(OR(K11="",L11=""),"",IF(AND($K$9="戸数",K11>=1,K11<=9),BK11,IF(AND($K$9="戸数",K11>=10,K11<=599),BL11,IF(AND($K$9="居住人数",K11>=1,K11<=30),BM11,IF(AND($K$9="居住人数",K11>=31,K11<=200),BN11,IF(AND($K$9="居住人数",K11>=201,K11<=2000),BO11,"NG")))))) -> 0.88 | I11: 1 | J11: A-B | K11: 2 | L11: 40 | M11: 2 | N11: 0 | O11: 1 | P11: 0 | Q11: 0 | R11: 0 | S11: 0 | T11: 0 | U11: 0 | V11: 0 | W11: 0 | X11: 0 | Y11: 0 | Z11: 0 | AD11: 0.3 | AE11: 給水用具の損失水頭 | AF11: =IF(L11="","",VLOOKUP(L11,内径設定!$B$4:$C$26,2,FALSE)) -> 40 | AG11: =IF(AF11="","",IF(OR(AND(AF11>計算公式!$B$9,計算公式!$D$9="超"),AND(AF11>=計算公式!$B$9,計算公式!$D$9="以上")),"H","W")) -> W | AH11: =IF(OR(K11="",L11=""),"",IF(AG11="W",ROUNDUP(BD11,0),ROUNDUP(BF11,0))) -> 18 | AI11: =IF(OR(K11="",L11=""),"",(M11+AZ11)*AH11/1000) -> 0.054 | AJ11: =IF(OR(K11="",L11=""),"",ROUND(AI11*$AJ$10,2)) -> 0.06 | AK11: =IF(OR(L11="",O11=""),"",ROUND(VLOOKUP(L11,直管換算!$B$4:$Q$26,2,FALSE)*O11,2)) -> 1 | AL11: =IF(OR(L11="",P11=""),"",ROUND(VLOOKUP(L11,直管換算!$B$4:$Q$26,3,FALSE)*P11,2)) -> 0 | AM11: =IF(OR(L11="",Q11=""),"",ROUND(VLOOKUP(L11,直管換算!$B$4:$Q$26,4,FALSE)*Q11,2)) -> 0 | AN11: =IF(OR(L11="",R11=""),"",ROUND(VLOOKUP(L11,直管換算!$B$4:$Q$26,5,FALSE)*R11,2)) -> 0 | AO11: =IF(OR(L11="",S11=""),"",ROUND(VLOOKUP(L11,直管換算!$B$4:$Q$26,6,FALSE)*S11,2)) -> 0 | AP11: =IF(OR(L11="",T11=""),"",ROUND(VLOOKUP(L11,直管換算!$B$4:$Q$26,7,FALSE)*T11,2)) -> 0 | AQ11: =IF(OR(L11="",U11=""),"",ROUND(VLOOKUP(L11,直管換算!$B$4:$Q$26,8,FALSE)*U11,2)) -> 0 | AR11: =IF(OR(L11="",V11=""),"",ROUND(VLOOKUP(L11,直管換算!$B$4:$Q$26,9,FALSE)*V11,2)) -> 0 | AS11: =IF(OR(L11="",W11=""),"",ROUND(VLOOKUP(L11,直管換算!$B$4:$Q$26,10,FALSE)*W11,2)) -> 0 | AT11: =IF(OR(L11="",X11=""),"",ROUND(VLOOKUP(L11,直管換算!$B$4:$Q$26,11,FALSE)*X11,2)) -> 0 | AU11: =IF(OR(L11="",Y11=""),"",ROUND(VLOOKUP(L11,直管換算!$B$4:$Q$26,12,FALSE)*Y11,2)) -> 0 | AV11: =IF(OR(L11="",Z11=""),"",ROUND(VLOOKUP(L11,直管換算!$B$4:$Q$26,13,FALSE)*Z11,2)) -> 0 | AW11: =IF(OR(L11="",AA11=""),"",ROUND(VLOOKUP(L11,直管換算!$B$4:$Q$26,14,FALSE)*AA11,2)) ->  | AX11: =IF(OR(L11="",AB11=""),"",ROUND(VLOOKUP(L11,直管換算!$B$4:$Q$26,15,FALSE)*AB11,2)) ->  | AY11: =IF(OR(L11="",AC11=""),"",ROUND(VLOOKUP(L11,直管換算!$B$4:$Q$26,16,FALSE)*AC11,2)) ->  | AZ11: =IF(L11="","",SUM(AK11:AY11)) -> 1 | BB11: =IF(D11="","空",I11) -> 1 | BC11: =IF(OR(K11="",L11=""),"",(4*H11/1000)/(PI()*POWER(AF11/1000,2))) -> 0.7002817496 | BD11: =IF(OR(K11="",L11=""),"",(0.0126+(0.01739-0.1087*AF11/1000)/SQRT(BC11))/(AF11/1000)*POWER(BC11,2)/(2*9.8)*1000) -> 17.62983053 | BE11: =IF(OR(K11="",L11=""),"",0.35464*計算公式!$B$14*POWER(AF11/1000,0.63)*POWER(BF11/1000,0.54)) -> 0.7080227132 | BF11: =IF(OR(K11="",L11=""),"",10.666*POWER(計算公式!$B$14,-1.85)*POWER(AF11/1000,-4.87)*POWER(H11/1000,1.85)*1000) -> 30.42722634 | BG11: =IF(内径設定!B5="","",内径設定!B5) -> 20 | BH11: 数値 | BI11: 数値 | BJ11: 数値 | BK11: =ROUND(42*POWER(K11,0.33)/60,2) -> 0.88 | BL11: =ROUND(19*POWER(K11,0.67)/60,2) -> 0.5 | BM11: =ROUND(26*POWER(K11,0.36)/60,2) -> 0.56 | BN11: =ROUND(13*POWER(K11,0.56)/60,2) -> 0.32 | BO11: =ROUND(6.9*POWER(K11,0.67)/60,2) -> 0.18 | BP11: 数値 | BQ11: =IF(末端区間!$F$10=0,0,OFFSET(末端区間!$B$10,末端区間!$F$10,0)) -> 0.064
B12: =IF(OR($D$62="考慮しない",D12="",$BI$10="m"),"",D12+$D$65) -> 0.101 | C12: =IF(OR($D$62="考慮しない",E12="",$BI$10="MPa"),"",E12+$D$65) ->  | D12: 0.007 | E12: =IF(OR(K12="",L12="",E11=""),"",E11+F12) -> 0.74 | F12: 0.68 | G12: =IF(OR(K12="",L12=""),"",IF(AG12="W",ROUND(BC12,2),ROUND(BE12,2))) -> 0.8 | H12: =IF(OR(K12="",L12=""),"",IF(AND($K$9="戸数",K12>=1,K12<=9),BK12,IF(AND($K$9="戸数",K12>=10,K12<=599),BL12,IF(AND($K$9="居住人数",K12>=1,K12<=30),BM12,IF(AND($K$9="居住人数",K12>=31,K12<=200),BN12,IF(AND($K$9="居住人数",K12>=201,K12<=2000),BO12,"NG")))))) -> 1.01 | I12: 2 | J12: B-C | K12: 3 | L12: 40 | M12: 1 | N12: 0 | O12: 0 | P12: 1 | Q12: 0 | R12: 0 | S12: 0 | T12: 0 | U12: 0 | V12: 0 | W12: 0 | X12: 0 | Y12: 0 | Z12: 0 | AF12: =IF(L12="","",VLOOKUP(L12,内径設定!$B$4:$C$26,2,FALSE)) -> 40 | AG12: =IF(AF12="","",IF(OR(AND(AF12>計算公式!$B$9,計算公式!$D$9="超"),AND(AF12>=計算公式!$B$9,計算公式!$D$9="以上")),"H","W")) -> W | AH12: 23 | AI12: 0.621 | AJ12: 0.68 | AK12: =IF(OR(L12="",O12=""),"",ROUND(VLOOKUP(L12,直管換算!$B$4:$Q$26,2,FALSE)*O12,2)) -> 0 | AL12: =IF(OR(L12="",P12=""),"",ROUND(VLOOKUP(L12,直管換算!$B$4:$Q$26,3,FALSE)*P12,2)) -> 26 | AM12: =IF(OR(L12="",Q12=""),"",ROUND(VLOOKUP(L12,直管換算!$B$4:$Q$26,4,FALSE)*Q12,2)) -> 0 | AN12: =IF(OR(L12="",R12=""),"",ROUND(VLOOKUP(L12,直管換算!$B$4:$Q$26,5,FALSE)*R12,2)) -> 0 | AO12: =IF(OR(L12="",S12=""),"",ROUND(VLOOKUP(L12,直管換算!$B$4:$Q$26,6,FALSE)*S12,2)) -> 0 | AP12: =IF(OR(L12="",T12=""),"",ROUND(VLOOKUP(L12,直管換算!$B$4:$Q$26,7,FALSE)*T12,2)) -> 0 | AQ12: =IF(OR(L12="",U12=""),"",ROUND(VLOOKUP(L12,直管換算!$B$4:$Q$26,8,FALSE)*U12,2)) -> 0 | AR12: =IF(OR(L12="",V12=""),"",ROUND(VLOOKUP(L12,直管換算!$B$4:$Q$26,9,FALSE)*V12,2)) -> 0 | AS12: =IF(OR(L12="",W12=""),"",ROUND(VLOOKUP(L12,直管換算!$B$4:$Q$26,10,FALSE)*W12,2)) -> 0 | AT12: =IF(OR(L12="",X12=""),"",ROUND(VLOOKUP(L12,直管換算!$B$4:$Q$26,11,FALSE)*X12,2)) -> 0 | AU12: =IF(OR(L12="",Y12=""),"",ROUND(VLOOKUP(L12,直管換算!$B$4:$Q$26,12,FALSE)*Y12,2)) -> 0 | AV12: =IF(OR(L12="",Z12=""),"",ROUND(VLOOKUP(L12,直管換算!$B$4:$Q$26,13,FALSE)*Z12,2)) -> 0 | AW12: =IF(OR(L12="",AA12=""),"",ROUND(VLOOKUP(L12,直管換算!$B$4:$Q$26,14,FALSE)*AA12,2)) ->  | AX12: =IF(OR(L12="",AB12=""),"",ROUND(VLOOKUP(L12,直管換算!$B$4:$Q$26,15,FALSE)*AB12,2)) ->  | AY12: =IF(OR(L12="",AC12=""),"",ROUND(VLOOKUP(L12,直管換算!$B$4:$Q$26,16,FALSE)*AC12,2)) ->  | AZ12: 26 | BB12: 2 | BC12: =IF(OR(K12="",L12=""),"",(4*H12/1000)/(PI()*POWER(AF12/1000,2))) -> 0.8037324626 | BD12: 22.36849882 | BE12: =IF(OR(K12="",L12=""),"",0.35464*計算公式!$B$14*POWER(AF12/1000,0.63)*POWER(BF12/1000,0.54)) -> 0.81250502 | BF12: =IF(OR(K12="",L12=""),"",10.666*POWER(計算公式!$B$14,-1.85)*POWER(AF12/1000,-4.87)*POWER(H12/1000,1.85)*1000) -> 39.26123558 | BG12: =IF(内径設定!B6="","",内径設定!B6) -> 25 | BH12: =IF(OR(幹栓4!$B$15="",幹栓4!$B$15="記載しない"),"",幹栓4!$C$15) -> 2 | BI12: =共通3!$C$9 -> 0.196 | BJ12: =末端3!$C$29 -> 0.03 | BK12: =ROUND(42*POWER(K12,0.33)/60,2) -> 1.01 | BL12: =ROUND(19*POWER(K12,0.67)/60,2) -> 0.66 | BM12: =ROUND(26*POWER(K12,0.36)/60,2) -> 0.64 | BN12: =ROUND(13*POWER(K12,0.56)/60,2) -> 0.4 | BO12: =ROUND(6.9*POWER(K12,0.67)/60,2) -> 0.24 | BP12: =共通4!$B$38 -> 7 | BQ12: m
B13: 0.103 | D13: 0.009 | E13: 0.95 | F13: 0.21 | G13: 0.88 | H13: 1.11 | I13: 3 | J13: C-D | K13: 4 | L13: 40 | M13: 7 | N13: 0 | O13: 0 | P13: 0 | Q13: 1 | R13: 0 | S13: 0 | T13: 0 | U13: 0 | V13: 0 | W13: 0 | X13: 0 | Y13: 0 | Z13: 0 | AF13: =IF(L13="","",VLOOKUP(L13,内径設定!$B$4:$C$26,2,FALSE)) -> 40 | AG13: =IF(AF13="","",IF(OR(AND(AF13>計算公式!$B$9,計算公式!$D$9="超"),AND(AF13>=計算公式!$B$9,計算公式!$D$9="以上")),"H","W")) -> W | AH13: 27 | AI13: 0.189 | AJ13: 0.21 | AK13: =IF(OR(L13="",O13=""),"",ROUND(VLOOKUP(L13,直管換算!$B$4:$Q$26,2,FALSE)*O13,2)) -> 0 | AL13: =IF(OR(L13="",P13=""),"",ROUND(VLOOKUP(L13,直管換算!$B$4:$Q$26,3,FALSE)*P13,2)) -> 0 | AM13: =IF(OR(L13="",Q13=""),"",ROUND(VLOOKUP(L13,直管換算!$B$4:$Q$26,4,FALSE)*Q13,2)) -> 0 | AN13: =IF(OR(L13="",R13=""),"",ROUND(VLOOKUP(L13,直管換算!$B$4:$Q$26,5,FALSE)*R13,2)) -> 0 | AO13: =IF(OR(L13="",S13=""),"",ROUND(VLOOKUP(L13,直管換算!$B$4:$Q$26,6,FALSE)*S13,2)) -> 0 | AP13: =IF(OR(L13="",T13=""),"",ROUND(VLOOKUP(L13,直管換算!$B$4:$Q$26,7,FALSE)*T13,2)) -> 0 | AQ13: =IF(OR(L13="",U13=""),"",ROUND(VLOOKUP(L13,直管換算!$B$4:$Q$26,8,FALSE)*U13,2)) -> 0 | AR13: =IF(OR(L13="",V13=""),"",ROUND(VLOOKUP(L13,直管換算!$B$4:$Q$26,9,FALSE)*V13,2)) -> 0 | AS13: =IF(OR(L13="",W13=""),"",ROUND(VLOOKUP(L13,直管換算!$B$4:$Q$26,10,FALSE)*W13,2)) -> 0 | AT13: =IF(OR(L13="",X13=""),"",ROUND(VLOOKUP(L13,直管換算!$B$4:$Q$26,11,FALSE)*X13,2)) -> 0 | AU13: =IF(OR(L13="",Y13=""),"",ROUND(VLOOKUP(L13,直管換算!$B$4:$Q$26,12,FALSE)*Y13,2)) -> 0 | AV13: =IF(OR(L13="",Z13=""),"",ROUND(VLOOKUP(L13,直管換算!$B$4:$Q$26,13,FALSE)*Z13,2)) -> 0 | AW13: =IF(OR(L13="",AA13=""),"",ROUND(VLOOKUP(L13,直管換算!$B$4:$Q$26,14,FALSE)*AA13,2)) ->  | AX13: =IF(OR(L13="",AB13=""),"",ROUND(VLOOKUP(L13,直管換算!$B$4:$Q$26,15,FALSE)*AB13,2)) ->  | AY13: =IF(OR(L13="",AC13=""),"",ROUND(VLOOKUP(L13,直管換算!$B$4:$Q$26,16,FALSE)*AC13,2)) ->  | AZ13: 0 | BB13: 3 | BC13: 0.8833099342 | BD13: 26.34964544 | BE13: =IF(OR(K13="",L13=""),"",0.35464*計算公式!$B$14*POWER(AF13/1000,0.63)*POWER(BF13/1000,0.54)) -> 0.8928667623 | BF13: =IF(OR(K13="",L13=""),"",10.666*POWER(計算公式!$B$14,-1.85)*POWER(AF13/1000,-4.87)*POWER(H13/1000,1.85)*1000) -> 46.7538019 | BG13: =IF(内径設定!B7="","",内径設定!B7) -> 30 | BK13: 1.11 | BL13: 0.8 | BM13: 0.71 | BN13: 0.47 | BO13: 0.29 | BP13: 末配比較 | BQ13: =IF(末端区間!$F$10=0,0,OFFSET(末端区間!$C$10,末端区間!$F$10,0)) -> 6.54
B14: 0.108 | D14: 0.014 | E14: 1.43 | F14: 0.48 | G14: 0.95 | H14: 1.19 | I14: 4 | J14: D-E | K14: 5 | L14: 40 | M14: 1 | N14: 0 | O14: 0 | P14: 0 | Q14: 0 | R14: 1 | S14: 0 | T14: 0 | U14: 0 | V14: 0 | W14: 0 | X14: 0 | Y14: 0 | Z14: 0 | AF14: =IF(L14="","",VLOOKUP(L14,内径設定!$B$4:$C$26,2,FALSE)) -> 40 | AG14: =IF(AF14="","",IF(OR(AND(AF14>計算公式!$B$9,計算公式!$D$9="超"),AND(AF14>=計算公式!$B$9,計算公式!$D$9="以上")),"H","W")) -> W | AH14: 30 | AI14: 0.435 | AJ14: 0.48 | AK14: =IF(OR(L14="",O14=""),"",ROUND(VLOOKUP(L14,直管換算!$B$4:$Q$26,2,FALSE)*O14,2)) -> 0 | AL14: =IF(OR(L14="",P14=""),"",ROUND(VLOOKUP(L14,直管換算!$B$4:$Q$26,3,FALSE)*P14,2)) -> 0 | AM14: =IF(OR(L14="",Q14=""),"",ROUND(VLOOKUP(L14,直管換算!$B$4:$Q$26,4,FALSE)*Q14,2)) -> 0 | AN14: =IF(OR(L14="",R14=""),"",ROUND(VLOOKUP(L14,直管換算!$B$4:$Q$26,5,FALSE)*R14,2)) -> 13.5 | AO14: =IF(OR(L14="",S14=""),"",ROUND(VLOOKUP(L14,直管換算!$B$4:$Q$26,6,FALSE)*S14,2)) -> 0 | AP14: =IF(OR(L14="",T14=""),"",ROUND(VLOOKUP(L14,直管換算!$B$4:$Q$26,7,FALSE)*T14,2)) -> 0 | AQ14: =IF(OR(L14="",U14=""),"",ROUND(VLOOKUP(L14,直管換算!$B$4:$Q$26,8,FALSE)*U14,2)) -> 0 | AR14: =IF(OR(L14="",V14=""),"",ROUND(VLOOKUP(L14,直管換算!$B$4:$Q$26,9,FALSE)*V14,2)) -> 0 | AS14: =IF(OR(L14="",W14=""),"",ROUND(VLOOKUP(L14,直管換算!$B$4:$Q$26,10,FALSE)*W14,2)) -> 0 | AT14: =IF(OR(L14="",X14=""),"",ROUND(VLOOKUP(L14,直管換算!$B$4:$Q$26,11,FALSE)*X14,2)) -> 0 | AU14: =IF(OR(L14="",Y14=""),"",ROUND(VLOOKUP(L14,直管換算!$B$4:$Q$26,12,FALSE)*Y14,2)) -> 0 | AV14: =IF(OR(L14="",Z14=""),"",ROUND(VLOOKUP(L14,直管換算!$B$4:$Q$26,13,FALSE)*Z14,2)) -> 0 | AW14: =IF(OR(L14="",AA14=""),"",ROUND(VLOOKUP(L14,直管換算!$B$4:$Q$26,14,FALSE)*AA14,2)) ->  | AX14: =IF(OR(L14="",AB14=""),"",ROUND(VLOOKUP(L14,直管換算!$B$4:$Q$26,15,FALSE)*AB14,2)) ->  | AY14: =IF(OR(L14="",AC14=""),"",ROUND(VLOOKUP(L14,直管換算!$B$4:$Q$26,16,FALSE)*AC14,2)) ->  | AZ14: 13.5 | BB14: 4 | BC14: 0.9469719114 | BD14: 29.74185116 | BE14: =IF(OR(K14="",L14=""),"",0.35464*計算公式!$B$14*POWER(AF14/1000,0.63)*POWER(BF14/1000,0.54)) -> 0.9571509063 | BF14: =IF(OR(K14="",L14=""),"",10.666*POWER(計算公式!$B$14,-1.85)*POWER(AF14/1000,-4.87)*POWER(H14/1000,1.85)*1000) -> 53.17791434 | BG14: =IF(内径設定!B8="","",内径設定!B8) -> 40 | BK14: 1.19 | BL14: 0.93 | BM14: 0.77 | BN14: 0.53 | BO14: 0.34 | BP14: =IF(BP10=BI10,"同",IF(BP10="m","末m配MPa","末MPa配m")) -> 末m配MPa
B15: 0.109 | D15: 0.015 | E15: 1.51 | F15: 0.08 | G15: 1 | H15: 1.26 | I15: 5 | J15: E-F | K15: 6 | L15: 40 | M15: 2 | N15: 0 | O15: 0 | P15: 0 | Q15: 0 | R15: 0 | S15: 1 | T15: 0 | U15: 0 | V15: 0 | W15: 0 | X15: 0 | Y15: 0 | Z15: 0 | AF15: =IF(L15="","",VLOOKUP(L15,内径設定!$B$4:$C$26,2,FALSE)) -> 40 | AG15: =IF(AF15="","",IF(OR(AND(AF15>計算公式!$B$9,計算公式!$D$9="超"),AND(AF15>=計算公式!$B$9,計算公式!$D$9="以上")),"H","W")) -> W | AH15: 33 | AI15: 0.0759 | AJ15: 0.08 | AK15: =IF(OR(L15="",O15=""),"",ROUND(VLOOKUP(L15,直管換算!$B$4:$Q$26,2,FALSE)*O15,2)) -> 0 | AL15: =IF(OR(L15="",P15=""),"",ROUND(VLOOKUP(L15,直管換算!$B$4:$Q$26,3,FALSE)*P15,2)) -> 0 | AM15: =IF(OR(L15="",Q15=""),"",ROUND(VLOOKUP(L15,直管換算!$B$4:$Q$26,4,FALSE)*Q15,2)) -> 0 | AN15: =IF(OR(L15="",R15=""),"",ROUND(VLOOKUP(L15,直管換算!$B$4:$Q$26,5,FALSE)*R15,2)) -> 0 | AO15: =IF(OR(L15="",S15=""),"",ROUND(VLOOKUP(L15,直管換算!$B$4:$Q$26,6,FALSE)*S15,2)) -> 0.3 | AP15: =IF(OR(L15="",T15=""),"",ROUND(VLOOKUP(L15,直管換算!$B$4:$Q$26,7,FALSE)*T15,2)) -> 0 | AQ15: =IF(OR(L15="",U15=""),"",ROUND(VLOOKUP(L15,直管換算!$B$4:$Q$26,8,FALSE)*U15,2)) -> 0 | AR15: =IF(OR(L15="",V15=""),"",ROUND(VLOOKUP(L15,直管換算!$B$4:$Q$26,9,FALSE)*V15,2)) -> 0 | AS15: =IF(OR(L15="",W15=""),"",ROUND(VLOOKUP(L15,直管換算!$B$4:$Q$26,10,FALSE)*W15,2)) -> 0 | AT15: =IF(OR(L15="",X15=""),"",ROUND(VLOOKUP(L15,直管換算!$B$4:$Q$26,11,FALSE)*X15,2)) -> 0 | AU15: =IF(OR(L15="",Y15=""),"",ROUND(VLOOKUP(L15,直管換算!$B$4:$Q$26,12,FALSE)*Y15,2)) -> 0 | AV15: =IF(OR(L15="",Z15=""),"",ROUND(VLOOKUP(L15,直管換算!$B$4:$Q$26,13,FALSE)*Z15,2)) -> 0 | AW15: =IF(OR(L15="",AA15=""),"",ROUND(VLOOKUP(L15,直管換算!$B$4:$Q$26,14,FALSE)*AA15,2)) ->  | AX15: =IF(OR(L15="",AB15=""),"",ROUND(VLOOKUP(L15,直管換算!$B$4:$Q$26,15,FALSE)*AB15,2)) ->  | AY15: =IF(OR(L15="",AC15=""),"",ROUND(VLOOKUP(L15,直管換算!$B$4:$Q$26,16,FALSE)*AC15,2)) ->  | AZ15: 0.3 | BB15: 5 | BC15: 1.002676141 | BD15: 32.85958848 | BE15: =IF(OR(K15="",L15=""),"",0.35464*計算公式!$B$14*POWER(AF15/1000,0.63)*POWER(BF15/1000,0.54)) -> 1.013395975 | BF15: =IF(OR(K15="",L15=""),"",10.666*POWER(計算公式!$B$14,-1.85)*POWER(AF15/1000,-4.87)*POWER(H15/1000,1.85)*1000) -> 59.10917938 | BG15: =IF(内径設定!B9="","",内径設定!B9) -> 50 | BK15: 1.26 | BL15: 1.05 | BM15: 0.83 | BN15: 0.59 | BO15: 0.38
B16: 0.115 | D16: 0.021 | E16: 2.1 | F16: 0.59 | G16: 1.06 | H16: 1.33 | I16: 6 | J16: F-G | K16: 7 | L16: 40 | M16: 1 | N16: 0 | T16: 1 | AF16: =IF(L16="","",VLOOKUP(L16,内径設定!$B$4:$C$26,2,FALSE)) -> 40 | AG16: =IF(AF16="","",IF(OR(AND(AF16>計算公式!$B$9,計算公式!$D$9="超"),AND(AF16>=計算公式!$B$9,計算公式!$D$9="以上")),"H","W")) -> W | AH16: 37 | AI16: 0.5365 | AJ16: 0.59 | AK16: =IF(OR(L16="",O16=""),"",ROUND(VLOOKUP(L16,直管換算!$B$4:$Q$26,2,FALSE)*O16,2)) ->  | AL16: =IF(OR(L16="",P16=""),"",ROUND(VLOOKUP(L16,直管換算!$B$4:$Q$26,3,FALSE)*P16,2)) ->  | AM16: =IF(OR(L16="",Q16=""),"",ROUND(VLOOKUP(L16,直管換算!$B$4:$Q$26,4,FALSE)*Q16,2)) ->  | AN16: =IF(OR(L16="",R16=""),"",ROUND(VLOOKUP(L16,直管換算!$B$4:$Q$26,5,FALSE)*R16,2)) ->  | AO16: =IF(OR(L16="",S16=""),"",ROUND(VLOOKUP(L16,直管換算!$B$4:$Q$26,6,FALSE)*S16,2)) ->  | AP16: =IF(OR(L16="",T16=""),"",ROUND(VLOOKUP(L16,直管換算!$B$4:$Q$26,7,FALSE)*T16,2)) -> 13.5 | AQ16: =IF(OR(L16="",U16=""),"",ROUND(VLOOKUP(L16,直管換算!$B$4:$Q$26,8,FALSE)*U16,2)) ->  | AR16: =IF(OR(L16="",V16=""),"",ROUND(VLOOKUP(L16,直管換算!$B$4:$Q$26,9,FALSE)*V16,2)) ->  | AS16: =IF(OR(L16="",W16=""),"",ROUND(VLOOKUP(L16,直管換算!$B$4:$Q$26,10,FALSE)*W16,2)) ->  | AT16: =IF(OR(L16="",X16=""),"",ROUND(VLOOKUP(L16,直管換算!$B$4:$Q$26,11,FALSE)*X16,2)) ->  | AU16: =IF(OR(L16="",Y16=""),"",ROUND(VLOOKUP(L16,直管換算!$B$4:$Q$26,12,FALSE)*Y16,2)) ->  | AV16: =IF(OR(L16="",Z16=""),"",ROUND(VLOOKUP(L16,直管換算!$B$4:$Q$26,13,FALSE)*Z16,2)) ->  | AW16: =IF(OR(L16="",AA16=""),"",ROUND(VLOOKUP(L16,直管換算!$B$4:$Q$26,14,FALSE)*AA16,2)) ->  | AX16: =IF(OR(L16="",AB16=""),"",ROUND(VLOOKUP(L16,直管換算!$B$4:$Q$26,15,FALSE)*AB16,2)) ->  | AY16: =IF(OR(L16="",AC16=""),"",ROUND(VLOOKUP(L16,直管換算!$B$4:$Q$26,16,FALSE)*AC16,2)) ->  | AZ16: 13.5 | BB16: 6 | BC16: 1.058380372 | BD16: 36.11573341 | BE16: =IF(OR(K16="",L16=""),"",0.35464*計算公式!$B$14*POWER(AF16/1000,0.63)*POWER(BF16/1000,0.54)) -> 1.069637918 | BF16: =IF(OR(K16="",L16=""),"",10.666*POWER(計算公式!$B$14,-1.85)*POWER(AF16/1000,-4.87)*POWER(H16/1000,1.85)*1000) -> 65.32733736 | BG16: =IF(内径設定!B10="","",内径設定!B10) -> 75 | BK16: 1.33 | BL16: 1.17 | BM16: 0.87 | BN16: 0.64 | BO16: 0.42
B17: 0.118 | D17: 0.024 | E17: 2.42 | F17: 0.32 | G17: 1.11 | H17: 1.39 | I17: 7 | J17: G-H | K17: 8 | L17: 40 | M17: 7 | N17: 0 | U17: 1 | AF17: =IF(L17="","",VLOOKUP(L17,内径設定!$B$4:$C$26,2,FALSE)) -> 40 | AG17: =IF(AF17="","",IF(OR(AND(AF17>計算公式!$B$9,計算公式!$D$9="超"),AND(AF17>=計算公式!$B$9,計算公式!$D$9="以上")),"H","W")) -> W | AH17: 40 | AI17: 0.292 | AJ17: 0.32 | AK17: =IF(OR(L17="",O17=""),"",ROUND(VLOOKUP(L17,直管換算!$B$4:$Q$26,2,FALSE)*O17,2)) ->  | AL17: =IF(OR(L17="",P17=""),"",ROUND(VLOOKUP(L17,直管換算!$B$4:$Q$26,3,FALSE)*P17,2)) ->  | AM17: =IF(OR(L17="",Q17=""),"",ROUND(VLOOKUP(L17,直管換算!$B$4:$Q$26,4,FALSE)*Q17,2)) ->  | AN17: =IF(OR(L17="",R17=""),"",ROUND(VLOOKUP(L17,直管換算!$B$4:$Q$26,5,FALSE)*R17,2)) ->  | AO17: =IF(OR(L17="",S17=""),"",ROUND(VLOOKUP(L17,直管換算!$B$4:$Q$26,6,FALSE)*S17,2)) ->  | AP17: =IF(OR(L17="",T17=""),"",ROUND(VLOOKUP(L17,直管換算!$B$4:$Q$26,7,FALSE)*T17,2)) ->  | AQ17: =IF(OR(L17="",U17=""),"",ROUND(VLOOKUP(L17,直管換算!$B$4:$Q$26,8,FALSE)*U17,2)) -> 0.3 | AR17: =IF(OR(L17="",V17=""),"",ROUND(VLOOKUP(L17,直管換算!$B$4:$Q$26,9,FALSE)*V17,2)) ->  | AS17: =IF(OR(L17="",W17=""),"",ROUND(VLOOKUP(L17,直管換算!$B$4:$Q$26,10,FALSE)*W17,2)) ->  | AT17: =IF(OR(L17="",X17=""),"",ROUND(VLOOKUP(L17,直管換算!$B$4:$Q$26,11,FALSE)*X17,2)) ->  | AU17: =IF(OR(L17="",Y17=""),"",ROUND(VLOOKUP(L17,直管換算!$B$4:$Q$26,12,FALSE)*Y17,2)) ->  | AV17: =IF(OR(L17="",Z17=""),"",ROUND(VLOOKUP(L17,直管換算!$B$4:$Q$26,13,FALSE)*Z17,2)) ->  | AW17: =IF(OR(L17="",AA17=""),"",ROUND(VLOOKUP(L17,直管換算!$B$4:$Q$26,14,FALSE)*AA17,2)) ->  | AX17: =IF(OR(L17="",AB17=""),"",ROUND(VLOOKUP(L17,直管換算!$B$4:$Q$26,15,FALSE)*AB17,2)) ->  | AY17: =IF(OR(L17="",AC17=""),"",ROUND(VLOOKUP(L17,直管換算!$B$4:$Q$26,16,FALSE)*AC17,2)) ->  | AZ17: 0.3 | BB17: 7 | BC17: 1.106126854 | BD17: 39.01609137 | BE17: =IF(OR(K17="",L17=""),"",0.35464*計算公式!$B$14*POWER(AF17/1000,0.63)*POWER(BF17/1000,0.54)) -> 1.117842934 | BF17: =IF(OR(K17="",L17=""),"",10.666*POWER(計算公式!$B$14,-1.85)*POWER(AF17/1000,-4.87)*POWER(H17/1000,1.85)*1000) -> 70.88376907 | BG17: =IF(内径設定!B11="","",内径設定!B11) -> 100 | BK17: 1.39 | BL17: 1.28 | BM17: 0.92 | BN17: 0.69 | BO17: 0.46
B18: 0.123 | D18: 0.029 | E18: 2.92 | F18: 0.5 | G18: 1.15 | H18: 1.45 | I18: 8 | J18: H-I | K18: 9 | L18: 40 | M18: 1 | N18: 0 | V18: 1 | AF18: =IF(L18="","",VLOOKUP(L18,内径設定!$B$4:$C$26,2,FALSE)) -> 40 | AG18: =IF(AF18="","",IF(OR(AND(AF18>計算公式!$B$9,計算公式!$D$9="超"),AND(AF18>=計算公式!$B$9,計算公式!$D$9="以上")),"H","W")) -> W | AH18: 43 | AI18: 0.4515 | AJ18: 0.5 | AK18: =IF(OR(L18="",O18=""),"",ROUND(VLOOKUP(L18,直管換算!$B$4:$Q$26,2,FALSE)*O18,2)) ->  | AL18: =IF(OR(L18="",P18=""),"",ROUND(VLOOKUP(L18,直管換算!$B$4:$Q$26,3,FALSE)*P18,2)) ->  | AM18: =IF(OR(L18="",Q18=""),"",ROUND(VLOOKUP(L18,直管換算!$B$4:$Q$26,4,FALSE)*Q18,2)) ->  | AN18: =IF(OR(L18="",R18=""),"",ROUND(VLOOKUP(L18,直管換算!$B$4:$Q$26,5,FALSE)*R18,2)) ->  | AO18: =IF(OR(L18="",S18=""),"",ROUND(VLOOKUP(L18,直管換算!$B$4:$Q$26,6,FALSE)*S18,2)) ->  | AP18: =IF(OR(L18="",T18=""),"",ROUND(VLOOKUP(L18,直管換算!$B$4:$Q$26,7,FALSE)*T18,2)) ->  | AQ18: =IF(OR(L18="",U18=""),"",ROUND(VLOOKUP(L18,直管換算!$B$4:$Q$26,8,FALSE)*U18,2)) ->  | AR18: =IF(OR(L18="",V18=""),"",ROUND(VLOOKUP(L18,直管換算!$B$4:$Q$26,9,FALSE)*V18,2)) -> 9.5 | AS18: =IF(OR(L18="",W18=""),"",ROUND(VLOOKUP(L18,直管換算!$B$4:$Q$26,10,FALSE)*W18,2)) ->  | AT18: =IF(OR(L18="",X18=""),"",ROUND(VLOOKUP(L18,直管換算!$B$4:$Q$26,11,FALSE)*X18,2)) ->  | AU18: =IF(OR(L18="",Y18=""),"",ROUND(VLOOKUP(L18,直管換算!$B$4:$Q$26,12,FALSE)*Y18,2)) ->  | AV18: =IF(OR(L18="",Z18=""),"",ROUND(VLOOKUP(L18,直管換算!$B$4:$Q$26,13,FALSE)*Z18,2)) ->  | AW18: =IF(OR(L18="",AA18=""),"",ROUND(VLOOKUP(L18,直管換算!$B$4:$Q$26,14,FALSE)*AA18,2)) ->  | AX18: =IF(OR(L18="",AB18=""),"",ROUND(VLOOKUP(L18,直管換算!$B$4:$Q$26,15,FALSE)*AB18,2)) ->  | AY18: =IF(OR(L18="",AC18=""),"",ROUND(VLOOKUP(L18,直管換算!$B$4:$Q$26,16,FALSE)*AC18,2)) ->  | AZ18: 9.5 | BB18: 8 | BC18: 1.153873337 | BD18: 42.01677334 | BE18: =IF(OR(K18="",L18=""),"",0.35464*計算公式!$B$14*POWER(AF18/1000,0.63)*POWER(BF18/1000,0.54)) -> 1.166045869 | BF18: =IF(OR(K18="",L18=""),"",10.666*POWER(計算公式!$B$14,-1.85)*POWER(AF18/1000,-4.87)*POWER(H18/1000,1.85)*1000) -> 76.64789385 | BG18: =IF(内径設定!B12="","",内径設定!B12) -> 150 | BK18: 1.45 | BL18: 1.38 | BM18: 0.96 | BN18: 0.74 | BO18: 0.5
B19: 0.124 | D19: 0.03 | E19: 3.09 | F19: 0.17 | G19: 1.18 | H19: 1.48 | I19: 9 | J19: I-J | K19: 10 | L19: 40 | M19: 2 | N19: 0 | W19: 1 | AF19: =IF(L19="","",VLOOKUP(L19,内径設定!$B$4:$C$26,2,FALSE)) -> 40 | AG19: =IF(AF19="","",IF(OR(AND(AF19>計算公式!$B$9,計算公式!$D$9="超"),AND(AF19>=計算公式!$B$9,計算公式!$D$9="以上")),"H","W")) -> W | AH19: 44 | AI19: 0.154 | AJ19: 0.17 | AK19: =IF(OR(L19="",O19=""),"",ROUND(VLOOKUP(L19,直管換算!$B$4:$Q$26,2,FALSE)*O19,2)) ->  | AL19: =IF(OR(L19="",P19=""),"",ROUND(VLOOKUP(L19,直管換算!$B$4:$Q$26,3,FALSE)*P19,2)) ->  | AM19: =IF(OR(L19="",Q19=""),"",ROUND(VLOOKUP(L19,直管換算!$B$4:$Q$26,4,FALSE)*Q19,2)) ->  | AN19: =IF(OR(L19="",R19=""),"",ROUND(VLOOKUP(L19,直管換算!$B$4:$Q$26,5,FALSE)*R19,2)) ->  | AO19: =IF(OR(L19="",S19=""),"",ROUND(VLOOKUP(L19,直管換算!$B$4:$Q$26,6,FALSE)*S19,2)) ->  | AP19: =IF(OR(L19="",T19=""),"",ROUND(VLOOKUP(L19,直管換算!$B$4:$Q$26,7,FALSE)*T19,2)) ->  | AQ19: =IF(OR(L19="",U19=""),"",ROUND(VLOOKUP(L19,直管換算!$B$4:$Q$26,8,FALSE)*U19,2)) ->  | AR19: =IF(OR(L19="",V19=""),"",ROUND(VLOOKUP(L19,直管換算!$B$4:$Q$26,9,FALSE)*V19,2)) ->  | AS19: =IF(OR(L19="",W19=""),"",ROUND(VLOOKUP(L19,直管換算!$B$4:$Q$26,10,FALSE)*W19,2)) -> 1.5 | AT19: =IF(OR(L19="",X19=""),"",ROUND(VLOOKUP(L19,直管換算!$B$4:$Q$26,11,FALSE)*X19,2)) ->  | AU19: =IF(OR(L19="",Y19=""),"",ROUND(VLOOKUP(L19,直管換算!$B$4:$Q$26,12,FALSE)*Y19,2)) ->  | AV19: =IF(OR(L19="",Z19=""),"",ROUND(VLOOKUP(L19,直管換算!$B$4:$Q$26,13,FALSE)*Z19,2)) ->  | AW19: =IF(OR(L19="",AA19=""),"",ROUND(VLOOKUP(L19,直管換算!$B$4:$Q$26,14,FALSE)*AA19,2)) ->  | AX19: =IF(OR(L19="",AB19=""),"",ROUND(VLOOKUP(L19,直管換算!$B$4:$Q$26,15,FALSE)*AB19,2)) ->  | AY19: =IF(OR(L19="",AC19=""),"",ROUND(VLOOKUP(L19,直管換算!$B$4:$Q$26,16,FALSE)*AC19,2)) ->  | AZ19: 1.5 | BB19: 9 | BC19: 1.177746579 | BD19: 43.55455766 | BE19: =IF(OR(K19="",L19=""),"",0.35464*計算公式!$B$14*POWER(AF19/1000,0.63)*POWER(BF19/1000,0.54)) -> 1.190146583 | BF19: =IF(OR(K19="",L19=""),"",10.666*POWER(計算公式!$B$14,-1.85)*POWER(AF19/1000,-4.87)*POWER(H19/1000,1.85)*1000) -> 79.60742843 | BG19: =IF(内径設定!B13="","",内径設定!B13) -> 200 | BK19: 1.5 | BL19: 1.48 | BM19: 0.99 | BN19: 0.79 | BO19: 0.54
B20: 0.125 | D20: 0.031 | E20: 3.14 | F20: 0.05 | G20: 1.26 | H20: 1.58 | I20: 10 | J20: J-K | K20: 11 | L20: 40 | M20: 1 | N20: 0 | X20: 1 | AF20: =IF(L20="","",VLOOKUP(L20,内径設定!$B$4:$C$26,2,FALSE)) -> 40 | AG20: =IF(AF20="","",IF(OR(AND(AF20>計算公式!$B$9,計算公式!$D$9="超"),AND(AF20>=計算公式!$B$9,計算公式!$D$9="以上")),"H","W")) -> W | AH20: 49 | AI20: 0.049 | AJ20: 0.05 | AK20: =IF(OR(L20="",O20=""),"",ROUND(VLOOKUP(L20,直管換算!$B$4:$Q$26,2,FALSE)*O20,2)) ->  | AL20: =IF(OR(L20="",P20=""),"",ROUND(VLOOKUP(L20,直管換算!$B$4:$Q$26,3,FALSE)*P20,2)) ->  | AM20: =IF(OR(L20="",Q20=""),"",ROUND(VLOOKUP(L20,直管換算!$B$4:$Q$26,4,FALSE)*Q20,2)) ->  | AN20: =IF(OR(L20="",R20=""),"",ROUND(VLOOKUP(L20,直管換算!$B$4:$Q$26,5,FALSE)*R20,2)) ->  | AO20: =IF(OR(L20="",S20=""),"",ROUND(VLOOKUP(L20,直管換算!$B$4:$Q$26,6,FALSE)*S20,2)) ->  | AP20: =IF(OR(L20="",T20=""),"",ROUND(VLOOKUP(L20,直管換算!$B$4:$Q$26,7,FALSE)*T20,2)) ->  | AQ20: =IF(OR(L20="",U20=""),"",ROUND(VLOOKUP(L20,直管換算!$B$4:$Q$26,8,FALSE)*U20,2)) ->  | AR20: =IF(OR(L20="",V20=""),"",ROUND(VLOOKUP(L20,直管換算!$B$4:$Q$26,9,FALSE)*V20,2)) ->  | AS20: =IF(OR(L20="",W20=""),"",ROUND(VLOOKUP(L20,直管換算!$B$4:$Q$26,10,FALSE)*W20,2)) ->  | AT20: =IF(OR(L20="",X20=""),"",ROUND(VLOOKUP(L20,直管換算!$B$4:$Q$26,11,FALSE)*X20,2)) -> 0 | AU20: =IF(OR(L20="",Y20=""),"",ROUND(VLOOKUP(L20,直管換算!$B$4:$Q$26,12,FALSE)*Y20,2)) ->  | AV20: =IF(OR(L20="",Z20=""),"",ROUND(VLOOKUP(L20,直管換算!$B$4:$Q$26,13,FALSE)*Z20,2)) ->  | AW20: =IF(OR(L20="",AA20=""),"",ROUND(VLOOKUP(L20,直管換算!$B$4:$Q$26,14,FALSE)*AA20,2)) ->  | AX20: =IF(OR(L20="",AB20=""),"",ROUND(VLOOKUP(L20,直管換算!$B$4:$Q$26,15,FALSE)*AB20,2)) ->  | AY20: =IF(OR(L20="",AC20=""),"",ROUND(VLOOKUP(L20,直管換算!$B$4:$Q$26,16,FALSE)*AC20,2)) ->  | AZ20: 0 | BB20: 10 | BC20: 1.25732405 | BD20: 48.85976958 | BE20: =IF(OR(K20="",L20=""),"",0.35464*計算公式!$B$14*POWER(AF20/1000,0.63)*POWER(BF20/1000,0.54)) -> 1.270478823 | BF20: =IF(OR(K20="",L20=""),"",10.666*POWER(計算公式!$B$14,-1.85)*POWER(AF20/1000,-4.87)*POWER(H20/1000,1.85)*1000) -> 89.84316284 | BG20: =IF(内径設定!B14="","",内径設定!B14) -> 250 | BK20: 1.54 | BL20: 1.58 | BM20: 1.03 | BN20: 0.83 | BO20: 0.57
I21: 11 | J21: K-L | K21: 12 | M21: 7 | N21: 0 | AF21: =IF(L21="","",VLOOKUP(L21,内径設定!$B$4:$C$26,2,FALSE)) ->  | AG21: =IF(AF21="","",IF(OR(AND(AF21>計算公式!$B$9,計算公式!$D$9="超"),AND(AF21>=計算公式!$B$9,計算公式!$D$9="以上")),"H","W")) ->  | AK21: =IF(OR(L21="",O21=""),"",ROUND(VLOOKUP(L21,直管換算!$B$4:$Q$26,2,FALSE)*O21,2)) ->  | AL21: =IF(OR(L21="",P21=""),"",ROUND(VLOOKUP(L21,直管換算!$B$4:$Q$26,3,FALSE)*P21,2)) ->  | AM21: =IF(OR(L21="",Q21=""),"",ROUND(VLOOKUP(L21,直管換算!$B$4:$Q$26,4,FALSE)*Q21,2)) ->  | AN21: =IF(OR(L21="",R21=""),"",ROUND(VLOOKUP(L21,直管換算!$B$4:$Q$26,5,FALSE)*R21,2)) ->  | AO21: =IF(OR(L21="",S21=""),"",ROUND(VLOOKUP(L21,直管換算!$B$4:$Q$26,6,FALSE)*S21,2)) ->  | AP21: =IF(OR(L21="",T21=""),"",ROUND(VLOOKUP(L21,直管換算!$B$4:$Q$26,7,FALSE)*T21,2)) ->  | AQ21: =IF(OR(L21="",U21=""),"",ROUND(VLOOKUP(L21,直管換算!$B$4:$Q$26,8,FALSE)*U21,2)) ->  | AR21: =IF(OR(L21="",V21=""),"",ROUND(VLOOKUP(L21,直管換算!$B$4:$Q$26,9,FALSE)*V21,2)) ->  | AS21: =IF(OR(L21="",W21=""),"",ROUND(VLOOKUP(L21,直管換算!$B$4:$Q$26,10,FALSE)*W21,2)) ->  | AT21: =IF(OR(L21="",X21=""),"",ROUND(VLOOKUP(L21,直管換算!$B$4:$Q$26,11,FALSE)*X21,2)) ->  | AU21: =IF(OR(L21="",Y21=""),"",ROUND(VLOOKUP(L21,直管換算!$B$4:$Q$26,12,FALSE)*Y21,2)) ->  | AV21: =IF(OR(L21="",Z21=""),"",ROUND(VLOOKUP(L21,直管換算!$B$4:$Q$26,13,FALSE)*Z21,2)) ->  | AW21: =IF(OR(L21="",AA21=""),"",ROUND(VLOOKUP(L21,直管換算!$B$4:$Q$26,14,FALSE)*AA21,2)) ->  | AX21: =IF(OR(L21="",AB21=""),"",ROUND(VLOOKUP(L21,直管換算!$B$4:$Q$26,15,FALSE)*AB21,2)) ->  | AY21: =IF(OR(L21="",AC21=""),"",ROUND(VLOOKUP(L21,直管換算!$B$4:$Q$26,16,FALSE)*AC21,2)) ->  | BB21: 空 | BE21: =IF(OR(K21="",L21=""),"",0.35464*計算公式!$B$14*POWER(AF21/1000,0.63)*POWER(BF21/1000,0.54)) ->  | BF21: =IF(OR(K21="",L21=""),"",10.666*POWER(計算公式!$B$14,-1.85)*POWER(AF21/1000,-4.87)*POWER(H21/1000,1.85)*1000) ->  | BG21: =IF(内径設定!B15="","",内径設定!B15) -> 300 | BK21: 1.59 | BL21: 1.67 | BM21: 1.06 | BN21: 0.87 | BO21: 0.61
F22: 0.07 | G22: 1.41 | H22: 1.77 | I22: 12 | J22: L-M | K22: 13 | L22: 40 | M22: 1 | N22: 0 | AF22: =IF(L22="","",VLOOKUP(L22,内径設定!$B$4:$C$26,2,FALSE)) -> 40 | AG22: =IF(AF22="","",IF(OR(AND(AF22>計算公式!$B$9,計算公式!$D$9="超"),AND(AF22>=計算公式!$B$9,計算公式!$D$9="以上")),"H","W")) -> W | AH22: 60 | AI22: 0.06 | AJ22: 0.07 | AK22: =IF(OR(L22="",O22=""),"",ROUND(VLOOKUP(L22,直管換算!$B$4:$Q$26,2,FALSE)*O22,2)) ->  | AL22: =IF(OR(L22="",P22=""),"",ROUND(VLOOKUP(L22,直管換算!$B$4:$Q$26,3,FALSE)*P22,2)) ->  | AM22: =IF(OR(L22="",Q22=""),"",ROUND(VLOOKUP(L22,直管換算!$B$4:$Q$26,4,FALSE)*Q22,2)) ->  | AN22: =IF(OR(L22="",R22=""),"",ROUND(VLOOKUP(L22,直管換算!$B$4:$Q$26,5,FALSE)*R22,2)) ->  | AO22: =IF(OR(L22="",S22=""),"",ROUND(VLOOKUP(L22,直管換算!$B$4:$Q$26,6,FALSE)*S22,2)) ->  | AP22: =IF(OR(L22="",T22=""),"",ROUND(VLOOKUP(L22,直管換算!$B$4:$Q$26,7,FALSE)*T22,2)) ->  | AQ22: =IF(OR(L22="",U22=""),"",ROUND(VLOOKUP(L22,直管換算!$B$4:$Q$26,8,FALSE)*U22,2)) ->  | AR22: =IF(OR(L22="",V22=""),"",ROUND(VLOOKUP(L22,直管換算!$B$4:$Q$26,9,FALSE)*V22,2)) ->  | AS22: =IF(OR(L22="",W22=""),"",ROUND(VLOOKUP(L22,直管換算!$B$4:$Q$26,10,FALSE)*W22,2)) ->  | AT22: =IF(OR(L22="",X22=""),"",ROUND(VLOOKUP(L22,直管換算!$B$4:$Q$26,11,FALSE)*X22,2)) ->  | AU22: =IF(OR(L22="",Y22=""),"",ROUND(VLOOKUP(L22,直管換算!$B$4:$Q$26,12,FALSE)*Y22,2)) ->  | AV22: =IF(OR(L22="",Z22=""),"",ROUND(VLOOKUP(L22,直管換算!$B$4:$Q$26,13,FALSE)*Z22,2)) ->  | AW22: =IF(OR(L22="",AA22=""),"",ROUND(VLOOKUP(L22,直管換算!$B$4:$Q$26,14,FALSE)*AA22,2)) ->  | AX22: =IF(OR(L22="",AB22=""),"",ROUND(VLOOKUP(L22,直管換算!$B$4:$Q$26,15,FALSE)*AB22,2)) ->  | AY22: =IF(OR(L22="",AC22=""),"",ROUND(VLOOKUP(L22,直管換算!$B$4:$Q$26,16,FALSE)*AC22,2)) ->  | AZ22: 0 | BB22: 空 | BC22: 1.408521246 | BD22: 59.69284601 | BE22: =IF(OR(K22="",L22=""),"",0.35464*計算公式!$B$14*POWER(AF22/1000,0.63)*POWER(BF22/1000,0.54)) -> 1.423096313 | BF22: =IF(OR(K22="",L22=""),"",10.666*POWER(計算公式!$B$14,-1.85)*POWER(AF22/1000,-4.87)*POWER(H22/1000,1.85)*1000) -> 110.8459843 | BG22: =IF(内径設定!B16="","",内径設定!B16) -> 350 | BK22: 1.63 | BL22: 1.77 | BM22: 1.09 | BN22: 0.91 | BO22: 0.64
F23: 0.15 | G23: 1.48 | H23: 1.86 | I23: 13 | J23: M-N | K23: 14 | L23: 40 | M23: 2 | N23: 0 | AF23: =IF(L23="","",VLOOKUP(L23,内径設定!$B$4:$C$26,2,FALSE)) -> 40 | AG23: =IF(AF23="","",IF(OR(AND(AF23>計算公式!$B$9,計算公式!$D$9="超"),AND(AF23>=計算公式!$B$9,計算公式!$D$9="以上")),"H","W")) -> W | AH23: 66 | AI23: 0.132 | AJ23: 0.15 | AK23: =IF(OR(L23="",O23=""),"",ROUND(VLOOKUP(L23,直管換算!$B$4:$Q$26,2,FALSE)*O23,2)) ->  | AL23: =IF(OR(L23="",P23=""),"",ROUND(VLOOKUP(L23,直管換算!$B$4:$Q$26,3,FALSE)*P23,2)) ->  | AM23: =IF(OR(L23="",Q23=""),"",ROUND(VLOOKUP(L23,直管換算!$B$4:$Q$26,4,FALSE)*Q23,2)) ->  | AN23: =IF(OR(L23="",R23=""),"",ROUND(VLOOKUP(L23,直管換算!$B$4:$Q$26,5,FALSE)*R23,2)) ->  | AO23: =IF(OR(L23="",S23=""),"",ROUND(VLOOKUP(L23,直管換算!$B$4:$Q$26,6,FALSE)*S23,2)) ->  | AP23: =IF(OR(L23="",T23=""),"",ROUND(VLOOKUP(L23,直管換算!$B$4:$Q$26,7,FALSE)*T23,2)) ->  | AQ23: =IF(OR(L23="",U23=""),"",ROUND(VLOOKUP(L23,直管換算!$B$4:$Q$26,8,FALSE)*U23,2)) ->  | AR23: =IF(OR(L23="",V23=""),"",ROUND(VLOOKUP(L23,直管換算!$B$4:$Q$26,9,FALSE)*V23,2)) ->  | AS23: =IF(OR(L23="",W23=""),"",ROUND(VLOOKUP(L23,直管換算!$B$4:$Q$26,10,FALSE)*W23,2)) ->  | AT23: =IF(OR(L23="",X23=""),"",ROUND(VLOOKUP(L23,直管換算!$B$4:$Q$26,11,FALSE)*X23,2)) ->  | AU23: =IF(OR(L23="",Y23=""),"",ROUND(VLOOKUP(L23,直管換算!$B$4:$Q$26,12,FALSE)*Y23,2)) ->  | AV23: =IF(OR(L23="",Z23=""),"",ROUND(VLOOKUP(L23,直管換算!$B$4:$Q$26,13,FALSE)*Z23,2)) ->  | AW23: =IF(OR(L23="",AA23=""),"",ROUND(VLOOKUP(L23,直管換算!$B$4:$Q$26,14,FALSE)*AA23,2)) ->  | AX23: =IF(OR(L23="",AB23=""),"",ROUND(VLOOKUP(L23,直管換算!$B$4:$Q$26,15,FALSE)*AB23,2)) ->  | AY23: =IF(OR(L23="",AC23=""),"",ROUND(VLOOKUP(L23,直管換算!$B$4:$Q$26,16,FALSE)*AC23,2)) ->  | AZ23: 0 | BB23: 空 | BC23: 1.480140971 | BD23: 65.16548995 | BE23: =IF(OR(K23="",L23=""),"",0.35464*計算公式!$B$14*POWER(AF23/1000,0.63)*POWER(BF23/1000,0.54)) -> 1.495382975 | BF23: =IF(OR(K23="",L23=""),"",10.666*POWER(計算公式!$B$14,-1.85)*POWER(AF23/1000,-4.87)*POWER(H23/1000,1.85)*1000) -> 121.4977872 | BG23: =IF(内径設定!B17="","",内径設定!B17) -> 10 | BK23: 1.67 | BL23: 1.86 | BM23: 1.12 | BN23: 0.95 | BO23: 0.67
I24: 14 | J24: N-O | L24: 40 | M24: 1 | N24: 0 | AF24: =IF(L24="","",VLOOKUP(L24,内径設定!$B$4:$C$26,2,FALSE)) -> 40 | AG24: =IF(AF24="","",IF(OR(AND(AF24>計算公式!$B$9,計算公式!$D$9="超"),AND(AF24>=計算公式!$B$9,計算公式!$D$9="以上")),"H","W")) -> W | AK24: =IF(OR(L24="",O24=""),"",ROUND(VLOOKUP(L24,直管換算!$B$4:$Q$26,2,FALSE)*O24,2)) ->  | AL24: =IF(OR(L24="",P24=""),"",ROUND(VLOOKUP(L24,直管換算!$B$4:$Q$26,3,FALSE)*P24,2)) ->  | AM24: =IF(OR(L24="",Q24=""),"",ROUND(VLOOKUP(L24,直管換算!$B$4:$Q$26,4,FALSE)*Q24,2)) ->  | AN24: =IF(OR(L24="",R24=""),"",ROUND(VLOOKUP(L24,直管換算!$B$4:$Q$26,5,FALSE)*R24,2)) ->  | AO24: =IF(OR(L24="",S24=""),"",ROUND(VLOOKUP(L24,直管換算!$B$4:$Q$26,6,FALSE)*S24,2)) ->  | AP24: =IF(OR(L24="",T24=""),"",ROUND(VLOOKUP(L24,直管換算!$B$4:$Q$26,7,FALSE)*T24,2)) ->  | AQ24: =IF(OR(L24="",U24=""),"",ROUND(VLOOKUP(L24,直管換算!$B$4:$Q$26,8,FALSE)*U24,2)) ->  | AR24: =IF(OR(L24="",V24=""),"",ROUND(VLOOKUP(L24,直管換算!$B$4:$Q$26,9,FALSE)*V24,2)) ->  | AS24: =IF(OR(L24="",W24=""),"",ROUND(VLOOKUP(L24,直管換算!$B$4:$Q$26,10,FALSE)*W24,2)) ->  | AT24: =IF(OR(L24="",X24=""),"",ROUND(VLOOKUP(L24,直管換算!$B$4:$Q$26,11,FALSE)*X24,2)) ->  | AU24: =IF(OR(L24="",Y24=""),"",ROUND(VLOOKUP(L24,直管換算!$B$4:$Q$26,12,FALSE)*Y24,2)) ->  | AV24: =IF(OR(L24="",Z24=""),"",ROUND(VLOOKUP(L24,直管換算!$B$4:$Q$26,13,FALSE)*Z24,2)) ->  | AW24: =IF(OR(L24="",AA24=""),"",ROUND(VLOOKUP(L24,直管換算!$B$4:$Q$26,14,FALSE)*AA24,2)) ->  | AX24: =IF(OR(L24="",AB24=""),"",ROUND(VLOOKUP(L24,直管換算!$B$4:$Q$26,15,FALSE)*AB24,2)) ->  | AY24: =IF(OR(L24="",AC24=""),"",ROUND(VLOOKUP(L24,直管換算!$B$4:$Q$26,16,FALSE)*AC24,2)) ->  | AZ24: 0 | BB24: 空 | BE24: =IF(OR(K24="",L24=""),"",0.35464*計算公式!$B$14*POWER(AF24/1000,0.63)*POWER(BF24/1000,0.54)) ->  | BF24: =IF(OR(K24="",L24=""),"",10.666*POWER(計算公式!$B$14,-1.85)*POWER(AF24/1000,-4.87)*POWER(H24/1000,1.85)*1000) ->  | BG24: =IF(内径設定!B18="","",内径設定!B18) -> 16 | BK24: 0 | BL24: 0 | BM24: 0 | BN24: 0 | BO24: 0
F25: 1.89 | G25: 1.62 | H25: 2.03 | I25: 15 | J25: O-P | K25: 16 | L25: 40 | M25: 5.9 | N25: 0.9 | O25: 1 | U25: 1 | W25: 3 | AF25: =IF(L25="","",VLOOKUP(L25,内径設定!$B$4:$C$26,2,FALSE)) -> 40 | AG25: =IF(AF25="","",IF(OR(AND(AF25>計算公式!$B$9,計算公式!$D$9="超"),AND(AF25>=計算公式!$B$9,計算公式!$D$9="以上")),"H","W")) -> W | AH25: 77 | AI25: 0.9009 | AJ25: 0.99 | AK25: =IF(OR(L25="",O25=""),"",ROUND(VLOOKUP(L25,直管換算!$B$4:$Q$26,2,FALSE)*O25,2)) -> 1 | AL25: =IF(OR(L25="",P25=""),"",ROUND(VLOOKUP(L25,直管換算!$B$4:$Q$26,3,FALSE)*P25,2)) ->  | AM25: =IF(OR(L25="",Q25=""),"",ROUND(VLOOKUP(L25,直管換算!$B$4:$Q$26,4,FALSE)*Q25,2)) ->  | AN25: =IF(OR(L25="",R25=""),"",ROUND(VLOOKUP(L25,直管換算!$B$4:$Q$26,5,FALSE)*R25,2)) ->  | AO25: =IF(OR(L25="",S25=""),"",ROUND(VLOOKUP(L25,直管換算!$B$4:$Q$26,6,FALSE)*S25,2)) ->  | AP25: =IF(OR(L25="",T25=""),"",ROUND(VLOOKUP(L25,直管換算!$B$4:$Q$26,7,FALSE)*T25,2)) ->  | AQ25: =IF(OR(L25="",U25=""),"",ROUND(VLOOKUP(L25,直管換算!$B$4:$Q$26,8,FALSE)*U25,2)) -> 0.3 | AR25: =IF(OR(L25="",V25=""),"",ROUND(VLOOKUP(L25,直管換算!$B$4:$Q$26,9,FALSE)*V25,2)) ->  | AS25: =IF(OR(L25="",W25=""),"",ROUND(VLOOKUP(L25,直管換算!$B$4:$Q$26,10,FALSE)*W25,2)) -> 4.5 | AT25: =IF(OR(L25="",X25=""),"",ROUND(VLOOKUP(L25,直管換算!$B$4:$Q$26,11,FALSE)*X25,2)) ->  | AU25: =IF(OR(L25="",Y25=""),"",ROUND(VLOOKUP(L25,直管換算!$B$4:$Q$26,12,FALSE)*Y25,2)) ->  | AV25: =IF(OR(L25="",Z25=""),"",ROUND(VLOOKUP(L25,直管換算!$B$4:$Q$26,13,FALSE)*Z25,2)) ->  | AW25: =IF(OR(L25="",AA25=""),"",ROUND(VLOOKUP(L25,直管換算!$B$4:$Q$26,14,FALSE)*AA25,2)) ->  | AX25: =IF(OR(L25="",AB25=""),"",ROUND(VLOOKUP(L25,直管換算!$B$4:$Q$26,15,FALSE)*AB25,2)) ->  | AY25: =IF(OR(L25="",AC25=""),"",ROUND(VLOOKUP(L25,直管換算!$B$4:$Q$26,16,FALSE)*AC25,2)) ->  | AZ25: 5.8 | BB25: 空 | BC25: 1.615422672 | BD25: 76.09509002 | BE25: =IF(OR(K25="",L25=""),"",0.35464*計算公式!$B$14*POWER(AF25/1000,0.63)*POWER(BF25/1000,0.54)) -> 1.63191503 | BF25: =IF(OR(K25="",L25=""),"",10.666*POWER(計算公式!$B$14,-1.85)*POWER(AF25/1000,-4.87)*POWER(H25/1000,1.85)*1000) -> 142.8358066 | BG25: =IF(内径設定!B19="","",内径設定!B19) ->  | BK25: 1.75 | BL25: 2.03 | BM25: 1.18 | BN25: 1.02 | BO25: 0.74
I26: 16 | AF26: =IF(L26="","",VLOOKUP(L26,内径設定!$B$4:$C$26,2,FALSE)) ->  | AG26: =IF(AF26="","",IF(OR(AND(AF26>計算公式!$B$9,計算公式!$D$9="超"),AND(AF26>=計算公式!$B$9,計算公式!$D$9="以上")),"H","W")) ->  | AK26: =IF(OR(L26="",O26=""),"",ROUND(VLOOKUP(L26,直管換算!$B$4:$Q$26,2,FALSE)*O26,2)) ->  | AL26: =IF(OR(L26="",P26=""),"",ROUND(VLOOKUP(L26,直管換算!$B$4:$Q$26,3,FALSE)*P26,2)) ->  | AM26: =IF(OR(L26="",Q26=""),"",ROUND(VLOOKUP(L26,直管換算!$B$4:$Q$26,4,FALSE)*Q26,2)) ->  | AN26: =IF(OR(L26="",R26=""),"",ROUND(VLOOKUP(L26,直管換算!$B$4:$Q$26,5,FALSE)*R26,2)) ->  | AO26: =IF(OR(L26="",S26=""),"",ROUND(VLOOKUP(L26,直管換算!$B$4:$Q$26,6,FALSE)*S26,2)) ->  | AP26: =IF(OR(L26="",T26=""),"",ROUND(VLOOKUP(L26,直管換算!$B$4:$Q$26,7,FALSE)*T26,2)) ->  | AQ26: =IF(OR(L26="",U26=""),"",ROUND(VLOOKUP(L26,直管換算!$B$4:$Q$26,8,FALSE)*U26,2)) ->  | AR26: =IF(OR(L26="",V26=""),"",ROUND(VLOOKUP(L26,直管換算!$B$4:$Q$26,9,FALSE)*V26,2)) ->  | AS26: =IF(OR(L26="",W26=""),"",ROUND(VLOOKUP(L26,直管換算!$B$4:$Q$26,10,FALSE)*W26,2)) ->  | AT26: =IF(OR(L26="",X26=""),"",ROUND(VLOOKUP(L26,直管換算!$B$4:$Q$26,11,FALSE)*X26,2)) ->  | AU26: =IF(OR(L26="",Y26=""),"",ROUND(VLOOKUP(L26,直管換算!$B$4:$Q$26,12,FALSE)*Y26,2)) ->  | AV26: =IF(OR(L26="",Z26=""),"",ROUND(VLOOKUP(L26,直管換算!$B$4:$Q$26,13,FALSE)*Z26,2)) ->  | AW26: =IF(OR(L26="",AA26=""),"",ROUND(VLOOKUP(L26,直管換算!$B$4:$Q$26,14,FALSE)*AA26,2)) ->  | AX26: =IF(OR(L26="",AB26=""),"",ROUND(VLOOKUP(L26,直管換算!$B$4:$Q$26,15,FALSE)*AB26,2)) ->  | AY26: =IF(OR(L26="",AC26=""),"",ROUND(VLOOKUP(L26,直管換算!$B$4:$Q$26,16,FALSE)*AC26,2)) ->  | BB26: 空 | BE26: =IF(OR(K26="",L26=""),"",0.35464*計算公式!$B$14*POWER(AF26/1000,0.63)*POWER(BF26/1000,0.54)) ->  | BF26: =IF(OR(K26="",L26=""),"",10.666*POWER(計算公式!$B$14,-1.85)*POWER(AF26/1000,-4.87)*POWER(H26/1000,1.85)*1000) ->  | BG26: =IF(内径設定!B20="","",内径設定!B20) ->  | BK26: 0 | BL26: 0 | BM26: 0 | BN26: 0 | BO26: 0
I27: 17 | AF27: =IF(L27="","",VLOOKUP(L27,内径設定!$B$4:$C$26,2,FALSE)) ->  | AG27: =IF(AF27="","",IF(OR(AND(AF27>計算公式!$B$9,計算公式!$D$9="超"),AND(AF27>=計算公式!$B$9,計算公式!$D$9="以上")),"H","W")) ->  | AK27: =IF(OR(L27="",O27=""),"",ROUND(VLOOKUP(L27,直管換算!$B$4:$Q$26,2,FALSE)*O27,2)) ->  | AL27: =IF(OR(L27="",P27=""),"",ROUND(VLOOKUP(L27,直管換算!$B$4:$Q$26,3,FALSE)*P27,2)) ->  | AM27: =IF(OR(L27="",Q27=""),"",ROUND(VLOOKUP(L27,直管換算!$B$4:$Q$26,4,FALSE)*Q27,2)) ->  | AN27: =IF(OR(L27="",R27=""),"",ROUND(VLOOKUP(L27,直管換算!$B$4:$Q$26,5,FALSE)*R27,2)) ->  | AO27: =IF(OR(L27="",S27=""),"",ROUND(VLOOKUP(L27,直管換算!$B$4:$Q$26,6,FALSE)*S27,2)) ->  | AP27: =IF(OR(L27="",T27=""),"",ROUND(VLOOKUP(L27,直管換算!$B$4:$Q$26,7,FALSE)*T27,2)) ->  | AQ27: =IF(OR(L27="",U27=""),"",ROUND(VLOOKUP(L27,直管換算!$B$4:$Q$26,8,FALSE)*U27,2)) ->  | AR27: =IF(OR(L27="",V27=""),"",ROUND(VLOOKUP(L27,直管換算!$B$4:$Q$26,9,FALSE)*V27,2)) ->  | AS27: =IF(OR(L27="",W27=""),"",ROUND(VLOOKUP(L27,直管換算!$B$4:$Q$26,10,FALSE)*W27,2)) ->  | AT27: =IF(OR(L27="",X27=""),"",ROUND(VLOOKUP(L27,直管換算!$B$4:$Q$26,11,FALSE)*X27,2)) ->  | AU27: =IF(OR(L27="",Y27=""),"",ROUND(VLOOKUP(L27,直管換算!$B$4:$Q$26,12,FALSE)*Y27,2)) ->  | AV27: =IF(OR(L27="",Z27=""),"",ROUND(VLOOKUP(L27,直管換算!$B$4:$Q$26,13,FALSE)*Z27,2)) ->  | AW27: =IF(OR(L27="",AA27=""),"",ROUND(VLOOKUP(L27,直管換算!$B$4:$Q$26,14,FALSE)*AA27,2)) ->  | AX27: =IF(OR(L27="",AB27=""),"",ROUND(VLOOKUP(L27,直管換算!$B$4:$Q$26,15,FALSE)*AB27,2)) ->  | AY27: =IF(OR(L27="",AC27=""),"",ROUND(VLOOKUP(L27,直管換算!$B$4:$Q$26,16,FALSE)*AC27,2)) ->  | BB27: 空 | BE27: =IF(OR(K27="",L27=""),"",0.35464*計算公式!$B$14*POWER(AF27/1000,0.63)*POWER(BF27/1000,0.54)) ->  | BF27: =IF(OR(K27="",L27=""),"",10.666*POWER(計算公式!$B$14,-1.85)*POWER(AF27/1000,-4.87)*POWER(H27/1000,1.85)*1000) ->  | BG27: =IF(内径設定!B21="","",内径設定!B21) ->  | BK27: 0 | BL27: 0 | BM27: 0 | BN27: 0 | BO27: 0
I28: 18 | AF28: =IF(L28="","",VLOOKUP(L28,内径設定!$B$4:$C$26,2,FALSE)) ->  | AG28: =IF(AF28="","",IF(OR(AND(AF28>計算公式!$B$9,計算公式!$D$9="超"),AND(AF28>=計算公式!$B$9,計算公式!$D$9="以上")),"H","W")) ->  | AK28: =IF(OR(L28="",O28=""),"",ROUND(VLOOKUP(L28,直管換算!$B$4:$Q$26,2,FALSE)*O28,2)) ->  | AL28: =IF(OR(L28="",P28=""),"",ROUND(VLOOKUP(L28,直管換算!$B$4:$Q$26,3,FALSE)*P28,2)) ->  | AM28: =IF(OR(L28="",Q28=""),"",ROUND(VLOOKUP(L28,直管換算!$B$4:$Q$26,4,FALSE)*Q28,2)) ->  | AN28: =IF(OR(L28="",R28=""),"",ROUND(VLOOKUP(L28,直管換算!$B$4:$Q$26,5,FALSE)*R28,2)) ->  | AO28: =IF(OR(L28="",S28=""),"",ROUND(VLOOKUP(L28,直管換算!$B$4:$Q$26,6,FALSE)*S28,2)) ->  | AP28: =IF(OR(L28="",T28=""),"",ROUND(VLOOKUP(L28,直管換算!$B$4:$Q$26,7,FALSE)*T28,2)) ->  | AQ28: =IF(OR(L28="",U28=""),"",ROUND(VLOOKUP(L28,直管換算!$B$4:$Q$26,8,FALSE)*U28,2)) ->  | AR28: =IF(OR(L28="",V28=""),"",ROUND(VLOOKUP(L28,直管換算!$B$4:$Q$26,9,FALSE)*V28,2)) ->  | AS28: =IF(OR(L28="",W28=""),"",ROUND(VLOOKUP(L28,直管換算!$B$4:$Q$26,10,FALSE)*W28,2)) ->  | AT28: =IF(OR(L28="",X28=""),"",ROUND(VLOOKUP(L28,直管換算!$B$4:$Q$26,11,FALSE)*X28,2)) ->  | AU28: =IF(OR(L28="",Y28=""),"",ROUND(VLOOKUP(L28,直管換算!$B$4:$Q$26,12,FALSE)*Y28,2)) ->  | AV28: =IF(OR(L28="",Z28=""),"",ROUND(VLOOKUP(L28,直管換算!$B$4:$Q$26,13,FALSE)*Z28,2)) ->  | AW28: =IF(OR(L28="",AA28=""),"",ROUND(VLOOKUP(L28,直管換算!$B$4:$Q$26,14,FALSE)*AA28,2)) ->  | AX28: =IF(OR(L28="",AB28=""),"",ROUND(VLOOKUP(L28,直管換算!$B$4:$Q$26,15,FALSE)*AB28,2)) ->  | AY28: =IF(OR(L28="",AC28=""),"",ROUND(VLOOKUP(L28,直管換算!$B$4:$Q$26,16,FALSE)*AC28,2)) ->  | BB28: 空 | BE28: =IF(OR(K28="",L28=""),"",0.35464*計算公式!$B$14*POWER(AF28/1000,0.63)*POWER(BF28/1000,0.54)) ->  | BF28: =IF(OR(K28="",L28=""),"",10.666*POWER(計算公式!$B$14,-1.85)*POWER(AF28/1000,-4.87)*POWER(H28/1000,1.85)*1000) ->  | BG28: =IF(内径設定!B22="","",内径設定!B22) ->  | BK28: 0 | BL28: 0 | BM28: 0 | BN28: 0 | BO28: 0
I29: 19 | AF29: =IF(L29="","",VLOOKUP(L29,内径設定!$B$4:$C$26,2,FALSE)) ->  | AG29: =IF(AF29="","",IF(OR(AND(AF29>計算公式!$B$9,計算公式!$D$9="超"),AND(AF29>=計算公式!$B$9,計算公式!$D$9="以上")),"H","W")) ->  | AK29: =IF(OR(L29="",O29=""),"",ROUND(VLOOKUP(L29,直管換算!$B$4:$Q$26,2,FALSE)*O29,2)) ->  | AL29: =IF(OR(L29="",P29=""),"",ROUND(VLOOKUP(L29,直管換算!$B$4:$Q$26,3,FALSE)*P29,2)) ->  | AM29: =IF(OR(L29="",Q29=""),"",ROUND(VLOOKUP(L29,直管換算!$B$4:$Q$26,4,FALSE)*Q29,2)) ->  | AN29: =IF(OR(L29="",R29=""),"",ROUND(VLOOKUP(L29,直管換算!$B$4:$Q$26,5,FALSE)*R29,2)) ->  | AO29: =IF(OR(L29="",S29=""),"",ROUND(VLOOKUP(L29,直管換算!$B$4:$Q$26,6,FALSE)*S29,2)) ->  | AP29: =IF(OR(L29="",T29=""),"",ROUND(VLOOKUP(L29,直管換算!$B$4:$Q$26,7,FALSE)*T29,2)) ->  | AQ29: =IF(OR(L29="",U29=""),"",ROUND(VLOOKUP(L29,直管換算!$B$4:$Q$26,8,FALSE)*U29,2)) ->  | AR29: =IF(OR(L29="",V29=""),"",ROUND(VLOOKUP(L29,直管換算!$B$4:$Q$26,9,FALSE)*V29,2)) ->  | AS29: =IF(OR(L29="",W29=""),"",ROUND(VLOOKUP(L29,直管換算!$B$4:$Q$26,10,FALSE)*W29,2)) ->  | AT29: =IF(OR(L29="",X29=""),"",ROUND(VLOOKUP(L29,直管換算!$B$4:$Q$26,11,FALSE)*X29,2)) ->  | AU29: =IF(OR(L29="",Y29=""),"",ROUND(VLOOKUP(L29,直管換算!$B$4:$Q$26,12,FALSE)*Y29,2)) ->  | AV29: =IF(OR(L29="",Z29=""),"",ROUND(VLOOKUP(L29,直管換算!$B$4:$Q$26,13,FALSE)*Z29,2)) ->  | AW29: =IF(OR(L29="",AA29=""),"",ROUND(VLOOKUP(L29,直管換算!$B$4:$Q$26,14,FALSE)*AA29,2)) ->  | AX29: =IF(OR(L29="",AB29=""),"",ROUND(VLOOKUP(L29,直管換算!$B$4:$Q$26,15,FALSE)*AB29,2)) ->  | AY29: =IF(OR(L29="",AC29=""),"",ROUND(VLOOKUP(L29,直管換算!$B$4:$Q$26,16,FALSE)*AC29,2)) ->  | BB29: 空 | BE29: =IF(OR(K29="",L29=""),"",0.35464*計算公式!$B$14*POWER(AF29/1000,0.63)*POWER(BF29/1000,0.54)) ->  | BF29: =IF(OR(K29="",L29=""),"",10.666*POWER(計算公式!$B$14,-1.85)*POWER(AF29/1000,-4.87)*POWER(H29/1000,1.85)*1000) ->  | BG29: =IF(内径設定!B23="","",内径設定!B23) ->  | BK29: 0 | BL29: 0 | BM29: 0 | BN29: 0 | BO29: 0
I30: 20 | AF30: =IF(L30="","",VLOOKUP(L30,内径設定!$B$4:$C$26,2,FALSE)) ->  | AG30: =IF(AF30="","",IF(OR(AND(AF30>計算公式!$B$9,計算公式!$D$9="超"),AND(AF30>=計算公式!$B$9,計算公式!$D$9="以上")),"H","W")) ->  | AK30: =IF(OR(L30="",O30=""),"",ROUND(VLOOKUP(L30,直管換算!$B$4:$Q$26,2,FALSE)*O30,2)) ->  | AL30: =IF(OR(L30="",P30=""),"",ROUND(VLOOKUP(L30,直管換算!$B$4:$Q$26,3,FALSE)*P30,2)) ->  | AM30: =IF(OR(L30="",Q30=""),"",ROUND(VLOOKUP(L30,直管換算!$B$4:$Q$26,4,FALSE)*Q30,2)) ->  | AN30: =IF(OR(L30="",R30=""),"",ROUND(VLOOKUP(L30,直管換算!$B$4:$Q$26,5,FALSE)*R30,2)) ->  | AO30: =IF(OR(L30="",S30=""),"",ROUND(VLOOKUP(L30,直管換算!$B$4:$Q$26,6,FALSE)*S30,2)) ->  | AP30: =IF(OR(L30="",T30=""),"",ROUND(VLOOKUP(L30,直管換算!$B$4:$Q$26,7,FALSE)*T30,2)) ->  | AQ30: =IF(OR(L30="",U30=""),"",ROUND(VLOOKUP(L30,直管換算!$B$4:$Q$26,8,FALSE)*U30,2)) ->  | AR30: =IF(OR(L30="",V30=""),"",ROUND(VLOOKUP(L30,直管換算!$B$4:$Q$26,9,FALSE)*V30,2)) ->  | AS30: =IF(OR(L30="",W30=""),"",ROUND(VLOOKUP(L30,直管換算!$B$4:$Q$26,10,FALSE)*W30,2)) ->  | AT30: =IF(OR(L30="",X30=""),"",ROUND(VLOOKUP(L30,直管換算!$B$4:$Q$26,11,FALSE)*X30,2)) ->  | AU30: =IF(OR(L30="",Y30=""),"",ROUND(VLOOKUP(L30,直管換算!$B$4:$Q$26,12,FALSE)*Y30,2)) ->  | AV30: =IF(OR(L30="",Z30=""),"",ROUND(VLOOKUP(L30,直管換算!$B$4:$Q$26,13,FALSE)*Z30,2)) ->  | AW30: =IF(OR(L30="",AA30=""),"",ROUND(VLOOKUP(L30,直管換算!$B$4:$Q$26,14,FALSE)*AA30,2)) ->  | AX30: =IF(OR(L30="",AB30=""),"",ROUND(VLOOKUP(L30,直管換算!$B$4:$Q$26,15,FALSE)*AB30,2)) ->  | AY30: =IF(OR(L30="",AC30=""),"",ROUND(VLOOKUP(L30,直管換算!$B$4:$Q$26,16,FALSE)*AC30,2)) ->  | BB30: 空 | BE30: =IF(OR(K30="",L30=""),"",0.35464*計算公式!$B$14*POWER(AF30/1000,0.63)*POWER(BF30/1000,0.54)) ->  | BF30: =IF(OR(K30="",L30=""),"",10.666*POWER(計算公式!$B$14,-1.85)*POWER(AF30/1000,-4.87)*POWER(H30/1000,1.85)*1000) ->  | BG30: =IF(内径設定!B24="","",内径設定!B24) ->  | BK30: 0 | BL30: 0 | BM30: 0 | BN30: 0 | BO30: 0
I31: 21 | AF31: =IF(L31="","",VLOOKUP(L31,内径設定!$B$4:$C$26,2,FALSE)) ->  | AG31: =IF(AF31="","",IF(OR(AND(AF31>計算公式!$B$9,計算公式!$D$9="超"),AND(AF31>=計算公式!$B$9,計算公式!$D$9="以上")),"H","W")) ->  | AK31: =IF(OR(L31="",O31=""),"",ROUND(VLOOKUP(L31,直管換算!$B$4:$Q$26,2,FALSE)*O31,2)) ->  | AL31: =IF(OR(L31="",P31=""),"",ROUND(VLOOKUP(L31,直管換算!$B$4:$Q$26,3,FALSE)*P31,2)) ->  | AM31: =IF(OR(L31="",Q31=""),"",ROUND(VLOOKUP(L31,直管換算!$B$4:$Q$26,4,FALSE)*Q31,2)) ->  | AN31: =IF(OR(L31="",R31=""),"",ROUND(VLOOKUP(L31,直管換算!$B$4:$Q$26,5,FALSE)*R31,2)) ->  | AO31: =IF(OR(L31="",S31=""),"",ROUND(VLOOKUP(L31,直管換算!$B$4:$Q$26,6,FALSE)*S31,2)) ->  | AP31: =IF(OR(L31="",T31=""),"",ROUND(VLOOKUP(L31,直管換算!$B$4:$Q$26,7,FALSE)*T31,2)) ->  | AQ31: =IF(OR(L31="",U31=""),"",ROUND(VLOOKUP(L31,直管換算!$B$4:$Q$26,8,FALSE)*U31,2)) ->  | AR31: =IF(OR(L31="",V31=""),"",ROUND(VLOOKUP(L31,直管換算!$B$4:$Q$26,9,FALSE)*V31,2)) ->  | AS31: =IF(OR(L31="",W31=""),"",ROUND(VLOOKUP(L31,直管換算!$B$4:$Q$26,10,FALSE)*W31,2)) ->  | AT31: =IF(OR(L31="",X31=""),"",ROUND(VLOOKUP(L31,直管換算!$B$4:$Q$26,11,FALSE)*X31,2)) ->  | AU31: =IF(OR(L31="",Y31=""),"",ROUND(VLOOKUP(L31,直管換算!$B$4:$Q$26,12,FALSE)*Y31,2)) ->  | AV31: =IF(OR(L31="",Z31=""),"",ROUND(VLOOKUP(L31,直管換算!$B$4:$Q$26,13,FALSE)*Z31,2)) ->  | AW31: =IF(OR(L31="",AA31=""),"",ROUND(VLOOKUP(L31,直管換算!$B$4:$Q$26,14,FALSE)*AA31,2)) ->  | AX31: =IF(OR(L31="",AB31=""),"",ROUND(VLOOKUP(L31,直管換算!$B$4:$Q$26,15,FALSE)*AB31,2)) ->  | AY31: =IF(OR(L31="",AC31=""),"",ROUND(VLOOKUP(L31,直管換算!$B$4:$Q$26,16,FALSE)*AC31,2)) ->  | BB31: 空 | BE31: =IF(OR(K31="",L31=""),"",0.35464*計算公式!$B$14*POWER(AF31/1000,0.63)*POWER(BF31/1000,0.54)) ->  | BF31: =IF(OR(K31="",L31=""),"",10.666*POWER(計算公式!$B$14,-1.85)*POWER(AF31/1000,-4.87)*POWER(H31/1000,1.85)*1000) ->  | BG31: =IF(内径設定!B25="","",内径設定!B25) ->  | BK31: 0 | BL31: 0 | BM31: 0 | BN31: 0 | BO31: 0
I32: 22 | AF32: =IF(L32="","",VLOOKUP(L32,内径設定!$B$4:$C$26,2,FALSE)) ->  | AG32: =IF(AF32="","",IF(OR(AND(AF32>計算公式!$B$9,計算公式!$D$9="超"),AND(AF32>=計算公式!$B$9,計算公式!$D$9="以上")),"H","W")) ->  | AK32: =IF(OR(L32="",O32=""),"",ROUND(VLOOKUP(L32,直管換算!$B$4:$Q$26,2,FALSE)*O32,2)) ->  | AL32: =IF(OR(L32="",P32=""),"",ROUND(VLOOKUP(L32,直管換算!$B$4:$Q$26,3,FALSE)*P32,2)) ->  | AM32: =IF(OR(L32="",Q32=""),"",ROUND(VLOOKUP(L32,直管換算!$B$4:$Q$26,4,FALSE)*Q32,2)) ->  | AN32: =IF(OR(L32="",R32=""),"",ROUND(VLOOKUP(L32,直管換算!$B$4:$Q$26,5,FALSE)*R32,2)) ->  | AO32: =IF(OR(L32="",S32=""),"",ROUND(VLOOKUP(L32,直管換算!$B$4:$Q$26,6,FALSE)*S32,2)) ->  | AP32: =IF(OR(L32="",T32=""),"",ROUND(VLOOKUP(L32,直管換算!$B$4:$Q$26,7,FALSE)*T32,2)) ->  | AQ32: =IF(OR(L32="",U32=""),"",ROUND(VLOOKUP(L32,直管換算!$B$4:$Q$26,8,FALSE)*U32,2)) ->  | AR32: =IF(OR(L32="",V32=""),"",ROUND(VLOOKUP(L32,直管換算!$B$4:$Q$26,9,FALSE)*V32,2)) ->  | AS32: =IF(OR(L32="",W32=""),"",ROUND(VLOOKUP(L32,直管換算!$B$4:$Q$26,10,FALSE)*W32,2)) ->  | AT32: =IF(OR(L32="",X32=""),"",ROUND(VLOOKUP(L32,直管換算!$B$4:$Q$26,11,FALSE)*X32,2)) ->  | AU32: =IF(OR(L32="",Y32=""),"",ROUND(VLOOKUP(L32,直管換算!$B$4:$Q$26,12,FALSE)*Y32,2)) ->  | AV32: =IF(OR(L32="",Z32=""),"",ROUND(VLOOKUP(L32,直管換算!$B$4:$Q$26,13,FALSE)*Z32,2)) ->  | AW32: =IF(OR(L32="",AA32=""),"",ROUND(VLOOKUP(L32,直管換算!$B$4:$Q$26,14,FALSE)*AA32,2)) ->  | AX32: =IF(OR(L32="",AB32=""),"",ROUND(VLOOKUP(L32,直管換算!$B$4:$Q$26,15,FALSE)*AB32,2)) ->  | AY32: =IF(OR(L32="",AC32=""),"",ROUND(VLOOKUP(L32,直管換算!$B$4:$Q$26,16,FALSE)*AC32,2)) ->  | BB32: 空 | BE32: =IF(OR(K32="",L32=""),"",0.35464*計算公式!$B$14*POWER(AF32/1000,0.63)*POWER(BF32/1000,0.54)) ->  | BF32: =IF(OR(K32="",L32=""),"",10.666*POWER(計算公式!$B$14,-1.85)*POWER(AF32/1000,-4.87)*POWER(H32/1000,1.85)*1000) ->  | BG32: =IF(内径設定!B26="","",内径設定!B26) ->  | BK32: 0 | BL32: 0 | BM32: 0 | BN32: 0 | BO32: 0
I33: 23 | AF33: =IF(L33="","",VLOOKUP(L33,内径設定!$B$4:$C$26,2,FALSE)) ->  | AG33: =IF(AF33="","",IF(OR(AND(AF33>計算公式!$B$9,計算公式!$D$9="超"),AND(AF33>=計算公式!$B$9,計算公式!$D$9="以上")),"H","W")) ->  | AK33: =IF(OR(L33="",O33=""),"",ROUND(VLOOKUP(L33,直管換算!$B$4:$Q$26,2,FALSE)*O33,2)) ->  | AL33: =IF(OR(L33="",P33=""),"",ROUND(VLOOKUP(L33,直管換算!$B$4:$Q$26,3,FALSE)*P33,2)) ->  | AM33: =IF(OR(L33="",Q33=""),"",ROUND(VLOOKUP(L33,直管換算!$B$4:$Q$26,4,FALSE)*Q33,2)) ->  | AN33: =IF(OR(L33="",R33=""),"",ROUND(VLOOKUP(L33,直管換算!$B$4:$Q$26,5,FALSE)*R33,2)) ->  | AO33: =IF(OR(L33="",S33=""),"",ROUND(VLOOKUP(L33,直管換算!$B$4:$Q$26,6,FALSE)*S33,2)) ->  | AP33: =IF(OR(L33="",T33=""),"",ROUND(VLOOKUP(L33,直管換算!$B$4:$Q$26,7,FALSE)*T33,2)) ->  | AQ33: =IF(OR(L33="",U33=""),"",ROUND(VLOOKUP(L33,直管換算!$B$4:$Q$26,8,FALSE)*U33,2)) ->  | AR33: =IF(OR(L33="",V33=""),"",ROUND(VLOOKUP(L33,直管換算!$B$4:$Q$26,9,FALSE)*V33,2)) ->  | AS33: =IF(OR(L33="",W33=""),"",ROUND(VLOOKUP(L33,直管換算!$B$4:$Q$26,10,FALSE)*W33,2)) ->  | AT33: =IF(OR(L33="",X33=""),"",ROUND(VLOOKUP(L33,直管換算!$B$4:$Q$26,11,FALSE)*X33,2)) ->  | AU33: =IF(OR(L33="",Y33=""),"",ROUND(VLOOKUP(L33,直管換算!$B$4:$Q$26,12,FALSE)*Y33,2)) ->  | AV33: =IF(OR(L33="",Z33=""),"",ROUND(VLOOKUP(L33,直管換算!$B$4:$Q$26,13,FALSE)*Z33,2)) ->  | AW33: =IF(OR(L33="",AA33=""),"",ROUND(VLOOKUP(L33,直管換算!$B$4:$Q$26,14,FALSE)*AA33,2)) ->  | AX33: =IF(OR(L33="",AB33=""),"",ROUND(VLOOKUP(L33,直管換算!$B$4:$Q$26,15,FALSE)*AB33,2)) ->  | AY33: =IF(OR(L33="",AC33=""),"",ROUND(VLOOKUP(L33,直管換算!$B$4:$Q$26,16,FALSE)*AC33,2)) ->  | BB33: 空 | BE33: =IF(OR(K33="",L33=""),"",0.35464*計算公式!$B$14*POWER(AF33/1000,0.63)*POWER(BF33/1000,0.54)) ->  | BF33: =IF(OR(K33="",L33=""),"",10.666*POWER(計算公式!$B$14,-1.85)*POWER(AF33/1000,-4.87)*POWER(H33/1000,1.85)*1000) ->  | BK33: 0 | BL33: 0 | BM33: 0 | BN33: 0 | BO33: 0
I34: 24 | AF34: =IF(L34="","",VLOOKUP(L34,内径設定!$B$4:$C$26,2,FALSE)) ->  | AG34: =IF(AF34="","",IF(OR(AND(AF34>計算公式!$B$9,計算公式!$D$9="超"),AND(AF34>=計算公式!$B$9,計算公式!$D$9="以上")),"H","W")) ->  | AK34: =IF(OR(L34="",O34=""),"",ROUND(VLOOKUP(L34,直管換算!$B$4:$Q$26,2,FALSE)*O34,2)) ->  | AL34: =IF(OR(L34="",P34=""),"",ROUND(VLOOKUP(L34,直管換算!$B$4:$Q$26,3,FALSE)*P34,2)) ->  | AM34: =IF(OR(L34="",Q34=""),"",ROUND(VLOOKUP(L34,直管換算!$B$4:$Q$26,4,FALSE)*Q34,2)) ->  | AN34: =IF(OR(L34="",R34=""),"",ROUND(VLOOKUP(L34,直管換算!$B$4:$Q$26,5,FALSE)*R34,2)) ->  | AO34: =IF(OR(L34="",S34=""),"",ROUND(VLOOKUP(L34,直管換算!$B$4:$Q$26,6,FALSE)*S34,2)) ->  | AP34: =IF(OR(L34="",T34=""),"",ROUND(VLOOKUP(L34,直管換算!$B$4:$Q$26,7,FALSE)*T34,2)) ->  | AQ34: =IF(OR(L34="",U34=""),"",ROUND(VLOOKUP(L34,直管換算!$B$4:$Q$26,8,FALSE)*U34,2)) ->  | AR34: =IF(OR(L34="",V34=""),"",ROUND(VLOOKUP(L34,直管換算!$B$4:$Q$26,9,FALSE)*V34,2)) ->  | AS34: =IF(OR(L34="",W34=""),"",ROUND(VLOOKUP(L34,直管換算!$B$4:$Q$26,10,FALSE)*W34,2)) ->  | AT34: =IF(OR(L34="",X34=""),"",ROUND(VLOOKUP(L34,直管換算!$B$4:$Q$26,11,FALSE)*X34,2)) ->  | AU34: =IF(OR(L34="",Y34=""),"",ROUND(VLOOKUP(L34,直管換算!$B$4:$Q$26,12,FALSE)*Y34,2)) ->  | AV34: =IF(OR(L34="",Z34=""),"",ROUND(VLOOKUP(L34,直管換算!$B$4:$Q$26,13,FALSE)*Z34,2)) ->  | AW34: =IF(OR(L34="",AA34=""),"",ROUND(VLOOKUP(L34,直管換算!$B$4:$Q$26,14,FALSE)*AA34,2)) ->  | AX34: =IF(OR(L34="",AB34=""),"",ROUND(VLOOKUP(L34,直管換算!$B$4:$Q$26,15,FALSE)*AB34,2)) ->  | AY34: =IF(OR(L34="",AC34=""),"",ROUND(VLOOKUP(L34,直管換算!$B$4:$Q$26,16,FALSE)*AC34,2)) ->  | BB34: 空 | BE34: =IF(OR(K34="",L34=""),"",0.35464*計算公式!$B$14*POWER(AF34/1000,0.63)*POWER(BF34/1000,0.54)) ->  | BF34: =IF(OR(K34="",L34=""),"",10.666*POWER(計算公式!$B$14,-1.85)*POWER(AF34/1000,-4.87)*POWER(H34/1000,1.85)*1000) ->  | BK34: 0 | BL34: 0 | BM34: 0 | BN34: 0 | BO34: 0
I35: 25 | AF35: =IF(L35="","",VLOOKUP(L35,内径設定!$B$4:$C$26,2,FALSE)) ->  | AG35: =IF(AF35="","",IF(OR(AND(AF35>計算公式!$B$9,計算公式!$D$9="超"),AND(AF35>=計算公式!$B$9,計算公式!$D$9="以上")),"H","W")) ->  | AK35: =IF(OR(L35="",O35=""),"",ROUND(VLOOKUP(L35,直管換算!$B$4:$Q$26,2,FALSE)*O35,2)) ->  | AL35: =IF(OR(L35="",P35=""),"",ROUND(VLOOKUP(L35,直管換算!$B$4:$Q$26,3,FALSE)*P35,2)) ->  | AM35: =IF(OR(L35="",Q35=""),"",ROUND(VLOOKUP(L35,直管換算!$B$4:$Q$26,4,FALSE)*Q35,2)) ->  | AN35: =IF(OR(L35="",R35=""),"",ROUND(VLOOKUP(L35,直管換算!$B$4:$Q$26,5,FALSE)*R35,2)) ->  | AO35: =IF(OR(L35="",S35=""),"",ROUND(VLOOKUP(L35,直管換算!$B$4:$Q$26,6,FALSE)*S35,2)) ->  | AP35: =IF(OR(L35="",T35=""),"",ROUND(VLOOKUP(L35,直管換算!$B$4:$Q$26,7,FALSE)*T35,2)) ->  | AQ35: =IF(OR(L35="",U35=""),"",ROUND(VLOOKUP(L35,直管換算!$B$4:$Q$26,8,FALSE)*U35,2)) ->  | AR35: =IF(OR(L35="",V35=""),"",ROUND(VLOOKUP(L35,直管換算!$B$4:$Q$26,9,FALSE)*V35,2)) ->  | AS35: =IF(OR(L35="",W35=""),"",ROUND(VLOOKUP(L35,直管換算!$B$4:$Q$26,10,FALSE)*W35,2)) ->  | AT35: =IF(OR(L35="",X35=""),"",ROUND(VLOOKUP(L35,直管換算!$B$4:$Q$26,11,FALSE)*X35,2)) ->  | AU35: =IF(OR(L35="",Y35=""),"",ROUND(VLOOKUP(L35,直管換算!$B$4:$Q$26,12,FALSE)*Y35,2)) ->  | AV35: =IF(OR(L35="",Z35=""),"",ROUND(VLOOKUP(L35,直管換算!$B$4:$Q$26,13,FALSE)*Z35,2)) ->  | AW35: =IF(OR(L35="",AA35=""),"",ROUND(VLOOKUP(L35,直管換算!$B$4:$Q$26,14,FALSE)*AA35,2)) ->  | AX35: =IF(OR(L35="",AB35=""),"",ROUND(VLOOKUP(L35,直管換算!$B$4:$Q$26,15,FALSE)*AB35,2)) ->  | AY35: =IF(OR(L35="",AC35=""),"",ROUND(VLOOKUP(L35,直管換算!$B$4:$Q$26,16,FALSE)*AC35,2)) ->  | BB35: 空 | BE35: =IF(OR(K35="",L35=""),"",0.35464*計算公式!$B$14*POWER(AF35/1000,0.63)*POWER(BF35/1000,0.54)) ->  | BF35: =IF(OR(K35="",L35=""),"",10.666*POWER(計算公式!$B$14,-1.85)*POWER(AF35/1000,-4.87)*POWER(H35/1000,1.85)*1000) ->  | BK35: 0 | BL35: 0 | BM35: 0 | BN35: 0 | BO35: 0
I36: 26 | AF36: =IF(L36="","",VLOOKUP(L36,内径設定!$B$4:$C$26,2,FALSE)) ->  | AG36: =IF(AF36="","",IF(OR(AND(AF36>計算公式!$B$9,計算公式!$D$9="超"),AND(AF36>=計算公式!$B$9,計算公式!$D$9="以上")),"H","W")) ->  | AK36: =IF(OR(L36="",O36=""),"",ROUND(VLOOKUP(L36,直管換算!$B$4:$Q$26,2,FALSE)*O36,2)) ->  | AL36: =IF(OR(L36="",P36=""),"",ROUND(VLOOKUP(L36,直管換算!$B$4:$Q$26,3,FALSE)*P36,2)) ->  | AM36: =IF(OR(L36="",Q36=""),"",ROUND(VLOOKUP(L36,直管換算!$B$4:$Q$26,4,FALSE)*Q36,2)) ->  | AN36: =IF(OR(L36="",R36=""),"",ROUND(VLOOKUP(L36,直管換算!$B$4:$Q$26,5,FALSE)*R36,2)) ->  | AO36: =IF(OR(L36="",S36=""),"",ROUND(VLOOKUP(L36,直管換算!$B$4:$Q$26,6,FALSE)*S36,2)) ->  | AP36: =IF(OR(L36="",T36=""),"",ROUND(VLOOKUP(L36,直管換算!$B$4:$Q$26,7,FALSE)*T36,2)) ->  | AQ36: =IF(OR(L36="",U36=""),"",ROUND(VLOOKUP(L36,直管換算!$B$4:$Q$26,8,FALSE)*U36,2)) ->  | AR36: =IF(OR(L36="",V36=""),"",ROUND(VLOOKUP(L36,直管換算!$B$4:$Q$26,9,FALSE)*V36,2)) ->  | AS36: =IF(OR(L36="",W36=""),"",ROUND(VLOOKUP(L36,直管換算!$B$4:$Q$26,10,FALSE)*W36,2)) ->  | AT36: =IF(OR(L36="",X36=""),"",ROUND(VLOOKUP(L36,直管換算!$B$4:$Q$26,11,FALSE)*X36,2)) ->  | AU36: =IF(OR(L36="",Y36=""),"",ROUND(VLOOKUP(L36,直管換算!$B$4:$Q$26,12,FALSE)*Y36,2)) ->  | AV36: =IF(OR(L36="",Z36=""),"",ROUND(VLOOKUP(L36,直管換算!$B$4:$Q$26,13,FALSE)*Z36,2)) ->  | AW36: =IF(OR(L36="",AA36=""),"",ROUND(VLOOKUP(L36,直管換算!$B$4:$Q$26,14,FALSE)*AA36,2)) ->  | AX36: =IF(OR(L36="",AB36=""),"",ROUND(VLOOKUP(L36,直管換算!$B$4:$Q$26,15,FALSE)*AB36,2)) ->  | AY36: =IF(OR(L36="",AC36=""),"",ROUND(VLOOKUP(L36,直管換算!$B$4:$Q$26,16,FALSE)*AC36,2)) ->  | BB36: 空 | BE36: =IF(OR(K36="",L36=""),"",0.35464*計算公式!$B$14*POWER(AF36/1000,0.63)*POWER(BF36/1000,0.54)) ->  | BF36: =IF(OR(K36="",L36=""),"",10.666*POWER(計算公式!$B$14,-1.85)*POWER(AF36/1000,-4.87)*POWER(H36/1000,1.85)*1000) ->  | BK36: 0 | BL36: 0 | BM36: 0 | BN36: 0 | BO36: 0
I37: 27 | AF37: =IF(L37="","",VLOOKUP(L37,内径設定!$B$4:$C$26,2,FALSE)) ->  | AG37: =IF(AF37="","",IF(OR(AND(AF37>計算公式!$B$9,計算公式!$D$9="超"),AND(AF37>=計算公式!$B$9,計算公式!$D$9="以上")),"H","W")) ->  | AK37: =IF(OR(L37="",O37=""),"",ROUND(VLOOKUP(L37,直管換算!$B$4:$Q$26,2,FALSE)*O37,2)) ->  | AL37: =IF(OR(L37="",P37=""),"",ROUND(VLOOKUP(L37,直管換算!$B$4:$Q$26,3,FALSE)*P37,2)) ->  | AM37: =IF(OR(L37="",Q37=""),"",ROUND(VLOOKUP(L37,直管換算!$B$4:$Q$26,4,FALSE)*Q37,2)) ->  | AN37: =IF(OR(L37="",R37=""),"",ROUND(VLOOKUP(L37,直管換算!$B$4:$Q$26,5,FALSE)*R37,2)) ->  | AO37: =IF(OR(L37="",S37=""),"",ROUND(VLOOKUP(L37,直管換算!$B$4:$Q$26,6,FALSE)*S37,2)) ->  | AP37: =IF(OR(L37="",T37=""),"",ROUND(VLOOKUP(L37,直管換算!$B$4:$Q$26,7,FALSE)*T37,2)) ->  | AQ37: =IF(OR(L37="",U37=""),"",ROUND(VLOOKUP(L37,直管換算!$B$4:$Q$26,8,FALSE)*U37,2)) ->  | AR37: =IF(OR(L37="",V37=""),"",ROUND(VLOOKUP(L37,直管換算!$B$4:$Q$26,9,FALSE)*V37,2)) ->  | AS37: =IF(OR(L37="",W37=""),"",ROUND(VLOOKUP(L37,直管換算!$B$4:$Q$26,10,FALSE)*W37,2)) ->  | AT37: =IF(OR(L37="",X37=""),"",ROUND(VLOOKUP(L37,直管換算!$B$4:$Q$26,11,FALSE)*X37,2)) ->  | AU37: =IF(OR(L37="",Y37=""),"",ROUND(VLOOKUP(L37,直管換算!$B$4:$Q$26,12,FALSE)*Y37,2)) ->  | AV37: =IF(OR(L37="",Z37=""),"",ROUND(VLOOKUP(L37,直管換算!$B$4:$Q$26,13,FALSE)*Z37,2)) ->  | AW37: =IF(OR(L37="",AA37=""),"",ROUND(VLOOKUP(L37,直管換算!$B$4:$Q$26,14,FALSE)*AA37,2)) ->  | AX37: =IF(OR(L37="",AB37=""),"",ROUND(VLOOKUP(L37,直管換算!$B$4:$Q$26,15,FALSE)*AB37,2)) ->  | AY37: =IF(OR(L37="",AC37=""),"",ROUND(VLOOKUP(L37,直管換算!$B$4:$Q$26,16,FALSE)*AC37,2)) ->  | BB37: 空 | BE37: =IF(OR(K37="",L37=""),"",0.35464*計算公式!$B$14*POWER(AF37/1000,0.63)*POWER(BF37/1000,0.54)) ->  | BF37: =IF(OR(K37="",L37=""),"",10.666*POWER(計算公式!$B$14,-1.85)*POWER(AF37/1000,-4.87)*POWER(H37/1000,1.85)*1000) ->  | BK37: 0 | BL37: 0 | BM37: 0 | BN37: 0 | BO37: 0
I38: 28 | AF38: =IF(L38="","",VLOOKUP(L38,内径設定!$B$4:$C$26,2,FALSE)) ->  | AG38: =IF(AF38="","",IF(OR(AND(AF38>計算公式!$B$9,計算公式!$D$9="超"),AND(AF38>=計算公式!$B$9,計算公式!$D$9="以上")),"H","W")) ->  | AK38: =IF(OR(L38="",O38=""),"",ROUND(VLOOKUP(L38,直管換算!$B$4:$Q$26,2,FALSE)*O38,2)) ->  | AL38: =IF(OR(L38="",P38=""),"",ROUND(VLOOKUP(L38,直管換算!$B$4:$Q$26,3,FALSE)*P38,2)) ->  | AM38: =IF(OR(L38="",Q38=""),"",ROUND(VLOOKUP(L38,直管換算!$B$4:$Q$26,4,FALSE)*Q38,2)) ->  | AN38: =IF(OR(L38="",R38=""),"",ROUND(VLOOKUP(L38,直管換算!$B$4:$Q$26,5,FALSE)*R38,2)) ->  | AO38: =IF(OR(L38="",S38=""),"",ROUND(VLOOKUP(L38,直管換算!$B$4:$Q$26,6,FALSE)*S38,2)) ->  | AP38: =IF(OR(L38="",T38=""),"",ROUND(VLOOKUP(L38,直管換算!$B$4:$Q$26,7,FALSE)*T38,2)) ->  | AQ38: =IF(OR(L38="",U38=""),"",ROUND(VLOOKUP(L38,直管換算!$B$4:$Q$26,8,FALSE)*U38,2)) ->  | AR38: =IF(OR(L38="",V38=""),"",ROUND(VLOOKUP(L38,直管換算!$B$4:$Q$26,9,FALSE)*V38,2)) ->  | AS38: =IF(OR(L38="",W38=""),"",ROUND(VLOOKUP(L38,直管換算!$B$4:$Q$26,10,FALSE)*W38,2)) ->  | AT38: =IF(OR(L38="",X38=""),"",ROUND(VLOOKUP(L38,直管換算!$B$4:$Q$26,11,FALSE)*X38,2)) ->  | AU38: =IF(OR(L38="",Y38=""),"",ROUND(VLOOKUP(L38,直管換算!$B$4:$Q$26,12,FALSE)*Y38,2)) ->  | AV38: =IF(OR(L38="",Z38=""),"",ROUND(VLOOKUP(L38,直管換算!$B$4:$Q$26,13,FALSE)*Z38,2)) ->  | AW38: =IF(OR(L38="",AA38=""),"",ROUND(VLOOKUP(L38,直管換算!$B$4:$Q$26,14,FALSE)*AA38,2)) ->  | AX38: =IF(OR(L38="",AB38=""),"",ROUND(VLOOKUP(L38,直管換算!$B$4:$Q$26,15,FALSE)*AB38,2)) ->  | AY38: =IF(OR(L38="",AC38=""),"",ROUND(VLOOKUP(L38,直管換算!$B$4:$Q$26,16,FALSE)*AC38,2)) ->  | BB38: 空 | BE38: =IF(OR(K38="",L38=""),"",0.35464*計算公式!$B$14*POWER(AF38/1000,0.63)*POWER(BF38/1000,0.54)) ->  | BF38: =IF(OR(K38="",L38=""),"",10.666*POWER(計算公式!$B$14,-1.85)*POWER(AF38/1000,-4.87)*POWER(H38/1000,1.85)*1000) ->  | BK38: 0 | BL38: 0 | BM38: 0 | BN38: 0 | BO38: 0
I39: 29 | AF39: =IF(L39="","",VLOOKUP(L39,内径設定!$B$4:$C$26,2,FALSE)) ->  | AG39: =IF(AF39="","",IF(OR(AND(AF39>計算公式!$B$9,計算公式!$D$9="超"),AND(AF39>=計算公式!$B$9,計算公式!$D$9="以上")),"H","W")) ->  | AK39: =IF(OR(L39="",O39=""),"",ROUND(VLOOKUP(L39,直管換算!$B$4:$Q$26,2,FALSE)*O39,2)) ->  | AL39: =IF(OR(L39="",P39=""),"",ROUND(VLOOKUP(L39,直管換算!$B$4:$Q$26,3,FALSE)*P39,2)) ->  | AM39: =IF(OR(L39="",Q39=""),"",ROUND(VLOOKUP(L39,直管換算!$B$4:$Q$26,4,FALSE)*Q39,2)) ->  | AN39: =IF(OR(L39="",R39=""),"",ROUND(VLOOKUP(L39,直管換算!$B$4:$Q$26,5,FALSE)*R39,2)) ->  | AO39: =IF(OR(L39="",S39=""),"",ROUND(VLOOKUP(L39,直管換算!$B$4:$Q$26,6,FALSE)*S39,2)) ->  | AP39: =IF(OR(L39="",T39=""),"",ROUND(VLOOKUP(L39,直管換算!$B$4:$Q$26,7,FALSE)*T39,2)) ->  | AQ39: =IF(OR(L39="",U39=""),"",ROUND(VLOOKUP(L39,直管換算!$B$4:$Q$26,8,FALSE)*U39,2)) ->  | AR39: =IF(OR(L39="",V39=""),"",ROUND(VLOOKUP(L39,直管換算!$B$4:$Q$26,9,FALSE)*V39,2)) ->  | AS39: =IF(OR(L39="",W39=""),"",ROUND(VLOOKUP(L39,直管換算!$B$4:$Q$26,10,FALSE)*W39,2)) ->  | AT39: =IF(OR(L39="",X39=""),"",ROUND(VLOOKUP(L39,直管換算!$B$4:$Q$26,11,FALSE)*X39,2)) ->  | AU39: =IF(OR(L39="",Y39=""),"",ROUND(VLOOKUP(L39,直管換算!$B$4:$Q$26,12,FALSE)*Y39,2)) ->  | AV39: =IF(OR(L39="",Z39=""),"",ROUND(VLOOKUP(L39,直管換算!$B$4:$Q$26,13,FALSE)*Z39,2)) ->  | AW39: =IF(OR(L39="",AA39=""),"",ROUND(VLOOKUP(L39,直管換算!$B$4:$Q$26,14,FALSE)*AA39,2)) ->  | AX39: =IF(OR(L39="",AB39=""),"",ROUND(VLOOKUP(L39,直管換算!$B$4:$Q$26,15,FALSE)*AB39,2)) ->  | AY39: =IF(OR(L39="",AC39=""),"",ROUND(VLOOKUP(L39,直管換算!$B$4:$Q$26,16,FALSE)*AC39,2)) ->  | BB39: 空 | BE39: =IF(OR(K39="",L39=""),"",0.35464*計算公式!$B$14*POWER(AF39/1000,0.63)*POWER(BF39/1000,0.54)) ->  | BF39: =IF(OR(K39="",L39=""),"",10.666*POWER(計算公式!$B$14,-1.85)*POWER(AF39/1000,-4.87)*POWER(H39/1000,1.85)*1000) ->  | BK39: 0 | BL39: 0 | BM39: 0 | BN39: 0 | BO39: 0
I40: 30 | AF40: =IF(L40="","",VLOOKUP(L40,内径設定!$B$4:$C$26,2,FALSE)) ->  | AG40: =IF(AF40="","",IF(OR(AND(AF40>計算公式!$B$9,計算公式!$D$9="超"),AND(AF40>=計算公式!$B$9,計算公式!$D$9="以上")),"H","W")) ->  | AK40: =IF(OR(L40="",O40=""),"",ROUND(VLOOKUP(L40,直管換算!$B$4:$Q$26,2,FALSE)*O40,2)) ->  | AL40: =IF(OR(L40="",P40=""),"",ROUND(VLOOKUP(L40,直管換算!$B$4:$Q$26,3,FALSE)*P40,2)) ->  | AM40: =IF(OR(L40="",Q40=""),"",ROUND(VLOOKUP(L40,直管換算!$B$4:$Q$26,4,FALSE)*Q40,2)) ->  | AN40: =IF(OR(L40="",R40=""),"",ROUND(VLOOKUP(L40,直管換算!$B$4:$Q$26,5,FALSE)*R40,2)) ->  | AO40: =IF(OR(L40="",S40=""),"",ROUND(VLOOKUP(L40,直管換算!$B$4:$Q$26,6,FALSE)*S40,2)) ->  | AP40: =IF(OR(L40="",T40=""),"",ROUND(VLOOKUP(L40,直管換算!$B$4:$Q$26,7,FALSE)*T40,2)) ->  | AQ40: =IF(OR(L40="",U40=""),"",ROUND(VLOOKUP(L40,直管換算!$B$4:$Q$26,8,FALSE)*U40,2)) ->  | AR40: =IF(OR(L40="",V40=""),"",ROUND(VLOOKUP(L40,直管換算!$B$4:$Q$26,9,FALSE)*V40,2)) ->  | AS40: =IF(OR(L40="",W40=""),"",ROUND(VLOOKUP(L40,直管換算!$B$4:$Q$26,10,FALSE)*W40,2)) ->  | AT40: =IF(OR(L40="",X40=""),"",ROUND(VLOOKUP(L40,直管換算!$B$4:$Q$26,11,FALSE)*X40,2)) ->  | AU40: =IF(OR(L40="",Y40=""),"",ROUND(VLOOKUP(L40,直管換算!$B$4:$Q$26,12,FALSE)*Y40,2)) ->  | AV40: =IF(OR(L40="",Z40=""),"",ROUND(VLOOKUP(L40,直管換算!$B$4:$Q$26,13,FALSE)*Z40,2)) ->  | AW40: =IF(OR(L40="",AA40=""),"",ROUND(VLOOKUP(L40,直管換算!$B$4:$Q$26,14,FALSE)*AA40,2)) ->  | AX40: =IF(OR(L40="",AB40=""),"",ROUND(VLOOKUP(L40,直管換算!$B$4:$Q$26,15,FALSE)*AB40,2)) ->  | AY40: =IF(OR(L40="",AC40=""),"",ROUND(VLOOKUP(L40,直管換算!$B$4:$Q$26,16,FALSE)*AC40,2)) ->  | BB40: 空 | BE40: =IF(OR(K40="",L40=""),"",0.35464*計算公式!$B$14*POWER(AF40/1000,0.63)*POWER(BF40/1000,0.54)) ->  | BF40: =IF(OR(K40="",L40=""),"",10.666*POWER(計算公式!$B$14,-1.85)*POWER(AF40/1000,-4.87)*POWER(H40/1000,1.85)*1000) ->  | BK40: 0 | BL40: 0 | BM40: 0 | BN40: 0 | BO40: 0
I41: 31 | AF41: =IF(L41="","",VLOOKUP(L41,内径設定!$B$4:$C$26,2,FALSE)) ->  | AG41: =IF(AF41="","",IF(OR(AND(AF41>計算公式!$B$9,計算公式!$D$9="超"),AND(AF41>=計算公式!$B$9,計算公式!$D$9="以上")),"H","W")) ->  | AK41: =IF(OR(L41="",O41=""),"",ROUND(VLOOKUP(L41,直管換算!$B$4:$Q$26,2,FALSE)*O41,2)) ->  | AL41: =IF(OR(L41="",P41=""),"",ROUND(VLOOKUP(L41,直管換算!$B$4:$Q$26,3,FALSE)*P41,2)) ->  | AM41: =IF(OR(L41="",Q41=""),"",ROUND(VLOOKUP(L41,直管換算!$B$4:$Q$26,4,FALSE)*Q41,2)) ->  | AN41: =IF(OR(L41="",R41=""),"",ROUND(VLOOKUP(L41,直管換算!$B$4:$Q$26,5,FALSE)*R41,2)) ->  | AO41: =IF(OR(L41="",S41=""),"",ROUND(VLOOKUP(L41,直管換算!$B$4:$Q$26,6,FALSE)*S41,2)) ->  | AP41: =IF(OR(L41="",T41=""),"",ROUND(VLOOKUP(L41,直管換算!$B$4:$Q$26,7,FALSE)*T41,2)) ->  | AQ41: =IF(OR(L41="",U41=""),"",ROUND(VLOOKUP(L41,直管換算!$B$4:$Q$26,8,FALSE)*U41,2)) ->  | AR41: =IF(OR(L41="",V41=""),"",ROUND(VLOOKUP(L41,直管換算!$B$4:$Q$26,9,FALSE)*V41,2)) ->  | AS41: =IF(OR(L41="",W41=""),"",ROUND(VLOOKUP(L41,直管換算!$B$4:$Q$26,10,FALSE)*W41,2)) ->  | AT41: =IF(OR(L41="",X41=""),"",ROUND(VLOOKUP(L41,直管換算!$B$4:$Q$26,11,FALSE)*X41,2)) ->  | AU41: =IF(OR(L41="",Y41=""),"",ROUND(VLOOKUP(L41,直管換算!$B$4:$Q$26,12,FALSE)*Y41,2)) ->  | AV41: =IF(OR(L41="",Z41=""),"",ROUND(VLOOKUP(L41,直管換算!$B$4:$Q$26,13,FALSE)*Z41,2)) ->  | AW41: =IF(OR(L41="",AA41=""),"",ROUND(VLOOKUP(L41,直管換算!$B$4:$Q$26,14,FALSE)*AA41,2)) ->  | AX41: =IF(OR(L41="",AB41=""),"",ROUND(VLOOKUP(L41,直管換算!$B$4:$Q$26,15,FALSE)*AB41,2)) ->  | AY41: =IF(OR(L41="",AC41=""),"",ROUND(VLOOKUP(L41,直管換算!$B$4:$Q$26,16,FALSE)*AC41,2)) ->  | BB41: 空 | BE41: =IF(OR(K41="",L41=""),"",0.35464*計算公式!$B$14*POWER(AF41/1000,0.63)*POWER(BF41/1000,0.54)) ->  | BF41: =IF(OR(K41="",L41=""),"",10.666*POWER(計算公式!$B$14,-1.85)*POWER(AF41/1000,-4.87)*POWER(H41/1000,1.85)*1000) ->  | BK41: 0 | BL41: 0 | BM41: 0 | BN41: 0 | BO41: 0
I42: 32 | AF42: =IF(L42="","",VLOOKUP(L42,内径設定!$B$4:$C$26,2,FALSE)) ->  | AG42: =IF(AF42="","",IF(OR(AND(AF42>計算公式!$B$9,計算公式!$D$9="超"),AND(AF42>=計算公式!$B$9,計算公式!$D$9="以上")),"H","W")) ->  | AK42: =IF(OR(L42="",O42=""),"",ROUND(VLOOKUP(L42,直管換算!$B$4:$Q$26,2,FALSE)*O42,2)) ->  | AL42: =IF(OR(L42="",P42=""),"",ROUND(VLOOKUP(L42,直管換算!$B$4:$Q$26,3,FALSE)*P42,2)) ->  | AM42: =IF(OR(L42="",Q42=""),"",ROUND(VLOOKUP(L42,直管換算!$B$4:$Q$26,4,FALSE)*Q42,2)) ->  | AN42: =IF(OR(L42="",R42=""),"",ROUND(VLOOKUP(L42,直管換算!$B$4:$Q$26,5,FALSE)*R42,2)) ->  | AO42: =IF(OR(L42="",S42=""),"",ROUND(VLOOKUP(L42,直管換算!$B$4:$Q$26,6,FALSE)*S42,2)) ->  | AP42: =IF(OR(L42="",T42=""),"",ROUND(VLOOKUP(L42,直管換算!$B$4:$Q$26,7,FALSE)*T42,2)) ->  | AQ42: =IF(OR(L42="",U42=""),"",ROUND(VLOOKUP(L42,直管換算!$B$4:$Q$26,8,FALSE)*U42,2)) ->  | AR42: =IF(OR(L42="",V42=""),"",ROUND(VLOOKUP(L42,直管換算!$B$4:$Q$26,9,FALSE)*V42,2)) ->  | AS42: =IF(OR(L42="",W42=""),"",ROUND(VLOOKUP(L42,直管換算!$B$4:$Q$26,10,FALSE)*W42,2)) ->  | AT42: =IF(OR(L42="",X42=""),"",ROUND(VLOOKUP(L42,直管換算!$B$4:$Q$26,11,FALSE)*X42,2)) ->  | AU42: =IF(OR(L42="",Y42=""),"",ROUND(VLOOKUP(L42,直管換算!$B$4:$Q$26,12,FALSE)*Y42,2)) ->  | AV42: =IF(OR(L42="",Z42=""),"",ROUND(VLOOKUP(L42,直管換算!$B$4:$Q$26,13,FALSE)*Z42,2)) ->  | AW42: =IF(OR(L42="",AA42=""),"",ROUND(VLOOKUP(L42,直管換算!$B$4:$Q$26,14,FALSE)*AA42,2)) ->  | AX42: =IF(OR(L42="",AB42=""),"",ROUND(VLOOKUP(L42,直管換算!$B$4:$Q$26,15,FALSE)*AB42,2)) ->  | AY42: =IF(OR(L42="",AC42=""),"",ROUND(VLOOKUP(L42,直管換算!$B$4:$Q$26,16,FALSE)*AC42,2)) ->  | BB42: 空 | BE42: =IF(OR(K42="",L42=""),"",0.35464*計算公式!$B$14*POWER(AF42/1000,0.63)*POWER(BF42/1000,0.54)) ->  | BF42: =IF(OR(K42="",L42=""),"",10.666*POWER(計算公式!$B$14,-1.85)*POWER(AF42/1000,-4.87)*POWER(H42/1000,1.85)*1000) ->  | BK42: 0 | BL42: 0 | BM42: 0 | BN42: 0 | BO42: 0
I43: 33 | AF43: =IF(L43="","",VLOOKUP(L43,内径設定!$B$4:$C$26,2,FALSE)) ->  | AG43: =IF(AF43="","",IF(OR(AND(AF43>計算公式!$B$9,計算公式!$D$9="超"),AND(AF43>=計算公式!$B$9,計算公式!$D$9="以上")),"H","W")) ->  | AK43: =IF(OR(L43="",O43=""),"",ROUND(VLOOKUP(L43,直管換算!$B$4:$Q$26,2,FALSE)*O43,2)) ->  | AL43: =IF(OR(L43="",P43=""),"",ROUND(VLOOKUP(L43,直管換算!$B$4:$Q$26,3,FALSE)*P43,2)) ->  | AM43: =IF(OR(L43="",Q43=""),"",ROUND(VLOOKUP(L43,直管換算!$B$4:$Q$26,4,FALSE)*Q43,2)) ->  | AN43: =IF(OR(L43="",R43=""),"",ROUND(VLOOKUP(L43,直管換算!$B$4:$Q$26,5,FALSE)*R43,2)) ->  | AO43: =IF(OR(L43="",S43=""),"",ROUND(VLOOKUP(L43,直管換算!$B$4:$Q$26,6,FALSE)*S43,2)) ->  | AP43: =IF(OR(L43="",T43=""),"",ROUND(VLOOKUP(L43,直管換算!$B$4:$Q$26,7,FALSE)*T43,2)) ->  | AQ43: =IF(OR(L43="",U43=""),"",ROUND(VLOOKUP(L43,直管換算!$B$4:$Q$26,8,FALSE)*U43,2)) ->  | AR43: =IF(OR(L43="",V43=""),"",ROUND(VLOOKUP(L43,直管換算!$B$4:$Q$26,9,FALSE)*V43,2)) ->  | AS43: =IF(OR(L43="",W43=""),"",ROUND(VLOOKUP(L43,直管換算!$B$4:$Q$26,10,FALSE)*W43,2)) ->  | AT43: =IF(OR(L43="",X43=""),"",ROUND(VLOOKUP(L43,直管換算!$B$4:$Q$26,11,FALSE)*X43,2)) ->  | AU43: =IF(OR(L43="",Y43=""),"",ROUND(VLOOKUP(L43,直管換算!$B$4:$Q$26,12,FALSE)*Y43,2)) ->  | AV43: =IF(OR(L43="",Z43=""),"",ROUND(VLOOKUP(L43,直管換算!$B$4:$Q$26,13,FALSE)*Z43,2)) ->  | AW43: =IF(OR(L43="",AA43=""),"",ROUND(VLOOKUP(L43,直管換算!$B$4:$Q$26,14,FALSE)*AA43,2)) ->  | AX43: =IF(OR(L43="",AB43=""),"",ROUND(VLOOKUP(L43,直管換算!$B$4:$Q$26,15,FALSE)*AB43,2)) ->  | AY43: =IF(OR(L43="",AC43=""),"",ROUND(VLOOKUP(L43,直管換算!$B$4:$Q$26,16,FALSE)*AC43,2)) ->  | BB43: 空 | BE43: =IF(OR(K43="",L43=""),"",0.35464*計算公式!$B$14*POWER(AF43/1000,0.63)*POWER(BF43/1000,0.54)) ->  | BF43: =IF(OR(K43="",L43=""),"",10.666*POWER(計算公式!$B$14,-1.85)*POWER(AF43/1000,-4.87)*POWER(H43/1000,1.85)*1000) ->  | BK43: 0 | BL43: 0 | BM43: 0 | BN43: 0 | BO43: 0
I44: 34 | AF44: =IF(L44="","",VLOOKUP(L44,内径設定!$B$4:$C$26,2,FALSE)) ->  | AG44: =IF(AF44="","",IF(OR(AND(AF44>計算公式!$B$9,計算公式!$D$9="超"),AND(AF44>=計算公式!$B$9,計算公式!$D$9="以上")),"H","W")) ->  | AK44: =IF(OR(L44="",O44=""),"",ROUND(VLOOKUP(L44,直管換算!$B$4:$Q$26,2,FALSE)*O44,2)) ->  | AL44: =IF(OR(L44="",P44=""),"",ROUND(VLOOKUP(L44,直管換算!$B$4:$Q$26,3,FALSE)*P44,2)) ->  | AM44: =IF(OR(L44="",Q44=""),"",ROUND(VLOOKUP(L44,直管換算!$B$4:$Q$26,4,FALSE)*Q44,2)) ->  | AN44: =IF(OR(L44="",R44=""),"",ROUND(VLOOKUP(L44,直管換算!$B$4:$Q$26,5,FALSE)*R44,2)) ->  | AO44: =IF(OR(L44="",S44=""),"",ROUND(VLOOKUP(L44,直管換算!$B$4:$Q$26,6,FALSE)*S44,2)) ->  | AP44: =IF(OR(L44="",T44=""),"",ROUND(VLOOKUP(L44,直管換算!$B$4:$Q$26,7,FALSE)*T44,2)) ->  | AQ44: =IF(OR(L44="",U44=""),"",ROUND(VLOOKUP(L44,直管換算!$B$4:$Q$26,8,FALSE)*U44,2)) ->  | AR44: =IF(OR(L44="",V44=""),"",ROUND(VLOOKUP(L44,直管換算!$B$4:$Q$26,9,FALSE)*V44,2)) ->  | AS44: =IF(OR(L44="",W44=""),"",ROUND(VLOOKUP(L44,直管換算!$B$4:$Q$26,10,FALSE)*W44,2)) ->  | AT44: =IF(OR(L44="",X44=""),"",ROUND(VLOOKUP(L44,直管換算!$B$4:$Q$26,11,FALSE)*X44,2)) ->  | AU44: =IF(OR(L44="",Y44=""),"",ROUND(VLOOKUP(L44,直管換算!$B$4:$Q$26,12,FALSE)*Y44,2)) ->  | AV44: =IF(OR(L44="",Z44=""),"",ROUND(VLOOKUP(L44,直管換算!$B$4:$Q$26,13,FALSE)*Z44,2)) ->  | AW44: =IF(OR(L44="",AA44=""),"",ROUND(VLOOKUP(L44,直管換算!$B$4:$Q$26,14,FALSE)*AA44,2)) ->  | AX44: =IF(OR(L44="",AB44=""),"",ROUND(VLOOKUP(L44,直管換算!$B$4:$Q$26,15,FALSE)*AB44,2)) ->  | AY44: =IF(OR(L44="",AC44=""),"",ROUND(VLOOKUP(L44,直管換算!$B$4:$Q$26,16,FALSE)*AC44,2)) ->  | BB44: 空 | BE44: =IF(OR(K44="",L44=""),"",0.35464*計算公式!$B$14*POWER(AF44/1000,0.63)*POWER(BF44/1000,0.54)) ->  | BF44: =IF(OR(K44="",L44=""),"",10.666*POWER(計算公式!$B$14,-1.85)*POWER(AF44/1000,-4.87)*POWER(H44/1000,1.85)*1000) ->  | BK44: 0 | BL44: 0 | BM44: 0 | BN44: 0 | BO44: 0
I45: 35 | AF45: =IF(L45="","",VLOOKUP(L45,内径設定!$B$4:$C$26,2,FALSE)) ->  | AG45: =IF(AF45="","",IF(OR(AND(AF45>計算公式!$B$9,計算公式!$D$9="超"),AND(AF45>=計算公式!$B$9,計算公式!$D$9="以上")),"H","W")) ->  | AK45: =IF(OR(L45="",O45=""),"",ROUND(VLOOKUP(L45,直管換算!$B$4:$Q$26,2,FALSE)*O45,2)) ->  | AL45: =IF(OR(L45="",P45=""),"",ROUND(VLOOKUP(L45,直管換算!$B$4:$Q$26,3,FALSE)*P45,2)) ->  | AM45: =IF(OR(L45="",Q45=""),"",ROUND(VLOOKUP(L45,直管換算!$B$4:$Q$26,4,FALSE)*Q45,2)) ->  | AN45: =IF(OR(L45="",R45=""),"",ROUND(VLOOKUP(L45,直管換算!$B$4:$Q$26,5,FALSE)*R45,2)) ->  | AO45: =IF(OR(L45="",S45=""),"",ROUND(VLOOKUP(L45,直管換算!$B$4:$Q$26,6,FALSE)*S45,2)) ->  | AP45: =IF(OR(L45="",T45=""),"",ROUND(VLOOKUP(L45,直管換算!$B$4:$Q$26,7,FALSE)*T45,2)) ->  | AQ45: =IF(OR(L45="",U45=""),"",ROUND(VLOOKUP(L45,直管換算!$B$4:$Q$26,8,FALSE)*U45,2)) ->  | AR45: =IF(OR(L45="",V45=""),"",ROUND(VLOOKUP(L45,直管換算!$B$4:$Q$26,9,FALSE)*V45,2)) ->  | AS45: =IF(OR(L45="",W45=""),"",ROUND(VLOOKUP(L45,直管換算!$B$4:$Q$26,10,FALSE)*W45,2)) ->  | AT45: =IF(OR(L45="",X45=""),"",ROUND(VLOOKUP(L45,直管換算!$B$4:$Q$26,11,FALSE)*X45,2)) ->  | AU45: =IF(OR(L45="",Y45=""),"",ROUND(VLOOKUP(L45,直管換算!$B$4:$Q$26,12,FALSE)*Y45,2)) ->  | AV45: =IF(OR(L45="",Z45=""),"",ROUND(VLOOKUP(L45,直管換算!$B$4:$Q$26,13,FALSE)*Z45,2)) ->  | AW45: =IF(OR(L45="",AA45=""),"",ROUND(VLOOKUP(L45,直管換算!$B$4:$Q$26,14,FALSE)*AA45,2)) ->  | AX45: =IF(OR(L45="",AB45=""),"",ROUND(VLOOKUP(L45,直管換算!$B$4:$Q$26,15,FALSE)*AB45,2)) ->  | AY45: =IF(OR(L45="",AC45=""),"",ROUND(VLOOKUP(L45,直管換算!$B$4:$Q$26,16,FALSE)*AC45,2)) ->  | BB45: 空 | BE45: =IF(OR(K45="",L45=""),"",0.35464*計算公式!$B$14*POWER(AF45/1000,0.63)*POWER(BF45/1000,0.54)) ->  | BF45: =IF(OR(K45="",L45=""),"",10.666*POWER(計算公式!$B$14,-1.85)*POWER(AF45/1000,-4.87)*POWER(H45/1000,1.85)*1000) ->  | BK45: 0 | BL45: 0 | BM45: 0 | BN45: 0 | BO45: 0
I46: 36 | AF46: =IF(L46="","",VLOOKUP(L46,内径設定!$B$4:$C$26,2,FALSE)) ->  | AG46: =IF(AF46="","",IF(OR(AND(AF46>計算公式!$B$9,計算公式!$D$9="超"),AND(AF46>=計算公式!$B$9,計算公式!$D$9="以上")),"H","W")) ->  | AK46: =IF(OR(L46="",O46=""),"",ROUND(VLOOKUP(L46,直管換算!$B$4:$Q$26,2,FALSE)*O46,2)) ->  | AL46: =IF(OR(L46="",P46=""),"",ROUND(VLOOKUP(L46,直管換算!$B$4:$Q$26,3,FALSE)*P46,2)) ->  | AM46: =IF(OR(L46="",Q46=""),"",ROUND(VLOOKUP(L46,直管換算!$B$4:$Q$26,4,FALSE)*Q46,2)) ->  | AN46: =IF(OR(L46="",R46=""),"",ROUND(VLOOKUP(L46,直管換算!$B$4:$Q$26,5,FALSE)*R46,2)) ->  | AO46: =IF(OR(L46="",S46=""),"",ROUND(VLOOKUP(L46,直管換算!$B$4:$Q$26,6,FALSE)*S46,2)) ->  | AP46: =IF(OR(L46="",T46=""),"",ROUND(VLOOKUP(L46,直管換算!$B$4:$Q$26,7,FALSE)*T46,2)) ->  | AQ46: =IF(OR(L46="",U46=""),"",ROUND(VLOOKUP(L46,直管換算!$B$4:$Q$26,8,FALSE)*U46,2)) ->  | AR46: =IF(OR(L46="",V46=""),"",ROUND(VLOOKUP(L46,直管換算!$B$4:$Q$26,9,FALSE)*V46,2)) ->  | AS46: =IF(OR(L46="",W46=""),"",ROUND(VLOOKUP(L46,直管換算!$B$4:$Q$26,10,FALSE)*W46,2)) ->  | AT46: =IF(OR(L46="",X46=""),"",ROUND(VLOOKUP(L46,直管換算!$B$4:$Q$26,11,FALSE)*X46,2)) ->  | AU46: =IF(OR(L46="",Y46=""),"",ROUND(VLOOKUP(L46,直管換算!$B$4:$Q$26,12,FALSE)*Y46,2)) ->  | AV46: =IF(OR(L46="",Z46=""),"",ROUND(VLOOKUP(L46,直管換算!$B$4:$Q$26,13,FALSE)*Z46,2)) ->  | AW46: =IF(OR(L46="",AA46=""),"",ROUND(VLOOKUP(L46,直管換算!$B$4:$Q$26,14,FALSE)*AA46,2)) ->  | AX46: =IF(OR(L46="",AB46=""),"",ROUND(VLOOKUP(L46,直管換算!$B$4:$Q$26,15,FALSE)*AB46,2)) ->  | AY46: =IF(OR(L46="",AC46=""),"",ROUND(VLOOKUP(L46,直管換算!$B$4:$Q$26,16,FALSE)*AC46,2)) ->  | BB46: 空 | BE46: =IF(OR(K46="",L46=""),"",0.35464*計算公式!$B$14*POWER(AF46/1000,0.63)*POWER(BF46/1000,0.54)) ->  | BF46: =IF(OR(K46="",L46=""),"",10.666*POWER(計算公式!$B$14,-1.85)*POWER(AF46/1000,-4.87)*POWER(H46/1000,1.85)*1000) ->  | BK46: 0 | BL46: 0 | BM46: 0 | BN46: 0 | BO46: 0
I47: 37 | AF47: =IF(L47="","",VLOOKUP(L47,内径設定!$B$4:$C$26,2,FALSE)) ->  | AG47: =IF(AF47="","",IF(OR(AND(AF47>計算公式!$B$9,計算公式!$D$9="超"),AND(AF47>=計算公式!$B$9,計算公式!$D$9="以上")),"H","W")) ->  | AK47: =IF(OR(L47="",O47=""),"",ROUND(VLOOKUP(L47,直管換算!$B$4:$Q$26,2,FALSE)*O47,2)) ->  | AL47: =IF(OR(L47="",P47=""),"",ROUND(VLOOKUP(L47,直管換算!$B$4:$Q$26,3,FALSE)*P47,2)) ->  | AM47: =IF(OR(L47="",Q47=""),"",ROUND(VLOOKUP(L47,直管換算!$B$4:$Q$26,4,FALSE)*Q47,2)) ->  | AN47: =IF(OR(L47="",R47=""),"",ROUND(VLOOKUP(L47,直管換算!$B$4:$Q$26,5,FALSE)*R47,2)) ->  | AO47: =IF(OR(L47="",S47=""),"",ROUND(VLOOKUP(L47,直管換算!$B$4:$Q$26,6,FALSE)*S47,2)) ->  | AP47: =IF(OR(L47="",T47=""),"",ROUND(VLOOKUP(L47,直管換算!$B$4:$Q$26,7,FALSE)*T47,2)) ->  | AQ47: =IF(OR(L47="",U47=""),"",ROUND(VLOOKUP(L47,直管換算!$B$4:$Q$26,8,FALSE)*U47,2)) ->  | AR47: =IF(OR(L47="",V47=""),"",ROUND(VLOOKUP(L47,直管換算!$B$4:$Q$26,9,FALSE)*V47,2)) ->  | AS47: =IF(OR(L47="",W47=""),"",ROUND(VLOOKUP(L47,直管換算!$B$4:$Q$26,10,FALSE)*W47,2)) ->  | AT47: =IF(OR(L47="",X47=""),"",ROUND(VLOOKUP(L47,直管換算!$B$4:$Q$26,11,FALSE)*X47,2)) ->  | AU47: =IF(OR(L47="",Y47=""),"",ROUND(VLOOKUP(L47,直管換算!$B$4:$Q$26,12,FALSE)*Y47,2)) ->  | AV47: =IF(OR(L47="",Z47=""),"",ROUND(VLOOKUP(L47,直管換算!$B$4:$Q$26,13,FALSE)*Z47,2)) ->  | AW47: =IF(OR(L47="",AA47=""),"",ROUND(VLOOKUP(L47,直管換算!$B$4:$Q$26,14,FALSE)*AA47,2)) ->  | AX47: =IF(OR(L47="",AB47=""),"",ROUND(VLOOKUP(L47,直管換算!$B$4:$Q$26,15,FALSE)*AB47,2)) ->  | AY47: =IF(OR(L47="",AC47=""),"",ROUND(VLOOKUP(L47,直管換算!$B$4:$Q$26,16,FALSE)*AC47,2)) ->  | BB47: 空 | BE47: =IF(OR(K47="",L47=""),"",0.35464*計算公式!$B$14*POWER(AF47/1000,0.63)*POWER(BF47/1000,0.54)) ->  | BF47: =IF(OR(K47="",L47=""),"",10.666*POWER(計算公式!$B$14,-1.85)*POWER(AF47/1000,-4.87)*POWER(H47/1000,1.85)*1000) ->  | BK47: 0 | BL47: 0 | BM47: 0 | BN47: 0 | BO47: 0
I48: 38 | AF48: =IF(L48="","",VLOOKUP(L48,内径設定!$B$4:$C$26,2,FALSE)) ->  | AG48: =IF(AF48="","",IF(OR(AND(AF48>計算公式!$B$9,計算公式!$D$9="超"),AND(AF48>=計算公式!$B$9,計算公式!$D$9="以上")),"H","W")) ->  | AK48: =IF(OR(L48="",O48=""),"",ROUND(VLOOKUP(L48,直管換算!$B$4:$Q$26,2,FALSE)*O48,2)) ->  | AL48: =IF(OR(L48="",P48=""),"",ROUND(VLOOKUP(L48,直管換算!$B$4:$Q$26,3,FALSE)*P48,2)) ->  | AM48: =IF(OR(L48="",Q48=""),"",ROUND(VLOOKUP(L48,直管換算!$B$4:$Q$26,4,FALSE)*Q48,2)) ->  | AN48: =IF(OR(L48="",R48=""),"",ROUND(VLOOKUP(L48,直管換算!$B$4:$Q$26,5,FALSE)*R48,2)) ->  | AO48: =IF(OR(L48="",S48=""),"",ROUND(VLOOKUP(L48,直管換算!$B$4:$Q$26,6,FALSE)*S48,2)) ->  | AP48: =IF(OR(L48="",T48=""),"",ROUND(VLOOKUP(L48,直管換算!$B$4:$Q$26,7,FALSE)*T48,2)) ->  | AQ48: =IF(OR(L48="",U48=""),"",ROUND(VLOOKUP(L48,直管換算!$B$4:$Q$26,8,FALSE)*U48,2)) ->  | AR48: =IF(OR(L48="",V48=""),"",ROUND(VLOOKUP(L48,直管換算!$B$4:$Q$26,9,FALSE)*V48,2)) ->  | AS48: =IF(OR(L48="",W48=""),"",ROUND(VLOOKUP(L48,直管換算!$B$4:$Q$26,10,FALSE)*W48,2)) ->  | AT48: =IF(OR(L48="",X48=""),"",ROUND(VLOOKUP(L48,直管換算!$B$4:$Q$26,11,FALSE)*X48,2)) ->  | AU48: =IF(OR(L48="",Y48=""),"",ROUND(VLOOKUP(L48,直管換算!$B$4:$Q$26,12,FALSE)*Y48,2)) ->  | AV48: =IF(OR(L48="",Z48=""),"",ROUND(VLOOKUP(L48,直管換算!$B$4:$Q$26,13,FALSE)*Z48,2)) ->  | AW48: =IF(OR(L48="",AA48=""),"",ROUND(VLOOKUP(L48,直管換算!$B$4:$Q$26,14,FALSE)*AA48,2)) ->  | AX48: =IF(OR(L48="",AB48=""),"",ROUND(VLOOKUP(L48,直管換算!$B$4:$Q$26,15,FALSE)*AB48,2)) ->  | AY48: =IF(OR(L48="",AC48=""),"",ROUND(VLOOKUP(L48,直管換算!$B$4:$Q$26,16,FALSE)*AC48,2)) ->  | BB48: 空 | BE48: =IF(OR(K48="",L48=""),"",0.35464*計算公式!$B$14*POWER(AF48/1000,0.63)*POWER(BF48/1000,0.54)) ->  | BF48: =IF(OR(K48="",L48=""),"",10.666*POWER(計算公式!$B$14,-1.85)*POWER(AF48/1000,-4.87)*POWER(H48/1000,1.85)*1000) ->  | BK48: 0 | BL48: 0 | BM48: 0 | BN48: 0 | BO48: 0
I49: 39 | AF49: =IF(L49="","",VLOOKUP(L49,内径設定!$B$4:$C$26,2,FALSE)) ->  | AG49: =IF(AF49="","",IF(OR(AND(AF49>計算公式!$B$9,計算公式!$D$9="超"),AND(AF49>=計算公式!$B$9,計算公式!$D$9="以上")),"H","W")) ->  | AK49: =IF(OR(L49="",O49=""),"",ROUND(VLOOKUP(L49,直管換算!$B$4:$Q$26,2,FALSE)*O49,2)) ->  | AL49: =IF(OR(L49="",P49=""),"",ROUND(VLOOKUP(L49,直管換算!$B$4:$Q$26,3,FALSE)*P49,2)) ->  | AM49: =IF(OR(L49="",Q49=""),"",ROUND(VLOOKUP(L49,直管換算!$B$4:$Q$26,4,FALSE)*Q49,2)) ->  | AN49: =IF(OR(L49="",R49=""),"",ROUND(VLOOKUP(L49,直管換算!$B$4:$Q$26,5,FALSE)*R49,2)) ->  | AO49: =IF(OR(L49="",S49=""),"",ROUND(VLOOKUP(L49,直管換算!$B$4:$Q$26,6,FALSE)*S49,2)) ->  | AP49: =IF(OR(L49="",T49=""),"",ROUND(VLOOKUP(L49,直管換算!$B$4:$Q$26,7,FALSE)*T49,2)) ->  | AQ49: =IF(OR(L49="",U49=""),"",ROUND(VLOOKUP(L49,直管換算!$B$4:$Q$26,8,FALSE)*U49,2)) ->  | AR49: =IF(OR(L49="",V49=""),"",ROUND(VLOOKUP(L49,直管換算!$B$4:$Q$26,9,FALSE)*V49,2)) ->  | AS49: =IF(OR(L49="",W49=""),"",ROUND(VLOOKUP(L49,直管換算!$B$4:$Q$26,10,FALSE)*W49,2)) ->  | AT49: =IF(OR(L49="",X49=""),"",ROUND(VLOOKUP(L49,直管換算!$B$4:$Q$26,11,FALSE)*X49,2)) ->  | AU49: =IF(OR(L49="",Y49=""),"",ROUND(VLOOKUP(L49,直管換算!$B$4:$Q$26,12,FALSE)*Y49,2)) ->  | AV49: =IF(OR(L49="",Z49=""),"",ROUND(VLOOKUP(L49,直管換算!$B$4:$Q$26,13,FALSE)*Z49,2)) ->  | AW49: =IF(OR(L49="",AA49=""),"",ROUND(VLOOKUP(L49,直管換算!$B$4:$Q$26,14,FALSE)*AA49,2)) ->  | AX49: =IF(OR(L49="",AB49=""),"",ROUND(VLOOKUP(L49,直管換算!$B$4:$Q$26,15,FALSE)*AB49,2)) ->  | AY49: =IF(OR(L49="",AC49=""),"",ROUND(VLOOKUP(L49,直管換算!$B$4:$Q$26,16,FALSE)*AC49,2)) ->  | BB49: 空 | BE49: =IF(OR(K49="",L49=""),"",0.35464*計算公式!$B$14*POWER(AF49/1000,0.63)*POWER(BF49/1000,0.54)) ->  | BF49: =IF(OR(K49="",L49=""),"",10.666*POWER(計算公式!$B$14,-1.85)*POWER(AF49/1000,-4.87)*POWER(H49/1000,1.85)*1000) ->  | BK49: 0 | BL49: 0 | BM49: 0 | BN49: 0 | BO49: 0
I50: 40 | AF50: =IF(L50="","",VLOOKUP(L50,内径設定!$B$4:$C$26,2,FALSE)) ->  | AG50: =IF(AF50="","",IF(OR(AND(AF50>計算公式!$B$9,計算公式!$D$9="超"),AND(AF50>=計算公式!$B$9,計算公式!$D$9="以上")),"H","W")) ->  | AK50: =IF(OR(L50="",O50=""),"",ROUND(VLOOKUP(L50,直管換算!$B$4:$Q$26,2,FALSE)*O50,2)) ->  | AL50: =IF(OR(L50="",P50=""),"",ROUND(VLOOKUP(L50,直管換算!$B$4:$Q$26,3,FALSE)*P50,2)) ->  | AM50: =IF(OR(L50="",Q50=""),"",ROUND(VLOOKUP(L50,直管換算!$B$4:$Q$26,4,FALSE)*Q50,2)) ->  | AN50: =IF(OR(L50="",R50=""),"",ROUND(VLOOKUP(L50,直管換算!$B$4:$Q$26,5,FALSE)*R50,2)) ->  | AO50: =IF(OR(L50="",S50=""),"",ROUND(VLOOKUP(L50,直管換算!$B$4:$Q$26,6,FALSE)*S50,2)) ->  | AP50: =IF(OR(L50="",T50=""),"",ROUND(VLOOKUP(L50,直管換算!$B$4:$Q$26,7,FALSE)*T50,2)) ->  | AQ50: =IF(OR(L50="",U50=""),"",ROUND(VLOOKUP(L50,直管換算!$B$4:$Q$26,8,FALSE)*U50,2)) ->  | AR50: =IF(OR(L50="",V50=""),"",ROUND(VLOOKUP(L50,直管換算!$B$4:$Q$26,9,FALSE)*V50,2)) ->  | AS50: =IF(OR(L50="",W50=""),"",ROUND(VLOOKUP(L50,直管換算!$B$4:$Q$26,10,FALSE)*W50,2)) ->  | AT50: =IF(OR(L50="",X50=""),"",ROUND(VLOOKUP(L50,直管換算!$B$4:$Q$26,11,FALSE)*X50,2)) ->  | AU50: =IF(OR(L50="",Y50=""),"",ROUND(VLOOKUP(L50,直管換算!$B$4:$Q$26,12,FALSE)*Y50,2)) ->  | AV50: =IF(OR(L50="",Z50=""),"",ROUND(VLOOKUP(L50,直管換算!$B$4:$Q$26,13,FALSE)*Z50,2)) ->  | AW50: =IF(OR(L50="",AA50=""),"",ROUND(VLOOKUP(L50,直管換算!$B$4:$Q$26,14,FALSE)*AA50,2)) ->  | AX50: =IF(OR(L50="",AB50=""),"",ROUND(VLOOKUP(L50,直管換算!$B$4:$Q$26,15,FALSE)*AB50,2)) ->  | AY50: =IF(OR(L50="",AC50=""),"",ROUND(VLOOKUP(L50,直管換算!$B$4:$Q$26,16,FALSE)*AC50,2)) ->  | BB50: 空 | BE50: =IF(OR(K50="",L50=""),"",0.35464*計算公式!$B$14*POWER(AF50/1000,0.63)*POWER(BF50/1000,0.54)) ->  | BF50: =IF(OR(K50="",L50=""),"",10.666*POWER(計算公式!$B$14,-1.85)*POWER(AF50/1000,-4.87)*POWER(H50/1000,1.85)*1000) ->  | BK50: 0 | BL50: 0 | BM50: 0 | BN50: 0 | BO50: 0
